Workbook

Sheet Title Page
B6: Final Standardised Metering Capex and Opex Model
B9: Version | D9: 1.08
B10: Date | D10: 44589
B13: Status
B15: Notes:
B16: Current model version contains test data.
C18: Locked Sheets Pwd:
B24: Changelog
B26: Date | C26: Version | D26: Author | E26: Changes
B28: 44589 | C28: 1.08 | D28: AER | E28: Minor changes from further Feedback
B29: 44575 | C29: 1.07 | D29: AER | E29: Updates following consultation
B30: 44494 | C30: 1 | D30: AER | E30: Consultation version (contains anonymised input data)

Sheet Input|General
B1: AER Metering Opex & Capex Forecasting Model
B2: Ver: | D2: 1.08 | H2: Key: | I2: Input | J2: External Link | L2: Internal Link | N2: NSP New Data | P2: AER Addition
B3: =MID(CELL("filename",A1),FIND("]",CELL("filename",A1))+1,255) -> Input|General
B5: Input | General inputs
E7: Inputs | G7: Source | J7: Value | N7: Note
E8: NSP name | G8: NSP | J8: JEN | V8: =IF(ISBLANK($J8),1,0) -> 0
E9: Decision stage | G9: NSP | J9: initial proposal | V9: =IF(ISBLANK($J9),1,0) -> 0
C11: Current Period
E12: Previous regulatory control period, first year | G12: NSP | J12: 2021-22 | N12: Enter either YYYY-YY (for June YE) or YYYY (for calendar year) | V12: =IF(ISBLANK($J12),1,0) -> 0
E13: Previous regulatory control period, last year | G13: NSP | J13: =(LEFT(PPFirstYear,4)+4&IF(MID(PPFirstYear,5,1)="","","-"&TEXT(MOD(MID(PPFirstYear,6,2)+4,100),"00"))) -> 2025-26 | V13: =IF(ISBLANK($J13),1,0) -> 0
E14: Year ending for current regulatory period | G14: NSP | J14: =IF(MID(PPFirstYear,5,1)="",DATE(2000,12,1),DATE(2000,6,1)) -> 2000-06-01 | V14: =IF(ISBLANK($J14),1,0) -> 0
E15: Notation Adjustment (YYYY or YYYY-YY) | J15: =IF(MID(PPFirstYear,5,1)="",0,1) -> 1
C17: Base Year | J17: End Year | L17: Base Year
E18: Opex - Forecast base year | G18: NSP | J18: 2025 | L18: =IF(MONTH('Input|General'!$J$14)=6,J18-1&"-"&RIGHT(J18,2),$J18) -> 2024-25 | V18: =IF(AND(NOT(COUNTBLANK($L18)),(IFERROR(SEARCH("-",PPFirstYear,1),-5)=IFERROR(SEARCH("-",$L18,1),-5)))/1,0,1) -> 0
E19: Capex - Forecast base year | G19: NSP | J19: 2024 | L19: =IF(MONTH('Input|General'!$J$14)=6,J19-1&"-"&RIGHT(J19,2),$J19) -> 2023-24 | V19: =IF(AND(NOT(COUNTBLANK($L19)),(IFERROR(SEARCH("-",PPFirstYear,1),-5)=IFERROR(SEARCH("-",$L19,1),-5)))/1,0,1) -> 0
C22: Forecast Regulatory Period
E23: Forecast regulatory control period, first year | G23: NSP | J23: =IF(MONTH('Input|General'!$J$14)=6,(LEFT(PPLastYear,4)+1&IF(MID(PPLastYear,5,1)="","","-"&TEXT(MOD(MID(PPLastYear,6,2)+1,100),"00"))),PPLastYear+1) -> 2026-27 | V23: =IF(ISBLANK($J23),1,0) -> 0
E24: Forecast regulatory control period, last year | G24: NSP | J24: =IF(MONTH('Input|General'!$J$14)=6,(LEFT(PPLastYear,4)+5&IF(MID(PPLastYear,5,1)="","","-"&TEXT(MOD(MID(PPLastYear,6,2)+5,100),"00"))),PPLastYear+5) -> 2030-31 | V24: =IF(ISBLANK($J24),1,0) -> 0
C27: Cost Basis | J27: $Basis, End Year | L27: $Basis
D28: Inputs
E29: Opex (Historical) | J29: nominal | L29: =IF(J29="nominal","nominal",DATE($J29,MONTH($J$14),1)) -> nominal | V29: =IF(ISBLANK($J29),1,0) -> 0
E30: Opex (Forecast) | J30: 2026 | L30: =DATE($J30,MONTH($J$14),1) -> 2026-06-01 | V30: =IF(ISBLANK($J30),1,0) -> 0
E31: Capex
F32: Input Year | J32: 2024 | V32: =IF(ISBLANK($J32),1,0) -> 0
F33: Cash Flow Timing | J33: End Year | L33: =EDATE(DATE($J32,MONTH($J$14),1),IF($J$33="Mid Year",-6,0)) -> 2024-06-01 | V33: =IF(ISBLANK($J33),1,0) -> 0
D34: Output Basis
E35: PTRM | J35: 2026 | L35: =DATE($J35,MONTH($J$14),1) -> 2026-06-01 | V35: =IF(ISBLANK($J35),1,0) -> 0
E36: RFM | J36: nominal | L36: =IF(J36="nominal","nominal",DATE($J36,MONTH($J$14),1)) -> nominal | V36: =IF(ISBLANK($J36),1,0) -> 0
C39: Validation
H40: Model | J40: =IF(SUM(J42:J45)<>0,1,0) -> 0
H42: Input|General | J42: =IF(SUM(V8:V36)<>0,1,0) -> 0
H43: Input| Prices | J43: ='Input| Prices'!A4 -> 0
H44: Input | Meter-Opex BST | J44: ='Input | Meter-Opex BST'!A5 -> 0
H45: Calc | Capex Meters | J45: ='Calc | Capex Meters'!A4 -> 0
B47: End

Sheet Input| Historical Inflation
B1: ='Input|General'!B1&" v"&'Input|General'!$D$2 -> AER Metering Opex & Capex Forecasting Model v1.08
B2: =MID(CELL("filename",B2),FIND("]",CELL("filename",B2))+1,255) -> Input| Historical Inflation
B5: Input | General inputs
D7: Added Calc | G7: Index value, new base | H7: Percentage Change from Corresponding Quarter of Previous Year | I7: Index value, new base | J7: Percentage Change from Corresponding Quarter of Previous Year
F8: Source | G8: ABS | H8: Calculated | I8: ABS | J8: Calculated
D9: Year | E9: Month | F9: Unit | G9: index | H9: Percent | I9: index2 | J9: Percent3
D10: =YEAR(F10) -> 2014 | E10: =MONTH(F10) -> 6 | F10: 2014-06-30 | I10: 105.9
D11: 2014 | E11: 9 | F11: 2014-09-30 | I11: 106.4
D12: 2014 | E12: 12 | F12: 2014-12-31 | I12: 106.6
D13: 2015 | E13: 3 | F13: 2015-03-31 | I13: 106.8
D14: 2015 | E14: 6 | F14: 2015-06-30 | I14: 107.5 | J14: =IF(ISBLANK(I14),0,I14/I10-1) -> 0.01510859301
D15: 2015 | E15: 9 | F15: 2015-09-30 | I15: 108 | J15: =IF(ISBLANK(I15),0,I15/I11-1) -> 0.01503759398
D16: 2015 | E16: 12 | F16: 2015-12-31 | I16: 108.4 | J16: 0.01688555347
D17: 2016 | E17: 3 | F17: 2016-03-31 | I17: 108.2 | J17: 0.01310861423
D18: 2016 | E18: 6 | F18: 2016-06-30 | I18: 108.6 | J18: 0.01023255814
D19: 2016 | E19: 9 | F19: 2016-09-30 | I19: 109.4 | J19: 0.01296296296
D20: 2016 | E20: 12 | F20: 2016-12-31 | I20: 110 | J20: 0.0147601476
D21: 2017 | E21: 3 | F21: 2017-03-31 | I21: 110.5 | J21: 0.02125693161
D22: 2017 | E22: 6 | F22: 2017-06-30 | I22: 110.7 | J22: 0.01933701657
D23: 2017 | E23: 9 | F23: 2017-09-30 | I23: 111.4 | J23: 0.01828153565
D24: 2017 | E24: 12 | F24: 2017-12-31 | I24: 112.1 | J24: 0.01909090909
D25: 2018 | E25: 3 | F25: 2018-03-31 | I25: 112.6 | J25: 0.01900452489
D26: 2018 | E26: 6 | F26: 2018-06-30 | I26: 113 | J26: 0.02077687444
D27: 2018 | E27: 9 | F27: 2018-09-30 | I27: 113.5 | J27: 0.01885098743
D28: 2018 | E28: 12 | F28: 2018-12-31 | I28: 114.1 | J28: 0.0178412132
D29: 2019 | E29: 3 | F29: 2019-03-31 | I29: 114.1 | J29: 0.01332149201
D30: 2019 | E30: 6 | F30: 2019-06-30 | I30: 114.8 | J30: 0.01592920354
D31: 2019 | E31: 9 | F31: 2019-09-30 | I31: 115.4 | J31: 0.01674008811
D32: 2019 | E32: 12 | F32: 2019-12-31 | I32: 116.2 | J32: 0.01840490798
D33: =YEAR(F33) -> 2020 | E33: =MONTH(F33) -> 3 | F33: 2020-03-31 | I33: 116.6 | J33: 0.02191060473
D34: 2020 | E34: 6 | F34: 2020-06-30 | I34: 114.4 | J34: -0.003484320557
D35: 2020 | E35: 9 | F35: 2020-09-30 | I35: 116.2 | J35: 0.006932409012
D36: 2020 | E36: 12 | F36: 2020-12-31 | I36: 117.2 | J36: 0.008605851979
D37: 2021 | E37: 3 | F37: 2021-03-31 | I37: 117.9 | J37: 0.01114922813
D38: 2021 | E38: 6 | F38: 2021-06-30 | I38: 118.8 | J38: 0.03846153846
D39: 2021 | E39: 9 | F39: 2021-09-30 | I39: 119.7 | J39: 0.03012048193
D40: 2021 | E40: 12 | F40: 2021-12-31 | I40: 121.3 | J40: 0.03498293515
D41: 2022 | E41: 3 | F41: 2022-03-31 | I41: 123.9 | J41: 0.05089058524
D42: 2022 | E42: 6 | F42: 2022-06-30 | I42: 126.1 | J42: 0.06144781145
D43: 2022 | E43: 9 | F43: 2022-09-30 | I43: 128.4 | J43: 0.07268170426
D44: 2022 | E44: 12 | F44: 2022-12-31 | I44: 130.8 | J44: 0.07831821929
D45: 2023 | E45: 3 | F45: 2023-03-31 | I45: 132.6 | J45: 0.07021791768
D46: 2023 | E46: 6 | F46: 2023-06-30 | I46: 133.7 | J46: 0.06026962728
D47: 2023 | E47: 9 | F47: 2023-09-30 | I47: 135.3 | J47: 0.05373831776
D48: 2023 | E48: 12 | F48: 2023-12-31 | I48: 136.1 | J48: 0.04051987768
D49: 2024 | E49: 3 | F49: 2024-03-31 | I49: 137.4 | J49: 0.03619909502
D50: 2024 | E50: 6 | F50: 2024-06-30 | I50: 138.8 | J50: 0.03814510097
D51: 2024 | E51: 9 | F51: 2024-09-30 | I51: 139.1 | J51: 0.0280857354
D52: 2024 | E52: 12 | F52: 2024-12-31 | J52: 0
D53: 2025 | E53: 3 | F53: 2025-03-31 | J53: 0
D54: 2025 | E54: 6 | F54: 2025-06-30 | J54: 0
D55: 2025 | E55: 9 | F55: 2025-09-30 | J55: 0
D56: 2025 | E56: 12 | F56: 2025-12-31 | J56: 0
D57: 2026 | E57: 3 | F57: 2026-03-31 | J57: 0
D58: 2026 | E58: 6 | F58: 2026-06-30 | J58: 0
D59: 2026 | E59: 9 | F59: 2026-09-30 | J59: 0
D60: 2026 | E60: 12 | F60: 2026-12-31 | J60: 0
D61: 2027 | E61: 3 | F61: 2027-03-31 | J61: 0
D62: 2027 | E62: 6 | F62: 2027-06-30 | J62: 0
D63: 2027 | E63: 9 | F63: 2027-09-30 | J63: 0
D64: 2027 | E64: 12 | F64: 2027-12-31 | J64: 0
D65: 2028 | E65: 3 | F65: 2028-03-31 | J65: 0
D66: 2028 | E66: 6 | F66: 2028-06-30 | J66: 0
D67: 2028 | E67: 9 | F67: 2028-09-30 | J67: 0
D68: 2028 | E68: 12 | F68: 2028-12-31 | J68: 0
D69: 2029 | E69: 3 | F69: 2029-03-31 | J69: 0
D70: 2029 | E70: 6 | F70: 2029-06-30 | J70: 0
D71: 2029 | E71: 9 | F71: 2029-09-30 | J71: 0
D72: 2029 | E72: 12 | F72: 2029-12-31 | J72: 0
D73: 2030 | E73: 3 | F73: 2030-03-31 | J73: 0
B75: End

Sheet Input| Prices
B1: ='Input|General'!B1&" v"&'Input|General'!$D$2 -> AER Metering Opex & Capex Forecasting Model v1.08
B2: =MID(CELL("filename",A1),FIND("]",CELL("filename",A1))+1,255) -> Input| Prices
A4: =IF(SUM(A6:A68)<>0,1,0) -> 0
D6: 6. Inflation table setup
D8: First year of forecast regulatory control period | J8: =FPFirstYear -> 2026-27
D9: Year End | J9: ='Input|General'!J14 -> 2000-06-01
D10: Notation Adjustment | J10: =IF(MID(PPFirstYear,5,1)="",0,1) -> 1
D12: =LEFT(D6,1)+1&". Forecast CPI, Real Labour/Non-Labour Price Growth" -> 7. Forecast CPI, Real Labour/Non-Labour Price Growth
B14: Year Series | M14: Forecast RP
D15: Dynamic Notation | I15: =(LEFT(J15,4)-1&IF(MID(J15,5,1)="","","-"&TEXT(MOD(MID(J15,6,2)-1,100),"00"))) -> 2022-23 | J15: =(LEFT(K15,4)-1&IF(MID(K15,5,1)="","","-"&TEXT(MOD(MID(K15,6,2)-1,100),"00"))) -> 2023-24 | K15: =(LEFT(L15,4)-1&IF(MID(L15,5,1)="","","-"&TEXT(MOD(MID(L15,6,2)-1,100),"00"))) -> 2024-25 | L15: =(LEFT(M15,4)-1&IF(MID(M15,5,1)="","","-"&TEXT(MOD(MID(M15,6,2)-1,100),"00"))) -> 2025-26 | M15: =FPFirstYear -> 2026-27 | N15: =(LEFT(M15,4)+1&IF(MID(M15,5,1)="","","-"&TEXT(MOD(MID(M15,6,2)+1,100),"00"))) -> 2027-28 | O15: =(LEFT(N15,4)+1&IF(MID(N15,5,1)="","","-"&TEXT(MOD(MID(N15,6,2)+1,100),"00"))) -> 2028-29 | P15: =(LEFT(O15,4)+1&IF(MID(O15,5,1)="","","-"&TEXT(MOD(MID(O15,6,2)+1,100),"00"))) -> 2029-30 | Q15: =(LEFT(P15,4)+1&IF(MID(P15,5,1)="","","-"&TEXT(MOD(MID(P15,6,2)+1,100),"00"))) -> 2030-31
D16: End Year Notation | I16: =(LEFT(I$15,4)+$J$10)/1 -> 2023 | J16: 2024 | K16: 2025 | L16: 2026 | M16: 2027 | N16: 2028 | O16: 2029 | P16: 2030 | Q16: 2031
B19: CPI | M19: Forecast RP
D20: Forecast Inflation - 6 months lagged | G20: YE Index | H20: Source | I20: =I$15 -> 2022-23 | J20: =J$15 -> 2023-24 | K20: 2024-25 | L20: 2025-26 | M20: 2026-27 | N20: 2027-28 | O20: 2028-29 | P20: 2029-30 | Q20: 2030-31
D21: CPI year on year change (NSP Forecast) | G21: =(EDATE(Basis_Ptrm,-6)) -> 2025-12-01 | K21: 0.026 | L21: 0.037 | M21: 0.025
D22: CPI year on year change (ABS Data) | G22: =(EDATE(Basis_Ptrm,-6)) -> 2025-12-01 | I22: =IF(I16<=MAX(Table4[Year]),INDEX('Input| Historical Inflation'!$J$10:$J$72, MATCH(1,('Input| Historical Inflation'!$E$10:$E$72=(IF(MONTH($J$9)=6,12,6)))* ('Input| Historical Inflation'!$D$10:$D$72=I$16+IF(MONTH($J$9)=6,-1,0)),0)), 0) -> 0.07831821929 | J22: =IF(J16<=MAX(Table4[Year]),INDEX('Input| Historical Inflation'!$J$10:$J$72, MATCH(1,('Input| Historical Inflation'!$E$10:$E$72=(IF(MONTH($J$9)=6,12,6)))* ('Input| Historical Inflation'!$D$10:$D$72=J$16+IF(MONTH($J$9)=6,-1,0)),0)), 0) -> 0.04051987768 | K22: =IF(K16<=MAX(Table4[Year]),INDEX('Input| Historical Inflation'!$J$10:$J$72, MATCH(1,('Input| Historical Inflation'!$E$10:$E$72=(IF(MONTH($J$9)=6,12,6)))* ('Input| Historical Inflation'!$D$10:$D$72=K$16+IF(MONTH($J$9)=6,-1,0)),0)), 0) -> 0 | L22: =IF(L16<=MAX(Table4[Year]),INDEX('Input| Historical Inflation'!$J$10:$J$72, MATCH(1,('Input| Historical Inflation'!$E$10:$E$72=(IF(MONTH($J$9)=6,12,6)))* ('Input| Historical Inflation'!$D$10:$D$72=L$16+IF(MONTH($J$9)=6,-1,0)),0)), 0) -> 0 | M22: =IF(M16<=MAX(Table4[Year]),INDEX('Input| Historical Inflation'!$J$10:$J$72, MATCH(1,('Input| Historical Inflation'!$E$10:$E$72=(IF(MONTH($J$9)=6,12,6)))* ('Input| Historical Inflation'!$D$10:$D$72=M$16+IF(MONTH($J$9)=6,-1,0)),0)), 0) -> 0 | N22: =IF(N16<=MAX(Table4[Year]),INDEX('Input| Historical Inflation'!$J$10:$J$72, MATCH(1,('Input| Historical Inflation'!$E$10:$E$72=(IF(MONTH($J$9)=6,12,6)))* ('Input| Historical Inflation'!$D$10:$D$72=N$16+IF(MONTH($J$9)=6,-1,0)),0)), 0) -> 0 | O22: =IF(O16<=MAX(Table4[Year]),INDEX('Input| Historical Inflation'!$J$10:$J$72, MATCH(1,('Input| Historical Inflation'!$E$10:$E$72=(IF(MONTH($J$9)=6,12,6)))* ('Input| Historical Inflation'!$D$10:$D$72=O$16+IF(MONTH($J$9)=6,-1,0)),0)), 0) -> 0 | P22: =IF(P16<=MAX(Table4[Year]),INDEX('Input| Historical Inflation'!$J$10:$J$72, MATCH(1,('Input| Historical Inflation'!$E$10:$E$72=(IF(MONTH($J$9)=6,12,6)))* ('Input| Historical Inflation'!$D$10:$D$72=P$16+IF(MONTH($J$9)=6,-1,0)),0)), 0) -> 0 | Q22: =IF(Q16<=MAX(Table4[Year]),INDEX('Input| Historical Inflation'!$J$10:$J$72, MATCH(1,('Input| Historical Inflation'!$E$10:$E$72=(IF(MONTH($J$9)=6,12,6)))* ('Input| Historical Inflation'!$D$10:$D$72=Q$16+IF(MONTH($J$9)=6,-1,0)),0)), 0) -> 0
A23: =IF(PRODUCT(1,$I$23:$Q$23<>0),0,1) -> 0 | D23: CPI Calculated YoY change (ABS data where available) | H23: Calculated | I23: =IF(I$22>0,I$22,I$21) -> 0.07831821929 | J23: =IF(J$22>0,J$22,J$21) -> 0.04051987768 | K23: =IF(K$22>0,K$22,K$21) -> 0.026 | L23: =IF(L$22>0,L$22,L$21) -> 0.037 | M23: =IF(M$22>0,M$22,M$21) -> 0.025 | N23: =M23 -> 0.025 | O23: =N23 -> 0.025 | P23: =O23 -> 0.025 | Q23: =P23 -> 0.025
D26: Cumulative Inflation - 6 months lagged | G26: Cash Flow Timing | H26: Source | I26: =I$15 -> 2022-23 | J26: =J$15 -> 2023-24 | K26: 2024-25 | L26: 2025-26 | M26: 2026-27 | N26: 2027-28 | O26: 2028-29 | P26: 2029-30 | Q26: 2030-31
D27: Cumulative Inflation Index (Lagged) | G27: End Year | H27: Calculated | I27: 1 | J27: =I27*(1+J23) -> 1.040519878 | K27: =J27*(1+K23) -> 1.067573394 | L27: 1.10707361 | M27: 1.13475045 | N27: 1.163119212 | O27: 1.192197192 | P27: 1.222002122 | Q27: 1.252552175
D28: Cumulative Inflation Index (Lagged - Mid Year Input) | G28: Mid Year | H28: Calculated | I28: 1 | J28: =I27*((1+J23)^0.5) -> 1.020058762 | K28: =J27*((1+K23)^0.5) -> 1.053959837 | L28: 1.087144117 | M28: 1.120826605 | N28: 1.14884727 | O28: 1.177568451 | P28: 1.207007663 | Q28: 1.237182854
D31: CPI - Basis Conversion Indexes | E31: Basis In - YE | F31: Basis Out - YE | G31: Note | H31: Source | I31: =I$15 -> 2022-23 | J31: =J$15 -> 2023-24 | K31: 2024-25 | L31: 2025-26 | M31: 2026-27 | N31: 2027-28 | O31: 2028-29 | P31: 2029-30 | Q31: 2030-31
D32: Opex Hist > Opex Forecast | E32: =Basis_OpexHistEY -> nominal | F32: =Basis_OpexForecastEY -> 2026 | G32: Lagged | H32: Calculated | J32: =IF($E32="nominal", (1+J$23)^0.5*INDEX($J$27:$Q$27,MATCH($F32,$J$16:$Q$16))/J$27, INDEX($J$27:$Q$27,MATCH($F32,$J$16:$Q$16))/INDEX($J$27:$Q$27,MATCH($E32,$J$16:$Q$16))) -> 1.08530376 | K32: 1.050394494 | L32: 1.018331969 | M32: 0.9877295966 | N32: 0.9636386309 | O32: 0.9401352496 | P32: 0.9172051216 | Q32: 0.894834265
D33: Opex Forecast -> Output | E33: =Basis_OpexForecastEY -> 2026 | F33: =Basis_PtrmEY -> 2026 | G33: Lagged | H33: Calculated | J33: =IF($E33="nominal", (1+J23)^0.5*INDEX($J$27:$Q$27,MATCH($F33,$J$16:$Q$16))/J$27, INDEX($J$27:$Q$27,MATCH($F33,$J$16:$Q$16))/INDEX($J$27:$Q$27,MATCH($E33,$J$16:$Q$16))) -> 1 | K33: 1 | L33: 1 | M33: 1 | N33: 1 | O33: 1 | P33: 1 | Q33: 1
D34: Capex -> Output | E34: =Basis_CapexEY -> 2024 | F34: =Basis_PtrmEY -> 2026 | G34: ='Input|General'!J33&" Inputs" -> End Year Inputs | H34: Calculated | J34: =IF($E34="nominal", (1+J$23)^0.5*INDEX($J$27:$Q$27,MATCH($F34,$J$16:$Q$16))/J$27, INDEX($J$27:$Q$27,MATCH($F34,$J$16:$Q$16))/INDEX(IF('Input|General'!$J$33="Mid Year",$J$28:$Q$28,$J$27:$Q$27),MATCH($E34,$J$16:$Q$16))) -> 1.063962 | K34: =IF($E34="nominal", (1+K$23)^0.5*INDEX($J$27:$Q$27,MATCH($F34,$J$16:$Q$16))/K$27, INDEX($J$27:$Q$27,MATCH($F34,$J$16:$Q$16))/INDEX(IF('Input|General'!$J$33="Mid Year",$J$28:$Q$28,$J$27:$Q$27),MATCH($E34,$J$16:$Q$16))) -> 1.063962 | L34: =IF($E34="nominal", (1+L$23)^0.5*INDEX($J$27:$Q$27,MATCH($F34,$J$16:$Q$16))/L$27, INDEX($J$27:$Q$27,MATCH($F34,$J$16:$Q$16))/INDEX(IF('Input|General'!$J$33="Mid Year",$J$28:$Q$28,$J$27:$Q$27),MATCH($E34,$J$16:$Q$16))) -> 1.063962 | M34: =IF($E34="nominal", (1+M$23)^0.5*INDEX($J$27:$Q$27,MATCH($F34,$J$16:$Q$16))/M$27, INDEX($J$27:$Q$27,MATCH($F34,$J$16:$Q$16))/INDEX(IF('Input|General'!$J$33="Mid Year",$J$28:$Q$28,$J$27:$Q$27),MATCH($E34,$J$16:$Q$16))) -> 1.063962 | N34: =IF($E34="nominal", (1+N$23)^0.5*INDEX($J$27:$Q$27,MATCH($F34,$J$16:$Q$16))/N$27, INDEX($J$27:$Q$27,MATCH($F34,$J$16:$Q$16))/INDEX(IF('Input|General'!$J$33="Mid Year",$J$28:$Q$28,$J$27:$Q$27),MATCH($E34,$J$16:$Q$16))) -> 1.063962 | O34: =IF($E34="nominal", (1+O$23)^0.5*INDEX($J$27:$Q$27,MATCH($F34,$J$16:$Q$16))/O$27, INDEX($J$27:$Q$27,MATCH($F34,$J$16:$Q$16))/INDEX(IF('Input|General'!$J$33="Mid Year",$J$28:$Q$28,$J$27:$Q$27),MATCH($E34,$J$16:$Q$16))) -> 1.063962 | P34: =IF($E34="nominal", (1+P$23)^0.5*INDEX($J$27:$Q$27,MATCH($F34,$J$16:$Q$16))/P$27, INDEX($J$27:$Q$27,MATCH($F34,$J$16:$Q$16))/INDEX(IF('Input|General'!$J$33="Mid Year",$J$28:$Q$28,$J$27:$Q$27),MATCH($E34,$J$16:$Q$16))) -> 1.063962 | Q34: =IF($E34="nominal", (1+Q$23)^0.5*INDEX($J$27:$Q$27,MATCH($F34,$J$16:$Q$16))/Q$27, INDEX($J$27:$Q$27,MATCH($F34,$J$16:$Q$16))/INDEX(IF('Input|General'!$J$33="Mid Year",$J$28:$Q$28,$J$27:$Q$27),MATCH($E34,$J$16:$Q$16))) -> 1.063962
D35: PTRM -> RFM | E35: =Basis_PtrmEY -> 2026 | F35: =Basis_RfmEY -> nominal | H35: Calculated | J35: =J27/(INDEX($J$27:$Q$27,MATCH(YEAR(Basis_Ptrm),$J$16:$Q$16,0))) -> 0.9398831913 | K35: 0.9643201543 | L35: 1 | M35: 1.025 | N35: 1.050625 | O35: 1.076890625 | P35: 1.103812891 | Q35: 1.131408213
B37: Opex Price Change
D38: Forecast Price Change Component | H38: Source | I38: Weights | J38: =J$15 -> 2023-24 | K38: 2024-25 | L38: 2025-26 | M38: 2026-27 | N38: 2027-28 | O38: 2028-29 | P38: 2029-30 | Q38: 2030-31
D39: WPI - DAE forecast (placeholder from Ergon Draft Decision) - AUS | H39: DAE | I39: =59.2%/2 -> 0.296 | K39: 0.01 | L39: 0.009 | M39: 0.007 | N39: 0.007 | O39: 0.008 | P39: 0.011 | Q39: 0.011
D40: WPI - Oxford Economics forecast (October 2024) | H40: Oxford | I40: =+I39 -> 0.296 | K40: 0.006536312907 | L40: 0.007201031134 | M40: 0.01162704879 | N40: 0.009716711258 | O40: 0.01250998106 | P40: 0.01348037617 | Q40: 0.01196470609
D41: Real Labour Price Growth - SGI | H41: Super Guarantee | I41: =+I39+I40 -> 0.592 | K41: 0.005 | L41: 0.005 | M41: 0 | N41: 0 | O41: 0 | P41: 0 | Q41: 0
D42: Real Non-Labour Price Change | I42: =1-I41 -> 0.408 | K42: 0 | L42: 0 | M42: 0 | N42: 0 | O42: 0 | P42: 0 | Q42: 0
D43: Forecast Weighted Real Price Change | H43: Calculated | K43: =SUMPRODUCT(K$39:K$42,$I$39:$I$42) -> 0.00785474862 | L43: =SUMPRODUCT(L$39:L$42,$I$39:$I$42) -> 0.007755505216 | M43: 0.005513606441 | N43: 0.004948146532 | O43: 0.006070954395 | P43: 0.007246191346 | Q43: 0.006797553002
A44: =I44 -> 0 | I44: =IF(SUM(I41,I42)=1,0,1) -> 0
B48: Capex Price Change
D49: Forecast Price Change Component | H49: Source | I49: Weights | J49: =J$15 -> 2023-24 | K49: 2024-25 | L49: 2025-26 | M49: 2026-27 | N49: 2027-28 | O49: 2028-29 | P49: 2029-30 | Q49: 2030-31
D50: Real Labour Price Change - Weighted average of Opex Price Change | H50: Calculated | I50: Applied Directly | K50: =AVERAGE(K39:K40)+K41 -> 0.01326815645 | L50: =AVERAGE(L39:L40)+L41 -> 0.01310051557 | M50: =AVERAGE(M39:M40)+M41 -> 0.009313524394 | N50: =AVERAGE(N39:N40)+N41 -> 0.008358355629 | O50: 0.01025499053 | P50: 0.01224018808 | Q50: 0.01148235304
D51: Real Non-Labour Price Change | I51: Applied Directly | K51: =K42 -> 0 | L51: =L42 -> 0 | M51: 0 | N51: 0 | O51: 0 | P51: 0 | Q51: 0
C53: Labour Price Change
D54: Internal Real Price index | J54: =1 -> 1 | K54: =IFERROR(J54*(1+K50),"") -> 1.013268156 | L54: =IFERROR(K54*(1+L50),"") -> 1.026542492 | M54: 1.03610322 | N54: 1.044763339 | O54: 1.055477378 | P54: 1.068396619 | Q54: 1.080664326
D55: Real Price index to input year | J55: =J$54/INDEX($J$54:$Q$54,MATCH(Basis_CapexEY,$J$16:$Q$16)) -> 1 | K55: 1.013268156 | L55: 1.026542492 | M55: 1.03610322 | N55: 1.044763339 | O55: 1.055477378 | P55: 1.068396619 | Q55: 1.080664326
C57: Non-Labour Price Change
D58: Internal Real Price index | J58: =1 -> 1 | K58: =IFERROR(J58*(1+K51),"") -> 1 | L58: =IFERROR(K58*(1+L51),"") -> 1 | M58: 1 | N58: 1 | O58: 1 | P58: 1 | Q58: 1
D59: Real Price index to input year | J59: =J$58/INDEX($J$58:$Q$58,MATCH(Basis_CapexEY,$J$16:$Q$16)) -> 1 | K59: 1 | L59: 1 | M59: 1 | N59: 1 | O59: 1 | P59: 1 | Q59: 1

Sheet Input| Historical Capex
B1: ='Input|General'!B1&" v"&'Input|General'!$D$2 -> AER Metering Opex & Capex Forecasting Model v1.08
B2: =MID(CELL("filename",A1),FIND("]",CELL("filename",A1))+1,255) -> Input| Historical Capex | N2: Jemena added sheet
B5: Historical Gross Capex (including Type 1 Contributions, excluding Type 2 Contributions) - by service
B7: Summary - by service | C7: Source | D7: Unit | E7: Basis | F7: Timing | H7: CY20 | I7: HY21 | J7: 2021-22 | K7: 2022-23 | L7: 2023-24 | M7: 2024-25 | N7: 2025-26
B9: ACS Metering | C9: JEN | D9: $dollars | E9: Nominal | F9: mid-year | H9: 2514853.64 | I9: 1655410.24 | J9: 4789956.7 | K9: 3375277.47 | L9: 3711051.57
B11: Historical Gross Capex (including Type 1 Contributions, excluding Type 2 Contributions) - by RAB asset class
B13: Summary - by RAB asset class | C13: Source | D13: Unit | E13: Basis | F13: Timing | H13: =+H$7 -> CY20 | I13: =+I$7 -> HY21 | J13: 2021-22 | K13: 2022-23 | L13: 2023-24 | M13: 2024-25 | N13: 2025-26
B15: Remotely read interval meters & transformers | C15: JEN | D15: $dollars | E15: Nominal | F15: mid-year | H15: 2290791.67 | I15: 0 | J15: 2375708.12 | K15: 2552807.38 | L15: 2496941.14
B16: Communications | C16: JEN | D16: $dollars | E16: Nominal | F16: mid-year | H16: 162317.43 | I16: 1213424.52 | J16: 1109575.2 | K16: 463344.29 | L16: 1214110.43
B17: IT | C17: JEN | D17: $dollars | E17: Nominal | F17: mid-year | H17: 61744.54 | I17: 441985.72 | J17: 611193.38 | K17: 359125.8 | L17: 0
B18: Inhouse Software (SL Tax Depn) | C18: JEN | D18: $dollars | E18: Nominal | F18: mid-year | H18: 0 | I18: 0 | J18: 693480 | K18: 0 | L18: 0
B19: Total | C19: JEN | D19: $dollars | E19: Nominal | F19: mid-year | H19: =SUM(H15:H18) -> 2514853.64 | I19: 1655410.24 | J19: 4789956.7 | K19: 3375277.47 | L19: 3711051.57 | M19: 0 | N19: 0
A21: =+IF(SUM(H21:N21)=0,0,1) -> 0 | B21: Check | H21: =IF(ROUND(H19-H$9,3)=0,0,1) -> 0 | I21: =IF(ROUND(I19-I$9,3)=0,0,1) -> 0 | J21: 0 | K21: 0 | L21: 0 | M21: 0 | N21: 0
B23: Immediately expensed capex for tax purposes
B25: Immediately expensed capex for tax purposes | C25: Source | D25: Unit | E25: Basis | F25: Timing | H25: =+H$7 -> CY20 | I25: =+I$7 -> HY21 | J25: 2021-22 | K25: 2022-23 | L25: 2023-24 | M25: 2024-25 | N25: 2025-26
B27: =B15 -> Remotely read interval meters & transformers | C27: JEN | D27: $dollars | E27: Nominal | F27: mid-year | H27: 0 | I27: 1187456.26 | J27: 0 | K27: 1897801.49 | L27: 0
B28: =B16 -> Communications | C28: JEN | D28: $dollars | E28: Nominal | F28: mid-year | H28: 0 | I28: 0 | J28: 3414071.97 | K28: 461783.09 | L28: 0
B29: =B17 -> IT | C29: JEN | D29: $dollars | E29: Nominal | F29: mid-year | H29: 0 | I29: 0 | J29: 0 | K29: 0 | L29: 0
B30: =B18 -> Inhouse Software (SL Tax Depn) | C30: JEN | D30: $dollars | E30: Nominal | F30: mid-year | H30: 0 | I30: 0 | J30: 0 | K30: 0 | L30: 0
B31: Total | C31: JEN | D31: $dollars | E31: Nominal | F31: mid-year | H31: =SUM(H27:H30) -> 0 | I31: 1187456.26 | J31: 3414071.97 | K31: 2359584.58 | L31: 0 | M31: 0 | N31: 0
B33: Historical Capital Contributions (Type 1 and Type 2 Contributions) - by service
B35: Summary - by service | C35: Source | D35: Unit | E35: Basis | F35: Timing | H35: =+H$7 -> CY20 | I35: =+I$7 -> HY21 | J35: 2021-22 | K35: 2022-23 | L35: 2023-24 | M35: 2024-25 | N35: 2025-26
B37: ACS Metering | C37: JEN | D37: $dollars | E37: Nominal | F37: mid-year | H37: 0 | I37: 0 | J37: 0 | K37: 0 | L37: 0
B39: Historical Cash Contributions (Type 1 Contributions) - by RAB asset class
B41: Summary - by RAB asset class | C41: Source | D41: Unit | E41: Basis | F41: Timing | H41: =+H$7 -> CY20 | I41: =+I$7 -> HY21 | J41: 2021-22 | K41: 2022-23 | L41: 2023-24 | M41: 2024-25 | N41: 2025-26
B43: =B15 -> Remotely read interval meters & transformers | C43: JEN | D43: $dollars | E43: Nominal | F43: mid-year | H43: 0 | I43: 0 | J43: 0 | K43: 0 | L43: 0
B44: =B16 -> Communications | C44: JEN | D44: $dollars | E44: Nominal | F44: mid-year | H44: 0 | I44: 0 | J44: 0 | K44: 0 | L44: 0
B45: =B17 -> IT | C45: JEN | D45: $dollars | E45: Nominal | F45: mid-year | H45: 0 | I45: 0 | J45: 0 | K45: 0 | L45: 0
B46: =B18 -> Inhouse Software (SL Tax Depn) | C46: JEN | D46: $dollars | E46: Nominal | F46: mid-year | H46: 0 | I46: 0 | J46: 0 | K46: 0 | L46: 0
B47: Total | C47: JEN | D47: $dollars | E47: Nominal | F47: mid-year | H47: =SUM(H43:H46) -> 0 | I47: 0 | J47: 0 | K47: 0 | L47: 0 | M47: 0 | N47: 0
A49: =+IF(SUM(H49:N49)=0,0,1) -> 0 | B49: Check | H49: =IF(ROUND(H47-H$37,3)=0,0,1) -> 0 | I49: =IF(ROUND(I47-I$37,3)=0,0,1) -> 0 | J49: 0 | K49: 0 | L49: 0 | M49: 0 | N49: 0
B51: Historical Asset Disposals - by service
B53: Summary - by service | C53: Source | D53: Unit | E53: Basis | F53: Timing | H53: =+H$7 -> CY20 | I53: =+I$7 -> HY21 | J53: 2021-22 | K53: 2022-23 | L53: 2023-24 | M53: 2024-25 | N53: 2025-26
B55: ACS Metering | C55: JEN | D55: $dollars | E55: Nominal | F55: mid-year | H55: 0 | I55: 0 | J55: 0 | K55: 0 | L55: 0
B57: Historical Asset Disposals - by RAB asset class
B59: Summary - by RAB asset class | C59: Source | D59: Unit | E59: Basis | F59: Timing | H59: =+H$7 -> CY20 | I59: =+I$7 -> HY21 | J59: 2021-22 | K59: 2022-23 | L59: 2023-24 | M59: 2024-25 | N59: 2025-26
B61: =B15 -> Remotely read interval meters & transformers | C61: JEN | D61: $dollars | E61: Nominal | F61: mid-year | H61: 0 | I61: 0 | J61: 0 | K61: 0 | L61: 0
B62: =B16 -> Communications | C62: JEN | D62: $dollars | E62: Nominal | F62: mid-year | H62: 0 | I62: 0 | J62: 0 | K62: 0 | L62: 0
B63: =B17 -> IT | C63: JEN | D63: $dollars | E63: Nominal | F63: mid-year | H63: 0 | I63: 0 | J63: 0 | K63: 0 | L63: 0
B64: =B18 -> Inhouse Software (SL Tax Depn) | C64: JEN | D64: $dollars | E64: Nominal | F64: mid-year | H64: 0 | I64: 0 | J64: 0 | K64: 0 | L64: 0
B65: Total | C65: JEN | D65: $dollars | E65: Nominal | F65: mid-year | H65: =SUM(H61:H64) -> 0 | I65: 0 | J65: 0 | K65: 0 | L65: 0 | M65: 0 | N65: 0
A67: =+IF(SUM(H67:N67)=0,0,1) -> 0 | B67: Check | H67: =IF(ROUND(H65-H$55,3)=0,0,1) -> 0 | I67: 0 | J67: 0 | K67: 0 | L67: 0 | M67: 0 | N67: 0

Sheet Opex Specific >

Sheet Input | Meter-Opex BST
B1: ='Input|General'!B1&" v"&'Input|General'!$D$2 -> AER Metering Opex & Capex Forecasting Model v1.08
B2: =MID(CELL("filename",A1),FIND("]",CELL("filename",A1))+1,255) -> Input | Meter-Opex BST
N4: =IF(N5=Opex_BaseYear,"Base Year","") ->  | O4: =IF(O5=Opex_BaseYear,"Base Year","") ->  | P4: =IF(P5=Opex_BaseYear,"Base Year","") -> Base Year | Q4: =IF(Q5=Opex_BaseYear,"Base Year","") ->  | R4: Forecast RP
A5: =IF(SUM(A7:A47)<>0,1,0) -> 0 | J5: Value | L5: =IF(MONTH('Input|General'!$J$14)=6,LEFT(M5,4)-1&"-"&TEXT(MOD(MID(M5,6,2)-1,100),"00"),M5-1) -> 2020-21 | M5: =IF(MONTH('Input|General'!$J$14)=6,LEFT(N5,4)-1&"-"&TEXT(MOD(MID(N5,6,2)-1,100),"00"),N5-1) -> 2021-22 | N5: =IF(MONTH('Input|General'!$J$14)=6,LEFT(O5,4)-1&"-"&TEXT(MOD(MID(O5,6,2)-1,100),"00"),O5-1) -> 2022-23 | O5: =IF(MONTH('Input|General'!$J$14)=6,LEFT(P5,4)-1&"-"&TEXT(MOD(MID(P5,6,2)-1,100),"00"),P5-1) -> 2023-24 | P5: =IF(MONTH('Input|General'!$J$14)=6,LEFT(Q5,4)-1&"-"&TEXT(MOD(MID(Q5,6,2)-1,100),"00"),Q5-1) -> 2024-25 | Q5: =IF(MONTH('Input|General'!$J$14)=6,LEFT(R5,4)-1&"-"&TEXT(MOD(MID(R5,6,2)-1,100),"00"),R5-1) -> 2025-26 | R5: =FPFirstYear -> 2026-27 | S5: =IF(MONTH('Input|General'!$J$14)=6,LEFT(R5,4)+1&"-"&TEXT(MOD(MID(R5,6,2)+1,100),"00"),R5+1) -> 2027-28 | T5: =IF(MONTH('Input|General'!$J$14)=6,LEFT(S5,4)+1&"-"&TEXT(MOD(MID(S5,6,2)+1,100),"00"),S5+1) -> 2028-29 | U5: =IF(MONTH('Input|General'!$J$14)=6,LEFT(T5,4)+1&"-"&TEXT(MOD(MID(T5,6,2)+1,100),"00"),T5+1) -> 2029-30 | V5: =IF(MONTH('Input|General'!$J$14)=6,LEFT(U5,4)+1&"-"&TEXT(MOD(MID(U5,6,2)+1,100),"00"),U5+1) -> 2030-31
C7: Base
D8: Historical Opex
F9: Total opex | G9: $millions | H9: =Basis_OpexHist -> nominal | L9: 7.77747293 | M9: 7.90864542 | N9: 7.98450814 | O9: 10.33145137 | P9: 9.125463 | W9: Actuals - Annual RIN for each year and/or reset RIN.
D11: Adjustments
G12: =$G$9 -> $millions | H12: =Basis_OpexHist -> nominal | L12: 0 | M12: 0 | N12: 0 | O12: 0 | P12: 0
G13: =$G$9 -> $millions | H13: =Basis_OpexHist -> nominal | L13: 0 | M13: 0 | N13: 0 | O13: 0 | P13: 0 | Q13: 0
G14: =$G$9 -> $millions | H14: =Basis_OpexHist -> nominal | L14: 0 | M14: 0 | N14: 0 | O14: 0 | P14: 0 | Q14: 0
G15: =$G$9 -> $millions | H15: =Basis_OpexHist -> nominal | Q15: 0
F17: Base Opex (After Adjustment) | G17: =$G$9 -> $millions | H17: =Basis_OpexHist -> nominal | O17: =IF(O$5=Opex_BaseYear,(SUM(O12:O15,O9)),"") ->  | P17: =IF(P$5=Opex_BaseYear,(SUM(P12:P15,P9)),"") -> 9.125463 | Q17: =IF(Q$5=Opex_BaseYear,(SUM(Q12:Q15,Q9)),"") -> 
A18: =IF(SUM(N18:Q18)<>0,0,1) -> 0 | F18: Base Opex (After Adjustment) | G18: =$G$9 -> $millions | H18: =Basis_OpexForecast -> 2026-06-01 | O18: =IF(O$5=Opex_BaseYear,O17*'Input| Prices'!J$32,"") ->  | P18: =IF(P$5=Opex_BaseYear,P17*'Input| Prices'!K$32,"") -> 9.585336095 | Q18: =IF(Q$5=Opex_BaseYear,Q17*'Input| Prices'!L$32,"") -> 
C20: Step
D22: Step Changes & Specific Forecasts
F23: Step Changes - New meter inspection obligations | G23: =$G$9 -> $millions | H23: =Basis_OpexForecast -> 2026-06-01 | R23: 3.821548268 | S23: 3.664461368 | T23: 5.06601384 | U23: 5.068006821 | V23: 3.931900236
F24: Meter disposals | G24: =$G$9 -> $millions | H24: =Basis_OpexForecast -> 2026-06-01 | R24: 0.1471824779 | S24: 0.4099831378 | T24: 0.6279318065 | U24: 0.7543038007 | V24: 0.8987475596
F25: IT systems capacity enhancement | G25: =$G$9 -> $millions | H25: =Basis_OpexForecast -> 2026-06-01 | R25: 0 | S25: 0 | T25: 0.03191886 | U25: 0.03191886 | V25: 0.03191886
G26: =$G$9 -> $millions | H26: =Basis_OpexForecast -> 2026-06-01
C28: Trend
D30: Forecast output change
A31: =IF(MIN(O31:V31)>0,0,1) -> 0 | E31: Outputs | F31: Customer numbers (#) | G31: No. | O31: 383818 | P31: 389145.9898 | Q31: 394530.6743 | R31: 401392.3414 | S31: 408698.6875 | T31: 415977.7523 | U31: 423247.0958 | V31: 430520.3725
E32: Outputs | G32: No.
E33: Outputs | G33: No.
E34: Outputs | G34: No.
A36: =IF(SUM(J36:J39)=1,0,1) -> 0 | E36: Weights | F36: =F31 -> Customer numbers (#) | G36: % | J36: 1
E37: Weights | F37: =F32 -> 0 | G37: %
E38: Weights | F38: =F33 -> 0 | G38: % | J38: 0
E39: Weights | F39: =F34 -> 0 | G39: % | J39: 0
D41: Forecast Real Price Change
E42: Forecast price change | F42: Forecast Weighted Real Price Change | G42: % | P42: ='Input| Prices'!K43 -> 0.00785474862 | Q42: ='Input| Prices'!L43 -> 0.007755505216 | R42: ='Input| Prices'!M43 -> 0.005513606441 | S42: ='Input| Prices'!N43 -> 0.004948146532 | T42: ='Input| Prices'!O43 -> 0.006070954395 | U42: ='Input| Prices'!P43 -> 0.007246191346 | V42: ='Input| Prices'!Q43 -> 0.006797553002
D44: Forecast Productivity change
E45: Economy of Scale | F45: Economies of Scale Factor | G45: % | J45: 1
E46: Productivity | F46: Partial Factor Productivity - Annual improvement | G46: % | P46: 0 | Q46: 0 | R46: 0 | S46: 0 | T46: 0 | U46: 0 | V46: 0

Sheet Calc | Opex
B1: ='Input|General'!B1&" v"&'Input|General'!$D$2 -> AER Metering Opex & Capex Forecasting Model v1.08
B2: =MID(CELL("filename",A1),FIND("]",CELL("filename",A1))+1,255) -> Calc | Opex
J4: Value | L4: =IF(MONTH('Input|General'!$J$14)=6,LEFT(M4,4)-1&"-"&TEXT(MOD(MID(M4,6,2)-1,100),"00"),M4-1) -> 2020-21 | M4: =IF(MONTH('Input|General'!$J$14)=6,LEFT(N4,4)-1&"-"&TEXT(MOD(MID(N4,6,2)-1,100),"00"),N4-1) -> 2021-22 | N4: =IF(MONTH('Input|General'!$J$14)=6,LEFT(O4,4)-1&"-"&TEXT(MOD(MID(O4,6,2)-1,100),"00"),O4-1) -> 2022-23 | O4: =IF(MONTH('Input|General'!$J$14)=6,LEFT(P4,4)-1&"-"&TEXT(MOD(MID(P4,6,2)-1,100),"00"),P4-1) -> 2023-24 | P4: =IF(MONTH('Input|General'!$J$14)=6,LEFT(Q4,4)-1&"-"&TEXT(MOD(MID(Q4,6,2)-1,100),"00"),Q4-1) -> 2024-25 | Q4: =IF(MONTH('Input|General'!$J$14)=6,LEFT(R4,4)-1&"-"&TEXT(MOD(MID(R4,6,2)-1,100),"00"),R4-1) -> 2025-26 | R4: =FPFirstYear -> 2026-27 | S4: =IF(MONTH('Input|General'!$J$14)=6,LEFT(R4,4)+1&"-"&TEXT(MOD(MID(R4,6,2)+1,100),"00"),R4+1) -> 2027-28 | T4: =IF(MONTH('Input|General'!$J$14)=6,LEFT(S4,4)+1&"-"&TEXT(MOD(MID(S4,6,2)+1,100),"00"),S4+1) -> 2028-29 | U4: =IF(MONTH('Input|General'!$J$14)=6,LEFT(T4,4)+1&"-"&TEXT(MOD(MID(T4,6,2)+1,100),"00"),T4+1) -> 2029-30 | V4: =IF(MONTH('Input|General'!$J$14)=6,LEFT(U4,4)+1&"-"&TEXT(MOD(MID(U4,6,2)+1,100),"00"),U4+1) -> 2030-31
B6: Calcs
J8: Value | L8: =L4 -> 2020-21 | M8: =M4 -> 2021-22 | N8: 2022-23 | O8: 2023-24 | P8: 2024-25 | Q8: 2025-26 | R8: 2026-27 | S8: 2027-28 | T8: 2028-29 | U8: 2029-30 | V8: 2030-31
C10: Base
D12: Adjusted Base | F12: Total opex | G12: ='Input | Meter-Opex BST'!$G$9 -> $millions | H12: =Basis_OpexForecast -> 2026-06-01 | O12: ='Input | Meter-Opex BST'!O18 ->  | P12: ='Input | Meter-Opex BST'!P18 -> 9.585336095 | Q12: ='Input | Meter-Opex BST'!Q18 -> 
C14: Steps
D17: Steps (As Input) | F17: Total Steps | G17: ='Input | Meter-Opex BST'!$G$9 -> $millions | H17: =Basis_OpexForecast -> 2026-06-01 | P17: =SUM('Input | Meter-Opex BST'!P$23:P$26) -> 0 | Q17: =SUM('Input | Meter-Opex BST'!Q$23:Q$26) -> 0 | R17: =SUM('Input | Meter-Opex BST'!R$23:R$26) -> 3.968730746 | S17: =SUM('Input | Meter-Opex BST'!S$23:S$26) -> 4.074444506 | T17: =SUM('Input | Meter-Opex BST'!T$23:T$26) -> 5.725864507 | U17: =SUM('Input | Meter-Opex BST'!U$23:U$26) -> 5.854229482 | V17: =SUM('Input | Meter-Opex BST'!V$23:V$26) -> 4.862566655
C20: Trend
D23: Forecast output change
E24: Weighted | F24: ='Input | Meter-Opex BST'!F31 -> Customer numbers (#) | G24: % | P24: =IFERROR(LN('Input | Meter-Opex BST'!P31/'Input | Meter-Opex BST'!O31)*'Input | Meter-Opex BST'!$J36,"") -> 0.01378608649 | Q24: =IFERROR(LN('Input | Meter-Opex BST'!Q31/'Input | Meter-Opex BST'!P31)*'Input | Meter-Opex BST'!$J36,"") -> 0.01374232364 | R24: =IFERROR(LN('Input | Meter-Opex BST'!R31/'Input | Meter-Opex BST'!Q31)*'Input | Meter-Opex BST'!$J36,"") -> 0.01724246434 | S24: =IFERROR(LN('Input | Meter-Opex BST'!S31/'Input | Meter-Opex BST'!R31)*'Input | Meter-Opex BST'!$J36,"") -> 0.01803882268 | T24: =IFERROR(LN('Input | Meter-Opex BST'!T31/'Input | Meter-Opex BST'!S31)*'Input | Meter-Opex BST'!$J36,"") -> 0.01765359963 | U24: =IFERROR(LN('Input | Meter-Opex BST'!U31/'Input | Meter-Opex BST'!T31)*'Input | Meter-Opex BST'!$J36,"") -> 0.01732438065 | V24: =IFERROR(LN('Input | Meter-Opex BST'!V31/'Input | Meter-Opex BST'!U31)*'Input | Meter-Opex BST'!$J36,"") -> 0.01703848633
E25: Weighted | F25: ='Input | Meter-Opex BST'!F32 -> 0 | G25: % | P25: =IFERROR(LN('Input | Meter-Opex BST'!P32/'Input | Meter-Opex BST'!O32)*'Input | Meter-Opex BST'!$J37,"") ->  | Q25: =IFERROR(LN('Input | Meter-Opex BST'!Q32/'Input | Meter-Opex BST'!P32)*'Input | Meter-Opex BST'!$J37,"") ->  | R25: =IFERROR(LN('Input | Meter-Opex BST'!R32/'Input | Meter-Opex BST'!Q32)*'Input | Meter-Opex BST'!$J37,"") ->  | S25: =IFERROR(LN('Input | Meter-Opex BST'!S32/'Input | Meter-Opex BST'!R32)*'Input | Meter-Opex BST'!$J37,"") ->  | T25: =IFERROR(LN('Input | Meter-Opex BST'!T32/'Input | Meter-Opex BST'!S32)*'Input | Meter-Opex BST'!$J37,"") ->  | U25: =IFERROR(LN('Input | Meter-Opex BST'!U32/'Input | Meter-Opex BST'!T32)*'Input | Meter-Opex BST'!$J37,"") ->  | V25: =IFERROR(LN('Input | Meter-Opex BST'!V32/'Input | Meter-Opex BST'!U32)*'Input | Meter-Opex BST'!$J37,"") -> 
E26: Weighted | F26: ='Input | Meter-Opex BST'!F33 -> 0 | G26: % | P26: =IFERROR(LN('Input | Meter-Opex BST'!P33/'Input | Meter-Opex BST'!O33)*'Input | Meter-Opex BST'!$J38,"") ->  | Q26: =IFERROR(LN('Input | Meter-Opex BST'!Q33/'Input | Meter-Opex BST'!P33)*'Input | Meter-Opex BST'!$J38,"") ->  | R26: =IFERROR(LN('Input | Meter-Opex BST'!R33/'Input | Meter-Opex BST'!Q33)*'Input | Meter-Opex BST'!$J38,"") ->  | S26: =IFERROR(LN('Input | Meter-Opex BST'!S33/'Input | Meter-Opex BST'!R33)*'Input | Meter-Opex BST'!$J38,"") ->  | T26: =IFERROR(LN('Input | Meter-Opex BST'!T33/'Input | Meter-Opex BST'!S33)*'Input | Meter-Opex BST'!$J38,"") ->  | U26: =IFERROR(LN('Input | Meter-Opex BST'!U33/'Input | Meter-Opex BST'!T33)*'Input | Meter-Opex BST'!$J38,"") ->  | V26: =IFERROR(LN('Input | Meter-Opex BST'!V33/'Input | Meter-Opex BST'!U33)*'Input | Meter-Opex BST'!$J38,"") -> 
E27: Weighted | F27: ='Input | Meter-Opex BST'!F34 -> 0 | G27: % | P27: =IFERROR(LN('Input | Meter-Opex BST'!P34/'Input | Meter-Opex BST'!O34)*'Input | Meter-Opex BST'!$J39,"") ->  | Q27: =IFERROR(LN('Input | Meter-Opex BST'!Q34/'Input | Meter-Opex BST'!P34)*'Input | Meter-Opex BST'!$J39,"") ->  | R27: =IFERROR(LN('Input | Meter-Opex BST'!R34/'Input | Meter-Opex BST'!Q34)*'Input | Meter-Opex BST'!$J39,"") ->  | S27: =IFERROR(LN('Input | Meter-Opex BST'!S34/'Input | Meter-Opex BST'!R34)*'Input | Meter-Opex BST'!$J39,"") ->  | T27: =IFERROR(LN('Input | Meter-Opex BST'!T34/'Input | Meter-Opex BST'!S34)*'Input | Meter-Opex BST'!$J39,"") ->  | U27: =IFERROR(LN('Input | Meter-Opex BST'!U34/'Input | Meter-Opex BST'!T34)*'Input | Meter-Opex BST'!$J39,"") ->  | V27: =IFERROR(LN('Input | Meter-Opex BST'!V34/'Input | Meter-Opex BST'!U34)*'Input | Meter-Opex BST'!$J39,"") -> 
E28: Weighted | F28: Average forecast output change | G28: % | P28: =SUM(P24:P27) -> 0.01378608649 | Q28: 0.01374232364 | R28: 0.01724246434 | S28: 0.01803882268 | T28: 0.01765359963 | U28: 0.01732438065 | V28: 0.01703848633
D31: Forecast Real Price Change
F32: ='Input | Meter-Opex BST'!F42 -> Forecast Weighted Real Price Change | G32: % | P32: ='Input | Meter-Opex BST'!P42 -> 0.00785474862 | Q32: ='Input | Meter-Opex BST'!Q42 -> 0.007755505216 | R32: ='Input | Meter-Opex BST'!R42 -> 0.005513606441 | S32: ='Input | Meter-Opex BST'!S42 -> 0.004948146532 | T32: ='Input | Meter-Opex BST'!T42 -> 0.006070954395 | U32: ='Input | Meter-Opex BST'!U42 -> 0.007246191346 | V32: ='Input | Meter-Opex BST'!V42 -> 0.006797553002
D34: Forecast Productivity change
F35: Economies of Scale Factor | G35: % | J35: ='Input | Meter-Opex BST'!J45 -> 1
F36: Scaled Growth Output | G36: % | P36: =P28*(1-$J$35) -> 0 | Q36: 0 | R36: 0 | S36: 0 | T36: 0 | U36: 0 | V36: 0
F37: ='Input | Meter-Opex BST'!F46 -> Partial Factor Productivity - Annual improvement | G37: % | P37: ='Input | Meter-Opex BST'!P46 -> 0 | Q37: ='Input | Meter-Opex BST'!Q46 -> 0 | R37: ='Input | Meter-Opex BST'!R46 -> 0 | S37: ='Input | Meter-Opex BST'!S46 -> 0 | T37: ='Input | Meter-Opex BST'!T46 -> 0 | U37: ='Input | Meter-Opex BST'!U46 -> 0 | V37: ='Input | Meter-Opex BST'!V46 -> 0
F38: Sum | G38: % | P38: =SUM(P36:P37) -> 0 | Q38: =SUM(Q36:Q37) -> 0 | R38: 0 | S38: 0 | T38: 0 | U38: 0 | V38: 0
D41: Forecast rate of change, year-on-year | G41: % | P41: =(1+P28)*(1+P32)*(1-P38)-1 -> 0.02174912135 | Q41: 0.02160440752 | R41: 0.02285113895 | S41: 0.02307622795 | T41: 0.02383172822 | U41: 0.02469610777 | V41: 0.02395185935
D42: Forecast rate of change, Index | G42: Index | O42: =1 -> 1 | P42: =PRODUCT(1+$P41:P41) -> 1.021749121 | Q42: =PRODUCT(1+$P41:Q41) -> 1.043823406 | R42: =PRODUCT(1+$P41:R41) -> 1.067675959 | S42: =PRODUCT(1+$P41:S41) -> 1.092313893 | T42: =PRODUCT(1+$P41:T41) -> 1.118345621 | U42: =PRODUCT(1+$P41:U41) -> 1.145964405 | V42: =PRODUCT(1+$P41:V41) -> 1.173412383
D43: Forecast rate of change, Index base year movement | G43: Index | O43: =IF('Input | Meter-Opex BST'!$O$5=Opex_BaseYear,1,"") ->  | P43: =P$42/INDEX($O$42:$V$42,MATCH(Opex_BaseYear,$O$4:$V$4,0)) -> 1 | Q43: 1.021604408 | R43: 1.044949232 | S43: 1.069062718 | T43: 1.094540331 | U43: 1.121571217 | V43: 1.148434933
D44: Forecast rate of change, Cumulative % incl base year movement | G44: % | P44: =P43-1 -> 0 | Q44: 0.02160440752 | R44: 0.04494923179 | S44: 0.06906271846 | T44: 0.09454033062 | U44: 0.1215712166 | V44: 0.1484349326
B46: Outputs (In Input $ real terms)
D48: BST Forecast | O48: =IF(O49=Opex_BaseYear,"Base Year","") ->  | P48: =IF(P49=Opex_BaseYear,"Base Year","") -> Base Year | Q48: =IF(Q49=Opex_BaseYear,"Base Year","") -> 
O49: =O8 -> 2023-24 | P49: =P8 -> 2024-25 | Q49: =Q8 -> 2025-26 | R49: =R$8 -> 2026-27 | S49: =S$8 -> 2027-28 | T49: =T$8 -> 2028-29 | U49: =U$8 -> 2029-30 | V49: =V$8 -> 2030-31
F50: Base | G50: ='Input | Meter-Opex BST'!$G$9 -> $millions | H50: =Basis_OpexForecast -> 2026-06-01 | R50: =INDEX($O$12:$Q$12,MATCH(Opex_BaseYear,$O$4:$Q$4,0)) -> 9.585336095 | S50: =INDEX($O$12:$Q$12,MATCH(Opex_BaseYear,'Input | Meter-Opex BST'!$O$5:$Q$5,0)) -> 9.585336095 | T50: =INDEX($O$12:$Q$12,MATCH(Opex_BaseYear,'Input | Meter-Opex BST'!$O$5:$Q$5,0)) -> 9.585336095 | U50: =INDEX($O$12:$Q$12,MATCH(Opex_BaseYear,'Input | Meter-Opex BST'!$O$5:$Q$5,0)) -> 9.585336095 | V50: =INDEX($O$12:$Q$12,MATCH(Opex_BaseYear,'Input | Meter-Opex BST'!$O$5:$Q$5,0)) -> 9.585336095
F51: Trend | G51: ='Input | Meter-Opex BST'!$G$9 -> $millions | H51: =Basis_OpexForecast -> 2026-06-01 | R51: =R50*R44 -> 0.4308534939 | S51: =S50*S44 -> 0.6619893681 | T51: =T50*T44 -> 0.9062008435 | U51: =U50*U44 -> 1.16530097 | V51: =V50*V44 -> 1.422798717
F52: Steps | G52: ='Input | Meter-Opex BST'!$G$9 -> $millions | H52: =Basis_OpexForecast -> 2026-06-01 | R52: =R17 -> 3.968730746 | S52: =S17 -> 4.074444506 | T52: =T17 -> 5.725864507 | U52: =U17 -> 5.854229482 | V52: =V17 -> 4.862566655
F53: Forecast Opex | G53: ='Input | Meter-Opex BST'!$G$9 -> $millions | H53: =Basis_OpexForecast -> 2026-06-01 | O53: =SUM('Input | Meter-Opex BST'!O9,'Input | Meter-Opex BST'!O12:O15)*'Input| Prices'!J$32 -> 11.21276302 | P53: =SUM('Input | Meter-Opex BST'!P9,'Input | Meter-Opex BST'!P12:P15)*'Input| Prices'!K$32 -> 9.585336095 | Q53: =SUM('Input | Meter-Opex BST'!Q9,'Input | Meter-Opex BST'!Q12:Q15)*'Input| Prices'!L$32 -> 0 | R53: =SUM(R50:R52) -> 13.98492033 | S53: =SUM(S50:S52) -> 14.32176997 | T53: =SUM(T50:T52) -> 16.21740144 | U53: =SUM(U50:U52) -> 16.60486655 | V53: =SUM(V50:V52) -> 15.87070147

Sheet Capex Specific >

Sheet Input | Meters Vols & Costs
B1: ='Input|General'!B1&" v"&'Input|General'!$D$2 -> AER Metering Opex & Capex Forecasting Model v1.08
B2: =MID(CELL("filename",A1),FIND("]",CELL("filename",A1))+1,255) -> Input | Meters Vols & Costs
A4: =PRODUCT($A$5:$A$452) -> 1
B5: 1. Meter Types
F8: Meter Type | G8: RIN Subcategory 1 | H8: RIN Subcategory 2 | I8: AER Type | J8: RIN Subcategory 3 | K8: Meter Code
F9: AMI - Single Phase, single element | G9: Single Phase Meter Population | H9: Direct Connect Meter Population | I9: Meter Type 4 | J9: Single phase single element - AMI | K9: AMI 1ph 1e
F10: AMI - Single Phase, two elements with 31.5A load control | G10: Single Phase Meter Population | H10: Direct Connect Meter Population | I10: Meter Type 4 | J10: Single phase two element with contactor - AMI | K10: AMI 1ph 2e
F11: AMI - 3 Phase with no load control | G11: Multi Phase Meter Population | H11: Direct Connect Meter Population | I11: Meter Type 4 | J11: Three phase - AMI | K11: AMI 3ph
F12: AMI - Single Phase, single element, with 31.5A load control | G12: Single Phase Meter Population | H12: Direct Connect Meter Population | I12: Meter Type 4 | J12: Single phase single element with contactor - AMI | K12: AMI 1ph DC
F13: AMI - 3 Phase with 31.5A and 2A load control | G13: Multi Phase Meter Population | H13: Direct Connect Meter Population | I13: Meter Type 4 | J13: Three phase direct connected meter with contactor - AMI | K13: AMI 3ph DC
F14: AMI - 3 Phase CT connect | G14: Multi Phase Meter Population | H14: Current Transformer Connected Meter Population | I14: Meter Type 4 | J14: Three phase Current transformer connected meter - AMI | K14: AMI 3ph CT
F15: AMI - 3 Phase CT & VT connect | G15: Multi Phase Meter Population | H15: Current Transformer Connected Meter Population | I15: Meter Type 4 | J15: Three phase Current transformer connected meter - AMI | K15: AMI 3ph CT VT
F16: Non AMI - Type 5 Locally read Interval - Single Phase | G16: Single Phase Meter Population | H16: Direct Connect Meter Population | I16: Meter Type 5 | J16: Single phase non off peak - MRIM | K16: INT 1ph
F17: Non AMI - Type 6 Locally read Accumulation - Single Phase | G17: Single Phase Meter Population | H17: Direct Connect Meter Population | I17: Meter Type 6 | J17: Single phase non off peak - Accumulation | K17: ACC 1ph
F18: Non AMI - Type 5 Locally read Interval - 3 Phase | G18: Multi Phase Meter Population | H18: Direct Connect Meter Population | I18: Meter Type 5 | J18: Multi phase direct connect - MRIM | K18: INT 3ph
F19: Non AMI - Type 6 Locally read Accumulation - 3 Phase | G19: Multi Phase Meter Population | H19: Direct Connect Meter Population | I19: Meter Type 6 | J19: Multi phase direct connect - Accumulation | K19: ACC 3ph
B25: =LEFT(B5,1)+1&". Meter Actions" -> 2. Meter Actions
E28: # | F28: Action | G28: Action Name | H28: Impact on meter population | I28: Meter Equipment Cost? | J28: SCS Allocation | P28: (Calc) Impact on meter population | Q28: (Calc) Calc Equip Cost | R28: (Calc) Is New | S28: (Calc) Is Replacement | T28: (Calc) Is Other
A29: =IF(SUM(ICM_Vol1)<>0,(H29<>"")/1*(I29<>"")/1,1) -> 1 | E29: 1 | F29: New Connections (Permanent + Temporary) | G29: New Connections (Permanent + Temporary) - Growth | H29: Add | I29: Include | J29: 0 | P29: =IF(H29="Add",1,IF(H29="No Effect",0,IF(H29="Subtract",-1,IF(ISBLANK(H29),0)))) -> 1 | Q29: =IF(I29="Include",1,IF(I29="Exclude",0,IF(I29="Subtract",-1,IF(ISBLANK(I29),0)))) -> 1 | R29: =(P29=1)/1 -> 1 | S29: =ISNUMBER(SEARCH("Replacement",G29,1))/1 -> 0 | T29: =NOT(R29+S29)/1 -> 0
A30: =IF(SUM(ICM_Vol2)<>0,(H30<>"")/1,1) -> 1 | E30: 2 | F30: Alterations - Meters Installed | G30: Alterations - Meters Installed | H30: Add | I30: Include | J30: 0 | P30: =IF(H30="Add",1,IF(H30="No Effect",0,IF(H30="Subtract",-1,IF(ISBLANK(H30),0)))) -> 1 | Q30: =IF(I30="Include",1,IF(I30="Exclude",0,IF(I30="Subtract",-1,IF(ISBLANK(I30),0)))) -> 1 | R30: 1 | S30: 0 | T30: 0
A31: =IF(SUM(ICM_Vol3)<>0,(H31<>"")/1,1) -> 1 | E31: 3 | F31: Abolishment / Service Removed | G31: Abolishment / Service Removed | H31: Subtract | I31: Exclude | J31: 0 | P31: -1 | Q31: 0 | R31: 0 | S31: 0 | T31: 1
A32: =IF(SUM(ICM_Vol4)<>0,(H32<>"")/1,1) -> 1 | E32: 4 | F32: Alterations - Meters Removed | G32: Alterations - Meters Removed | H32: Subtract | I32: Exclude | J32: 0 | P32: -1 | Q32: 0 | R32: 0 | S32: 0 | T32: 1
A33: =IF(SUM(ICM_Vol5)<>0,(H33<>"")/1,1) -> 1 | E33: 5 | F33: Meters Exchanged - Non AMI to AMI | G33: Meters Exchanged - Non AMI to AMI | H33: No Effect | I33: Include | J33: 0 | P33: 0 | Q33: 1 | R33: 0 | S33: 0 | T33: 1
A34: =IF(SUM(ICM_Vol6)<>0,(H34<>"")/1,1) -> 1 | E34: 6 | F34: Failures / Faults | G34: Failures / Faults | H34: No Effect | I34: Include | J34: 0 | P34: 0 | Q34: 1 | R34: 0 | S34: 0 | T34: 1
A35: =IF(SUM(ICM_Vol7)<>0,(H35<>"")/1,1) -> 1 | E35: 7 | F35: Meters Refurbished | G35: Meters Refurbished | H35: No Effect | I35: Exclude | J35: 0 | P35: 0 | Q35: 0 | R35: 0 | S35: 0 | T35: 1
A36: =IF(SUM(ICM_Vol8)<>0,(H36<>"")/1,1) -> 1 | E36: 8 | F36: AMI Meter Replacement (Value Based Replacement) | G36: AMI Meter Replacement | H36: No Effect | I36: Include | J36: 0 | P36: 0 | Q36: 1 | R36: 0 | S36: 1 | T36: 0
A37: =IF(SUM(ICM_Vol9)<>0,(H37<>"")/1,1) -> 1 | P37: 0 | Q37: 0 | R37: 0 | S37: 0 | T37: 1
A38: =IF(SUM(ICM_Vol10)<>0,(H38<>"")/1,1) -> 1 | P38: 0 | Q38: 0 | R38: 0 | S38: 0 | T38: 1
B41: =LEFT(B25,1)+1&". Overheads and additional meter-related costs" -> 3. Overheads and additional meter-related costs
C44: b | D44: Meter Related Costs
K45: Additional Projects | L45: Units | M45: Basis | N45: =N$171 -> 2023-24 | O45: 2024-25 | P45: 2025-26 | Q45: 2026-27 | R45: 2027-28 | S45: 2028-29 | T45: 2029-30 | U45: 2030-31 | V45: Total
K46: Strategic project 1 | L46: $dollars | M46: =Basis_Capex -> 2024-06-01 | V46: =SUM(P46:U46) -> 0
K47: Project 2 | L47: =$L$46 -> $dollars | M47: =Basis_Capex -> 2024-06-01 | V47: =SUM(P47:U47) -> 0
K48: Project 3 | L48: =$L$46 -> $dollars | M48: =Basis_Capex -> 2024-06-01 | V48: =SUM(P48:U48) -> 0
K49: Project 4 | L49: =$L$46 -> $dollars | M49: =Basis_Capex -> 2024-06-01 | V49: =SUM(P49:U49) -> 0
K50: Total | L50: =$L$46 -> $dollars | M50: =Basis_Capex -> 2024-06-01 | N50: =SUM(N46:N49) -> 0 | O50: 0 | P50: 0 | Q50: 0 | R50: 0 | S50: 0 | T50: 0 | U50: 0 | V50: =SUM(Q50:U50) -> 0
C52: a | D52: Metering Overheads
K53: Overheads Method | L53: Units | M53: Basis | O53: Value | Q53: =Q$171 -> 2026-27 | R53: =R$171 -> 2027-28 | S53: =S$171 -> 2028-29 | T53: =T$171 -> 2029-30 | U53: =U$171 -> 2030-31 | V53: Total
K54: Entered Value | L54: =IF(K54="Fixed proportion","%","$dollars") -> $dollars | M54: =IF(L54="%","",Basis_Capex) -> 2024-06-01 | O54: 0.05 | Q54: 0 | R54: 0 | S54: 0 | T54: 0 | U54: 0
K55: Total | L55: =$L$46 -> $dollars | M55: =Basis_Capex -> 2024-06-01 | Q55: =IF('Input | Meters Vols & Costs'!$K54="Fixed proportion",SUM('Calc | Capex Meters'!Q$162:Q$163)*$O54, IF('Input | Meters Vols & Costs'!$K54="Fixed number",$O54,Q54 )) -> 0 | R55: =IF('Input | Meters Vols & Costs'!$K54="Fixed proportion",SUM('Calc | Capex Meters'!R$162:R$163)*$O54, IF('Input | Meters Vols & Costs'!$K54="Fixed number",$O54,R54 )) -> 0 | S55: =IF('Input | Meters Vols & Costs'!$K54="Fixed proportion",SUM('Calc | Capex Meters'!S$162:S$163)*$O54, IF('Input | Meters Vols & Costs'!$K54="Fixed number",$O54,S54 )) -> 0 | T55: =IF('Input | Meters Vols & Costs'!$K54="Fixed proportion",SUM('Calc | Capex Meters'!T$162:T$163)*$O54, IF('Input | Meters Vols & Costs'!$K54="Fixed number",$O54,T54 )) -> 0 | U55: =IF('Input | Meters Vols & Costs'!$K54="Fixed proportion",SUM('Calc | Capex Meters'!U$162:U$163)*$O54, IF('Input | Meters Vols & Costs'!$K54="Fixed number",$O54,U54 )) -> 0 | V55: =SUM(Q55:U55) -> 0
C57: c | D57: Asset Disposal
K58: =D57 -> Asset Disposal | L58: Units | M58: Basis | N58: =N$171 -> 2023-24 | O58: 2024-25 | P58: 2025-26 | Q58: 2026-27 | R58: 2027-28 | S58: 2028-29 | T58: 2029-30 | U58: 2030-31 | V58: Total
K59: Income from disposal of meters | L59: $dollars | M59: =Basis_Capex -> 2024-06-01 | V59: =SUM(P59:U59) -> 0
K60: Disposal 2 | L60: =$L$59 -> $dollars | M60: =Basis_Capex -> 2024-06-01 | V60: =SUM(P60:U60) -> 0
K61: Disposal 3 | L61: =$L$59 -> $dollars | M61: =Basis_Capex -> 2024-06-01 | V61: =SUM(P61:U61) -> 0
K62: Total | L62: =$L$59 -> $dollars | M62: =Basis_Capex -> 2024-06-01 | Q62: =SUM(Q59:Q61) -> 0 | R62: =SUM(R59:R61) -> 0 | S62: =SUM(S59:S61) -> 0 | T62: =SUM(T59:T61) -> 0 | U62: =SUM(U59:U61) -> 0 | V62: =SUM(Q62:U62) -> 0
C63: d | D63: Capital Contributions
K64: =D63 -> Capital Contributions | L64: Units | M64: Basis | N64: =N$171 -> 2023-24 | O64: 2024-25 | P64: 2025-26 | Q64: 2026-27 | R64: 2027-28 | S64: 2028-29 | T64: 2029-30 | U64: 2030-31 | V64: Total
K65: CapCon 1 | L65: $dollars | M65: =Basis_Capex -> 2024-06-01 | V65: =SUM(P65:U65) -> 0
K66: CapCon 2 | L66: =$L$65 -> $dollars | M66: =Basis_Capex -> 2024-06-01 | V66: =SUM(P66:U66) -> 0
K67: CapCon 3 | L67: =$L$65 -> $dollars | M67: =Basis_Capex -> 2024-06-01 | V67: =SUM(P67:U67) -> 0
K68: Total | L68: =$L$65 -> $dollars | M68: =Basis_Capex -> 2024-06-01 | Q68: =SUM(Q65:Q67) -> 0 | R68: =SUM(R65:R67) -> 0 | S68: =SUM(S65:S67) -> 0 | T68: =SUM(T65:T67) -> 0 | U68: =SUM(U65:U67) -> 0 | V68: =SUM(Q68:U68) -> 0
B71: =LEFT(B41,1)+1&". Labour Rates, Hours & Costs" -> 4. Labour Rates, Hours & Costs
C73: a | D73: Labour Rates
K75: Input | L75: Units | M75: Basis | P75: Value
K76: Labour Rate | L76: $dollars/hr | M76: =Basis_Capex -> 2024-06-01 | P76: 124.8244127
K77: Apply Labour Cost Escalation | L77: Y/N | P77: Yes
C79: b | D79: Labour Time Required
P81: 1 | Q81: 2 | R81: 3 | S81: 4 | T81: 5 | U81: 6 | V81: 7 | W81: 8 | X81: 9 | Y81: 10
F82: =I_MeterTypes[[#Headers],[Meter Type]] -> Meter Type | G82: =I_MeterTypes[[#Headers],[RIN Subcategory 1]] -> RIN Subcategory 1 | H82: =I_MeterTypes[[#Headers],[RIN Subcategory 2]] -> RIN Subcategory 2 | I82: =I_MeterTypes[[#Headers],[AER Type]] -> AER Type | J82: =I_MeterTypes[[#Headers],[RIN Subcategory 3]] -> RIN Subcategory 3 | K82: =I_MeterTypes[[#Headers],[Meter Code]] -> Meter Code | L82: Units | P82: =TRANSPOSE($G$29:$G$38) -> New Connections (Permanent + Temporary) - Growth | Q82: Alterations - Meters Installed | R82: Abolishment / Service Removed | S82: Alterations - Meters Removed | T82: Meters Exchanged - Non AMI to AMI | U82: Failures / Faults | V82: Meters Refurbished | W82: AMI Meter Replacement | X82: 0 | Y82: 0
F83: =I_MeterTypes[Meter Type] -> AMI - Single Phase, single element | G83: =I_MeterTypes[RIN Subcategory 1] -> Single Phase Meter Population | H83: =I_MeterTypes[RIN Subcategory 2] -> Direct Connect Meter Population | I83: =I_MeterTypes[AER Type] -> Meter Type 4 | J83: =I_MeterTypes[RIN Subcategory 3] -> Single phase single element - AMI | K83: =I_MeterTypes[Meter Code] -> AMI 1ph 1e | L83: Hours | P83: 0 | Q83: 0 | R83: 2.5 | S83: 0 | T83: 5.333333333 | U83: 2.5 | V83: 0 | W83: 1.833333333
F84: AMI - Single Phase, two elements with 31.5A load control | G84: Single Phase Meter Population | H84: Direct Connect Meter Population | I84: Meter Type 4 | J84: Single phase two element with contactor - AMI | K84: AMI 1ph 2e | L84: Hours | P84: 0 | Q84: 0 | R84: 2.5 | S84: 0 | T84: 5.333333333 | U84: 2.5 | V84: 0 | W84: 1.833333333
F85: AMI - 3 Phase with no load control | G85: Multi Phase Meter Population | H85: Direct Connect Meter Population | I85: Meter Type 4 | J85: Three phase - AMI | K85: AMI 3ph | L85: Hours | P85: 0 | Q85: 0 | R85: 3.166666667 | S85: 0 | T85: 5.5 | U85: 2.666666667 | V85: 0 | W85: 2.166666667
F86: AMI - Single Phase, single element, with 31.5A load control | G86: Single Phase Meter Population | H86: Direct Connect Meter Population | I86: Meter Type 4 | J86: Single phase single element with contactor - AMI | K86: AMI 1ph DC | L86: Hours | P86: 0 | Q86: 0 | R86: 2.5 | S86: 0 | T86: 5.333333333 | U86: 2.5 | V86: 0 | W86: 1.833333333
F87: AMI - 3 Phase with 31.5A and 2A load control | G87: Multi Phase Meter Population | H87: Direct Connect Meter Population | I87: Meter Type 4 | J87: Three phase direct connected meter with contactor - AMI | K87: AMI 3ph DC | L87: Hours | P87: 0 | Q87: 0 | R87: 3.166666667 | S87: 0 | T87: 5.5 | U87: 2.833333333 | V87: 0 | W87: 2.166666667
F88: AMI - 3 Phase CT connect | G88: Multi Phase Meter Population | H88: Current Transformer Connected Meter Population | I88: Meter Type 4 | J88: Three phase Current transformer connected meter - AMI | K88: AMI 3ph CT | L88: Hours | P88: 0 | Q88: 0 | R88: 3.833333333 | S88: 0 | T88: 6 | U88: 3.166666667 | V88: 0 | W88: 3.5
F89: AMI - 3 Phase CT & VT connect | G89: Multi Phase Meter Population | H89: Current Transformer Connected Meter Population | I89: Meter Type 4 | J89: Three phase Current transformer connected meter - AMI | K89: AMI 3ph CT VT | L89: Hours | P89: 0 | Q89: 0 | R89: 5.833333333 | S89: 0 | T89: 10.66666667 | U89: 3.833333333 | V89: 0 | W89: 4.833333333
F90: Non AMI - Type 5 Locally read Interval - Single Phase | G90: Single Phase Meter Population | H90: Direct Connect Meter Population | I90: Meter Type 5 | J90: Single phase non off peak - MRIM | K90: INT 1ph | L90: Hours | P90: 0 | Q90: 0 | R90: 2.5 | S90: 0 | T90: 5.333333333 | U90: 2.5 | V90: 0 | W90: 1.833333333
F91: Non AMI - Type 6 Locally read Accumulation - Single Phase | G91: Single Phase Meter Population | H91: Direct Connect Meter Population | I91: Meter Type 6 | J91: Single phase non off peak - Accumulation | K91: ACC 1ph | L91: Hours | P91: 0 | Q91: 0 | R91: 2.5 | S91: 0 | T91: 5.333333333 | U91: 2.5 | V91: 0 | W91: 1.833333333
F92: Non AMI - Type 5 Locally read Interval - 3 Phase | G92: Multi Phase Meter Population | H92: Direct Connect Meter Population | I92: Meter Type 5 | J92: Multi phase direct connect - MRIM | K92: INT 3ph | L92: Hours | P92: 0 | Q92: 0 | R92: 2.5 | S92: 0 | T92: 5.333333333 | U92: 2.5 | V92: 0 | W92: 1.833333333
F93: Non AMI - Type 6 Locally read Accumulation - 3 Phase | G93: Multi Phase Meter Population | H93: Direct Connect Meter Population | I93: Meter Type 6 | J93: Multi phase direct connect - Accumulation | K93: ACC 3ph | L93: Hours | P93: 0 | Q93: 0 | R93: 2.5 | S93: 0 | T93: 5.333333333 | U93: 2.5 | V93: 0 | W93: 1.833333333
L94: Hours
L95: Hours
L96: Hours
L97: Hours
C99: c | D99: Labour Costs
P101: 1 | Q101: 2 | R101: 3 | S101: 4 | T101: 5 | U101: 6 | V101: 7 | W101: 8 | X101: 9 | Y101: 10
F102: =I_MeterTypes[[#Headers],[Meter Type]] -> Meter Type | G102: =I_MeterTypes[[#Headers],[RIN Subcategory 1]] -> RIN Subcategory 1 | H102: =I_MeterTypes[[#Headers],[RIN Subcategory 2]] -> RIN Subcategory 2 | I102: =I_MeterTypes[[#Headers],[AER Type]] -> AER Type | J102: =I_MeterTypes[[#Headers],[RIN Subcategory 3]] -> RIN Subcategory 3 | K102: =I_MeterTypes[[#Headers],[Meter Code]] -> Meter Code | L102: Units | M102: Basis | P102: =P$82 -> New Connections (Permanent + Temporary) - Growth | Q102: =Q$82 -> Alterations - Meters Installed | R102: Abolishment / Service Removed | S102: Alterations - Meters Removed | T102: Meters Exchanged - Non AMI to AMI | U102: Failures / Faults | V102: Meters Refurbished | W102: AMI Meter Replacement | X102: 0 | Y102: 0
F103: =I_MeterTypes[Meter Type] -> AMI - Single Phase, single element | G103: =I_MeterTypes[RIN Subcategory 1] -> Single Phase Meter Population | H103: =I_MeterTypes[RIN Subcategory 2] -> Direct Connect Meter Population | I103: =I_MeterTypes[AER Type] -> Meter Type 4 | J103: =I_MeterTypes[RIN Subcategory 3] -> Single phase single element - AMI | K103: =I_MeterTypes[Meter Code] -> AMI 1ph 1e | L103: $dollars | M103: =Basis_Capex -> 2024-06-01 | P103: =ICM_Rates*ICM_Hrs -> 0 | Q103: 0 | R103: 312.0610316 | S103: 0 | T103: 665.7302008 | U103: 312.0610316 | V103: 0 | W103: 228.8447565 | X103: 0 | Y103: 0
F104: AMI - Single Phase, two elements with 31.5A load control | G104: Single Phase Meter Population | H104: Direct Connect Meter Population | I104: Meter Type 4 | J104: Single phase two element with contactor - AMI | K104: AMI 1ph 2e | L104: $dollars | M104: 2024-06-01 | P104: 0 | Q104: 0 | R104: 312.0610316 | S104: 0 | T104: 665.7302008 | U104: 312.0610316 | V104: 0 | W104: 228.8447565 | X104: 0 | Y104: 0
F105: AMI - 3 Phase with no load control | G105: Multi Phase Meter Population | H105: Direct Connect Meter Population | I105: Meter Type 4 | J105: Three phase - AMI | K105: AMI 3ph | L105: $dollars | M105: 2024-06-01 | P105: 0 | Q105: 0 | R105: 395.2773067 | S105: 0 | T105: 686.5342696 | U105: 332.8651004 | V105: 0 | W105: 270.4528941 | X105: 0 | Y105: 0
F106: AMI - Single Phase, single element, with 31.5A load control | G106: Single Phase Meter Population | H106: Direct Connect Meter Population | I106: Meter Type 4 | J106: Single phase single element with contactor - AMI | K106: AMI 1ph DC | L106: $dollars | M106: 2024-06-01 | P106: 0 | Q106: 0 | R106: 312.0610316 | S106: 0 | T106: 665.7302008 | U106: 312.0610316 | V106: 0 | W106: 228.8447565 | X106: 0 | Y106: 0
F107: AMI - 3 Phase with 31.5A and 2A load control | G107: Multi Phase Meter Population | H107: Direct Connect Meter Population | I107: Meter Type 4 | J107: Three phase direct connected meter with contactor - AMI | K107: AMI 3ph DC | L107: $dollars | M107: 2024-06-01 | P107: 0 | Q107: 0 | R107: 395.2773067 | S107: 0 | T107: 686.5342696 | U107: 353.6691692 | V107: 0 | W107: 270.4528941 | X107: 0 | Y107: 0
F108: AMI - 3 Phase CT connect | G108: Multi Phase Meter Population | H108: Current Transformer Connected Meter Population | I108: Meter Type 4 | J108: Three phase Current transformer connected meter - AMI | K108: AMI 3ph CT | L108: $dollars | M108: 2024-06-01 | P108: 0 | Q108: 0 | R108: 478.4935818 | S108: 0 | T108: 748.9464759 | U108: 395.2773067 | V108: 0 | W108: 436.8854443 | X108: 0 | Y108: 0
F109: AMI - 3 Phase CT & VT connect | G109: Multi Phase Meter Population | H109: Current Transformer Connected Meter Population | I109: Meter Type 4 | J109: Three phase Current transformer connected meter - AMI | K109: AMI 3ph CT VT | L109: $dollars | M109: 2024-06-01 | P109: 0 | Q109: 0 | R109: 728.1424072 | S109: 0 | T109: 1331.460402 | U109: 478.4935818 | V109: 0 | W109: 603.3179945 | X109: 0 | Y109: 0
F110: Non AMI - Type 5 Locally read Interval - Single Phase | G110: Single Phase Meter Population | H110: Direct Connect Meter Population | I110: Meter Type 5 | J110: Single phase non off peak - MRIM | K110: INT 1ph | L110: $dollars | M110: 2024-06-01 | P110: 0 | Q110: 0 | R110: 312.0610316 | S110: 0 | T110: 665.7302008 | U110: 312.0610316 | V110: 0 | W110: 228.8447565 | X110: 0 | Y110: 0
F111: Non AMI - Type 6 Locally read Accumulation - Single Phase | G111: Single Phase Meter Population | H111: Direct Connect Meter Population | I111: Meter Type 6 | J111: Single phase non off peak - Accumulation | K111: ACC 1ph | L111: $dollars | M111: 2024-06-01 | P111: 0 | Q111: 0 | R111: 312.0610316 | S111: 0 | T111: 665.7302008 | U111: 312.0610316 | V111: 0 | W111: 228.8447565 | X111: 0 | Y111: 0
F112: Non AMI - Type 5 Locally read Interval - 3 Phase | G112: Multi Phase Meter Population | H112: Direct Connect Meter Population | I112: Meter Type 5 | J112: Multi phase direct connect - MRIM | K112: INT 3ph | L112: $dollars | M112: 2024-06-01 | P112: 0 | Q112: 0 | R112: 312.0610316 | S112: 0 | T112: 665.7302008 | U112: 312.0610316 | V112: 0 | W112: 228.8447565 | X112: 0 | Y112: 0
F113: Non AMI - Type 6 Locally read Accumulation - 3 Phase | G113: Multi Phase Meter Population | H113: Direct Connect Meter Population | I113: Meter Type 6 | J113: Multi phase direct connect - Accumulation | K113: ACC 3ph | L113: $dollars | M113: 2024-06-01 | P113: 0 | Q113: 0 | R113: 312.0610316 | S113: 0 | T113: 665.7302008 | U113: 312.0610316 | V113: 0 | W113: 228.8447565 | X113: 0 | Y113: 0
L114: $dollars | M114: 2024-06-01 | P114: 0 | Q114: 0 | R114: 0 | S114: 0 | T114: 0 | U114: 0 | V114: 0 | W114: 0 | X114: 0 | Y114: 0
L115: $dollars | M115: 2024-06-01 | P115: 0 | Q115: 0 | R115: 0 | S115: 0 | T115: 0 | U115: 0 | V115: 0 | W115: 0 | X115: 0 | Y115: 0
L116: $dollars | M116: 2024-06-01 | P116: 0 | Q116: 0 | R116: 0 | S116: 0 | T116: 0 | U116: 0 | V116: 0 | W116: 0 | X116: 0 | Y116: 0
L117: $dollars | M117: 2024-06-01 | P117: 0 | Q117: 0 | R117: 0 | S117: 0 | T117: 0 | U117: 0 | V117: 0 | W117: 0 | X117: 0 | Y117: 0
B120: =LEFT(B71,1)+1&". Equipment Unit Cost" -> 5. Equipment Unit Cost
C122: a | D122: Equipment Unit Cost
P123: 1
F124: =I_MeterTypes[[#Headers],[Meter Type]] -> Meter Type | G124: =I_MeterTypes[[#Headers],[RIN Subcategory 1]] -> RIN Subcategory 1 | H124: =I_MeterTypes[[#Headers],[RIN Subcategory 2]] -> RIN Subcategory 2 | I124: =I_MeterTypes[[#Headers],[AER Type]] -> AER Type | J124: =I_MeterTypes[[#Headers],[RIN Subcategory 3]] -> RIN Subcategory 3 | K124: =I_MeterTypes[[#Headers],[Meter Code]] -> Meter Code | L124: Units | M124: Basis | P124: Meter Unit Cost
F125: =I_MeterTypes[Meter Type] -> AMI - Single Phase, single element | G125: =I_MeterTypes[RIN Subcategory 1] -> Single Phase Meter Population | H125: =I_MeterTypes[RIN Subcategory 2] -> Direct Connect Meter Population | I125: =I_MeterTypes[AER Type] -> Meter Type 4 | J125: =I_MeterTypes[RIN Subcategory 3] -> Single phase single element - AMI | K125: =I_MeterTypes[Meter Code] -> AMI 1ph 1e | L125: $dollars | M125: =Basis_Capex -> 2024-06-01 | P125: 223.82
F126: AMI - Single Phase, two elements with 31.5A load control | G126: Single Phase Meter Population | H126: Direct Connect Meter Population | I126: Meter Type 4 | J126: Single phase two element with contactor - AMI | K126: AMI 1ph 2e | L126: $dollars | M126: 2024-06-01 | P126: 261.36
F127: AMI - 3 Phase with no load control | G127: Multi Phase Meter Population | H127: Direct Connect Meter Population | I127: Meter Type 4 | J127: Three phase - AMI | K127: AMI 3ph | L127: $dollars | M127: 2024-06-01 | P127: 385.7
F128: AMI - Single Phase, single element, with 31.5A load control | G128: Single Phase Meter Population | H128: Direct Connect Meter Population | I128: Meter Type 4 | J128: Single phase single element with contactor - AMI | K128: AMI 1ph DC | L128: $dollars | M128: 2024-06-01 | P128: 241.18
F129: AMI - 3 Phase with 31.5A and 2A load control | G129: Multi Phase Meter Population | H129: Direct Connect Meter Population | I129: Meter Type 4 | J129: Three phase direct connected meter with contactor - AMI | K129: AMI 3ph DC | L129: $dollars | M129: 2024-06-01 | P129: 401.97
F130: AMI - 3 Phase CT connect | G130: Multi Phase Meter Population | H130: Current Transformer Connected Meter Population | I130: Meter Type 4 | J130: Three phase Current transformer connected meter - AMI | K130: AMI 3ph CT | L130: $dollars | M130: 2024-06-01 | P130: 502.94
F131: AMI - 3 Phase CT & VT connect | G131: Multi Phase Meter Population | H131: Current Transformer Connected Meter Population | I131: Meter Type 4 | J131: Three phase Current transformer connected meter - AMI | K131: AMI 3ph CT VT | L131: $dollars | M131: 2024-06-01 | P131: 0
F132: Non AMI - Type 5 Locally read Interval - Single Phase | G132: Single Phase Meter Population | H132: Direct Connect Meter Population | I132: Meter Type 5 | J132: Single phase non off peak - MRIM | K132: INT 1ph | L132: $dollars | M132: 2024-06-01 | P132: 0
F133: Non AMI - Type 6 Locally read Accumulation - Single Phase | G133: Single Phase Meter Population | H133: Direct Connect Meter Population | I133: Meter Type 6 | J133: Single phase non off peak - Accumulation | K133: ACC 1ph | L133: $dollars | M133: 2024-06-01 | P133: 0
F134: Non AMI - Type 5 Locally read Interval - 3 Phase | G134: Multi Phase Meter Population | H134: Direct Connect Meter Population | I134: Meter Type 5 | J134: Multi phase direct connect - MRIM | K134: INT 3ph | L134: $dollars | M134: 2024-06-01 | P134: 0
F135: Non AMI - Type 6 Locally read Accumulation - 3 Phase | G135: Multi Phase Meter Population | H135: Direct Connect Meter Population | I135: Meter Type 6 | J135: Multi phase direct connect - Accumulation | K135: ACC 3ph | L135: $dollars | M135: 2024-06-01 | P135: 0
L136: $dollars | M136: 2024-06-01
L137: $dollars | M137: 2024-06-01
L138: $dollars | M138: 2024-06-01
L139: $dollars | M139: 2024-06-01
K141: Input | L141: Units | M141: Basis | P141: Value
K142: Apply Non-Labour Cost Escalation | L142: Y/N | P142: Yes
B144: =LEFT(B120,1)+1&". Meter Population" -> 6. Meter Population
C147: a | D147: Base Year Population (Year End)
M148: =IF(M149=Capex_BaseYear,"Base Year","") -> Base Year
F149: =I_MeterTypes[[#Headers],[Meter Type]] -> Meter Type | G149: =I_MeterTypes[[#Headers],[RIN Subcategory 1]] -> RIN Subcategory 1 | H149: =I_MeterTypes[[#Headers],[RIN Subcategory 2]] -> RIN Subcategory 2 | I149: =I_MeterTypes[[#Headers],[AER Type]] -> AER Type | J149: =I_MeterTypes[[#Headers],[RIN Subcategory 3]] -> RIN Subcategory 3 | K149: =I_MeterTypes[[#Headers],[Meter Code]] -> Meter Code | L149: Units | M149: =Capex_BaseYear -> 2023-24
F150: =I_MeterTypes[Meter Type] -> AMI - Single Phase, single element | G150: =I_MeterTypes[RIN Subcategory 1] -> Single Phase Meter Population | H150: =I_MeterTypes[RIN Subcategory 2] -> Direct Connect Meter Population | I150: =I_MeterTypes[AER Type] -> Meter Type 4 | J150: =I_MeterTypes[RIN Subcategory 3] -> Single phase single element - AMI | K150: =I_MeterTypes[Meter Code] -> AMI 1ph 1e | L150: No. | M150: 298053.5051
F151: AMI - Single Phase, two elements with 31.5A load control | G151: Single Phase Meter Population | H151: Direct Connect Meter Population | I151: Meter Type 4 | J151: Single phase two element with contactor - AMI | K151: AMI 1ph 2e | L151: =L$150 -> No. | M151: 21268.97585
F152: AMI - 3 Phase with no load control | G152: Multi Phase Meter Population | H152: Direct Connect Meter Population | I152: Meter Type 4 | J152: Three phase - AMI | K152: AMI 3ph | L152: No. | M152: 49366.65102
F153: AMI - Single Phase, single element, with 31.5A load control | G153: Single Phase Meter Population | H153: Direct Connect Meter Population | I153: Meter Type 4 | J153: Single phase single element with contactor - AMI | K153: AMI 1ph DC | L153: No. | M153: 6762.519033
F154: AMI - 3 Phase with 31.5A and 2A load control | G154: Multi Phase Meter Population | H154: Direct Connect Meter Population | I154: Meter Type 4 | J154: Three phase direct connected meter with contactor - AMI | K154: AMI 3ph DC | L154: No. | M154: 4235.694334
F155: AMI - 3 Phase CT connect | G155: Multi Phase Meter Population | H155: Current Transformer Connected Meter Population | I155: Meter Type 4 | J155: Three phase Current transformer connected meter - AMI | K155: AMI 3ph CT | L155: No. | M155: 2324.654649
F156: AMI - 3 Phase CT & VT connect | G156: Multi Phase Meter Population | H156: Current Transformer Connected Meter Population | I156: Meter Type 4 | J156: Three phase Current transformer connected meter - AMI | K156: AMI 3ph CT VT | L156: No. | M156: 0
F157: Non AMI - Type 5 Locally read Interval - Single Phase | G157: Single Phase Meter Population | H157: Direct Connect Meter Population | I157: Meter Type 5 | J157: Single phase non off peak - MRIM | K157: INT 1ph | L157: No. | M157: 18
F158: Non AMI - Type 6 Locally read Accumulation - Single Phase | G158: Single Phase Meter Population | H158: Direct Connect Meter Population | I158: Meter Type 6 | J158: Single phase non off peak - Accumulation | K158: ACC 1ph | L158: No. | M158: 2681
F159: Non AMI - Type 5 Locally read Interval - 3 Phase | G159: Multi Phase Meter Population | H159: Direct Connect Meter Population | I159: Meter Type 5 | J159: Multi phase direct connect - MRIM | K159: INT 3ph | L159: No. | M159: 6
F160: Non AMI - Type 6 Locally read Accumulation - 3 Phase | G160: Multi Phase Meter Population | H160: Direct Connect Meter Population | I160: Meter Type 6 | J160: Multi phase direct connect - Accumulation | K160: ACC 3ph | L160: No. | M160: 1326
L161: No.
L162: No.
L163: No.
L164: No.
F165: Total | L165: No. | M165: =SUM(M150:M164) -> 386043
C167: b | D167: Meter Actions
D169: i | E169: =$G$29 -> New Connections (Permanent + Temporary) - Growth
N170: =IF(N171=Capex_BaseYear,"Base Year","") -> Base Year | O170: =IF(O171=Capex_BaseYear,"Base Year","") ->  | P170: =IF(P171=Capex_BaseYear,"Base Year","") ->  | Q170: Forecast RP
F171: =I_MeterTypes[[#Headers],[Meter Type]] -> Meter Type | G171: =I_MeterTypes[[#Headers],[RIN Subcategory 1]] -> RIN Subcategory 1 | H171: =I_MeterTypes[[#Headers],[RIN Subcategory 2]] -> RIN Subcategory 2 | I171: =I_MeterTypes[[#Headers],[AER Type]] -> AER Type | J171: =I_MeterTypes[[#Headers],[RIN Subcategory 3]] -> RIN Subcategory 3 | K171: =I_MeterTypes[[#Headers],[Meter Code]] -> Meter Code | L171: Units | N171: =(LEFT(O171,4)-1&IF(MID(O171,5,1)="","","-"&TEXT(MOD(MID(O171,6,2)-1,100),"00"))) -> 2023-24 | O171: =(LEFT(P171,4)-1&IF(MID(P171,5,1)="","","-"&TEXT(MOD(MID(P171,6,2)-1,100),"00"))) -> 2024-25 | P171: =(LEFT(Q171,4)-1&IF(MID(Q171,5,1)="","","-"&TEXT(MOD(MID(Q171,6,2)-1,100),"00"))) -> 2025-26 | Q171: =FPFirstYear -> 2026-27 | R171: =(LEFT(Q171,4)+1&IF(MID(Q171,5,1)="","","-"&TEXT(MOD(MID(Q171,6,2)+1,100),"00"))) -> 2027-28 | S171: =(LEFT(R171,4)+1&IF(MID(R171,5,1)="","","-"&TEXT(MOD(MID(R171,6,2)+1,100),"00"))) -> 2028-29 | T171: =(LEFT(S171,4)+1&IF(MID(S171,5,1)="","","-"&TEXT(MOD(MID(S171,6,2)+1,100),"00"))) -> 2029-30 | U171: =(LEFT(T171,4)+1&IF(MID(T171,5,1)="","","-"&TEXT(MOD(MID(T171,6,2)+1,100),"00"))) -> 2030-31 | V171: RP Total
F172: =I_MeterTypes[Meter Type] -> AMI - Single Phase, single element | G172: =I_MeterTypes[RIN Subcategory 1] -> Single Phase Meter Population | H172: =I_MeterTypes[RIN Subcategory 2] -> Direct Connect Meter Population | I172: =I_MeterTypes[AER Type] -> Meter Type 4 | J172: =I_MeterTypes[RIN Subcategory 3] -> Single phase single element - AMI | K172: =I_MeterTypes[Meter Code] -> AMI 1ph 1e | L172: No. | O172: 4652.673017 | P172: 2361.22819 | Q172: 1201.704463 | R172: 611.8260918 | S172: 622.7605914 | T172: 633.6850829 | U172: 644.6246833 | V172: =SUM(Q172:U172) -> 3714.600913
F173: AMI - Single Phase, two elements with 31.5A load control | G173: Single Phase Meter Population | H173: Direct Connect Meter Population | I173: Meter Type 4 | J173: Single phase two element with contactor - AMI | K173: AMI 1ph 2e | L173: =L$150 -> No. | O173: 6.698027281 | P173: 7.104989872 | Q173: 7.231912676 | R173: 7.363995066 | S173: 7.495603707 | T173: 7.627091891 | U173: 7.758761926 | V173: =SUM(Q173:U173) -> 37.47736527
F174: AMI - 3 Phase with no load control | G174: Multi Phase Meter Population | H174: Direct Connect Meter Population | I174: Meter Type 4 | J174: Three phase - AMI | K174: AMI 3ph | L174: No. | O174: 4249.411181 | P174: 6674.374391 | Q174: 7995.309188 | R174: 8753.16021 | S174: 8909.595882 | T174: 9065.888375 | U174: 9222.397023 | V174: 43946.35068
F175: AMI - Single Phase, single element, with 31.5A load control | G175: Single Phase Meter Population | H175: Direct Connect Meter Population | I175: Meter Type 4 | J175: Single phase single element with contactor - AMI | K175: AMI 1ph DC | L175: No. | O175: 9.133673566 | P175: 9.270665454 | Q175: 9.436275663 | R175: 9.608618153 | S175: 9.780342491 | T175: 9.951909656 | U175: 10.1237141 | V175: 48.90086006
F176: AMI - 3 Phase with 31.5A and 2A load control | G176: Multi Phase Meter Population | H176: Direct Connect Meter Population | I176: Meter Type 4 | J176: Three phase direct connected meter with contactor - AMI | K176: AMI 3ph DC | L176: No. | O176: 1.826734713 | P176: 1.854133091 | Q176: 1.887255133 | R176: 1.921723631 | S176: 1.956068498 | T176: 1.990381931 | U176: 2.02474282 | V176: 9.780172013
F177: AMI - 3 Phase CT connect | G177: Multi Phase Meter Population | H177: Current Transformer Connected Meter Population | I177: Meter Type 4 | J177: Three phase Current transformer connected meter - AMI | K177: AMI 3ph CT | L177: No. | O177: 162.8838453 | P177: 166.5483783 | Q177: 171.0111828 | R177: 175.6961603 | S177: 178.8361859 | T177: 181.9733375 | U177: 185.1148279 | V177: 892.6316945
F178: AMI - 3 Phase CT & VT connect | G178: Multi Phase Meter Population | H178: Current Transformer Connected Meter Population | I178: Meter Type 4 | J178: Three phase Current transformer connected meter - AMI | K178: AMI 3ph CT VT | L178: No. | O178: 0 | P178: 0 | Q178: 0 | R178: 0 | S178: 0 | T178: 0 | U178: 0 | V178: 0
F179: Non AMI - Type 5 Locally read Interval - Single Phase | G179: Single Phase Meter Population | H179: Direct Connect Meter Population | I179: Meter Type 5 | J179: Single phase non off peak - MRIM | K179: INT 1ph | L179: No. | O179: 0 | P179: 0 | Q179: 0 | R179: 0 | S179: 0 | T179: 0 | U179: 0 | V179: 0
F180: Non AMI - Type 6 Locally read Accumulation - Single Phase | G180: Single Phase Meter Population | H180: Direct Connect Meter Population | I180: Meter Type 6 | J180: Single phase non off peak - Accumulation | K180: ACC 1ph | L180: No. | O180: 0 | P180: 0 | Q180: 0 | R180: 0 | S180: 0 | T180: 0 | U180: 0 | V180: 0
F181: Non AMI - Type 5 Locally read Interval - 3 Phase | G181: Multi Phase Meter Population | H181: Direct Connect Meter Population | I181: Meter Type 5 | J181: Multi phase direct connect - MRIM | K181: INT 3ph | L181: No. | O181: 0 | P181: 0 | Q181: 0 | R181: 0 | S181: 0 | T181: 0 | U181: 0 | V181: 0
F182: Non AMI - Type 6 Locally read Accumulation - 3 Phase | G182: Multi Phase Meter Population | H182: Direct Connect Meter Population | I182: Meter Type 6 | J182: Multi phase direct connect - Accumulation | K182: ACC 3ph | L182: No. | O182: 0 | P182: 0 | Q182: 0 | R182: 0 | S182: 0 | T182: 0 | U182: 0 | V182: 0
L183: No. | V183: 0
L184: No. | V184: 0
L185: No. | V185: 0
L186: No. | V186: 0
F187: Total | L187: No. | O187: =SUM(O172:O186) -> 9082.626479 | P187: 9220.380748 | Q187: 9386.580277 | R187: 9559.576799 | S187: 9730.424674 | T187: 9901.116179 | U187: 10072.04375 | V187: 48649.74168
D189: ii | E189: =$G$30 -> Alterations - Meters Installed
F191: =I_MeterTypes[[#Headers],[Meter Type]] -> Meter Type | G191: =I_MeterTypes[[#Headers],[RIN Subcategory 1]] -> RIN Subcategory 1 | H191: =I_MeterTypes[[#Headers],[RIN Subcategory 2]] -> RIN Subcategory 2 | I191: =I_MeterTypes[[#Headers],[AER Type]] -> AER Type | J191: =I_MeterTypes[[#Headers],[RIN Subcategory 3]] -> RIN Subcategory 3 | K191: =I_MeterTypes[[#Headers],[Meter Code]] -> Meter Code | L191: Units | O191: =O$171 -> 2024-25 | P191: 2025-26 | Q191: 2026-27 | R191: 2027-28 | S191: 2028-29 | T191: 2029-30 | U191: 2030-31 | V191: RP Total
F192: =I_MeterTypes[Meter Type] -> AMI - Single Phase, single element | G192: =I_MeterTypes[RIN Subcategory 1] -> Single Phase Meter Population | H192: =I_MeterTypes[RIN Subcategory 2] -> Direct Connect Meter Population | I192: =I_MeterTypes[AER Type] -> Meter Type 4 | J192: =I_MeterTypes[RIN Subcategory 3] -> Single phase single element - AMI | K192: =I_MeterTypes[Meter Code] -> AMI 1ph 1e | L192: No. | O192: 64.82945933 | P192: 32.90090371 | Q192: 16.74432103 | R192: 8.52506819 | S192: 8.677427423 | T192: 8.829647207 | U192: 8.982077514 | V192: =SUM(Q192:U192) -> 51.75854136
F193: AMI - Single Phase, two elements with 31.5A load control | G193: Single Phase Meter Population | H193: Direct Connect Meter Population | I193: Meter Type 4 | J193: Single phase two element with contactor - AMI | K193: AMI 1ph 2e | L193: =L$150 -> No. | O193: 15.28299041 | P193: 15.51221316 | Q193: 15.78932173 | R193: 16.07769514 | S193: 16.36503423 | T193: 16.65211032 | U193: 16.93958345 | V193: =SUM(Q193:U193) -> 81.82374487
F194: AMI - 3 Phase with no load control | G194: Multi Phase Meter Population | H194: Direct Connect Meter Population | I194: Meter Type 4 | J194: Three phase - AMI | K194: AMI 3ph | L194: No. | O194: 307.1388073 | P194: 344.6463488 | Q194: 367.5473965 | R194: 382.7852862 | S194: 389.6263895 | T194: 396.4612314 | U194: 403.3055261 | V194: 1939.72583
F195: AMI - Single Phase, single element, with 31.5A load control | G195: Single Phase Meter Population | H195: Direct Connect Meter Population | I195: Meter Type 4 | J195: Single phase single element with contactor - AMI | K195: AMI 1ph DC | L195: No. | O195: 3.450997835 | P195: 3.50275781 | Q195: 3.565330713 | R195: 3.63044729 | S195: 3.69533031 | T195: 3.760153944 | U195: 3.82506723 | V195: 18.47632949
F196: AMI - 3 Phase with 31.5A and 2A load control | G196: Multi Phase Meter Population | H196: Direct Connect Meter Population | I196: Meter Type 4 | J196: Three phase direct connected meter with contactor - AMI | K196: AMI 3ph DC | L196: No. | O196: 6.162496134 | P196: 6.25492466 | Q196: 6.366661987 | R196: 6.48294159 | S196: 6.598804124 | T196: 6.714560614 | U196: 6.830477197 | V196: 32.99344551
F197: AMI - 3 Phase CT connect | G197: Multi Phase Meter Population | H197: Current Transformer Connected Meter Population | I197: Meter Type 4 | J197: Three phase Current transformer connected meter - AMI | K197: AMI 3ph CT | L197: No. | O197: 30.74709195 | P197: 31.20825384 | Q197: 31.76575486 | R197: 32.34591906 | S197: 32.92400234 | T197: 33.50155653 | U197: 34.07990948 | V197: 164.6171423
F198: AMI - 3 Phase CT & VT connect | G198: Multi Phase Meter Population | H198: Current Transformer Connected Meter Population | I198: Meter Type 4 | J198: Three phase Current transformer connected meter - AMI | K198: AMI 3ph CT VT | L198: No. | O198: 0 | P198: 0 | Q198: 0 | R198: 0 | S198: 0 | T198: 0 | U198: 0 | V198: 0
F199: Non AMI - Type 5 Locally read Interval - Single Phase | G199: Single Phase Meter Population | H199: Direct Connect Meter Population | I199: Meter Type 5 | J199: Single phase non off peak - MRIM | K199: INT 1ph | L199: No. | O199: 0 | P199: 0 | Q199: 0 | R199: 0 | S199: 0 | T199: 0 | U199: 0 | V199: 0
F200: Non AMI - Type 6 Locally read Accumulation - Single Phase | G200: Single Phase Meter Population | H200: Direct Connect Meter Population | I200: Meter Type 6 | J200: Single phase non off peak - Accumulation | K200: ACC 1ph | L200: No. | O200: 0 | P200: 0 | Q200: 0 | R200: 0 | S200: 0 | T200: 0 | U200: 0 | V200: 0
F201: Non AMI - Type 5 Locally read Interval - 3 Phase | G201: Multi Phase Meter Population | H201: Direct Connect Meter Population | I201: Meter Type 5 | J201: Multi phase direct connect - MRIM | K201: INT 3ph | L201: No. | O201: 0 | P201: 0 | Q201: 0 | R201: 0 | S201: 0 | T201: 0 | U201: 0 | V201: 0
F202: Non AMI - Type 6 Locally read Accumulation - 3 Phase | G202: Multi Phase Meter Population | H202: Direct Connect Meter Population | I202: Meter Type 6 | J202: Multi phase direct connect - Accumulation | K202: ACC 3ph | L202: No. | O202: 0 | P202: 0 | Q202: 0 | R202: 0 | S202: 0 | T202: 0 | U202: 0 | V202: 0
L203: No. | V203: 0
L204: No. | P204: 0 | Q204: 0 | R204: 0 | S204: 0 | T204: 0 | U204: 0 | V204: 0
L205: No. | P205: 0 | Q205: 0 | R205: 0 | S205: 0 | T205: 0 | U205: 0 | V205: 0
L206: No. | P206: 0 | Q206: 0 | R206: 0 | S206: 0 | T206: 0 | U206: 0 | V206: 0
F207: Total | L207: No. | O207: =SUM(O192:O206) -> 427.611843 | P207: =SUM(P192:P206) -> 434.0254019 | Q207: 441.7787868 | R207: 449.8473574 | S207: 457.8869879 | T207: 465.9192601 | U207: 473.962641 | V207: 2289.395033
D209: iii | E209: =$G$31 -> Abolishment / Service Removed
F211: =I_MeterTypes[[#Headers],[Meter Type]] -> Meter Type | G211: =I_MeterTypes[[#Headers],[RIN Subcategory 1]] -> RIN Subcategory 1 | H211: =I_MeterTypes[[#Headers],[RIN Subcategory 2]] -> RIN Subcategory 2 | I211: =I_MeterTypes[[#Headers],[AER Type]] -> AER Type | J211: =I_MeterTypes[[#Headers],[RIN Subcategory 3]] -> RIN Subcategory 3 | K211: =I_MeterTypes[[#Headers],[Meter Code]] -> Meter Code | L211: Units | O211: =O$171 -> 2024-25 | P211: 2025-26 | Q211: 2026-27 | R211: 2027-28 | S211: 2028-29 | T211: 2029-30 | U211: 2030-31 | V211: RP Total
F212: =I_MeterTypes[Meter Type] -> AMI - Single Phase, single element | G212: =I_MeterTypes[RIN Subcategory 1] -> Single Phase Meter Population | H212: =I_MeterTypes[RIN Subcategory 2] -> Direct Connect Meter Population | I212: =I_MeterTypes[AER Type] -> Meter Type 4 | J212: =I_MeterTypes[RIN Subcategory 3] -> Single phase single element - AMI | K212: =I_MeterTypes[Meter Code] -> AMI 1ph 1e | L212: No. | O212: 1582.411365 | P212: 1606.145246 | Q212: 1634.837258 | R212: 1664.695641 | S212: 1694.446928 | T212: 1724.170984 | U212: 1753.93615 | V212: =SUM(Q212:U212) -> 8472.086961
F213: AMI - Single Phase, two elements with 31.5A load control | G213: Single Phase Meter Population | H213: Direct Connect Meter Population | I213: Meter Type 4 | J213: Single phase two element with contactor - AMI | K213: AMI 1ph 2e | L213: =L$150 -> No. | O213: 320.358435 | P213: 325.163348 | Q213: 330.9720325 | R213: 337.0168479 | S213: 343.0399819 | T213: 349.0576032 | U213: 355.0835469 | V213: =SUM(Q213:U213) -> 1715.170012
F214: AMI - 3 Phase with no load control | G214: Multi Phase Meter Population | H214: Direct Connect Meter Population | I214: Meter Type 4 | J214: Three phase - AMI | K214: AMI 3ph | L214: No. | O214: 214.0556461 | P214: 217.2661711 | Q214: 221.1473915 | R214: 225.1863888 | S214: 229.2108992 | T214: 233.2317261 | U214: 237.2581139 | V214: 1146.034519
F215: AMI - Single Phase, single element, with 31.5A load control | G215: Single Phase Meter Population | H215: Direct Connect Meter Population | I215: Meter Type 4 | J215: Single phase single element with contactor - AMI | K215: AMI 1ph DC | L215: No. | O215: 107.0524446 | P215: 108.6580764 | Q215: 110.599133 | R215: 112.6190963 | S215: 114.6318144 | T215: 116.6426903 | U215: 118.6563474 | V215: 573.1490814
F216: AMI - 3 Phase with 31.5A and 2A load control | G216: Multi Phase Meter Population | H216: Direct Connect Meter Population | I216: Meter Type 4 | J216: Three phase direct connected meter with contactor - AMI | K216: AMI 3ph DC | L216: No. | O216: 14.38017913 | P216: 14.59586101 | Q216: 14.85659996 | R216: 15.12793831 | S216: 15.39830343 | T216: 15.66842109 | U216: 15.93891233 | V216: 76.99017512
F217: AMI - 3 Phase CT connect | G217: Multi Phase Meter Population | H217: Current Transformer Connected Meter Population | I217: Meter Type 4 | J217: Three phase Current transformer connected meter - AMI | K217: AMI 3ph CT | L217: No. | O217: 16.00416045 | P217: 16.24419971 | Q217: 16.53438441 | R217: 16.83636552 | S217: 17.13726349 | T217: 17.43788606 | U217: 17.7389244 | V217: 85.68482388
F218: AMI - 3 Phase CT & VT connect | G218: Multi Phase Meter Population | H218: Current Transformer Connected Meter Population | I218: Meter Type 4 | J218: Three phase Current transformer connected meter - AMI | K218: AMI 3ph CT VT | L218: No. | O218: 0 | P218: 0 | Q218: 0 | R218: 0 | S218: 0 | T218: 0 | U218: 0 | V218: 0
F219: Non AMI - Type 5 Locally read Interval - Single Phase | G219: Single Phase Meter Population | H219: Direct Connect Meter Population | I219: Meter Type 5 | J219: Single phase non off peak - MRIM | K219: INT 1ph | L219: No. | O219: 4.5 | P219: 13.5 | Q219: 0 | R219: 0 | S219: 0 | T219: 0 | U219: 0 | V219: 0
F220: Non AMI - Type 6 Locally read Accumulation - Single Phase | G220: Single Phase Meter Population | H220: Direct Connect Meter Population | I220: Meter Type 6 | J220: Single phase non off peak - Accumulation | K220: ACC 1ph | L220: No. | O220: 670.25 | P220: 2010.75 | Q220: 0 | R220: 0 | S220: 0 | T220: 0 | U220: 0 | V220: 0
F221: Non AMI - Type 5 Locally read Interval - 3 Phase | G221: Multi Phase Meter Population | H221: Direct Connect Meter Population | I221: Meter Type 5 | J221: Multi phase direct connect - MRIM | K221: INT 3ph | L221: No. | O221: 1.5 | P221: 4.5 | Q221: 0 | R221: 0 | S221: 0 | T221: 0 | U221: 0 | V221: 0
F222: Non AMI - Type 6 Locally read Accumulation - 3 Phase | G222: Multi Phase Meter Population | H222: Direct Connect Meter Population | I222: Meter Type 6 | J222: Multi phase direct connect - Accumulation | K222: ACC 3ph | L222: No. | O222: 331.5 | P222: 994.5 | Q222: 0 | R222: 0 | S222: 0 | T222: 0 | U222: 0 | V222: 0
L223: No. | V223: 0
L224: No. | V224: 0
L225: No. | V225: 0
L226: No. | V226: 0
F227: Total | L227: No. | O227: =SUM(O212:O226) -> 3262.01223 | P227: =SUM(P212:P219) -> 2301.572902 | Q227: 2328.9468 | R227: 2371.482277 | S227: 2413.86519 | T227: 2456.209311 | U227: 2498.611995 | V227: 12069.11557
D229: iv | E229: =$G$32 -> Alterations - Meters Removed
F231: =I_MeterTypes[[#Headers],[Meter Type]] -> Meter Type | G231: =I_MeterTypes[[#Headers],[RIN Subcategory 1]] -> RIN Subcategory 1 | H231: =I_MeterTypes[[#Headers],[RIN Subcategory 2]] -> RIN Subcategory 2 | I231: =I_MeterTypes[[#Headers],[AER Type]] -> AER Type | J231: =I_MeterTypes[[#Headers],[RIN Subcategory 3]] -> RIN Subcategory 3 | K231: =I_MeterTypes[[#Headers],[Meter Code]] -> Meter Code | L231: Units | O231: =O$171 -> 2024-25 | P231: 2025-26 | Q231: 2026-27 | R231: 2027-28 | S231: 2028-29 | T231: 2029-30 | U231: 2030-31 | V231: Total
F232: =I_MeterTypes[Meter Type] -> AMI - Single Phase, single element | G232: =I_MeterTypes[RIN Subcategory 1] -> Single Phase Meter Population | H232: =I_MeterTypes[RIN Subcategory 2] -> Direct Connect Meter Population | I232: =I_MeterTypes[AER Type] -> Meter Type 4 | J232: =I_MeterTypes[RIN Subcategory 3] -> Single phase single element - AMI | K232: =I_MeterTypes[Meter Code] -> AMI 1ph 1e | L232: No. | O232: 516.9876301 | P232: 524.7416965 | Q232: 534.1156279 | R232: 543.8706225 | S232: 553.5906281 | T232: 563.3017374 | U232: 573.0262773 | V232: =SUM(N232:U232) -> 3809.63422
F233: AMI - Single Phase, two elements with 31.5A load control | G233: Single Phase Meter Population | H233: Direct Connect Meter Population | I233: Meter Type 4 | J233: Single phase two element with contactor - AMI | K233: AMI 1ph 2e | L233: =L$150 -> No. | O233: 58.2238496 | P233: 59.09712311 | Q233: 60.152828 | R233: 61.25144874 | S233: 62.34612899 | T233: 63.43980732 | U233: 64.53499822 | V233: 429.046184
F234: AMI - 3 Phase with no load control | G234: Multi Phase Meter Population | H234: Direct Connect Meter Population | I234: Meter Type 4 | J234: Three phase - AMI | K234: AMI 3ph | L234: No. | O234: 76.29332017 | P234: 77.43760959 | Q234: 78.82094704 | R234: 80.26051904 | S234: 81.69492764 | T234: 83.12802338 | U234: 84.56310111 | V234: 562.198448
F235: AMI - Single Phase, single element, with 31.5A load control | G235: Single Phase Meter Population | H235: Direct Connect Meter Population | I235: Meter Type 4 | J235: Single phase single element with contactor - AMI | K235: AMI 1ph DC | L235: No. | O235: 40.15437904 | P235: 40.75663662 | Q235: 41.48470897 | R235: 42.24237844 | S235: 42.99733034 | T235: 43.75159125 | U235: 44.50689532 | V235: 295.89392
F236: AMI - 3 Phase with 31.5A and 2A load control | G236: Multi Phase Meter Population | H236: Direct Connect Meter Population | I236: Meter Type 4 | J236: Three phase direct connected meter with contactor - AMI | K236: AMI 3ph DC | L236: No. | O236: 29.1119248 | P236: 29.54856155 | Q236: 30.076414 | R236: 30.62572437 | S236: 31.1730645 | T236: 31.71990366 | U236: 32.26749911 | V236: 214.523092
F237: AMI - 3 Phase CT connect | G237: Multi Phase Meter Population | H237: Current Transformer Connected Meter Population | I237: Meter Type 4 | J237: Three phase Current transformer connected meter - AMI | K237: AMI 3ph CT | L237: No. | O237: 5.01929738 | P237: 5.094579578 | Q237: 5.185588621 | R237: 5.280297306 | S237: 5.374666292 | T237: 5.468948906 | U237: 5.563361915 | V237: 36.98674
F238: AMI - 3 Phase CT & VT connect | G238: Multi Phase Meter Population | H238: Current Transformer Connected Meter Population | I238: Meter Type 4 | J238: Three phase Current transformer connected meter - AMI | K238: AMI 3ph CT VT | L238: No. | O238: 0 | P238: 0 | Q238: 0 | R238: 0 | S238: 0 | T238: 0 | U238: 0 | V238: 0
F239: Non AMI - Type 5 Locally read Interval - Single Phase | G239: Single Phase Meter Population | H239: Direct Connect Meter Population | I239: Meter Type 5 | J239: Single phase non off peak - MRIM | K239: INT 1ph | L239: No. | O239: 0 | P239: 0 | Q239: 0 | R239: 0 | S239: 0 | T239: 0 | U239: 0 | V239: 0
... 188 more rows

Sheet Input | Comms, IT, Other
B1: ='Input|General'!B1&" v"&'Input|General'!$D$2 -> AER Metering Opex & Capex Forecasting Model v1.08
B2: =MID(CELL("filename",A1),FIND("]",CELL("filename",A1))+1,255) -> Input | Comms, IT, Other
A6: =LEFT('Input | Meters Vols & Costs'!B144,1)+1&". Comms Setup" -> 7. Comms Setup
B8: a | C8: Define equipment types and actions / drivers of volumes and unit costs
E10: Equipment Type
E11: Access Points
E12: Relays
E13: Micro AP
E14: Poles
E15: Batteries
E16: External Antenna in Buildings
E17: Antennas
E27: Action/Driver | F27: Impact on population | H27: (Calc) Impact on meter population
A28: =IF(E28<>"",(F28<>"")/1,1) -> 1 | E28: Growth | F28: Add | H28: =IFERROR(_xlfn.IFS(F28="Add",1,F28="No Effect",0,F28="Subtract",-1),0) -> 1
A29: =IF(E29<>"",(F29<>"")/1,1) -> 1 | E29: Maintenance (Failure/Faults) | F29: No Effect | H29: =IFERROR(_xlfn.IFS(F29="Add",1,F29="No Effect",0,F29="Subtract",-1),0) -> 0
A30: 1 | E30: End of life | F30: No Effect | H30: =IFERROR(_xlfn.IFS(F30="Add",1,F30="No Effect",0,F30="Subtract",-1),0) -> 0
A31: 1 | E31: Replacements | F31: No Effect | H31: =IFERROR(_xlfn.IFS(F31="Add",1,F31="No Effect",0,F31="Subtract",-1),0) -> 0
A32: 1 | H32: =IFERROR(_xlfn.IFS(F32="Add",1,F32="No Effect",0,F32="Subtract",-1),0) -> 0
A33: 1 | H33: =IFERROR(_xlfn.IFS(F33="Add",1,F33="No Effect",0,F33="Subtract",-1),0) -> 0
A34: 1 | H34: =IFERROR(_xlfn.IFS(F34="Add",1,F34="No Effect",0,F34="Subtract",-1),0) -> 0
A35: 1 | H35: =IFERROR(_xlfn.IFS(F35="Add",1,F35="No Effect",0,F35="Subtract",-1),0) -> 0
A36: 1 | H36: =IFERROR(_xlfn.IFS(F36="Add",1,F36="No Effect",0,F36="Subtract",-1),0) -> 0
A37: 1 | H37: =IFERROR(_xlfn.IFS(F37="Add",1,F37="No Effect",0,F37="Subtract",-1),0) -> 0
A39: =LEFT(A6,1)+1&". Unit Costs & Cost Allocation" -> 8. Unit Costs & Cost Allocation
B41: a | C41: Unit costs and cost allocation
G42: Unit Costs
E43: Equipment Type | F43: Action/Driver | G43: Equipment cost | J43: Installation cost | M43: Allocation to SCS | N43: Overheads rate | R43: Allocation to SCS
G44: Basis | H44: Apply Non-Labour Real Price Change? | I44: Unit Rate | J44: Basis | K44: Apply Labour Real Price Change? | L44: Unit Rate | R44: Previous Value
E45: Access Points | F45: Growth | G45: =Basis_Capex -> 2024-06-01 | H45: No | I45: 13518.44794 | J45: =Basis_Capex -> 2024-06-01 | K45: Yes | L45: 1314.970026 | M45: 0.9 | N45: 0
E46: Access Points | F46: Maintenance (Failure/Faults) | G46: 2024-06-01 | H46: No | I46: 10461.98926 | J46: 2024-06-01 | K46: Yes | L46: 1189.734786 | M46: 0 | N46: 0
E47: Access Points | F47: End of life | G47: 2024-06-01 | H47: No | I47: 10461.98926 | J47: 2024-06-01 | K47: Yes | L47: 1189.734786 | M47: 0 | N47: 0
E48: Relays | F48: Growth | G48: 2024-06-01 | H48: No | I48: 5219.699511 | J48: 2024-06-01 | K48: Yes | L48: 1565.440508 | M48: 0 | N48: 0
E49: Relays | F49: Maintenance (Failure/Faults) | G49: 2024-06-01 | H49: No | I49: 2779.954219 | J49: 2024-06-01 | K49: Yes | L49: 1283.661216 | M49: 0 | N49: 0
E50: Relays | F50: End of life | G50: 2024-06-01 | H50: No | I50: 2779.954219 | J50: 2024-06-01 | K50: Yes | L50: 1283.661216 | M50: 0 | N50: 0
E51: Micro AP | F51: Growth | G51: 2024-06-01 | H51: No | I51: 361.443747 | J51: 2024-06-01 | K51: Yes | L51: 422.668937 | M51: 0 | N51: 0
E52: Micro AP | F52: Maintenance (Failure/Faults) | G52: 2024-06-01 | H52: No | I52: 361.443747 | J52: 2024-06-01 | K52: Yes | L52: 422.668937 | M52: 0 | N52: 0
E53: Micro AP | F53: End of life | G53: 2024-06-01 | H53: No | I53: 361.443747 | J53: 2024-06-01 | K53: Yes | L53: 422.668937 | M53: 0 | N53: 0
E54: Poles | F54: Growth | G54: 2024-06-01 | H54: No | I54: 1233.759284 | J54: 2024-06-01 | K54: Yes | L54: 7670.658487 | M54: 0 | N54: 0
E55: Poles | F55: Replacements | G55: 2024-06-01 | H55: No | I55: 1233.759284 | J55: 2024-06-01 | K55: Yes | L55: 7670.658487 | M55: 0 | N55: 0
E56: Batteries | F56: Growth | G56: 2024-06-01 | H56: No | I56: 2439.745292 | J56: 2024-06-01 | K56: Yes | L56: 939.2643045 | M56: 0 | N56: 0
E57: Batteries | F57: Maintenance (Failure/Faults) | G57: 2024-06-01 | H57: No | I57: 2439.745292 | J57: 2024-06-01 | K57: Yes | L57: 939.2643045 | M57: 0 | N57: 0
E58: Batteries | F58: End of life | G58: 2024-06-01 | H58: No | I58: 2439.745292 | J58: 2024-06-01 | K58: Yes | L58: 939.2643045 | M58: 0 | N58: 0
E59: External Antenna in Buildings | F59: Growth | G59: 2024-06-01 | H59: No | I59: 306.9533639 | J59: 2024-06-01 | K59: Yes | L59: 3287.425066 | M59: 0 | N59: 0
E60: External Antenna in Buildings | F60: Maintenance (Failure/Faults) | G60: 2024-06-01 | H60: No | I60: 306.9533639 | J60: 2024-06-01 | K60: Yes | L60: 3287.425066 | M60: 0 | N60: 0
E61: External Antenna in Buildings | F61: End of life | G61: 2024-06-01 | H61: No | I61: 306.9533639 | J61: 2024-06-01 | K61: Yes | L61: 3287.425066 | M61: 0 | N61: 0
E62: Antennas | F62: Growth | G62: 2024-06-01 | H62: No | I62: 23.50534404 | J62: 2024-06-01 | K62: Yes | L62: 673.1394182 | M62: 0 | N62: 0
E63: Antennas | F63: Maintenance (Failure/Faults) | G63: 2024-06-01 | H63: No | I63: 23.50534404 | J63: 2024-06-01 | K63: Yes | L63: 673.1394182 | M63: 0 | N63: 0
E64: Antennas | F64: End of life | G64: 2024-06-01 | H64: No | I64: 23.50534404 | J64: 2024-06-01 | K64: Yes | L64: 673.1394182 | M64: 0 | N64: 0
B67: b | C67: Project Costs - Comms
E69: Project Name | G69: SCS Allocation | H69: Labour Cost Escalation | I69: Non-Labour Cost Escalation | J69: Labour Cost Weighting | K69: Overheads | Q69: Labour Cost Escalation | R69: Non-Labour Cost Escalation
Q70: =IF(H70="Yes",1,0) -> 0 | R70: =IF(I70="Yes",1,0) -> 0
Q71: 0 | R71: 0
Q72: 0 | R72: 0
Q73: 0 | R73: 0
Q74: 0 | R74: 0
Q75: 0 | R75: 0
Q76: 0 | R76: 0
Q77: 0 | R77: 0
Q78: 0 | R78: 0
Q79: 0 | R79: 0
M81: Forecast RP
E82: Project Name | G82: Units | H82: Basis | J82: =(LEFT(K82,4)-1&IF(MID(K82,5,1)="","","-"&TEXT(MOD(MID(K82,6,2)-1,100),"00"))) -> 2023-24 | K82: =(LEFT(L82,4)-1&IF(MID(L82,5,1)="","","-"&TEXT(MOD(MID(L82,6,2)-1,100),"00"))) -> 2024-25 | L82: =(LEFT(M82,4)-1&IF(MID(M82,5,1)="","","-"&TEXT(MOD(MID(M82,6,2)-1,100),"00"))) -> 2025-26 | M82: =FPFirstYear -> 2026-27 | N82: =(LEFT(M82,4)+1&IF(MID(M82,5,1)="","","-"&TEXT(MOD(MID(M82,6,2)+1,100),"00"))) -> 2027-28 | O82: =(LEFT(N82,4)+1&IF(MID(N82,5,1)="","","-"&TEXT(MOD(MID(N82,6,2)+1,100),"00"))) -> 2028-29 | P82: =(LEFT(O82,4)+1&IF(MID(O82,5,1)="","","-"&TEXT(MOD(MID(O82,6,2)+1,100),"00"))) -> 2029-30 | Q82: =(LEFT(P82,4)+1&IF(MID(P82,5,1)="","","-"&TEXT(MOD(MID(P82,6,2)+1,100),"00"))) -> 2030-31
G83: $dollars | H83: =Basis_Capex -> 2024-06-01
G84: =$G$83 -> $dollars | H84: 2024-06-01
G85: $dollars | H85: 2024-06-01
G86: $dollars | H86: 2024-06-01
G87: $dollars | H87: 2024-06-01
G88: $dollars | H88: 2024-06-01
G89: $dollars | H89: 2024-06-01
G90: $dollars | H90: 2024-06-01
G91: $dollars | H91: 2024-06-01
G92: $dollars | H92: 2024-06-01
J93: =SUM(J83:J92) -> 0 | K93: 0 | L93: 0 | M93: 0 | N93: 0 | O93: 0 | P93: 0 | Q93: 0 | R93: =SUM(J93:Q93) -> 0
B95: c | C95: Project Costs - IT
E96: Project Name | G96: SCS Allocation | H96: Labour Cost Escalation | I96: Non-Labour Cost Escalation | J96: Labour Cost Weighting | K96: Overheads | Q96: Labour Cost Escalation | R96: Non-Labour Cost Escalation
E97: Lifecycle upgrade | G97: 0.5 | H97: Yes | I97: Yes | J97: 0 | K97: 0 | Q97: =IF(H97="Yes",1,0) -> 1 | R97: =IF(I97="Yes",1,0) -> 1
E98: IT systems capacity enhancement (Changes to support meter inspections and replacements) | G98: 0 | H98: Yes | I98: Yes | J98: 0 | K98: 0 | Q98: 1 | R98: 1
G99: 0 | J99: 0 | K99: 0 | Q99: 0 | R99: 0
G100: 0 | J100: 0 | K100: 0 | Q100: 0 | R100: 0
G101: 0 | J101: 0 | K101: 0 | Q101: 0 | R101: 0
G102: 0 | J102: 0 | K102: 0 | Q102: 0 | R102: 0
G103: 0 | J103: 0 | K103: 0 | Q103: 0 | R103: 0
G104: 0 | J104: 0 | K104: 0 | Q104: 0 | R104: 0
G105: 0 | J105: 0 | K105: 0 | Q105: 0 | R105: 0
G106: 0 | J106: 0 | K106: 0 | Q106: 0 | R106: 0
M108: Forecast RP
E109: Project Name | G109: Units | H109: Basis | J109: =J$82 -> 2023-24 | K109: 2024-25 | L109: 2025-26 | M109: 2026-27 | N109: 2027-28 | O109: 2028-29 | P109: 2029-30 | Q109: 2030-31
E110: =E97 -> Lifecycle upgrade | G110: $dollars | H110: =Basis_Capex -> 2024-06-01 | J110: 0 | K110: 0 | L110: 0 | M110: 4113980.439 | N110: 0 | O110: 0 | P110: 4113980.439 | Q110: 0
E111: =E98 -> IT systems capacity enhancement (Changes to support meter inspections and replacements) | G111: =$G$110 -> $dollars | H111: 2024-06-01 | J111: 0 | K111: 0 | L111: 0 | M111: 650000 | N111: 650000 | O111: 0 | P111: 0 | Q111: 0
G112: $dollars | H112: 2024-06-01
G113: $dollars | H113: 2024-06-01
G114: $dollars | H114: 2024-06-01
G115: $dollars | H115: 2024-06-01
G116: $dollars | H116: 2024-06-01
G117: $dollars | H117: 2024-06-01
G118: $dollars | H118: 2024-06-01
G119: $dollars | H119: 2024-06-01
J120: =SUM(J110:J119) -> 0 | K120: =SUM(K110:K119) -> 0 | L120: 0 | M120: 4763980.439 | N120: 650000 | O120: 0 | P120: 4113980.439 | Q120: 0 | R120: =SUM(J120:Q120) -> 9527960.878
B122: d | C122: IT | M122: Forecast RP
E123: Project Name | F123: SCS Allocation | G123: Units | H123: Basis | J123: =J$82 -> 2023-24 | K123: =K$82 -> 2024-25 | L123: =L$82 -> 2025-26 | M123: 2026-27 | N123: 2027-28 | O123: 2028-29 | P123: 2029-30 | Q123: 2030-31 | R123: Overheads
E124: Meter Replacement and Inspection Program | F124: 0 | G124: $dollars | H124: =Basis_Capex -> 2024-06-01 | J124: 0 | K124: 0 | L124: 0 | M124: 106064.5664 | N124: 305612.4561 | O124: 328433.5936 | P124: 368107.1808 | Q124: 459435.0121 | R124: 0
E125: Project 2 | F125: 0 | G125: =$G$124 -> $dollars | H125: =Basis_Capex -> 2024-06-01 | R125: 0
E126: Project 3 | F126: 0 | G126: =$G$124 -> $dollars | H126: =Basis_Capex -> 2024-06-01 | R126: 0
E127: Project 4 | F127: 0 | G127: =$G$124 -> $dollars | H127: =Basis_Capex -> 2024-06-01 | R127: 0
J128: =SUM(J124:J127) -> 0 | K128: 0 | L128: 0 | M128: 106064.5664 | N128: 305612.4561 | O128: 328433.5936 | P128: 368107.1808 | Q128: 459435.0121 | R128: =SUM(J128:Q128) -> 1567652.809
B129: e | C129: Other
E130: Project Name | F130: SCS Allocation | G130: Units | H130: Basis | J130: =J$82 -> 2023-24 | K130: =K$82 -> 2024-25 | L130: =L$82 -> 2025-26 | M130: 2026-27 | N130: 2027-28 | O130: 2028-29 | P130: 2029-30 | Q130: 2030-31 | R130: Overheads
E131: Access Points and Relays | F131: 0 | G131: $dollars | H131: =Basis_Capex -> 2024-06-01 | J131: 0 | K131: 0 | L131: 0 | M131: 2290000 | N131: 2290000 | O131: 0 | P131: 0 | Q131: 0 | R131: 0
E132: Project 2 | F132: 0 | G132: =$G$131 -> $dollars | H132: =Basis_Capex -> 2024-06-01 | R132: 0
E133: Project 3 | F133: 0 | G133: =$G$131 -> $dollars | H133: =Basis_Capex -> 2024-06-01 | R133: 0
E134: Project 4 | F134: 0 | G134: =$G$131 -> $dollars | H134: =Basis_Capex -> 2024-06-01 | R134: 0
J135: =SUM(J131:J134) -> 0 | K135: =SUM(K131:K134) -> 0 | L135: 0 | M135: 2290000 | N135: 2290000 | O135: 0 | P135: 0 | Q135: 0 | R135: =SUM(J135:Q135) -> 4580000
B136: f | C136: Other 3
E137: Project Name | F137: SCS Allocation | G137: Units | H137: Basis | J137: =J$82 -> 2023-24 | K137: =K$82 -> 2024-25 | L137: =L$82 -> 2025-26 | M137: 2026-27 | N137: 2027-28 | O137: 2028-29 | P137: 2029-30 | Q137: 2030-31 | R137: Overheads
E138: Project 1 | F138: 0 | G138: $dollars | H138: =Basis_Capex -> 2024-06-01 | R138: 0
E139: Project 2 | F139: 0 | G139: =$G$138 -> $dollars | H139: =Basis_Capex -> 2024-06-01 | R139: 0
E140: Project 3 | F140: 0 | G140: =$G$138 -> $dollars | H140: =Basis_Capex -> 2024-06-01 | R140: 0
E141: Project 4 | F141: 0 | G141: =$G$138 -> $dollars | H141: =Basis_Capex -> 2024-06-01 | R141: 0
J142: =SUM(J138:J141) -> 0 | K142: 0 | L142: 0 | M142: 0 | N142: 0 | O142: 0 | P142: 0 | Q142: 0 | R142: =SUM(J142:Q142) -> 0
B143: g | C143: Other 4
E144: Project Name | F144: SCS Allocation | G144: Units | H144: Basis | J144: =J$82 -> 2023-24 | K144: =K$82 -> 2024-25 | L144: =L$82 -> 2025-26 | M144: 2026-27 | N144: 2027-28 | O144: 2028-29 | P144: 2029-30 | Q144: 2030-31 | R144: Overheads
E145: Project 1 | F145: 0 | G145: $000 | H145: =Basis_Capex -> 2024-06-01 | R145: 0
E146: Project 2 | F146: 0 | G146: =$G$145 -> $000 | H146: =Basis_Capex -> 2024-06-01 | R146: 0
E147: Project 3 | F147: 0 | G147: =$G$145 -> $000 | H147: =Basis_Capex -> 2024-06-01 | R147: 0
E148: Project 4 | F148: 0 | G148: =$G$145 -> $000 | H148: =Basis_Capex -> 2024-06-01 | R148: 0
J149: =SUM(J145:J148) -> 0 | K149: 0 | L149: 0 | M149: 0 | N149: 0 | O149: 0 | P149: 0 | Q149: 0 | R149: =SUM(J149:Q149) -> 0
R151: =SUM(R149,R142,R135,R128,R120,R93) -> 15675613.69
A153: =LEFT(A39,1)+1&". Base Population" -> 9. Base Population
B155: a | C155: Population | G155: Base
E156: Equipment Type | F156: Units | G156: =Capex_BaseYear -> 2023-24
D157: 1 | E157: =E11 -> Access Points | F157: No. | G157: 174
D158: 2 | E158: Relays | F158: No. | G158: 310
D159: 3 | E159: Micro AP | F159: No. | G159: 0
D160: 4 | E160: Poles | F160: No. | G160: 11
D161: 5 | E161: Batteries | F161: No. | G161: 484
D162: 6 | E162: External Antenna in Buildings | F162: No. | G162: 100
D163: 7 | E163: Antennas | F163: No. | G163: 100
D164: 8 | F164: No.
D165: 9 | F165: No.
D166: 10 | F166: No.
D167: 11 | F167: No.
D168: 12 | F168: No.
D169: 13 | F169: No.
D170: 14 | F170: No.
D171: 15 | F171: No.
A173: =LEFT(A153,1)+1&". Forecast Volumes" -> 10. Forecast Volumes
B175: a | C175: Inputs | J175: =IF(J176=Capex_BaseYear,"Base Year","") -> Base Year | K175: =IF(K176=Capex_BaseYear,"Base Year","") ->  | L175: =IF(L176=Capex_BaseYear,"Base Year","") ->  | M175: Forecast RP
E176: Equipment Type | F176: Action/Driver | G176: Volume basis | H176: Volume factor | J176: =J$82 -> 2023-24 | K176: =K$82 -> 2024-25 | L176: =L$82 -> 2025-26 | M176: 2026-27 | N176: 2027-28 | O176: 2028-29 | P176: 2029-30 | Q176: 2030-31
E177: =ICC_AllocFields -> Access Points | F177: Growth | G177: Enter annual volume | I177: =IF(AND(G177<>"Enter annual volume",G177<>""),"Auto-Calculated in next table","") ->  | K177: 12 | L177: 37 | M177: 75 | N177: 78 | O177: 51 | P177: 54 | Q177: 57
E178: Access Points | F178: Maintenance (Failure/Faults) | G178: Enter annual volume | I178: =IF(AND(G178<>"Enter annual volume",G178<>""),"Auto-Calculated in next table","") ->  | K178: 4 | L178: 4 | M178: 4 | N178: 5 | O178: 5 | P178: 5 | Q178: 6
E179: Access Points | F179: End of life | G179: Enter annual volume | K179: 1 | L179: 1 | M179: 1 | N179: 50 | O179: 70 | P179: 80 | Q179: 80
E180: Relays | F180: Growth | G180: Enter annual volume | K180: 0 | L180: 0 | M180: 0 | N180: 0 | O180: 0 | P180: 0 | Q180: 0
E181: Relays | F181: Maintenance (Failure/Faults) | G181: Enter annual volume | K181: 6 | L181: 6 | M181: 6 | N181: 8 | O181: 8 | P181: 8 | Q181: 9
E182: Relays | F182: End of life | G182: Enter annual volume | K182: 0 | L182: 20 | M182: 50 | N182: 60 | O182: 65 | P182: 15 | Q182: 15
E183: Micro AP | F183: Growth | G183: Enter annual volume | K183: 40 | L183: 55 | M183: 60 | N183: 60 | O183: 52 | P183: 52 | Q183: 52
E184: Micro AP | F184: Maintenance (Failure/Faults) | G184: Enter annual volume | K184: 1 | L184: 1 | M184: 2 | N184: 2 | O184: 3 | P184: 3 | Q184: 3
E185: Micro AP | F185: End of life | G185: Enter annual volume | K185: 0 | L185: 0 | M185: 0 | N185: 50 | O185: 55 | P185: 100 | Q185: 110
E186: Poles | F186: Growth | G186: Enter annual volume | I186: =IF(AND(G186<>"Enter annual volume",G186<>""),"Auto-Calculated in next table","") ->  | K186: 12 | L186: 27 | M186: 30 | N186: 33 | O186: 36 | P186: 39 | Q186: 42
E187: Poles | F187: Replacements | G187: Enter annual volume | K187: 0 | L187: 0 | M187: 0 | N187: 0 | O187: 0 | P187: 0 | Q187: 0
E188: Batteries | F188: Growth | G188: Enter annual volume | K188: 12 | L188: 37 | M188: 75 | N188: 78 | O188: 51 | P188: 54 | Q188: 57
E189: Batteries | F189: Maintenance (Failure/Faults) | G189: Enter annual volume | K189: 7 | L189: 7 | M189: 7 | N189: 7 | O189: 7 | P189: 7 | Q189: 7
E190: Batteries | F190: End of life | G190: Enter annual volume | K190: 0 | L190: 20 | M190: 50 | N190: 60 | O190: 65 | P190: 15 | Q190: 15
E191: External Antenna in Buildings | F191: Growth | G191: Enter annual volume | K191: 10 | L191: 12 | M191: 15 | N191: 17 | O191: 19 | P191: 21 | Q191: 23
E192: External Antenna in Buildings | F192: Maintenance (Failure/Faults) | G192: Enter annual volume | K192: 2 | L192: 2 | M192: 5 | N192: 5 | O192: 7 | P192: 7 | Q192: 10
E193: External Antenna in Buildings | F193: End of life | G193: Enter annual volume | K193: 0 | L193: 0 | M193: 0 | N193: 0 | O193: 0 | P193: 20 | Q193: 30
E194: Antennas | F194: Growth | G194: Enter annual volume | K194: 250 | L194: 270 | M194: 290 | N194: 310 | O194: 330 | P194: 350 | Q194: 370
E195: Antennas | F195: Maintenance (Failure/Faults) | G195: Enter annual volume | K195: 10 | L195: 10 | M195: 15 | N195: 15 | O195: 20 | P195: 20 | Q195: 25
E196: Antennas | F196: End of life | G196: Enter annual volume | K196: 500 | L196: 1000 | M196: 1000 | N196: 1000 | O196: 1000 | P196: 1000 | Q196: 250
B198: b | C198: Auto-filled tables
C200: i | D200: Inputs and Options | M200: Forecast RP
E201: Equipment Type | F201: Action/Driver | G201: Volume basis | H201: Volume factor | J201: =J$82 -> 2023-24 | K201: =K$82 -> 2024-25 | L201: =L$82 -> 2025-26 | M201: 2026-27 | N201: 2027-28 | O201: 2028-29 | P201: 2029-30 | Q201: 2030-31
E202: =ICC_AllocFields -> Access Points | F202: Growth | G202: =G177 -> Enter annual volume | H202: =IFERROR(IF(G202="Enter annual volume","N/A",H177),"") -> N/A | K202: =IF($G202="Proportionate to meter population",$H202*'Input | Meters Vols & Costs'!P$427, IF($G202="Proportionate to population of equipment type",$H202*INDEX(J$248:J$262,MATCH($E202,$E$157:$E$171,0)),K177)) -> 12 | L202: =IF($G202="Proportionate to meter population",$H202*'Input | Meters Vols & Costs'!Q$427, IF($G202="Proportionate to population of equipment type",$H202*INDEX(K$248:K$262,MATCH($E202,$E$157:$E$171,0)),L177)) -> 37 | M202: =IF($G202="Proportionate to meter population",$H202*'Input | Meters Vols & Costs'!R$427, IF($G202="Proportionate to population of equipment type",$H202*INDEX(L$248:L$262,MATCH($E202,$E$157:$E$171,0)),M177)) -> 75 | N202: =IF($G202="Proportionate to meter population",$H202*'Input | Meters Vols & Costs'!S$427, IF($G202="Proportionate to population of equipment type",$H202*INDEX(M$248:M$262,MATCH($E202,$E$157:$E$171,0)),N177)) -> 78 | O202: =IF($G202="Proportionate to meter population",$H202*'Input | Meters Vols & Costs'!T$427, IF($G202="Proportionate to population of equipment type",$H202*INDEX(N$248:N$262,MATCH($E202,$E$157:$E$171,0)),O177)) -> 51 | P202: =IF($G202="Proportionate to meter population",$H202*'Input | Meters Vols & Costs'!U$427, IF($G202="Proportionate to population of equipment type",$H202*INDEX(O$248:O$262,MATCH($E202,$E$157:$E$171,0)),P177)) -> 54 | Q202: =IF($G202="Proportionate to meter population",$H202*'Input | Meters Vols & Costs'!V$427, IF($G202="Proportionate to population of equipment type",$H202*INDEX(P$248:P$262,MATCH($E202,$E$157:$E$171,0)),Q177)) -> 57
E203: Access Points | F203: Maintenance (Failure/Faults) | G203: Enter annual volume | H203: N/A | K203: =IF($G203="Proportionate to meter population",$H203*'Input | Meters Vols & Costs'!P$427, IF($G203="Proportionate to population of equipment type",$H203*INDEX(J$248:J$262,MATCH($E203,$E$157:$E$171,0)),K178)) -> 4 | L203: =IF($G203="Proportionate to meter population",$H203*'Input | Meters Vols & Costs'!Q$427, IF($G203="Proportionate to population of equipment type",$H203*INDEX(K$248:K$262,MATCH($E203,$E$157:$E$171,0)),L178)) -> 4 | M203: =IF($G203="Proportionate to meter population",$H203*'Input | Meters Vols & Costs'!R$427, IF($G203="Proportionate to population of equipment type",$H203*INDEX(L$248:L$262,MATCH($E203,$E$157:$E$171,0)),M178)) -> 4 | N203: =IF($G203="Proportionate to meter population",$H203*'Input | Meters Vols & Costs'!S$427, IF($G203="Proportionate to population of equipment type",$H203*INDEX(M$248:M$262,MATCH($E203,$E$157:$E$171,0)),N178)) -> 5 | O203: =IF($G203="Proportionate to meter population",$H203*'Input | Meters Vols & Costs'!T$427, IF($G203="Proportionate to population of equipment type",$H203*INDEX(N$248:N$262,MATCH($E203,$E$157:$E$171,0)),O178)) -> 5 | P203: =IF($G203="Proportionate to meter population",$H203*'Input | Meters Vols & Costs'!U$427, IF($G203="Proportionate to population of equipment type",$H203*INDEX(O$248:O$262,MATCH($E203,$E$157:$E$171,0)),P178)) -> 5 | Q203: =IF($G203="Proportionate to meter population",$H203*'Input | Meters Vols & Costs'!V$427, IF($G203="Proportionate to population of equipment type",$H203*INDEX(P$248:P$262,MATCH($E203,$E$157:$E$171,0)),Q178)) -> 6
E204: Access Points | F204: End of life | G204: Enter annual volume | H204: N/A | K204: =IF($G204="Proportionate to meter population",$H204*'Input | Meters Vols & Costs'!P$427, IF($G204="Proportionate to population of equipment type",$H204*INDEX(J$248:J$262,MATCH($E204,$E$157:$E$171,0)),K179)) -> 1 | L204: =IF($G204="Proportionate to meter population",$H204*'Input | Meters Vols & Costs'!Q$427, IF($G204="Proportionate to population of equipment type",$H204*INDEX(K$248:K$262,MATCH($E204,$E$157:$E$171,0)),L179)) -> 1 | M204: =IF($G204="Proportionate to meter population",$H204*'Input | Meters Vols & Costs'!R$427, IF($G204="Proportionate to population of equipment type",$H204*INDEX(L$248:L$262,MATCH($E204,$E$157:$E$171,0)),M179)) -> 1 | N204: =IF($G204="Proportionate to meter population",$H204*'Input | Meters Vols & Costs'!S$427, IF($G204="Proportionate to population of equipment type",$H204*INDEX(M$248:M$262,MATCH($E204,$E$157:$E$171,0)),N179)) -> 50 | O204: =IF($G204="Proportionate to meter population",$H204*'Input | Meters Vols & Costs'!T$427, IF($G204="Proportionate to population of equipment type",$H204*INDEX(N$248:N$262,MATCH($E204,$E$157:$E$171,0)),O179)) -> 70 | P204: =IF($G204="Proportionate to meter population",$H204*'Input | Meters Vols & Costs'!U$427, IF($G204="Proportionate to population of equipment type",$H204*INDEX(O$248:O$262,MATCH($E204,$E$157:$E$171,0)),P179)) -> 80 | Q204: =IF($G204="Proportionate to meter population",$H204*'Input | Meters Vols & Costs'!V$427, IF($G204="Proportionate to population of equipment type",$H204*INDEX(P$248:P$262,MATCH($E204,$E$157:$E$171,0)),Q179)) -> 80
E205: Relays | F205: Growth | G205: Enter annual volume | H205: N/A | K205: =IF($G205="Proportionate to meter population",$H205*'Input | Meters Vols & Costs'!P$427, IF($G205="Proportionate to population of equipment type",$H205*INDEX(J$248:J$262,MATCH($E205,$E$157:$E$171,0)),K180)) -> 0 | L205: =IF($G205="Proportionate to meter population",$H205*'Input | Meters Vols & Costs'!Q$427, IF($G205="Proportionate to population of equipment type",$H205*INDEX(K$248:K$262,MATCH($E205,$E$157:$E$171,0)),L180)) -> 0 | M205: =IF($G205="Proportionate to meter population",$H205*'Input | Meters Vols & Costs'!R$427, IF($G205="Proportionate to population of equipment type",$H205*INDEX(L$248:L$262,MATCH($E205,$E$157:$E$171,0)),M180)) -> 0 | N205: =IF($G205="Proportionate to meter population",$H205*'Input | Meters Vols & Costs'!S$427, IF($G205="Proportionate to population of equipment type",$H205*INDEX(M$248:M$262,MATCH($E205,$E$157:$E$171,0)),N180)) -> 0 | O205: =IF($G205="Proportionate to meter population",$H205*'Input | Meters Vols & Costs'!T$427, IF($G205="Proportionate to population of equipment type",$H205*INDEX(N$248:N$262,MATCH($E205,$E$157:$E$171,0)),O180)) -> 0 | P205: =IF($G205="Proportionate to meter population",$H205*'Input | Meters Vols & Costs'!U$427, IF($G205="Proportionate to population of equipment type",$H205*INDEX(O$248:O$262,MATCH($E205,$E$157:$E$171,0)),P180)) -> 0 | Q205: =IF($G205="Proportionate to meter population",$H205*'Input | Meters Vols & Costs'!V$427, IF($G205="Proportionate to population of equipment type",$H205*INDEX(P$248:P$262,MATCH($E205,$E$157:$E$171,0)),Q180)) -> 0
E206: Relays | F206: Maintenance (Failure/Faults) | G206: Enter annual volume | H206: N/A | K206: =IF($G206="Proportionate to meter population",$H206*'Input | Meters Vols & Costs'!P$427, IF($G206="Proportionate to population of equipment type",$H206*INDEX(J$248:J$262,MATCH($E206,$E$157:$E$171,0)),K181)) -> 6 | L206: =IF($G206="Proportionate to meter population",$H206*'Input | Meters Vols & Costs'!Q$427, IF($G206="Proportionate to population of equipment type",$H206*INDEX(K$248:K$262,MATCH($E206,$E$157:$E$171,0)),L181)) -> 6 | M206: =IF($G206="Proportionate to meter population",$H206*'Input | Meters Vols & Costs'!R$427, IF($G206="Proportionate to population of equipment type",$H206*INDEX(L$248:L$262,MATCH($E206,$E$157:$E$171,0)),M181)) -> 6 | N206: =IF($G206="Proportionate to meter population",$H206*'Input | Meters Vols & Costs'!S$427, IF($G206="Proportionate to population of equipment type",$H206*INDEX(M$248:M$262,MATCH($E206,$E$157:$E$171,0)),N181)) -> 8 | O206: =IF($G206="Proportionate to meter population",$H206*'Input | Meters Vols & Costs'!T$427, IF($G206="Proportionate to population of equipment type",$H206*INDEX(N$248:N$262,MATCH($E206,$E$157:$E$171,0)),O181)) -> 8 | P206: =IF($G206="Proportionate to meter population",$H206*'Input | Meters Vols & Costs'!U$427, IF($G206="Proportionate to population of equipment type",$H206*INDEX(O$248:O$262,MATCH($E206,$E$157:$E$171,0)),P181)) -> 8 | Q206: =IF($G206="Proportionate to meter population",$H206*'Input | Meters Vols & Costs'!V$427, IF($G206="Proportionate to population of equipment type",$H206*INDEX(P$248:P$262,MATCH($E206,$E$157:$E$171,0)),Q181)) -> 9
E207: Relays | F207: End of life | G207: Enter annual volume | H207: N/A | K207: =IF($G207="Proportionate to meter population",$H207*'Input | Meters Vols & Costs'!P$427, IF($G207="Proportionate to population of equipment type",$H207*INDEX(J$248:J$262,MATCH($E207,$E$157:$E$171,0)),K182)) -> 0 | L207: =IF($G207="Proportionate to meter population",$H207*'Input | Meters Vols & Costs'!Q$427, IF($G207="Proportionate to population of equipment type",$H207*INDEX(K$248:K$262,MATCH($E207,$E$157:$E$171,0)),L182)) -> 20 | M207: =IF($G207="Proportionate to meter population",$H207*'Input | Meters Vols & Costs'!R$427, IF($G207="Proportionate to population of equipment type",$H207*INDEX(L$248:L$262,MATCH($E207,$E$157:$E$171,0)),M182)) -> 50 | N207: =IF($G207="Proportionate to meter population",$H207*'Input | Meters Vols & Costs'!S$427, IF($G207="Proportionate to population of equipment type",$H207*INDEX(M$248:M$262,MATCH($E207,$E$157:$E$171,0)),N182)) -> 60 | O207: =IF($G207="Proportionate to meter population",$H207*'Input | Meters Vols & Costs'!T$427, IF($G207="Proportionate to population of equipment type",$H207*INDEX(N$248:N$262,MATCH($E207,$E$157:$E$171,0)),O182)) -> 65 | P207: =IF($G207="Proportionate to meter population",$H207*'Input | Meters Vols & Costs'!U$427, IF($G207="Proportionate to population of equipment type",$H207*INDEX(O$248:O$262,MATCH($E207,$E$157:$E$171,0)),P182)) -> 15 | Q207: =IF($G207="Proportionate to meter population",$H207*'Input | Meters Vols & Costs'!V$427, IF($G207="Proportionate to population of equipment type",$H207*INDEX(P$248:P$262,MATCH($E207,$E$157:$E$171,0)),Q182)) -> 15
E208: Micro AP | F208: Growth | G208: Enter annual volume | H208: N/A | K208: =IF($G208="Proportionate to meter population",$H208*'Input | Meters Vols & Costs'!P$427, IF($G208="Proportionate to population of equipment type",$H208*INDEX(J$248:J$262,MATCH($E208,$E$157:$E$171,0)),K183)) -> 40 | L208: =IF($G208="Proportionate to meter population",$H208*'Input | Meters Vols & Costs'!Q$427, IF($G208="Proportionate to population of equipment type",$H208*INDEX(K$248:K$262,MATCH($E208,$E$157:$E$171,0)),L183)) -> 55 | M208: =IF($G208="Proportionate to meter population",$H208*'Input | Meters Vols & Costs'!R$427, IF($G208="Proportionate to population of equipment type",$H208*INDEX(L$248:L$262,MATCH($E208,$E$157:$E$171,0)),M183)) -> 60 | N208: =IF($G208="Proportionate to meter population",$H208*'Input | Meters Vols & Costs'!S$427, IF($G208="Proportionate to population of equipment type",$H208*INDEX(M$248:M$262,MATCH($E208,$E$157:$E$171,0)),N183)) -> 60 | O208: =IF($G208="Proportionate to meter population",$H208*'Input | Meters Vols & Costs'!T$427, IF($G208="Proportionate to population of equipment type",$H208*INDEX(N$248:N$262,MATCH($E208,$E$157:$E$171,0)),O183)) -> 52 | P208: =IF($G208="Proportionate to meter population",$H208*'Input | Meters Vols & Costs'!U$427, IF($G208="Proportionate to population of equipment type",$H208*INDEX(O$248:O$262,MATCH($E208,$E$157:$E$171,0)),P183)) -> 52 | Q208: =IF($G208="Proportionate to meter population",$H208*'Input | Meters Vols & Costs'!V$427, IF($G208="Proportionate to population of equipment type",$H208*INDEX(P$248:P$262,MATCH($E208,$E$157:$E$171,0)),Q183)) -> 52
E209: Micro AP | F209: Maintenance (Failure/Faults) | G209: Enter annual volume | H209: N/A | K209: =IF($G209="Proportionate to meter population",$H209*'Input | Meters Vols & Costs'!P$427, IF($G209="Proportionate to population of equipment type",$H209*INDEX(J$248:J$262,MATCH($E209,$E$157:$E$171,0)),K184)) -> 1 | L209: =IF($G209="Proportionate to meter population",$H209*'Input | Meters Vols & Costs'!Q$427, IF($G209="Proportionate to population of equipment type",$H209*INDEX(K$248:K$262,MATCH($E209,$E$157:$E$171,0)),L184)) -> 1 | M209: =IF($G209="Proportionate to meter population",$H209*'Input | Meters Vols & Costs'!R$427, IF($G209="Proportionate to population of equipment type",$H209*INDEX(L$248:L$262,MATCH($E209,$E$157:$E$171,0)),M184)) -> 2 | N209: =IF($G209="Proportionate to meter population",$H209*'Input | Meters Vols & Costs'!S$427, IF($G209="Proportionate to population of equipment type",$H209*INDEX(M$248:M$262,MATCH($E209,$E$157:$E$171,0)),N184)) -> 2 | O209: =IF($G209="Proportionate to meter population",$H209*'Input | Meters Vols & Costs'!T$427, IF($G209="Proportionate to population of equipment type",$H209*INDEX(N$248:N$262,MATCH($E209,$E$157:$E$171,0)),O184)) -> 3 | P209: =IF($G209="Proportionate to meter population",$H209*'Input | Meters Vols & Costs'!U$427, IF($G209="Proportionate to population of equipment type",$H209*INDEX(O$248:O$262,MATCH($E209,$E$157:$E$171,0)),P184)) -> 3 | Q209: =IF($G209="Proportionate to meter population",$H209*'Input | Meters Vols & Costs'!V$427, IF($G209="Proportionate to population of equipment type",$H209*INDEX(P$248:P$262,MATCH($E209,$E$157:$E$171,0)),Q184)) -> 3
E210: Micro AP | F210: End of life | G210: Enter annual volume | H210: N/A | K210: =IF($G210="Proportionate to meter population",$H210*'Input | Meters Vols & Costs'!P$427, IF($G210="Proportionate to population of equipment type",$H210*INDEX(J$248:J$262,MATCH($E210,$E$157:$E$171,0)),K185)) -> 0 | L210: =IF($G210="Proportionate to meter population",$H210*'Input | Meters Vols & Costs'!Q$427, IF($G210="Proportionate to population of equipment type",$H210*INDEX(K$248:K$262,MATCH($E210,$E$157:$E$171,0)),L185)) -> 0 | M210: =IF($G210="Proportionate to meter population",$H210*'Input | Meters Vols & Costs'!R$427, IF($G210="Proportionate to population of equipment type",$H210*INDEX(L$248:L$262,MATCH($E210,$E$157:$E$171,0)),M185)) -> 0 | N210: =IF($G210="Proportionate to meter population",$H210*'Input | Meters Vols & Costs'!S$427, IF($G210="Proportionate to population of equipment type",$H210*INDEX(M$248:M$262,MATCH($E210,$E$157:$E$171,0)),N185)) -> 50 | O210: =IF($G210="Proportionate to meter population",$H210*'Input | Meters Vols & Costs'!T$427, IF($G210="Proportionate to population of equipment type",$H210*INDEX(N$248:N$262,MATCH($E210,$E$157:$E$171,0)),O185)) -> 55 | P210: =IF($G210="Proportionate to meter population",$H210*'Input | Meters Vols & Costs'!U$427, IF($G210="Proportionate to population of equipment type",$H210*INDEX(O$248:O$262,MATCH($E210,$E$157:$E$171,0)),P185)) -> 100 | Q210: =IF($G210="Proportionate to meter population",$H210*'Input | Meters Vols & Costs'!V$427, IF($G210="Proportionate to population of equipment type",$H210*INDEX(P$248:P$262,MATCH($E210,$E$157:$E$171,0)),Q185)) -> 110
E211: Poles | F211: Growth | G211: Enter annual volume | H211: N/A | K211: =IF($G211="Proportionate to meter population",$H211*'Input | Meters Vols & Costs'!P$427, IF($G211="Proportionate to population of equipment type",$H211*INDEX(J$248:J$262,MATCH($E211,$E$157:$E$171,0)),K186)) -> 12 | L211: =IF($G211="Proportionate to meter population",$H211*'Input | Meters Vols & Costs'!Q$427, IF($G211="Proportionate to population of equipment type",$H211*INDEX(K$248:K$262,MATCH($E211,$E$157:$E$171,0)),L186)) -> 27 | M211: =IF($G211="Proportionate to meter population",$H211*'Input | Meters Vols & Costs'!R$427, IF($G211="Proportionate to population of equipment type",$H211*INDEX(L$248:L$262,MATCH($E211,$E$157:$E$171,0)),M186)) -> 30 | N211: =IF($G211="Proportionate to meter population",$H211*'Input | Meters Vols & Costs'!S$427, IF($G211="Proportionate to population of equipment type",$H211*INDEX(M$248:M$262,MATCH($E211,$E$157:$E$171,0)),N186)) -> 33 | O211: =IF($G211="Proportionate to meter population",$H211*'Input | Meters Vols & Costs'!T$427, IF($G211="Proportionate to population of equipment type",$H211*INDEX(N$248:N$262,MATCH($E211,$E$157:$E$171,0)),O186)) -> 36 | P211: =IF($G211="Proportionate to meter population",$H211*'Input | Meters Vols & Costs'!U$427, IF($G211="Proportionate to population of equipment type",$H211*INDEX(O$248:O$262,MATCH($E211,$E$157:$E$171,0)),P186)) -> 39 | Q211: =IF($G211="Proportionate to meter population",$H211*'Input | Meters Vols & Costs'!V$427, IF($G211="Proportionate to population of equipment type",$H211*INDEX(P$248:P$262,MATCH($E211,$E$157:$E$171,0)),Q186)) -> 42
E212: Poles | F212: Replacements | G212: Enter annual volume | H212: N/A | K212: =IF($G212="Proportionate to meter population",$H212*'Input | Meters Vols & Costs'!P$427, IF($G212="Proportionate to population of equipment type",$H212*INDEX(J$248:J$262,MATCH($E212,$E$157:$E$171,0)),K187)) -> 0 | L212: =IF($G212="Proportionate to meter population",$H212*'Input | Meters Vols & Costs'!Q$427, IF($G212="Proportionate to population of equipment type",$H212*INDEX(K$248:K$262,MATCH($E212,$E$157:$E$171,0)),L187)) -> 0 | M212: =IF($G212="Proportionate to meter population",$H212*'Input | Meters Vols & Costs'!R$427, IF($G212="Proportionate to population of equipment type",$H212*INDEX(L$248:L$262,MATCH($E212,$E$157:$E$171,0)),M187)) -> 0 | N212: =IF($G212="Proportionate to meter population",$H212*'Input | Meters Vols & Costs'!S$427, IF($G212="Proportionate to population of equipment type",$H212*INDEX(M$248:M$262,MATCH($E212,$E$157:$E$171,0)),N187)) -> 0 | O212: =IF($G212="Proportionate to meter population",$H212*'Input | Meters Vols & Costs'!T$427, IF($G212="Proportionate to population of equipment type",$H212*INDEX(N$248:N$262,MATCH($E212,$E$157:$E$171,0)),O187)) -> 0 | P212: =IF($G212="Proportionate to meter population",$H212*'Input | Meters Vols & Costs'!U$427, IF($G212="Proportionate to population of equipment type",$H212*INDEX(O$248:O$262,MATCH($E212,$E$157:$E$171,0)),P187)) -> 0 | Q212: =IF($G212="Proportionate to meter population",$H212*'Input | Meters Vols & Costs'!V$427, IF($G212="Proportionate to population of equipment type",$H212*INDEX(P$248:P$262,MATCH($E212,$E$157:$E$171,0)),Q187)) -> 0
E213: Batteries | F213: Growth | G213: Enter annual volume | H213: N/A | K213: =IF($G213="Proportionate to meter population",$H213*'Input | Meters Vols & Costs'!P$427, IF($G213="Proportionate to population of equipment type",$H213*INDEX(J$248:J$262,MATCH($E213,$E$157:$E$171,0)),K188)) -> 12 | L213: =IF($G213="Proportionate to meter population",$H213*'Input | Meters Vols & Costs'!Q$427, IF($G213="Proportionate to population of equipment type",$H213*INDEX(K$248:K$262,MATCH($E213,$E$157:$E$171,0)),L188)) -> 37 | M213: =IF($G213="Proportionate to meter population",$H213*'Input | Meters Vols & Costs'!R$427, IF($G213="Proportionate to population of equipment type",$H213*INDEX(L$248:L$262,MATCH($E213,$E$157:$E$171,0)),M188)) -> 75 | N213: =IF($G213="Proportionate to meter population",$H213*'Input | Meters Vols & Costs'!S$427, IF($G213="Proportionate to population of equipment type",$H213*INDEX(M$248:M$262,MATCH($E213,$E$157:$E$171,0)),N188)) -> 78 | O213: =IF($G213="Proportionate to meter population",$H213*'Input | Meters Vols & Costs'!T$427, IF($G213="Proportionate to population of equipment type",$H213*INDEX(N$248:N$262,MATCH($E213,$E$157:$E$171,0)),O188)) -> 51 | P213: =IF($G213="Proportionate to meter population",$H213*'Input | Meters Vols & Costs'!U$427, IF($G213="Proportionate to population of equipment type",$H213*INDEX(O$248:O$262,MATCH($E213,$E$157:$E$171,0)),P188)) -> 54 | Q213: =IF($G213="Proportionate to meter population",$H213*'Input | Meters Vols & Costs'!V$427, IF($G213="Proportionate to population of equipment type",$H213*INDEX(P$248:P$262,MATCH($E213,$E$157:$E$171,0)),Q188)) -> 57
E214: Batteries | F214: Maintenance (Failure/Faults) | G214: Enter annual volume | H214: N/A | K214: =IF($G214="Proportionate to meter population",$H214*'Input | Meters Vols & Costs'!P$427, IF($G214="Proportionate to population of equipment type",$H214*INDEX(J$248:J$262,MATCH($E214,$E$157:$E$171,0)),K189)) -> 7 | L214: =IF($G214="Proportionate to meter population",$H214*'Input | Meters Vols & Costs'!Q$427, IF($G214="Proportionate to population of equipment type",$H214*INDEX(K$248:K$262,MATCH($E214,$E$157:$E$171,0)),L189)) -> 7 | M214: =IF($G214="Proportionate to meter population",$H214*'Input | Meters Vols & Costs'!R$427, IF($G214="Proportionate to population of equipment type",$H214*INDEX(L$248:L$262,MATCH($E214,$E$157:$E$171,0)),M189)) -> 7 | N214: =IF($G214="Proportionate to meter population",$H214*'Input | Meters Vols & Costs'!S$427, IF($G214="Proportionate to population of equipment type",$H214*INDEX(M$248:M$262,MATCH($E214,$E$157:$E$171,0)),N189)) -> 7 | O214: =IF($G214="Proportionate to meter population",$H214*'Input | Meters Vols & Costs'!T$427, IF($G214="Proportionate to population of equipment type",$H214*INDEX(N$248:N$262,MATCH($E214,$E$157:$E$171,0)),O189)) -> 7 | P214: =IF($G214="Proportionate to meter population",$H214*'Input | Meters Vols & Costs'!U$427, IF($G214="Proportionate to population of equipment type",$H214*INDEX(O$248:O$262,MATCH($E214,$E$157:$E$171,0)),P189)) -> 7 | Q214: =IF($G214="Proportionate to meter population",$H214*'Input | Meters Vols & Costs'!V$427, IF($G214="Proportionate to population of equipment type",$H214*INDEX(P$248:P$262,MATCH($E214,$E$157:$E$171,0)),Q189)) -> 7
E215: Batteries | F215: End of life | G215: Enter annual volume | H215: N/A | K215: =IF($G215="Proportionate to meter population",$H215*'Input | Meters Vols & Costs'!P$427, IF($G215="Proportionate to population of equipment type",$H215*INDEX(J$248:J$262,MATCH($E215,$E$157:$E$171,0)),K190)) -> 0 | L215: =IF($G215="Proportionate to meter population",$H215*'Input | Meters Vols & Costs'!Q$427, IF($G215="Proportionate to population of equipment type",$H215*INDEX(K$248:K$262,MATCH($E215,$E$157:$E$171,0)),L190)) -> 20 | M215: =IF($G215="Proportionate to meter population",$H215*'Input | Meters Vols & Costs'!R$427, IF($G215="Proportionate to population of equipment type",$H215*INDEX(L$248:L$262,MATCH($E215,$E$157:$E$171,0)),M190)) -> 50 | N215: =IF($G215="Proportionate to meter population",$H215*'Input | Meters Vols & Costs'!S$427, IF($G215="Proportionate to population of equipment type",$H215*INDEX(M$248:M$262,MATCH($E215,$E$157:$E$171,0)),N190)) -> 60 | O215: =IF($G215="Proportionate to meter population",$H215*'Input | Meters Vols & Costs'!T$427, IF($G215="Proportionate to population of equipment type",$H215*INDEX(N$248:N$262,MATCH($E215,$E$157:$E$171,0)),O190)) -> 65 | P215: =IF($G215="Proportionate to meter population",$H215*'Input | Meters Vols & Costs'!U$427, IF($G215="Proportionate to population of equipment type",$H215*INDEX(O$248:O$262,MATCH($E215,$E$157:$E$171,0)),P190)) -> 15 | Q215: =IF($G215="Proportionate to meter population",$H215*'Input | Meters Vols & Costs'!V$427, IF($G215="Proportionate to population of equipment type",$H215*INDEX(P$248:P$262,MATCH($E215,$E$157:$E$171,0)),Q190)) -> 15
E216: External Antenna in Buildings | F216: Growth | G216: Enter annual volume | H216: N/A | K216: =IF($G216="Proportionate to meter population",$H216*'Input | Meters Vols & Costs'!P$427, IF($G216="Proportionate to population of equipment type",$H216*INDEX(J$248:J$262,MATCH($E216,$E$157:$E$171,0)),K191)) -> 10 | L216: =IF($G216="Proportionate to meter population",$H216*'Input | Meters Vols & Costs'!Q$427, IF($G216="Proportionate to population of equipment type",$H216*INDEX(K$248:K$262,MATCH($E216,$E$157:$E$171,0)),L191)) -> 12 | M216: =IF($G216="Proportionate to meter population",$H216*'Input | Meters Vols & Costs'!R$427, IF($G216="Proportionate to population of equipment type",$H216*INDEX(L$248:L$262,MATCH($E216,$E$157:$E$171,0)),M191)) -> 15 | N216: =IF($G216="Proportionate to meter population",$H216*'Input | Meters Vols & Costs'!S$427, IF($G216="Proportionate to population of equipment type",$H216*INDEX(M$248:M$262,MATCH($E216,$E$157:$E$171,0)),N191)) -> 17 | O216: =IF($G216="Proportionate to meter population",$H216*'Input | Meters Vols & Costs'!T$427, IF($G216="Proportionate to population of equipment type",$H216*INDEX(N$248:N$262,MATCH($E216,$E$157:$E$171,0)),O191)) -> 19 | P216: =IF($G216="Proportionate to meter population",$H216*'Input | Meters Vols & Costs'!U$427, IF($G216="Proportionate to population of equipment type",$H216*INDEX(O$248:O$262,MATCH($E216,$E$157:$E$171,0)),P191)) -> 21 | Q216: =IF($G216="Proportionate to meter population",$H216*'Input | Meters Vols & Costs'!V$427, IF($G216="Proportionate to population of equipment type",$H216*INDEX(P$248:P$262,MATCH($E216,$E$157:$E$171,0)),Q191)) -> 23
E217: External Antenna in Buildings | F217: Maintenance (Failure/Faults) | G217: Enter annual volume | H217: N/A | K217: =IF($G217="Proportionate to meter population",$H217*'Input | Meters Vols & Costs'!P$427, IF($G217="Proportionate to population of equipment type",$H217*INDEX(J$248:J$262,MATCH($E217,$E$157:$E$171,0)),K192)) -> 2 | L217: =IF($G217="Proportionate to meter population",$H217*'Input | Meters Vols & Costs'!Q$427, IF($G217="Proportionate to population of equipment type",$H217*INDEX(K$248:K$262,MATCH($E217,$E$157:$E$171,0)),L192)) -> 2 | M217: =IF($G217="Proportionate to meter population",$H217*'Input | Meters Vols & Costs'!R$427, IF($G217="Proportionate to population of equipment type",$H217*INDEX(L$248:L$262,MATCH($E217,$E$157:$E$171,0)),M192)) -> 5 | N217: =IF($G217="Proportionate to meter population",$H217*'Input | Meters Vols & Costs'!S$427, IF($G217="Proportionate to population of equipment type",$H217*INDEX(M$248:M$262,MATCH($E217,$E$157:$E$171,0)),N192)) -> 5 | O217: =IF($G217="Proportionate to meter population",$H217*'Input | Meters Vols & Costs'!T$427, IF($G217="Proportionate to population of equipment type",$H217*INDEX(N$248:N$262,MATCH($E217,$E$157:$E$171,0)),O192)) -> 7 | P217: =IF($G217="Proportionate to meter population",$H217*'Input | Meters Vols & Costs'!U$427, IF($G217="Proportionate to population of equipment type",$H217*INDEX(O$248:O$262,MATCH($E217,$E$157:$E$171,0)),P192)) -> 7 | Q217: =IF($G217="Proportionate to meter population",$H217*'Input | Meters Vols & Costs'!V$427, IF($G217="Proportionate to population of equipment type",$H217*INDEX(P$248:P$262,MATCH($E217,$E$157:$E$171,0)),Q192)) -> 10
E218: External Antenna in Buildings | F218: End of life | G218: Enter annual volume | H218: N/A | K218: =IF($G218="Proportionate to meter population",$H218*'Input | Meters Vols & Costs'!P$427, IF($G218="Proportionate to population of equipment type",$H218*INDEX(J$248:J$262,MATCH($E218,$E$157:$E$171,0)),K193)) -> 0 | L218: =IF($G218="Proportionate to meter population",$H218*'Input | Meters Vols & Costs'!Q$427, IF($G218="Proportionate to population of equipment type",$H218*INDEX(K$248:K$262,MATCH($E218,$E$157:$E$171,0)),L193)) -> 0 | M218: =IF($G218="Proportionate to meter population",$H218*'Input | Meters Vols & Costs'!R$427, IF($G218="Proportionate to population of equipment type",$H218*INDEX(L$248:L$262,MATCH($E218,$E$157:$E$171,0)),M193)) -> 0 | N218: =IF($G218="Proportionate to meter population",$H218*'Input | Meters Vols & Costs'!S$427, IF($G218="Proportionate to population of equipment type",$H218*INDEX(M$248:M$262,MATCH($E218,$E$157:$E$171,0)),N193)) -> 0 | O218: =IF($G218="Proportionate to meter population",$H218*'Input | Meters Vols & Costs'!T$427, IF($G218="Proportionate to population of equipment type",$H218*INDEX(N$248:N$262,MATCH($E218,$E$157:$E$171,0)),O193)) -> 0 | P218: =IF($G218="Proportionate to meter population",$H218*'Input | Meters Vols & Costs'!U$427, IF($G218="Proportionate to population of equipment type",$H218*INDEX(O$248:O$262,MATCH($E218,$E$157:$E$171,0)),P193)) -> 20 | Q218: =IF($G218="Proportionate to meter population",$H218*'Input | Meters Vols & Costs'!V$427, IF($G218="Proportionate to population of equipment type",$H218*INDEX(P$248:P$262,MATCH($E218,$E$157:$E$171,0)),Q193)) -> 30
E219: Antennas | F219: Growth | G219: Enter annual volume | H219: N/A | K219: =IF($G219="Proportionate to meter population",$H219*'Input | Meters Vols & Costs'!P$427, IF($G219="Proportionate to population of equipment type",$H219*INDEX(J$248:J$262,MATCH($E219,$E$157:$E$171,0)),K194)) -> 250 | L219: =IF($G219="Proportionate to meter population",$H219*'Input | Meters Vols & Costs'!Q$427, IF($G219="Proportionate to population of equipment type",$H219*INDEX(K$248:K$262,MATCH($E219,$E$157:$E$171,0)),L194)) -> 270 | M219: =IF($G219="Proportionate to meter population",$H219*'Input | Meters Vols & Costs'!R$427, IF($G219="Proportionate to population of equipment type",$H219*INDEX(L$248:L$262,MATCH($E219,$E$157:$E$171,0)),M194)) -> 290 | N219: =IF($G219="Proportionate to meter population",$H219*'Input | Meters Vols & Costs'!S$427, IF($G219="Proportionate to population of equipment type",$H219*INDEX(M$248:M$262,MATCH($E219,$E$157:$E$171,0)),N194)) -> 310 | O219: =IF($G219="Proportionate to meter population",$H219*'Input | Meters Vols & Costs'!T$427, IF($G219="Proportionate to population of equipment type",$H219*INDEX(N$248:N$262,MATCH($E219,$E$157:$E$171,0)),O194)) -> 330 | P219: =IF($G219="Proportionate to meter population",$H219*'Input | Meters Vols & Costs'!U$427, IF($G219="Proportionate to population of equipment type",$H219*INDEX(O$248:O$262,MATCH($E219,$E$157:$E$171,0)),P194)) -> 350 | Q219: =IF($G219="Proportionate to meter population",$H219*'Input | Meters Vols & Costs'!V$427, IF($G219="Proportionate to population of equipment type",$H219*INDEX(P$248:P$262,MATCH($E219,$E$157:$E$171,0)),Q194)) -> 370
E220: Antennas | F220: Maintenance (Failure/Faults) | G220: Enter annual volume | H220: N/A | K220: =IF($G220="Proportionate to meter population",$H220*'Input | Meters Vols & Costs'!P$427, IF($G220="Proportionate to population of equipment type",$H220*INDEX(J$248:J$262,MATCH($E220,$E$157:$E$171,0)),K195)) -> 10 | L220: =IF($G220="Proportionate to meter population",$H220*'Input | Meters Vols & Costs'!Q$427, IF($G220="Proportionate to population of equipment type",$H220*INDEX(K$248:K$262,MATCH($E220,$E$157:$E$171,0)),L195)) -> 10 | M220: =IF($G220="Proportionate to meter population",$H220*'Input | Meters Vols & Costs'!R$427, IF($G220="Proportionate to population of equipment type",$H220*INDEX(L$248:L$262,MATCH($E220,$E$157:$E$171,0)),M195)) -> 15 | N220: =IF($G220="Proportionate to meter population",$H220*'Input | Meters Vols & Costs'!S$427, IF($G220="Proportionate to population of equipment type",$H220*INDEX(M$248:M$262,MATCH($E220,$E$157:$E$171,0)),N195)) -> 15 | O220: =IF($G220="Proportionate to meter population",$H220*'Input | Meters Vols & Costs'!T$427, IF($G220="Proportionate to population of equipment type",$H220*INDEX(N$248:N$262,MATCH($E220,$E$157:$E$171,0)),O195)) -> 20 | P220: =IF($G220="Proportionate to meter population",$H220*'Input | Meters Vols & Costs'!U$427, IF($G220="Proportionate to population of equipment type",$H220*INDEX(O$248:O$262,MATCH($E220,$E$157:$E$171,0)),P195)) -> 20 | Q220: =IF($G220="Proportionate to meter population",$H220*'Input | Meters Vols & Costs'!V$427, IF($G220="Proportionate to population of equipment type",$H220*INDEX(P$248:P$262,MATCH($E220,$E$157:$E$171,0)),Q195)) -> 25
E221: Antennas | F221: End of life | G221: Enter annual volume | H221: N/A | K221: =IF($G221="Proportionate to meter population",$H221*'Input | Meters Vols & Costs'!P$427, IF($G221="Proportionate to population of equipment type",$H221*INDEX(J$248:J$262,MATCH($E221,$E$157:$E$171,0)),K196)) -> 500 | L221: =IF($G221="Proportionate to meter population",$H221*'Input | Meters Vols & Costs'!Q$427, IF($G221="Proportionate to population of equipment type",$H221*INDEX(K$248:K$262,MATCH($E221,$E$157:$E$171,0)),L196)) -> 1000 | M221: =IF($G221="Proportionate to meter population",$H221*'Input | Meters Vols & Costs'!R$427, IF($G221="Proportionate to population of equipment type",$H221*INDEX(L$248:L$262,MATCH($E221,$E$157:$E$171,0)),M196)) -> 1000 | N221: =IF($G221="Proportionate to meter population",$H221*'Input | Meters Vols & Costs'!S$427, IF($G221="Proportionate to population of equipment type",$H221*INDEX(M$248:M$262,MATCH($E221,$E$157:$E$171,0)),N196)) -> 1000 | O221: =IF($G221="Proportionate to meter population",$H221*'Input | Meters Vols & Costs'!T$427, IF($G221="Proportionate to population of equipment type",$H221*INDEX(N$248:N$262,MATCH($E221,$E$157:$E$171,0)),O196)) -> 1000 | P221: =IF($G221="Proportionate to meter population",$H221*'Input | Meters Vols & Costs'!U$427, IF($G221="Proportionate to population of equipment type",$H221*INDEX(O$248:O$262,MATCH($E221,$E$157:$E$171,0)),P196)) -> 1000 | Q221: =IF($G221="Proportionate to meter population",$H221*'Input | Meters Vols & Costs'!V$427, IF($G221="Proportionate to population of equipment type",$H221*INDEX(P$248:P$262,MATCH($E221,$E$157:$E$171,0)),Q196)) -> 250
C223: ii | D223: Impact on Population | M223: Forecast RP
E224: Equipment Type | F224: Action/Driver | G224: Volume basis | H224: Volume factor | J224: =J$82 -> 2023-24 | K224: =K$82 -> 2024-25 | L224: =L$82 -> 2025-26 | M224: 2026-27 | N224: 2027-28 | O224: 2028-29 | P224: 2029-30 | Q224: 2030-31
E225: =ICC_AllocFields -> Access Points | F225: Growth | G225: =G202 -> Enter annual volume | H225: N/A | K225: =IFERROR(ROUNDUP(K202*INDEX(ICC_Calc_PopImpact,MATCH($F202,ICC_Action,0)),0),0) -> 12 | L225: 37 | M225: 75 | N225: 78 | O225: 51 | P225: 54 | Q225: 57
E226: Access Points | F226: Maintenance (Failure/Faults) | G226: Enter annual volume | H226: N/A | K226: =IFERROR(ROUNDUP(K203*INDEX(ICC_Calc_PopImpact,MATCH($F203,ICC_Action,0)),0),0) -> 0 | L226: 0 | M226: 0 | N226: 0 | O226: 0 | P226: 0 | Q226: 0
E227: Access Points | F227: End of life | G227: Enter annual volume | H227: N/A | K227: 0 | L227: 0 | M227: 0 | N227: 0 | O227: 0 | P227: 0 | Q227: 0
E228: Relays | F228: Growth | G228: Enter annual volume | H228: N/A | K228: 0 | L228: 0 | M228: 0 | N228: 0 | O228: 0 | P228: 0 | Q228: 0
E229: Relays | F229: Maintenance (Failure/Faults) | G229: Enter annual volume | H229: N/A | K229: 0 | L229: 0 | M229: 0 | N229: 0 | O229: 0 | P229: 0 | Q229: 0
E230: Relays | F230: End of life | G230: Enter annual volume | H230: N/A | K230: 0 | L230: 0 | M230: 0 | N230: 0 | O230: 0 | P230: 0 | Q230: 0
E231: Micro AP | F231: Growth | G231: Enter annual volume | H231: N/A | K231: =IFERROR(ROUNDUP(K208*INDEX(ICC_Calc_PopImpact,MATCH($F208,ICC_Action,0)),0),0) -> 40 | L231: 55 | M231: 60 | N231: 60 | O231: 52 | P231: 52 | Q231: 52
... 30 more rows

Sheet Calculations >

Sheet Calc | Capex Meters
B1: ='Input|General'!B1&" v"&'Input|General'!$D$2 -> AER Metering Opex & Capex Forecasting Model v1.08
B2: =MID(CELL("filename",A1),FIND("]",CELL("filename",A1))+1,255) -> Calc | Capex Meters | O2: Jemena modification
A4: =IF(SUM(X11:X164)<>0,1,0) -> 0 | C4: Sheet Check
B5: Summary: Yearly Meter Costs
C8: a | D8: Meter Costs by Labour/Non-Labour
D10: i | E10: Meters - Labour Component
E11: Unescalated
F12: =I_MeterTypes[[#Headers],[Meter Type]] -> Meter Type | G12: =I_MeterTypes[[#Headers],[RIN Subcategory 1]] -> RIN Subcategory 1 | H12: =I_MeterTypes[[#Headers],[RIN Subcategory 2]] -> RIN Subcategory 2 | I12: =I_MeterTypes[[#Headers],[AER Type]] -> AER Type | J12: =I_MeterTypes[[#Headers],[RIN Subcategory 3]] -> RIN Subcategory 3 | K12: =I_MeterTypes[[#Headers],[Meter Code]] -> Meter Code | L12: Units | M12: Basis | O12: ='Input | Meters Vols & Costs'!O$171 -> 2024-25 | P12: ='Input | Meters Vols & Costs'!P$171 -> 2025-26 | Q12: ='Input | Meters Vols & Costs'!Q$171 -> 2026-27 | R12: ='Input | Meters Vols & Costs'!R$171 -> 2027-28 | S12: ='Input | Meters Vols & Costs'!S$171 -> 2028-29 | T12: ='Input | Meters Vols & Costs'!T$171 -> 2029-30 | U12: ='Input | Meters Vols & Costs'!U$171 -> 2030-31 | V12: Total
F13: =I_MeterTypes[Meter Type] -> AMI - Single Phase, single element | G13: =I_MeterTypes[RIN Subcategory 1] -> Single Phase Meter Population | H13: =I_MeterTypes[RIN Subcategory 2] -> Direct Connect Meter Population | I13: =I_MeterTypes[AER Type] -> Meter Type 4 | J13: =I_MeterTypes[RIN Subcategory 3] -> Single phase single element - AMI | K13: =I_MeterTypes[Meter Code] -> AMI 1ph 1e | L13: $dollars | M13: =Basis_Capex -> 2024-06-01 | O13: =INDEX(ICM_LabourCost,,1)*ICM_Vol1+ INDEX(ICM_LabourCost,,2)*ICM_Vol2+ INDEX(ICM_LabourCost,,3)*ICM_Vol3+ INDEX(ICM_LabourCost,,4)*ICM_Vol4+ INDEX(ICM_LabourCost,,5)*ICM_Vol5+ INDEX(ICM_LabourCost,,6)*ICM_Vol6+ INDEX(ICM_LabourCost,,7)*ICM_Vol7+ INDEX(ICM_LabourCost,,8)*ICM_Vol8+ INDEX(ICM_LabourCost,,9)*ICM_Vol9+ INDEX(ICM_LabourCost,,10)*ICM_Vol10 -> 1104652.699 | P13: 2012886.425 | Q13: 1034906.264 | R13: 2790188.938 | S13: 4236186.698 | T13: 5053643.328 | U13: 5967527.336 | V13: =SUM(N13:U13) -> 22199991.69
F14: AMI - Single Phase, two elements with 31.5A load control | G14: Single Phase Meter Population | H14: Direct Connect Meter Population | I14: Meter Type 4 | J14: Single phase two element with contactor - AMI | K14: AMI 1ph 2e | L14: $dollars | M14: 2024-06-01 | O14: 117758.2802 | P14: 119524.484 | Q14: 147833.7434 | R14: 275888.2126 | S14: 383097.4011 | T14: 447524.1911 | U14: 522562.9013 | V14: 2014189.214
F15: AMI - 3 Phase with no load control | G15: Multi Phase Meter Population | H15: Direct Connect Meter Population | I15: Meter Type 4 | J15: Three phase - AMI | K15: AMI 3ph | L15: $dollars | M15: 2024-06-01 | O15: 411086.3869 | P15: 871055.0035 | Q15: 265382.6845 | R15: 625442.6978 | S15: 937985.0953 | T15: 1149430.256 | U15: 1419247.504 | V15: 5679629.628
F16: AMI - Single Phase, single element, with 31.5A load control | G16: Single Phase Meter Population | H16: Direct Connect Meter Population | I16: Meter Type 4 | J16: Single phase single element with contactor - AMI | K16: AMI 1ph DC | L16: $dollars | M16: 2024-06-01 | O16: 68668.63849 | P16: 69698.56871 | Q16: 82324.48956 | R16: 130536.8749 | S16: 177943.7028 | T16: 221555.4284 | U16: 286200.5395 | V16: 1036928.242
F17: AMI - 3 Phase with 31.5A and 2A load control | G17: Multi Phase Meter Population | H17: Direct Connect Meter Population | I17: Meter Type 4 | J17: Three phase direct connected meter with contactor - AMI | K17: AMI 3ph DC | L17: $dollars | M17: 2024-06-01 | O17: 33976.76577 | P17: 34486.3681 | Q17: 43753.20318 | R17: 79634.62431 | S17: 115351.8774 | T17: 148985.9551 | U17: 199495.8288 | V17: 655684.6226
F18: AMI - 3 Phase CT connect | G18: Multi Phase Meter Population | H18: Current Transformer Connected Meter Population | I18: Meter Type 4 | J18: Three phase Current transformer connected meter - AMI | K18: AMI 3ph CT | L18: $dollars | M18: 2024-06-01 | O18: 35326.39372 | P18: 38664.58784 | Q18: 47577.69605 | R18: 80788.05098 | S18: 114905.2351 | T18: 148948.5177 | U18: 201145.7297 | V18: 667356.2111
F19: AMI - 3 Phase CT & VT connect | G19: Multi Phase Meter Population | H19: Current Transformer Connected Meter Population | I19: Meter Type 4 | J19: Three phase Current transformer connected meter - AMI | K19: AMI 3ph CT VT | L19: $dollars | M19: 2024-06-01 | O19: 0 | P19: 0 | Q19: 0 | R19: 0 | S19: 0 | T19: 0 | U19: 0 | V19: 0
F20: Non AMI - Type 5 Locally read Interval - Single Phase | G20: Single Phase Meter Population | H20: Direct Connect Meter Population | I20: Meter Type 5 | J20: Single phase non off peak - MRIM | K20: INT 1ph | L20: $dollars | M20: 2024-06-01 | O20: 1404.274642 | P20: 4212.823927 | Q20: 0 | R20: 0 | S20: 0 | T20: 0 | U20: 0 | V20: 5617.098569
F21: Non AMI - Type 6 Locally read Accumulation - Single Phase | G21: Single Phase Meter Population | H21: Direct Connect Meter Population | I21: Meter Type 6 | J21: Single phase non off peak - Accumulation | K21: ACC 1ph | L21: $dollars | M21: 2024-06-01 | O21: 209158.9065 | P21: 627476.7194 | Q21: 0 | R21: 0 | S21: 0 | T21: 0 | U21: 0 | V21: 836635.6258
F22: Non AMI - Type 5 Locally read Interval - 3 Phase | G22: Multi Phase Meter Population | H22: Direct Connect Meter Population | I22: Meter Type 5 | J22: Multi phase direct connect - MRIM | K22: INT 3ph | L22: $dollars | M22: 2024-06-01 | O22: 468.0915475 | P22: 1404.274642 | Q22: 0 | R22: 0 | S22: 0 | T22: 0 | U22: 0 | V22: 1872.36619
F23: Non AMI - Type 6 Locally read Accumulation - 3 Phase | G23: Multi Phase Meter Population | H23: Direct Connect Meter Population | I23: Meter Type 6 | J23: Multi phase direct connect - Accumulation | K23: ACC 3ph | L23: $dollars | M23: 2024-06-01 | O23: 103448.232 | P23: 310344.696 | Q23: 0 | R23: 0 | S23: 0 | T23: 0 | U23: 0 | V23: 413792.928
L24: $dollars | M24: 2024-06-01 | O24: 0 | P24: 0 | Q24: 0 | R24: 0 | S24: 0 | T24: 0 | U24: 0 | V24: 0
L25: $dollars | M25: 2024-06-01 | O25: 0 | P25: 0 | Q25: 0 | R25: 0 | S25: 0 | T25: 0 | U25: 0 | V25: 0
L26: $dollars | M26: 2024-06-01 | O26: 0 | P26: 0 | Q26: 0 | R26: 0 | S26: 0 | T26: 0 | U26: 0 | V26: 0
L27: $dollars | M27: 2024-06-01 | O27: 0 | P27: 0 | Q27: 0 | R27: 0 | S27: 0 | T27: 0 | U27: 0 | V27: 0
F28: Total | L28: $dollars | M28: 2024-06-01 | O28: =SUM(O13:O26) -> 2085948.668 | P28: =SUM(P13:P26) -> 4089753.951 | Q28: =SUM(Q13:Q27) -> 1621778.081 | R28: =SUM(R13:R27) -> 3982479.398 | S28: =SUM(S13:S27) -> 5965470.009 | T28: =SUM(T13:T27) -> 7170087.676 | U28: =SUM(U13:U27) -> 8596179.839 | V28: =SUM(Q28:U28) -> 27335995
E31: Incl Escalation of Labour Costs
F32: =I_MeterTypes[[#Headers],[Meter Type]] -> Meter Type | G32: =I_MeterTypes[[#Headers],[RIN Subcategory 1]] -> RIN Subcategory 1 | H32: =I_MeterTypes[[#Headers],[RIN Subcategory 2]] -> RIN Subcategory 2 | I32: =I_MeterTypes[[#Headers],[AER Type]] -> AER Type | J32: =I_MeterTypes[[#Headers],[RIN Subcategory 3]] -> RIN Subcategory 3 | K32: =I_MeterTypes[[#Headers],[Meter Code]] -> Meter Code | L32: Units | M32: Basis | O32: =O$12 -> 2024-25 | P32: =P$12 -> 2025-26 | Q32: 2026-27 | R32: 2027-28 | S32: 2028-29 | T32: 2029-30 | U32: 2030-31 | V32: Total
F33: =I_MeterTypes[Meter Type] -> AMI - Single Phase, single element | G33: =I_MeterTypes[RIN Subcategory 1] -> Single Phase Meter Population | H33: =I_MeterTypes[RIN Subcategory 2] -> Direct Connect Meter Population | I33: =I_MeterTypes[AER Type] -> Meter Type 4 | J33: =I_MeterTypes[RIN Subcategory 3] -> Single phase single element - AMI | K33: =I_MeterTypes[Meter Code] -> AMI 1ph 1e | L33: $dollars | M33: =Basis_Capex -> 2024-06-01 | O33: =IF('Input | Meters Vols & Costs'!$P$77="Yes",'Input| Prices'!K$55,1)*O13 -> 1119309.403 | P33: =IF('Input | Meters Vols & Costs'!$P$77="Yes",'Input| Prices'!L$55,1)*P13 -> 2066313.446 | Q33: =IF('Input | Meters Vols & Costs'!$P$77="Yes",'Input| Prices'!M$55,1)*Q13 -> 1072269.713 | R33: =IF('Input | Meters Vols & Costs'!$P$77="Yes",'Input| Prices'!N$55,1)*R13 -> 2915087.112 | S33: =IF('Input | Meters Vols & Costs'!$P$77="Yes",'Input| Prices'!O$55,1)*S13 -> 4471199.227 | T33: =IF('Input | Meters Vols & Costs'!$P$77="Yes",'Input| Prices'!P$55,1)*T13 -> 5399295.446 | U33: =IF('Input | Meters Vols & Costs'!$P$77="Yes",'Input| Prices'!Q$55,1)*U13 -> 6448893.909 | V33: =SUM(N33:U33) -> 23492368.26
F34: AMI - Single Phase, two elements with 31.5A load control | G34: Single Phase Meter Population | H34: Direct Connect Meter Population | I34: Meter Type 4 | J34: Single phase two element with contactor - AMI | K34: AMI 1ph 2e | L34: $dollars | M34: 2024-06-01 | O34: =IF('Input | Meters Vols & Costs'!$P$77="Yes",'Input| Prices'!K$55,1)*O14 -> 119320.7155 | P34: =IF('Input | Meters Vols & Costs'!$P$77="Yes",'Input| Prices'!L$55,1)*P14 -> 122696.9617 | Q34: =IF('Input | Meters Vols & Costs'!$P$77="Yes",'Input| Prices'!M$55,1)*Q14 -> 153171.0176 | R34: =IF('Input | Meters Vols & Costs'!$P$77="Yes",'Input| Prices'!N$55,1)*R14 -> 288237.8903 | S34: =IF('Input | Meters Vols & Costs'!$P$77="Yes",'Input| Prices'!O$55,1)*S14 -> 404350.6403 | T34: =IF('Input | Meters Vols & Costs'!$P$77="Yes",'Input| Prices'!P$55,1)*T14 -> 478133.3328 | U34: =IF('Input | Meters Vols & Costs'!$P$77="Yes",'Input| Prices'!Q$55,1)*U14 -> 564715.0857 | V34: 2130625.644
F35: AMI - 3 Phase with no load control | G35: Multi Phase Meter Population | H35: Direct Connect Meter Population | I35: Meter Type 4 | J35: Three phase - AMI | K35: AMI 3ph | L35: $dollars | M35: 2024-06-01 | O35: =IF('Input | Meters Vols & Costs'!$P$77="Yes",'Input| Prices'!K$55,1)*O15 -> 416540.7454 | P35: =IF('Input | Meters Vols & Costs'!$P$77="Yes",'Input| Prices'!L$55,1)*P15 -> 894174.9738 | Q35: =IF('Input | Meters Vols & Costs'!$P$77="Yes",'Input| Prices'!M$55,1)*Q15 -> 274963.854 | R35: =IF('Input | Meters Vols & Costs'!$P$77="Yes",'Input| Prices'!N$55,1)*R15 -> 653439.6015 | S35: =IF('Input | Meters Vols & Costs'!$P$77="Yes",'Input| Prices'!O$55,1)*S15 -> 990022.0486 | T35: =IF('Input | Meters Vols & Costs'!$P$77="Yes",'Input| Prices'!P$55,1)*T15 -> 1228047.4 | U35: =IF('Input | Meters Vols & Costs'!$P$77="Yes",'Input| Prices'!Q$55,1)*U15 -> 1533730.148 | V35: 5990918.771
F36: AMI - Single Phase, single element, with 31.5A load control | G36: Single Phase Meter Population | H36: Direct Connect Meter Population | I36: Meter Type 4 | J36: Single phase single element with contactor - AMI | K36: AMI 1ph DC | L36: $dollars | M36: 2024-06-01 | O36: =IF('Input | Meters Vols & Costs'!$P$77="Yes",'Input| Prices'!K$55,1)*O16 -> 69579.74473 | P36: =IF('Input | Meters Vols & Costs'!$P$77="Yes",'Input| Prices'!L$55,1)*P16 -> 71548.54239 | Q36: =IF('Input | Meters Vols & Costs'!$P$77="Yes",'Input| Prices'!M$55,1)*Q16 -> 85296.66874 | R36: =IF('Input | Meters Vols & Costs'!$P$77="Yes",'Input| Prices'!N$55,1)*R16 -> 136380.1413 | S36: =IF('Input | Meters Vols & Costs'!$P$77="Yes",'Input| Prices'!O$55,1)*S16 -> 187815.5527 | T36: =IF('Input | Meters Vols & Costs'!$P$77="Yes",'Input| Prices'!P$55,1)*T16 -> 236709.0707 | U36: =IF('Input | Meters Vols & Costs'!$P$77="Yes",'Input| Prices'!Q$55,1)*U16 -> 309286.7132 | V36: 1096616.434
F37: AMI - 3 Phase with 31.5A and 2A load control | G37: Multi Phase Meter Population | H37: Direct Connect Meter Population | I37: Meter Type 4 | J37: Three phase direct connected meter with contactor - AMI | K37: AMI 3ph DC | L37: $dollars | M37: 2024-06-01 | O37: =IF('Input | Meters Vols & Costs'!$P$77="Yes",'Input| Prices'!K$55,1)*O17 -> 34427.57481 | P37: =IF('Input | Meters Vols & Costs'!$P$77="Yes",'Input| Prices'!L$55,1)*P17 -> 35401.72224 | Q37: =IF('Input | Meters Vols & Costs'!$P$77="Yes",'Input| Prices'!M$55,1)*Q17 -> 45332.83472 | R37: =IF('Input | Meters Vols & Costs'!$P$77="Yes",'Input| Prices'!N$55,1)*R17 -> 83199.33603 | S37: =IF('Input | Meters Vols & Costs'!$P$77="Yes",'Input| Prices'!O$55,1)*S17 -> 121751.297 | T37: =IF('Input | Meters Vols & Costs'!$P$77="Yes",'Input| Prices'!P$55,1)*T17 -> 159176.0907 | U37: =IF('Input | Meters Vols & Costs'!$P$77="Yes",'Input| Prices'!Q$55,1)*U17 -> 215588.0254 | V37: 694876.881
F38: AMI - 3 Phase CT connect | G38: Multi Phase Meter Population | H38: Current Transformer Connected Meter Population | I38: Meter Type 4 | J38: Three phase Current transformer connected meter - AMI | K38: AMI 3ph CT | L38: $dollars | M38: 2024-06-01 | O38: =IF('Input | Meters Vols & Costs'!$P$77="Yes",'Input| Prices'!K$55,1)*O18 -> 35795.10984 | P38: =IF('Input | Meters Vols & Costs'!$P$77="Yes",'Input| Prices'!L$55,1)*P18 -> 39690.84234 | Q38: =IF('Input | Meters Vols & Costs'!$P$77="Yes",'Input| Prices'!M$55,1)*Q18 -> 49295.40409 | R38: =IF('Input | Meters Vols & Costs'!$P$77="Yes",'Input| Prices'!N$55,1)*R18 -> 84404.39393 | S38: =IF('Input | Meters Vols & Costs'!$P$77="Yes",'Input| Prices'!O$55,1)*S18 -> 121279.8763 | T38: =IF('Input | Meters Vols & Costs'!$P$77="Yes",'Input| Prices'!P$55,1)*T18 -> 159136.0928 | U38: =IF('Input | Meters Vols & Costs'!$P$77="Yes",'Input| Prices'!Q$55,1)*U18 -> 217371.0145 | V38: 706972.7337
F39: AMI - 3 Phase CT & VT connect | G39: Multi Phase Meter Population | H39: Current Transformer Connected Meter Population | I39: Meter Type 4 | J39: Three phase Current transformer connected meter - AMI | K39: AMI 3ph CT VT | L39: $dollars | M39: 2024-06-01 | O39: =IF('Input | Meters Vols & Costs'!$P$77="Yes",'Input| Prices'!K$55,1)*O19 -> 0 | P39: =IF('Input | Meters Vols & Costs'!$P$77="Yes",'Input| Prices'!L$55,1)*P19 -> 0 | Q39: =IF('Input | Meters Vols & Costs'!$P$77="Yes",'Input| Prices'!M$55,1)*Q19 -> 0 | R39: =IF('Input | Meters Vols & Costs'!$P$77="Yes",'Input| Prices'!N$55,1)*R19 -> 0 | S39: =IF('Input | Meters Vols & Costs'!$P$77="Yes",'Input| Prices'!O$55,1)*S19 -> 0 | T39: =IF('Input | Meters Vols & Costs'!$P$77="Yes",'Input| Prices'!P$55,1)*T19 -> 0 | U39: =IF('Input | Meters Vols & Costs'!$P$77="Yes",'Input| Prices'!Q$55,1)*U19 -> 0 | V39: 0
F40: Non AMI - Type 5 Locally read Interval - Single Phase | G40: Single Phase Meter Population | H40: Direct Connect Meter Population | I40: Meter Type 5 | J40: Single phase non off peak - MRIM | K40: INT 1ph | L40: $dollars | M40: 2024-06-01 | O40: =IF('Input | Meters Vols & Costs'!$P$77="Yes",'Input| Prices'!K$55,1)*O20 -> 1422.906778 | P40: =IF('Input | Meters Vols & Costs'!$P$77="Yes",'Input| Prices'!L$55,1)*P20 -> 4324.642771 | Q40: =IF('Input | Meters Vols & Costs'!$P$77="Yes",'Input| Prices'!M$55,1)*Q20 -> 0 | R40: =IF('Input | Meters Vols & Costs'!$P$77="Yes",'Input| Prices'!N$55,1)*R20 -> 0 | S40: =IF('Input | Meters Vols & Costs'!$P$77="Yes",'Input| Prices'!O$55,1)*S20 -> 0 | T40: =IF('Input | Meters Vols & Costs'!$P$77="Yes",'Input| Prices'!P$55,1)*T20 -> 0 | U40: =IF('Input | Meters Vols & Costs'!$P$77="Yes",'Input| Prices'!Q$55,1)*U20 -> 0 | V40: 5747.549549
F41: Non AMI - Type 6 Locally read Accumulation - Single Phase | G41: Single Phase Meter Population | H41: Direct Connect Meter Population | I41: Meter Type 6 | J41: Single phase non off peak - Accumulation | K41: ACC 1ph | L41: $dollars | M41: 2024-06-01 | O41: =IF('Input | Meters Vols & Costs'!$P$77="Yes",'Input| Prices'!K$55,1)*O21 -> 211934.0595 | P41: =IF('Input | Meters Vols & Costs'!$P$77="Yes",'Input| Prices'!L$55,1)*P21 -> 644131.515 | Q41: =IF('Input | Meters Vols & Costs'!$P$77="Yes",'Input| Prices'!M$55,1)*Q21 -> 0 | R41: =IF('Input | Meters Vols & Costs'!$P$77="Yes",'Input| Prices'!N$55,1)*R21 -> 0 | S41: =IF('Input | Meters Vols & Costs'!$P$77="Yes",'Input| Prices'!O$55,1)*S21 -> 0 | T41: =IF('Input | Meters Vols & Costs'!$P$77="Yes",'Input| Prices'!P$55,1)*T21 -> 0 | U41: =IF('Input | Meters Vols & Costs'!$P$77="Yes",'Input| Prices'!Q$55,1)*U21 -> 0 | V41: 856065.5745
F42: Non AMI - Type 5 Locally read Interval - 3 Phase | G42: Multi Phase Meter Population | H42: Direct Connect Meter Population | I42: Meter Type 5 | J42: Multi phase direct connect - MRIM | K42: INT 3ph | L42: $dollars | M42: 2024-06-01 | O42: =IF('Input | Meters Vols & Costs'!$P$77="Yes",'Input| Prices'!K$55,1)*O22 -> 474.3022593 | P42: =IF('Input | Meters Vols & Costs'!$P$77="Yes",'Input| Prices'!L$55,1)*P22 -> 1441.54759 | Q42: =IF('Input | Meters Vols & Costs'!$P$77="Yes",'Input| Prices'!M$55,1)*Q22 -> 0 | R42: =IF('Input | Meters Vols & Costs'!$P$77="Yes",'Input| Prices'!N$55,1)*R22 -> 0 | S42: =IF('Input | Meters Vols & Costs'!$P$77="Yes",'Input| Prices'!O$55,1)*S22 -> 0 | T42: =IF('Input | Meters Vols & Costs'!$P$77="Yes",'Input| Prices'!P$55,1)*T22 -> 0 | U42: =IF('Input | Meters Vols & Costs'!$P$77="Yes",'Input| Prices'!Q$55,1)*U22 -> 0 | V42: 1915.84985
F43: Non AMI - Type 6 Locally read Accumulation - 3 Phase | G43: Multi Phase Meter Population | H43: Direct Connect Meter Population | I43: Meter Type 6 | J43: Multi phase direct connect - Accumulation | K43: ACC 3ph | L43: $dollars | M43: 2024-06-01 | O43: =IF('Input | Meters Vols & Costs'!$P$77="Yes",'Input| Prices'!K$55,1)*O23 -> 104820.7993 | P43: =IF('Input | Meters Vols & Costs'!$P$77="Yes",'Input| Prices'!L$55,1)*P23 -> 318582.0175 | Q43: =IF('Input | Meters Vols & Costs'!$P$77="Yes",'Input| Prices'!M$55,1)*Q23 -> 0 | R43: =IF('Input | Meters Vols & Costs'!$P$77="Yes",'Input| Prices'!N$55,1)*R23 -> 0 | S43: =IF('Input | Meters Vols & Costs'!$P$77="Yes",'Input| Prices'!O$55,1)*S23 -> 0 | T43: =IF('Input | Meters Vols & Costs'!$P$77="Yes",'Input| Prices'!P$55,1)*T23 -> 0 | U43: =IF('Input | Meters Vols & Costs'!$P$77="Yes",'Input| Prices'!Q$55,1)*U23 -> 0 | V43: 423402.8168
L44: $dollars | M44: 2024-06-01 | O44: =IF('Input | Meters Vols & Costs'!$P$77="Yes",'Input| Prices'!K$55,1)*O24 -> 0 | P44: =IF('Input | Meters Vols & Costs'!$P$77="Yes",'Input| Prices'!L$55,1)*P24 -> 0 | Q44: =IF('Input | Meters Vols & Costs'!$P$77="Yes",'Input| Prices'!M$55,1)*Q24 -> 0 | R44: =IF('Input | Meters Vols & Costs'!$P$77="Yes",'Input| Prices'!N$55,1)*R24 -> 0 | S44: =IF('Input | Meters Vols & Costs'!$P$77="Yes",'Input| Prices'!O$55,1)*S24 -> 0 | T44: =IF('Input | Meters Vols & Costs'!$P$77="Yes",'Input| Prices'!P$55,1)*T24 -> 0 | U44: =IF('Input | Meters Vols & Costs'!$P$77="Yes",'Input| Prices'!Q$55,1)*U24 -> 0 | V44: 0
L45: $dollars | M45: 2024-06-01 | O45: =IF('Input | Meters Vols & Costs'!$P$77="Yes",'Input| Prices'!K$55,1)*O25 -> 0 | P45: =IF('Input | Meters Vols & Costs'!$P$77="Yes",'Input| Prices'!L$55,1)*P25 -> 0 | Q45: =IF('Input | Meters Vols & Costs'!$P$77="Yes",'Input| Prices'!M$55,1)*Q25 -> 0 | R45: =IF('Input | Meters Vols & Costs'!$P$77="Yes",'Input| Prices'!N$55,1)*R25 -> 0 | S45: =IF('Input | Meters Vols & Costs'!$P$77="Yes",'Input| Prices'!O$55,1)*S25 -> 0 | T45: =IF('Input | Meters Vols & Costs'!$P$77="Yes",'Input| Prices'!P$55,1)*T25 -> 0 | U45: =IF('Input | Meters Vols & Costs'!$P$77="Yes",'Input| Prices'!Q$55,1)*U25 -> 0 | V45: 0
L46: $dollars | M46: 2024-06-01 | O46: =IF('Input | Meters Vols & Costs'!$P$77="Yes",'Input| Prices'!K$55,1)*O26 -> 0 | P46: =IF('Input | Meters Vols & Costs'!$P$77="Yes",'Input| Prices'!L$55,1)*P26 -> 0 | Q46: =IF('Input | Meters Vols & Costs'!$P$77="Yes",'Input| Prices'!M$55,1)*Q26 -> 0 | R46: =IF('Input | Meters Vols & Costs'!$P$77="Yes",'Input| Prices'!N$55,1)*R26 -> 0 | S46: =IF('Input | Meters Vols & Costs'!$P$77="Yes",'Input| Prices'!O$55,1)*S26 -> 0 | T46: =IF('Input | Meters Vols & Costs'!$P$77="Yes",'Input| Prices'!P$55,1)*T26 -> 0 | U46: =IF('Input | Meters Vols & Costs'!$P$77="Yes",'Input| Prices'!Q$55,1)*U26 -> 0 | V46: 0
L47: $dollars | M47: 2024-06-01 | O47: =IF('Input | Meters Vols & Costs'!$P$77="Yes",'Input| Prices'!K$55,1)*O27 -> 0 | P47: =IF('Input | Meters Vols & Costs'!$P$77="Yes",'Input| Prices'!L$55,1)*P27 -> 0 | Q47: =IF('Input | Meters Vols & Costs'!$P$77="Yes",'Input| Prices'!M$55,1)*Q27 -> 0 | R47: =IF('Input | Meters Vols & Costs'!$P$77="Yes",'Input| Prices'!N$55,1)*R27 -> 0 | S47: =IF('Input | Meters Vols & Costs'!$P$77="Yes",'Input| Prices'!O$55,1)*S27 -> 0 | T47: =IF('Input | Meters Vols & Costs'!$P$77="Yes",'Input| Prices'!P$55,1)*T27 -> 0 | U47: =IF('Input | Meters Vols & Costs'!$P$77="Yes",'Input| Prices'!Q$55,1)*U27 -> 0 | V47: 0
F48: Total | L48: $dollars | M48: 2024-06-01 | O48: =SUM(O33:O47) -> 2113625.362 | P48: 4198306.211 | Q48: 1680329.492 | R48: 4160748.475 | S48: 6296418.641 | T48: 7660497.433 | U48: 9289584.896 | V48: =SUM(Q48:U48) -> 29087578.94 | X48: =IF((V48=SUM('Calc | Meters Detail'!V28,'Calc | Meters Detail'!V48,'Calc | Meters Detail'!V68,'Calc | Meters Detail'!V88,'Calc | Meters Detail'!V108,'Calc | Meters Detail'!V128,'Calc | Meters Detail'!V148,'Calc | Meters Detail'!V168,'Calc | Meters Detail'!V188,'Calc | Meters Detail'!V208)),0,1) -> 0
O49: =IF(ABS(O48-'Calc | Meters Detail'!O228)<0.000001,0,1) -> 0 | P49: =IF(ABS(P48-'Calc | Meters Detail'!P228)<0.000001,0,1) -> 0 | Q49: =IF(ABS(Q48-'Calc | Meters Detail'!Q228)<0.000001,0,1) -> 0 | R49: =IF(ABS(R48-'Calc | Meters Detail'!R228)<0.000001,0,1) -> 0 | S49: =IF(ABS(S48-'Calc | Meters Detail'!S228)<0.000001,0,1) -> 0 | T49: =IF(ABS(T48-'Calc | Meters Detail'!T228)<0.000001,0,1) -> 0 | U49: =IF(ABS(U48-'Calc | Meters Detail'!U228)<0.000001,0,1) -> 0 | V49: =IF(ABS(V48-'Calc | Meters Detail'!V228)<0.000001,0,1) -> 0 | X49: =IF(SUM(O49:V49)<>0,1,0) -> 0
D51: ii | E51: Meters - Non-Labour Component
E52: Unescalated
F53: =I_MeterTypes[[#Headers],[Meter Type]] -> Meter Type | G53: =I_MeterTypes[[#Headers],[RIN Subcategory 1]] -> RIN Subcategory 1 | H53: =I_MeterTypes[[#Headers],[RIN Subcategory 2]] -> RIN Subcategory 2 | I53: =I_MeterTypes[[#Headers],[AER Type]] -> AER Type | J53: =I_MeterTypes[[#Headers],[RIN Subcategory 3]] -> RIN Subcategory 3 | K53: =I_MeterTypes[[#Headers],[Meter Code]] -> Meter Code | L53: Units | M53: Basis | O53: =O$12 -> 2024-25 | P53: =P$12 -> 2025-26 | Q53: 2026-27 | R53: 2027-28 | S53: 2028-29 | T53: 2029-30 | U53: 2030-31 | V53: Total
F54: =I_MeterTypes[Meter Type] -> AMI - Single Phase, single element | G54: =I_MeterTypes[RIN Subcategory 1] -> Single Phase Meter Population | H54: =I_MeterTypes[RIN Subcategory 2] -> Direct Connect Meter Population | I54: =I_MeterTypes[AER Type] -> Meter Type 4 | J54: =I_MeterTypes[RIN Subcategory 3] -> Single phase single element - AMI | K54: =I_MeterTypes[Meter Code] -> AMI 1ph 1e | L54: $dollars | M54: =Basis_Capex -> 2024-06-01 | O54: =ICM_AddMetReq*ICM_UnitCost -> 1322828.914 | P54: 1106595.43 | Q54: 738018.4121 | R54: 2301148.883 | S54: 3689875.001 | T54: 4449901.22 | U54: 5279082.42 | V54: =SUM(N54:U54) -> 18887450.28
F55: AMI - Single Phase, two elements with 31.5A load control | G55: Single Phase Meter Population | H55: Direct Connect Meter Population | I55: Meter Type 4 | J55: Single phase two element with contactor - AMI | K55: AMI 1ph 2e | L55: $dollars | M55: 2024-06-01 | O55: 20641.99109 | P55: 21031.69842 | Q55: 50740.76181 | R55: 193579.1071 | S55: 311552.3959 | T55: 378871.923 | U55: 455077.2115 | V55: 1431495.089
F56: AMI - 3 Phase with no load control | G56: Multi Phase Meter Population | H56: Direct Connect Meter Population | I56: Meter Type 4 | J56: Three phase - AMI | K56: AMI 3ph | L56: $dollars | M56: 2024-06-01 | O56: 1999291.518 | P56: 3207643.404 | Q56: 3449621.063 | R56: 4252416.38 | S56: 4747103.143 | T56: 5088888.444 | U56: 5498395.567 | V56: 28243359.52
F57: AMI - Single Phase, single element, with 31.5A load control | G57: Single Phase Meter Population | H57: Direct Connect Meter Population | I57: Meter Type 4 | J57: Single phase single element with contactor - AMI | K57: AMI 1ph DC | L57: $dollars | M57: 2024-06-01 | O57: 30287.61886 | P57: 30741.88932 | Q57: 42261.51414 | R57: 89966.34179 | S57: 134875.4812 | T57: 172502.6321 | U57: 226385.0879 | V57: 727020.5653
F58: AMI - 3 Phase with 31.5A and 2A load control | G58: Multi Phase Meter Population | H58: Direct Connect Meter Population | I58: Meter Type 4 | J58: Three phase direct connected meter with contactor - AMI | K58: AMI 3ph DC | L58: $dollars | M58: 2024-06-01 | O58: 35367.97838 | P58: 35898.44689 | Q58: 48375.03388 | R58: 99110.92269 | S58: 147657.358 | T58: 189830.0037 | U58: 251183.0996 | V58: 807422.8432
F59: AMI - 3 Phase CT connect | G59: Multi Phase Meter Population | H59: Current Transformer Connected Meter Population | I59: Meter Type 4 | J59: Three phase Current transformer connected meter - AMI | K59: AMI 3ph CT | L59: $dollars | M59: 2024-06-01 | O59: 132589.391 | P59: 138765.6534 | Q59: 151839.3411 | R59: 193482.7415 | S59: 236117.9096 | T59: 279888.2001 | U59: 346759.3831 | V59: 1479442.62
F60: AMI - 3 Phase CT & VT connect | G60: Multi Phase Meter Population | H60: Current Transformer Connected Meter Population | I60: Meter Type 4 | J60: Three phase Current transformer connected meter - AMI | K60: AMI 3ph CT VT | L60: $dollars | M60: 2024-06-01 | O60: 0 | P60: 0 | Q60: 0 | R60: 0 | S60: 0 | T60: 0 | U60: 0 | V60: 0
F61: Non AMI - Type 5 Locally read Interval - Single Phase | G61: Single Phase Meter Population | H61: Direct Connect Meter Population | I61: Meter Type 5 | J61: Single phase non off peak - MRIM | K61: INT 1ph | L61: $dollars | M61: 2024-06-01 | O61: 0 | P61: 0 | Q61: 0 | R61: 0 | S61: 0 | T61: 0 | U61: 0 | V61: 0
F62: Non AMI - Type 6 Locally read Accumulation - Single Phase | G62: Single Phase Meter Population | H62: Direct Connect Meter Population | I62: Meter Type 6 | J62: Single phase non off peak - Accumulation | K62: ACC 1ph | L62: $dollars | M62: 2024-06-01 | O62: 0 | P62: 0 | Q62: 0 | R62: 0 | S62: 0 | T62: 0 | U62: 0 | V62: 0
F63: Non AMI - Type 5 Locally read Interval - 3 Phase | G63: Multi Phase Meter Population | H63: Direct Connect Meter Population | I63: Meter Type 5 | J63: Multi phase direct connect - MRIM | K63: INT 3ph | L63: $dollars | M63: 2024-06-01 | O63: 0 | P63: 0 | Q63: 0 | R63: 0 | S63: 0 | T63: 0 | U63: 0 | V63: 0
F64: Non AMI - Type 6 Locally read Accumulation - 3 Phase | G64: Multi Phase Meter Population | H64: Direct Connect Meter Population | I64: Meter Type 6 | J64: Multi phase direct connect - Accumulation | K64: ACC 3ph | L64: $dollars | M64: 2024-06-01 | O64: 0 | P64: 0 | Q64: 0 | R64: 0 | S64: 0 | T64: 0 | U64: 0 | V64: 0
L65: $dollars | M65: 2024-06-01 | O65: 0 | P65: 0 | Q65: 0 | R65: 0 | S65: 0 | T65: 0 | U65: 0 | V65: 0
L66: $dollars | M66: 2024-06-01 | O66: 0 | P66: 0 | Q66: 0 | R66: 0 | S66: 0 | T66: 0 | U66: 0 | V66: 0
L67: $dollars | M67: 2024-06-01 | O67: 0 | P67: 0 | Q67: 0 | R67: 0 | S67: 0 | T67: 0 | U67: 0 | V67: 0
L68: $dollars | M68: 2024-06-01 | O68: 0 | P68: 0 | Q68: 0 | R68: 0 | S68: 0 | T68: 0 | U68: 0 | V68: 0
F69: Total | L69: $dollars | M69: 2024-06-01 | O69: =SUM(O54:O68) -> 3541007.411 | P69: 4540676.522 | Q69: 4480856.126 | R69: 7129704.376 | S69: 9267181.289 | T69: 10559882.42 | U69: 12056882.77 | V69: =SUM(Q69:U69) -> 43494506.98
D71: ii | E71: Meters - Non-Labour Component
E72: Incl Escalation of Non-Labour Costs
F73: =I_MeterTypes[[#Headers],[Meter Type]] -> Meter Type | G73: =I_MeterTypes[[#Headers],[RIN Subcategory 1]] -> RIN Subcategory 1 | H73: =I_MeterTypes[[#Headers],[RIN Subcategory 2]] -> RIN Subcategory 2 | I73: =I_MeterTypes[[#Headers],[AER Type]] -> AER Type | J73: =I_MeterTypes[[#Headers],[RIN Subcategory 3]] -> RIN Subcategory 3 | K73: =I_MeterTypes[[#Headers],[Meter Code]] -> Meter Code | L73: Units | M73: Basis | O73: =O$12 -> 2024-25 | P73: =P$12 -> 2025-26 | Q73: 2026-27 | R73: 2027-28 | S73: 2028-29 | T73: 2029-30 | U73: 2030-31 | V73: Total
F74: =I_MeterTypes[Meter Type] -> AMI - Single Phase, single element | G74: =I_MeterTypes[RIN Subcategory 1] -> Single Phase Meter Population | H74: =I_MeterTypes[RIN Subcategory 2] -> Direct Connect Meter Population | I74: =I_MeterTypes[AER Type] -> Meter Type 4 | J74: =I_MeterTypes[RIN Subcategory 3] -> Single phase single element - AMI | K74: =I_MeterTypes[Meter Code] -> AMI 1ph 1e | L74: $dollars | M74: =Basis_Capex -> 2024-06-01 | O74: =IF('Input | Meters Vols & Costs'!$P$142="Yes",'Input| Prices'!K$59,1)*O54 -> 1322828.914 | P74: =IF('Input | Meters Vols & Costs'!$P$142="Yes",'Input| Prices'!L$59,1)*P54 -> 1106595.43 | Q74: =IF('Input | Meters Vols & Costs'!$P$142="Yes",'Input| Prices'!M$59,1)*Q54 -> 738018.4121 | R74: =IF('Input | Meters Vols & Costs'!$P$142="Yes",'Input| Prices'!N$59,1)*R54 -> 2301148.883 | S74: =IF('Input | Meters Vols & Costs'!$P$142="Yes",'Input| Prices'!O$59,1)*S54 -> 3689875.001 | T74: =IF('Input | Meters Vols & Costs'!$P$142="Yes",'Input| Prices'!P$59,1)*T54 -> 4449901.22 | U74: =IF('Input | Meters Vols & Costs'!$P$142="Yes",'Input| Prices'!Q$59,1)*U54 -> 5279082.42 | V74: =SUM(N74:U74) -> 18887450.28
F75: AMI - Single Phase, two elements with 31.5A load control | G75: Single Phase Meter Population | H75: Direct Connect Meter Population | I75: Meter Type 4 | J75: Single phase two element with contactor - AMI | K75: AMI 1ph 2e | L75: $dollars | M75: 2024-06-01 | O75: =IF('Input | Meters Vols & Costs'!$P$142="Yes",'Input| Prices'!K$59,1)*O55 -> 20641.99109 | P75: =IF('Input | Meters Vols & Costs'!$P$142="Yes",'Input| Prices'!L$59,1)*P55 -> 21031.69842 | Q75: =IF('Input | Meters Vols & Costs'!$P$142="Yes",'Input| Prices'!M$59,1)*Q55 -> 50740.76181 | R75: =IF('Input | Meters Vols & Costs'!$P$142="Yes",'Input| Prices'!N$59,1)*R55 -> 193579.1071 | S75: =IF('Input | Meters Vols & Costs'!$P$142="Yes",'Input| Prices'!O$59,1)*S55 -> 311552.3959 | T75: =IF('Input | Meters Vols & Costs'!$P$142="Yes",'Input| Prices'!P$59,1)*T55 -> 378871.923 | U75: =IF('Input | Meters Vols & Costs'!$P$142="Yes",'Input| Prices'!Q$59,1)*U55 -> 455077.2115 | V75: 1431495.089
F76: AMI - 3 Phase with no load control | G76: Multi Phase Meter Population | H76: Direct Connect Meter Population | I76: Meter Type 4 | J76: Three phase - AMI | K76: AMI 3ph | L76: $dollars | M76: 2024-06-01 | O76: =IF('Input | Meters Vols & Costs'!$P$142="Yes",'Input| Prices'!K$59,1)*O56 -> 1999291.518 | P76: =IF('Input | Meters Vols & Costs'!$P$142="Yes",'Input| Prices'!L$59,1)*P56 -> 3207643.404 | Q76: =IF('Input | Meters Vols & Costs'!$P$142="Yes",'Input| Prices'!M$59,1)*Q56 -> 3449621.063 | R76: =IF('Input | Meters Vols & Costs'!$P$142="Yes",'Input| Prices'!N$59,1)*R56 -> 4252416.38 | S76: =IF('Input | Meters Vols & Costs'!$P$142="Yes",'Input| Prices'!O$59,1)*S56 -> 4747103.143 | T76: =IF('Input | Meters Vols & Costs'!$P$142="Yes",'Input| Prices'!P$59,1)*T56 -> 5088888.444 | U76: =IF('Input | Meters Vols & Costs'!$P$142="Yes",'Input| Prices'!Q$59,1)*U56 -> 5498395.567 | V76: 28243359.52
F77: AMI - Single Phase, single element, with 31.5A load control | G77: Single Phase Meter Population | H77: Direct Connect Meter Population | I77: Meter Type 4 | J77: Single phase single element with contactor - AMI | K77: AMI 1ph DC | L77: $dollars | M77: 2024-06-01 | O77: =IF('Input | Meters Vols & Costs'!$P$142="Yes",'Input| Prices'!K$59,1)*O57 -> 30287.61886 | P77: =IF('Input | Meters Vols & Costs'!$P$142="Yes",'Input| Prices'!L$59,1)*P57 -> 30741.88932 | Q77: =IF('Input | Meters Vols & Costs'!$P$142="Yes",'Input| Prices'!M$59,1)*Q57 -> 42261.51414 | R77: =IF('Input | Meters Vols & Costs'!$P$142="Yes",'Input| Prices'!N$59,1)*R57 -> 89966.34179 | S77: =IF('Input | Meters Vols & Costs'!$P$142="Yes",'Input| Prices'!O$59,1)*S57 -> 134875.4812 | T77: =IF('Input | Meters Vols & Costs'!$P$142="Yes",'Input| Prices'!P$59,1)*T57 -> 172502.6321 | U77: =IF('Input | Meters Vols & Costs'!$P$142="Yes",'Input| Prices'!Q$59,1)*U57 -> 226385.0879 | V77: 727020.5653
F78: AMI - 3 Phase with 31.5A and 2A load control | G78: Multi Phase Meter Population | H78: Direct Connect Meter Population | I78: Meter Type 4 | J78: Three phase direct connected meter with contactor - AMI | K78: AMI 3ph DC | L78: $dollars | M78: 2024-06-01 | O78: =IF('Input | Meters Vols & Costs'!$P$142="Yes",'Input| Prices'!K$59,1)*O58 -> 35367.97838 | P78: =IF('Input | Meters Vols & Costs'!$P$142="Yes",'Input| Prices'!L$59,1)*P58 -> 35898.44689 | Q78: =IF('Input | Meters Vols & Costs'!$P$142="Yes",'Input| Prices'!M$59,1)*Q58 -> 48375.03388 | R78: =IF('Input | Meters Vols & Costs'!$P$142="Yes",'Input| Prices'!N$59,1)*R58 -> 99110.92269 | S78: =IF('Input | Meters Vols & Costs'!$P$142="Yes",'Input| Prices'!O$59,1)*S58 -> 147657.358 | T78: =IF('Input | Meters Vols & Costs'!$P$142="Yes",'Input| Prices'!P$59,1)*T58 -> 189830.0037 | U78: =IF('Input | Meters Vols & Costs'!$P$142="Yes",'Input| Prices'!Q$59,1)*U58 -> 251183.0996 | V78: 807422.8432
F79: AMI - 3 Phase CT connect | G79: Multi Phase Meter Population | H79: Current Transformer Connected Meter Population | I79: Meter Type 4 | J79: Three phase Current transformer connected meter - AMI | K79: AMI 3ph CT | L79: $dollars | M79: 2024-06-01 | O79: =IF('Input | Meters Vols & Costs'!$P$142="Yes",'Input| Prices'!K$59,1)*O59 -> 132589.391 | P79: =IF('Input | Meters Vols & Costs'!$P$142="Yes",'Input| Prices'!L$59,1)*P59 -> 138765.6534 | Q79: =IF('Input | Meters Vols & Costs'!$P$142="Yes",'Input| Prices'!M$59,1)*Q59 -> 151839.3411 | R79: =IF('Input | Meters Vols & Costs'!$P$142="Yes",'Input| Prices'!N$59,1)*R59 -> 193482.7415 | S79: =IF('Input | Meters Vols & Costs'!$P$142="Yes",'Input| Prices'!O$59,1)*S59 -> 236117.9096 | T79: =IF('Input | Meters Vols & Costs'!$P$142="Yes",'Input| Prices'!P$59,1)*T59 -> 279888.2001 | U79: =IF('Input | Meters Vols & Costs'!$P$142="Yes",'Input| Prices'!Q$59,1)*U59 -> 346759.3831 | V79: 1479442.62
F80: AMI - 3 Phase CT & VT connect | G80: Multi Phase Meter Population | H80: Current Transformer Connected Meter Population | I80: Meter Type 4 | J80: Three phase Current transformer connected meter - AMI | K80: AMI 3ph CT VT | L80: $dollars | M80: 2024-06-01 | O80: =IF('Input | Meters Vols & Costs'!$P$142="Yes",'Input| Prices'!K$59,1)*O60 -> 0 | P80: =IF('Input | Meters Vols & Costs'!$P$142="Yes",'Input| Prices'!L$59,1)*P60 -> 0 | Q80: =IF('Input | Meters Vols & Costs'!$P$142="Yes",'Input| Prices'!M$59,1)*Q60 -> 0 | R80: =IF('Input | Meters Vols & Costs'!$P$142="Yes",'Input| Prices'!N$59,1)*R60 -> 0 | S80: =IF('Input | Meters Vols & Costs'!$P$142="Yes",'Input| Prices'!O$59,1)*S60 -> 0 | T80: =IF('Input | Meters Vols & Costs'!$P$142="Yes",'Input| Prices'!P$59,1)*T60 -> 0 | U80: =IF('Input | Meters Vols & Costs'!$P$142="Yes",'Input| Prices'!Q$59,1)*U60 -> 0 | V80: 0
F81: Non AMI - Type 5 Locally read Interval - Single Phase | G81: Single Phase Meter Population | H81: Direct Connect Meter Population | I81: Meter Type 5 | J81: Single phase non off peak - MRIM | K81: INT 1ph | L81: $dollars | M81: 2024-06-01 | O81: =IF('Input | Meters Vols & Costs'!$P$142="Yes",'Input| Prices'!K$59,1)*O61 -> 0 | P81: =IF('Input | Meters Vols & Costs'!$P$142="Yes",'Input| Prices'!L$59,1)*P61 -> 0 | Q81: =IF('Input | Meters Vols & Costs'!$P$142="Yes",'Input| Prices'!M$59,1)*Q61 -> 0 | R81: =IF('Input | Meters Vols & Costs'!$P$142="Yes",'Input| Prices'!N$59,1)*R61 -> 0 | S81: =IF('Input | Meters Vols & Costs'!$P$142="Yes",'Input| Prices'!O$59,1)*S61 -> 0 | T81: =IF('Input | Meters Vols & Costs'!$P$142="Yes",'Input| Prices'!P$59,1)*T61 -> 0 | U81: =IF('Input | Meters Vols & Costs'!$P$142="Yes",'Input| Prices'!Q$59,1)*U61 -> 0 | V81: 0
F82: Non AMI - Type 6 Locally read Accumulation - Single Phase | G82: Single Phase Meter Population | H82: Direct Connect Meter Population | I82: Meter Type 6 | J82: Single phase non off peak - Accumulation | K82: ACC 1ph | L82: $dollars | M82: 2024-06-01 | O82: =IF('Input | Meters Vols & Costs'!$P$142="Yes",'Input| Prices'!K$59,1)*O62 -> 0 | P82: =IF('Input | Meters Vols & Costs'!$P$142="Yes",'Input| Prices'!L$59,1)*P62 -> 0 | Q82: =IF('Input | Meters Vols & Costs'!$P$142="Yes",'Input| Prices'!M$59,1)*Q62 -> 0 | R82: =IF('Input | Meters Vols & Costs'!$P$142="Yes",'Input| Prices'!N$59,1)*R62 -> 0 | S82: =IF('Input | Meters Vols & Costs'!$P$142="Yes",'Input| Prices'!O$59,1)*S62 -> 0 | T82: =IF('Input | Meters Vols & Costs'!$P$142="Yes",'Input| Prices'!P$59,1)*T62 -> 0 | U82: =IF('Input | Meters Vols & Costs'!$P$142="Yes",'Input| Prices'!Q$59,1)*U62 -> 0 | V82: 0
F83: Non AMI - Type 5 Locally read Interval - 3 Phase | G83: Multi Phase Meter Population | H83: Direct Connect Meter Population | I83: Meter Type 5 | J83: Multi phase direct connect - MRIM | K83: INT 3ph | L83: $dollars | M83: 2024-06-01 | O83: =IF('Input | Meters Vols & Costs'!$P$142="Yes",'Input| Prices'!K$59,1)*O63 -> 0 | P83: =IF('Input | Meters Vols & Costs'!$P$142="Yes",'Input| Prices'!L$59,1)*P63 -> 0 | Q83: =IF('Input | Meters Vols & Costs'!$P$142="Yes",'Input| Prices'!M$59,1)*Q63 -> 0 | R83: =IF('Input | Meters Vols & Costs'!$P$142="Yes",'Input| Prices'!N$59,1)*R63 -> 0 | S83: =IF('Input | Meters Vols & Costs'!$P$142="Yes",'Input| Prices'!O$59,1)*S63 -> 0 | T83: =IF('Input | Meters Vols & Costs'!$P$142="Yes",'Input| Prices'!P$59,1)*T63 -> 0 | U83: =IF('Input | Meters Vols & Costs'!$P$142="Yes",'Input| Prices'!Q$59,1)*U63 -> 0 | V83: 0
F84: Non AMI - Type 6 Locally read Accumulation - 3 Phase | G84: Multi Phase Meter Population | H84: Direct Connect Meter Population | I84: Meter Type 6 | J84: Multi phase direct connect - Accumulation | K84: ACC 3ph | L84: $dollars | M84: 2024-06-01 | O84: =IF('Input | Meters Vols & Costs'!$P$142="Yes",'Input| Prices'!K$59,1)*O64 -> 0 | P84: =IF('Input | Meters Vols & Costs'!$P$142="Yes",'Input| Prices'!L$59,1)*P64 -> 0 | Q84: =IF('Input | Meters Vols & Costs'!$P$142="Yes",'Input| Prices'!M$59,1)*Q64 -> 0 | R84: =IF('Input | Meters Vols & Costs'!$P$142="Yes",'Input| Prices'!N$59,1)*R64 -> 0 | S84: =IF('Input | Meters Vols & Costs'!$P$142="Yes",'Input| Prices'!O$59,1)*S64 -> 0 | T84: =IF('Input | Meters Vols & Costs'!$P$142="Yes",'Input| Prices'!P$59,1)*T64 -> 0 | U84: =IF('Input | Meters Vols & Costs'!$P$142="Yes",'Input| Prices'!Q$59,1)*U64 -> 0 | V84: 0
L85: $dollars | M85: 2024-06-01 | O85: =IF('Input | Meters Vols & Costs'!$P$142="Yes",'Input| Prices'!K$59,1)*O65 -> 0 | P85: =IF('Input | Meters Vols & Costs'!$P$142="Yes",'Input| Prices'!L$59,1)*P65 -> 0 | Q85: =IF('Input | Meters Vols & Costs'!$P$142="Yes",'Input| Prices'!M$59,1)*Q65 -> 0 | R85: =IF('Input | Meters Vols & Costs'!$P$142="Yes",'Input| Prices'!N$59,1)*R65 -> 0 | S85: =IF('Input | Meters Vols & Costs'!$P$142="Yes",'Input| Prices'!O$59,1)*S65 -> 0 | T85: =IF('Input | Meters Vols & Costs'!$P$142="Yes",'Input| Prices'!P$59,1)*T65 -> 0 | U85: =IF('Input | Meters Vols & Costs'!$P$142="Yes",'Input| Prices'!Q$59,1)*U65 -> 0 | V85: 0
L86: $dollars | M86: 2024-06-01 | O86: =IF('Input | Meters Vols & Costs'!$P$142="Yes",'Input| Prices'!K$59,1)*O66 -> 0 | P86: =IF('Input | Meters Vols & Costs'!$P$142="Yes",'Input| Prices'!L$59,1)*P66 -> 0 | Q86: =IF('Input | Meters Vols & Costs'!$P$142="Yes",'Input| Prices'!M$59,1)*Q66 -> 0 | R86: =IF('Input | Meters Vols & Costs'!$P$142="Yes",'Input| Prices'!N$59,1)*R66 -> 0 | S86: =IF('Input | Meters Vols & Costs'!$P$142="Yes",'Input| Prices'!O$59,1)*S66 -> 0 | T86: =IF('Input | Meters Vols & Costs'!$P$142="Yes",'Input| Prices'!P$59,1)*T66 -> 0 | U86: =IF('Input | Meters Vols & Costs'!$P$142="Yes",'Input| Prices'!Q$59,1)*U66 -> 0 | V86: 0
L87: $dollars | M87: 2024-06-01 | O87: =IF('Input | Meters Vols & Costs'!$P$142="Yes",'Input| Prices'!K$59,1)*O67 -> 0 | P87: =IF('Input | Meters Vols & Costs'!$P$142="Yes",'Input| Prices'!L$59,1)*P67 -> 0 | Q87: =IF('Input | Meters Vols & Costs'!$P$142="Yes",'Input| Prices'!M$59,1)*Q67 -> 0 | R87: =IF('Input | Meters Vols & Costs'!$P$142="Yes",'Input| Prices'!N$59,1)*R67 -> 0 | S87: =IF('Input | Meters Vols & Costs'!$P$142="Yes",'Input| Prices'!O$59,1)*S67 -> 0 | T87: =IF('Input | Meters Vols & Costs'!$P$142="Yes",'Input| Prices'!P$59,1)*T67 -> 0 | U87: =IF('Input | Meters Vols & Costs'!$P$142="Yes",'Input| Prices'!Q$59,1)*U67 -> 0 | V87: 0
L88: $dollars | M88: 2024-06-01 | O88: =IF('Input | Meters Vols & Costs'!$P$142="Yes",'Input| Prices'!K$59,1)*O68 -> 0 | P88: =IF('Input | Meters Vols & Costs'!$P$142="Yes",'Input| Prices'!L$59,1)*P68 -> 0 | Q88: =IF('Input | Meters Vols & Costs'!$P$142="Yes",'Input| Prices'!M$59,1)*Q68 -> 0 | R88: =IF('Input | Meters Vols & Costs'!$P$142="Yes",'Input| Prices'!N$59,1)*R68 -> 0 | S88: =IF('Input | Meters Vols & Costs'!$P$142="Yes",'Input| Prices'!O$59,1)*S68 -> 0 | T88: =IF('Input | Meters Vols & Costs'!$P$142="Yes",'Input| Prices'!P$59,1)*T68 -> 0 | U88: =IF('Input | Meters Vols & Costs'!$P$142="Yes",'Input| Prices'!Q$59,1)*U68 -> 0 | V88: 0
F89: Total | L89: $dollars | M89: 2024-06-01 | O89: =SUM(O74:O88) -> 3541007.411 | P89: 4540676.522 | Q89: 4480856.126 | R89: 7129704.376 | S89: 9267181.289 | T89: 10559882.42 | U89: 12056882.77 | V89: =SUM(Q89:U89) -> 43494506.98 | X89: =IF((V89=SUM('Calc | Meters Detail'!V259,'Calc | Meters Detail'!V279,'Calc | Meters Detail'!V299,'Calc | Meters Detail'!V319,'Calc | Meters Detail'!V339,'Calc | Meters Detail'!V359,'Calc | Meters Detail'!V379,'Calc | Meters Detail'!V399,'Calc | Meters Detail'!V419,'Calc | Meters Detail'!V439)),0,1) -> 0
O90: =IF(ABS(O69-'Calc | Meters Detail'!O459)<0.00001,0,1) -> 0 | P90: =IF(ABS(P69-'Calc | Meters Detail'!P459)<0.00001,0,1) -> 0 | Q90: =IF(ABS(Q69-'Calc | Meters Detail'!Q459)<0.00001,0,1) -> 0 | R90: =IF(ABS(R69-'Calc | Meters Detail'!R459)<0.00001,0,1) -> 0 | S90: =IF(ABS(S69-'Calc | Meters Detail'!S459)<0.00001,0,1) -> 0 | T90: =IF(ABS(T69-'Calc | Meters Detail'!T459)<0.00001,0,1) -> 0 | U90: =IF(ABS(U69-'Calc | Meters Detail'!U459)<0.00001,0,1) -> 0 | V90: =IF(ABS(V69-'Calc | Meters Detail'!V459)<0.00001,0,1) -> 0 | X90: =IF(SUM(O90:V90)<>0,1,0) -> 0
D93: iii | E93: Total Meter Costs (SCS & ACS)
F94: =I_MeterTypes[[#Headers],[Meter Type]] -> Meter Type | G94: =I_MeterTypes[[#Headers],[RIN Subcategory 1]] -> RIN Subcategory 1 | H94: =I_MeterTypes[[#Headers],[RIN Subcategory 2]] -> RIN Subcategory 2 | I94: =I_MeterTypes[[#Headers],[AER Type]] -> AER Type | J94: =I_MeterTypes[[#Headers],[RIN Subcategory 3]] -> RIN Subcategory 3 | K94: =I_MeterTypes[[#Headers],[Meter Code]] -> Meter Code | L94: Units | M94: Basis | O94: =O$12 -> 2024-25 | P94: =P$12 -> 2025-26 | Q94: 2026-27 | R94: 2027-28 | S94: 2028-29 | T94: 2029-30 | U94: 2030-31 | V94: Total
F95: =I_MeterTypes[Meter Type] -> AMI - Single Phase, single element | G95: =I_MeterTypes[RIN Subcategory 1] -> Single Phase Meter Population | H95: =I_MeterTypes[RIN Subcategory 2] -> Direct Connect Meter Population | I95: =I_MeterTypes[AER Type] -> Meter Type 4 | J95: =I_MeterTypes[RIN Subcategory 3] -> Single phase single element - AMI | K95: =I_MeterTypes[Meter Code] -> AMI 1ph 1e | L95: $dollars | M95: =Basis_Capex -> 2024-06-01 | O95: =O33+O74 -> 2442138.317 | P95: =P33+P74 -> 3172908.876 | Q95: 1810288.125 | R95: 5216235.996 | S95: 8161074.228 | T95: 9849196.667 | U95: 11727976.33 | V95: =SUM(N95:U95) -> 42379818.54
F96: AMI - Single Phase, two elements with 31.5A load control | G96: Single Phase Meter Population | H96: Direct Connect Meter Population | I96: Meter Type 4 | J96: Single phase two element with contactor - AMI | K96: AMI 1ph 2e | L96: $dollars | M96: 2024-06-01 | O96: =O34+O75 -> 139962.7066 | P96: =P34+P75 -> 143728.6601 | Q96: 203911.7794 | R96: 481816.9974 | S96: 715903.0362 | T96: 857005.2558 | U96: 1019792.297 | V96: 3562120.733
F97: AMI - 3 Phase with no load control | G97: Multi Phase Meter Population | H97: Direct Connect Meter Population | I97: Meter Type 4 | J97: Three phase - AMI | K97: AMI 3ph | L97: $dollars | M97: 2024-06-01 | O97: 2415832.264 | P97: =P35+P76 -> 4101818.378 | Q97: 3724584.917 | R97: 4905855.982 | S97: 5737125.192 | T97: 6316935.844 | U97: 7032125.716 | V97: 34234278.29
F98: AMI - Single Phase, single element, with 31.5A load control | G98: Single Phase Meter Population | H98: Direct Connect Meter Population | I98: Meter Type 4 | J98: Single phase single element with contactor - AMI | K98: AMI 1ph DC | L98: $dollars | M98: 2024-06-01 | O98: 99867.36359 | P98: =P36+P77 -> 102290.4317 | Q98: 127558.1829 | R98: 226346.4831 | S98: 322691.0339 | T98: 409211.7028 | U98: 535671.8011 | V98: 1823636.999
F99: AMI - 3 Phase with 31.5A and 2A load control | G99: Multi Phase Meter Population | H99: Direct Connect Meter Population | I99: Meter Type 4 | J99: Three phase direct connected meter with contactor - AMI | K99: AMI 3ph DC | L99: $dollars | M99: 2024-06-01 | O99: 69795.5532 | P99: =P37+P78 -> 71300.16912 | Q99: 93707.8686 | R99: 182310.2587 | S99: 269408.655 | T99: 349006.0945 | U99: 466771.125 | V99: 1502299.724
F100: AMI - 3 Phase CT connect | G100: Multi Phase Meter Population | H100: Current Transformer Connected Meter Population | I100: Meter Type 4 | J100: Three phase Current transformer connected meter - AMI | K100: AMI 3ph CT | L100: $dollars | M100: 2024-06-01 | O100: 168384.5009 | P100: =P38+P79 -> 178456.4958 | Q100: 201134.7451 | R100: 277887.1354 | S100: 357397.7859 | T100: 439024.2929 | U100: 564130.3976 | V100: 2186415.354
F101: AMI - 3 Phase CT & VT connect | G101: Multi Phase Meter Population | H101: Current Transformer Connected Meter Population | I101: Meter Type 4 | J101: Three phase Current transformer connected meter - AMI | K101: AMI 3ph CT VT | L101: $dollars | M101: 2024-06-01 | O101: 0 | P101: =P39+P80 -> 0 | Q101: 0 | R101: 0 | S101: 0 | T101: 0 | U101: 0 | V101: 0
F102: Non AMI - Type 5 Locally read Interval - Single Phase | G102: Single Phase Meter Population | H102: Direct Connect Meter Population | I102: Meter Type 5 | J102: Single phase non off peak - MRIM | K102: INT 1ph | L102: $dollars | M102: 2024-06-01 | O102: 1422.906778 | P102: =P40+P81 -> 4324.642771 | Q102: 0 | R102: 0 | S102: 0 | T102: 0 | U102: 0 | V102: 5747.549549
F103: Non AMI - Type 6 Locally read Accumulation - Single Phase | G103: Single Phase Meter Population | H103: Direct Connect Meter Population | I103: Meter Type 6 | J103: Single phase non off peak - Accumulation | K103: ACC 1ph | L103: $dollars | M103: 2024-06-01 | O103: 211934.0595 | P103: =P41+P82 -> 644131.515 | Q103: 0 | R103: 0 | S103: 0 | T103: 0 | U103: 0 | V103: 856065.5745
F104: Non AMI - Type 5 Locally read Interval - 3 Phase | G104: Multi Phase Meter Population | H104: Direct Connect Meter Population | I104: Meter Type 5 | J104: Multi phase direct connect - MRIM | K104: INT 3ph | L104: $dollars | M104: 2024-06-01 | O104: 474.3022593 | P104: =P42+P83 -> 1441.54759 | Q104: 0 | R104: 0 | S104: 0 | T104: 0 | U104: 0 | V104: 1915.84985
F105: Non AMI - Type 6 Locally read Accumulation - 3 Phase | G105: Multi Phase Meter Population | H105: Direct Connect Meter Population | I105: Meter Type 6 | J105: Multi phase direct connect - Accumulation | K105: ACC 3ph | L105: $dollars | M105: 2024-06-01 | O105: 104820.7993 | P105: =P43+P84 -> 318582.0175 | Q105: 0 | R105: 0 | S105: 0 | T105: 0 | U105: 0 | V105: 423402.8168
L106: $dollars | M106: 2024-06-01 | O106: 0 | P106: =P44+P85 -> 0 | Q106: 0 | R106: 0 | S106: 0 | T106: 0 | U106: 0 | V106: 0
L107: $dollars | M107: 2024-06-01 | O107: 0 | P107: =P45+P86 -> 0 | Q107: 0 | R107: 0 | S107: 0 | T107: 0 | U107: 0 | V107: 0
L108: $dollars | M108: 2024-06-01 | O108: 0 | P108: =P46+P87 -> 0 | Q108: 0 | R108: 0 | S108: 0 | T108: 0 | U108: 0 | V108: 0
L109: $dollars | M109: 2024-06-01 | O109: 0 | P109: =P47+P88 -> 0 | Q109: 0 | R109: 0 | S109: 0 | T109: 0 | U109: 0 | V109: 0
F110: Total | L110: $dollars | M110: 2024-06-01 | O110: =SUM(O95:O108) -> 5654632.773 | P110: 8738982.734 | Q110: 6161185.619 | R110: 11290452.85 | S110: 15563599.93 | T110: 18220379.86 | U110: 21346467.67 | V110: =SUM(Q110:U110) -> 72582085.92 | X110: =IF((V110=(V89+V48)),0,1) -> 0
C112: b | D112: Meter Costs by SCS/ACS
D114: i | E114: Meters - SCS
F115: =I_MeterTypes[[#Headers],[Meter Type]] -> Meter Type | G115: =I_MeterTypes[[#Headers],[RIN Subcategory 1]] -> RIN Subcategory 1 | H115: =I_MeterTypes[[#Headers],[RIN Subcategory 2]] -> RIN Subcategory 2 | I115: =I_MeterTypes[[#Headers],[AER Type]] -> AER Type | J115: =I_MeterTypes[[#Headers],[RIN Subcategory 3]] -> RIN Subcategory 3 | K115: =I_MeterTypes[[#Headers],[Meter Code]] -> Meter Code | L115: Units | M115: Basis | O115: =O$12 -> 2024-25 | P115: =P$12 -> 2025-26 | Q115: 2026-27 | R115: 2027-28 | S115: 2028-29 | T115: 2029-30 | U115: 2030-31 | V115: Total
F116: =I_MeterTypes[Meter Type] -> AMI - Single Phase, single element | G116: =I_MeterTypes[RIN Subcategory 1] -> Single Phase Meter Population | H116: =I_MeterTypes[RIN Subcategory 2] -> Direct Connect Meter Population | I116: =I_MeterTypes[AER Type] -> Meter Type 4 | J116: =I_MeterTypes[RIN Subcategory 3] -> Single phase single element - AMI | K116: =I_MeterTypes[Meter Code] -> AMI 1ph 1e | L116: $dollars | M116: =Basis_Capex -> 2024-06-01 | O116: ='Input | Meters Vols & Costs'!J29*ICM_D_TC1+ 'Input | Meters Vols & Costs'!J30*ICM_D_TC2+ 'Input | Meters Vols & Costs'!J31*ICM_D_TC3+ 'Input | Meters Vols & Costs'!J32*ICM_D_TC4+ 'Input | Meters Vols & Costs'!J33*ICM_D_TC5+ 'Input | Meters Vols & Costs'!J34*ICM_D_TC6+ 'Input | Meters Vols & Costs'!J35*ICM_D_TC7+ 'Input | Meters Vols & Costs'!J36*ICM_D_TC8+ 'Input | Meters Vols & Costs'!J37*ICM_D_TC9+ 'Input | Meters Vols & Costs'!J38*ICM_D_TC10 -> 0 | P116: 0 | Q116: 0 | R116: 0 | S116: 0 | T116: 0 | U116: 0 | V116: =SUM(N116:U116) -> 0
F117: AMI - Single Phase, two elements with 31.5A load control | G117: Single Phase Meter Population | H117: Direct Connect Meter Population | I117: Meter Type 4 | J117: Single phase two element with contactor - AMI | K117: AMI 1ph 2e | L117: $dollars | M117: 2024-06-01 | O117: 0 | P117: 0 | Q117: 0 | R117: 0 | S117: 0 | T117: 0 | U117: 0 | V117: 0
F118: AMI - 3 Phase with no load control | G118: Multi Phase Meter Population | H118: Direct Connect Meter Population | I118: Meter Type 4 | J118: Three phase - AMI | K118: AMI 3ph | L118: $dollars | M118: 2024-06-01 | O118: 0 | P118: 0 | Q118: 0 | R118: 0 | S118: 0 | T118: 0 | U118: 0 | V118: 0
F119: AMI - Single Phase, single element, with 31.5A load control | G119: Single Phase Meter Population | H119: Direct Connect Meter Population | I119: Meter Type 4 | J119: Single phase single element with contactor - AMI | K119: AMI 1ph DC | L119: $dollars | M119: 2024-06-01 | O119: 0 | P119: 0 | Q119: 0 | R119: 0 | S119: 0 | T119: 0 | U119: 0 | V119: 0
F120: AMI - 3 Phase with 31.5A and 2A load control | G120: Multi Phase Meter Population | H120: Direct Connect Meter Population | I120: Meter Type 4 | J120: Three phase direct connected meter with contactor - AMI | K120: AMI 3ph DC | L120: $dollars | M120: 2024-06-01 | O120: 0 | P120: 0 | Q120: 0 | R120: 0 | S120: 0 | T120: 0 | U120: 0 | V120: 0
F121: AMI - 3 Phase CT connect | G121: Multi Phase Meter Population | H121: Current Transformer Connected Meter Population | I121: Meter Type 4 | J121: Three phase Current transformer connected meter - AMI | K121: AMI 3ph CT | L121: $dollars | M121: 2024-06-01 | O121: 0 | P121: 0 | Q121: 0 | R121: 0 | S121: 0 | T121: 0 | U121: 0 | V121: 0
F122: AMI - 3 Phase CT & VT connect | G122: Multi Phase Meter Population | H122: Current Transformer Connected Meter Population | I122: Meter Type 4 | J122: Three phase Current transformer connected meter - AMI | K122: AMI 3ph CT VT | L122: $dollars | M122: 2024-06-01 | O122: 0 | P122: 0 | Q122: 0 | R122: 0 | S122: 0 | T122: 0 | U122: 0 | V122: 0
F123: Non AMI - Type 5 Locally read Interval - Single Phase | G123: Single Phase Meter Population | H123: Direct Connect Meter Population | I123: Meter Type 5 | J123: Single phase non off peak - MRIM | K123: INT 1ph | L123: $dollars | M123: 2024-06-01 | O123: 0 | P123: 0 | Q123: 0 | R123: 0 | S123: 0 | T123: 0 | U123: 0 | V123: 0
F124: Non AMI - Type 6 Locally read Accumulation - Single Phase | G124: Single Phase Meter Population | H124: Direct Connect Meter Population | I124: Meter Type 6 | J124: Single phase non off peak - Accumulation | K124: ACC 1ph | L124: $dollars | M124: 2024-06-01 | O124: 0 | P124: 0 | Q124: 0 | R124: 0 | S124: 0 | T124: 0 | U124: 0 | V124: 0
F125: Non AMI - Type 5 Locally read Interval - 3 Phase | G125: Multi Phase Meter Population | H125: Direct Connect Meter Population | I125: Meter Type 5 | J125: Multi phase direct connect - MRIM | K125: INT 3ph | L125: $dollars | M125: 2024-06-01 | O125: 0 | P125: 0 | Q125: 0 | R125: 0 | S125: 0 | T125: 0 | U125: 0 | V125: 0
F126: Non AMI - Type 6 Locally read Accumulation - 3 Phase | G126: Multi Phase Meter Population | H126: Direct Connect Meter Population | I126: Meter Type 6 | J126: Multi phase direct connect - Accumulation | K126: ACC 3ph | L126: $dollars | M126: 2024-06-01 | O126: 0 | P126: 0 | Q126: 0 | R126: 0 | S126: 0 | T126: 0 | U126: 0 | V126: 0
L127: $dollars | M127: 2024-06-01 | O127: 0 | P127: 0 | Q127: 0 | R127: 0 | S127: 0 | T127: 0 | U127: 0 | V127: 0
L128: $dollars | M128: 2024-06-01 | O128: 0 | P128: 0 | Q128: 0 | R128: 0 | S128: 0 | T128: 0 | U128: 0 | V128: 0
L129: $dollars | M129: 2024-06-01 | O129: 0 | P129: 0 | Q129: 0 | R129: 0 | S129: 0 | T129: 0 | U129: 0 | V129: 0
L130: $dollars | M130: 2024-06-01 | O130: 0 | P130: 0 | Q130: 0 | R130: 0 | S130: 0 | T130: 0 | U130: 0 | V130: 0
F131: Total | L131: $dollars | M131: 2024-06-01 | O131: =SUM(O116:O129) -> 0 | P131: 0 | Q131: 0 | R131: 0 | S131: 0 | T131: 0 | U131: 0 | V131: =SUM(O131:U131) -> 0
D134: ii | E134: Meters - ACS
F135: =I_MeterTypes[[#Headers],[Meter Type]] -> Meter Type | G135: =I_MeterTypes[[#Headers],[RIN Subcategory 1]] -> RIN Subcategory 1 | H135: =I_MeterTypes[[#Headers],[RIN Subcategory 2]] -> RIN Subcategory 2 | I135: =I_MeterTypes[[#Headers],[AER Type]] -> AER Type | J135: =I_MeterTypes[[#Headers],[RIN Subcategory 3]] -> RIN Subcategory 3 | K135: =I_MeterTypes[[#Headers],[Meter Code]] -> Meter Code | L135: Units | M135: Basis | O135: =O$12 -> 2024-25 | P135: =P$12 -> 2025-26 | Q135: 2026-27 | R135: 2027-28 | S135: 2028-29 | T135: 2029-30 | U135: 2030-31 | V135: Total
F136: =I_MeterTypes[Meter Type] -> AMI - Single Phase, single element | G136: =I_MeterTypes[RIN Subcategory 1] -> Single Phase Meter Population | H136: =I_MeterTypes[RIN Subcategory 2] -> Direct Connect Meter Population | I136: =I_MeterTypes[AER Type] -> Meter Type 4 | J136: =I_MeterTypes[RIN Subcategory 3] -> Single phase single element - AMI | K136: =I_MeterTypes[Meter Code] -> AMI 1ph 1e | L136: $dollars | M136: =Basis_Capex -> 2024-06-01 | O136: =(1-'Input | Meters Vols & Costs'!J29)*ICM_D_TC1+ (1-'Input | Meters Vols & Costs'!J30)*ICM_D_TC2+ (1-'Input | Meters Vols & Costs'!J31)*ICM_D_TC3+ (1-'Input | Meters Vols & Costs'!J32)*ICM_D_TC4+ (1-'Input | Meters Vols & Costs'!J33)*ICM_D_TC5+ (1-'Input | Meters Vols & Costs'!J34)*ICM_D_TC6+ (1-'Input | Meters Vols & Costs'!J35)*ICM_D_TC7+ (1-'Input | Meters Vols & Costs'!J36)*ICM_D_TC8+ (1-'Input | Meters Vols & Costs'!J37)*ICM_D_TC9+ (1-'Input | Meters Vols & Costs'!J38)*ICM_D_TC10 -> 2442138.317 | P136: 3172908.876 | Q136: 1810288.125 | R136: 5216235.996 | S136: 8161074.228 | T136: 9849196.667 | U136: 11727976.33 | V136: =SUM(N136:U136) -> 42379818.54
F137: AMI - Single Phase, two elements with 31.5A load control | G137: Single Phase Meter Population | H137: Direct Connect Meter Population | I137: Meter Type 4 | J137: Single phase two element with contactor - AMI | K137: AMI 1ph 2e | L137: $dollars | M137: 2024-06-01 | O137: 139962.7066 | P137: 143728.6601 | Q137: 203911.7794 | R137: 481816.9974 | S137: 715903.0362 | T137: 857005.2558 | U137: 1019792.297 | V137: =SUM(N137:U137) -> 3562120.733
F138: AMI - 3 Phase with no load control | G138: Multi Phase Meter Population | H138: Direct Connect Meter Population | I138: Meter Type 4 | J138: Three phase - AMI | K138: AMI 3ph | L138: $dollars | M138: 2024-06-01 | O138: 2415832.264 | P138: 4101818.378 | Q138: 3724584.917 | R138: 4905855.982 | S138: 5737125.192 | T138: 6316935.844 | U138: 7032125.716 | V138: 34234278.29
F139: AMI - Single Phase, single element, with 31.5A load control | G139: Single Phase Meter Population | H139: Direct Connect Meter Population | I139: Meter Type 4 | J139: Single phase single element with contactor - AMI | K139: AMI 1ph DC | L139: $dollars | M139: 2024-06-01 | O139: 99867.36359 | P139: 102290.4317 | Q139: 127558.1829 | R139: 226346.4831 | S139: 322691.0339 | T139: 409211.7028 | U139: 535671.8011 | V139: 1823636.999
F140: AMI - 3 Phase with 31.5A and 2A load control | G140: Multi Phase Meter Population | H140: Direct Connect Meter Population | I140: Meter Type 4 | J140: Three phase direct connected meter with contactor - AMI | K140: AMI 3ph DC | L140: $dollars | M140: 2024-06-01 | O140: 69795.5532 | P140: 71300.16912 | Q140: 93707.8686 | R140: 182310.2587 | S140: 269408.655 | T140: 349006.0945 | U140: 466771.125 | V140: 1502299.724
F141: AMI - 3 Phase CT connect | G141: Multi Phase Meter Population | H141: Current Transformer Connected Meter Population | I141: Meter Type 4 | J141: Three phase Current transformer connected meter - AMI | K141: AMI 3ph CT | L141: $dollars | M141: 2024-06-01 | O141: 168384.5009 | P141: 178456.4958 | Q141: 201134.7451 | R141: 277887.1354 | S141: 357397.7859 | T141: 439024.2929 | U141: 564130.3976 | V141: 2186415.354
F142: AMI - 3 Phase CT & VT connect | G142: Multi Phase Meter Population | H142: Current Transformer Connected Meter Population | I142: Meter Type 4 | J142: Three phase Current transformer connected meter - AMI | K142: AMI 3ph CT VT | L142: $dollars | M142: 2024-06-01 | O142: 0 | P142: 0 | Q142: 0 | R142: 0 | S142: 0 | T142: 0 | U142: 0 | V142: 0
F143: Non AMI - Type 5 Locally read Interval - Single Phase | G143: Single Phase Meter Population | H143: Direct Connect Meter Population | I143: Meter Type 5 | J143: Single phase non off peak - MRIM | K143: INT 1ph | L143: $dollars | M143: 2024-06-01 | O143: 1422.906778 | P143: 4324.642771 | Q143: 0 | R143: 0 | S143: 0 | T143: 0 | U143: 0 | V143: 5747.549549
F144: Non AMI - Type 6 Locally read Accumulation - Single Phase | G144: Single Phase Meter Population | H144: Direct Connect Meter Population | I144: Meter Type 6 | J144: Single phase non off peak - Accumulation | K144: ACC 1ph | L144: $dollars | M144: 2024-06-01 | O144: 211934.0595 | P144: 644131.515 | Q144: 0 | R144: 0 | S144: 0 | T144: 0 | U144: 0 | V144: 856065.5745
F145: Non AMI - Type 5 Locally read Interval - 3 Phase | G145: Multi Phase Meter Population | H145: Direct Connect Meter Population | I145: Meter Type 5 | J145: Multi phase direct connect - MRIM | K145: INT 3ph | L145: $dollars | M145: 2024-06-01 | O145: 474.3022593 | P145: 1441.54759 | Q145: 0 | R145: 0 | S145: 0 | T145: 0 | U145: 0 | V145: 1915.84985
F146: Non AMI - Type 6 Locally read Accumulation - 3 Phase | G146: Multi Phase Meter Population | H146: Direct Connect Meter Population | I146: Meter Type 6 | J146: Multi phase direct connect - Accumulation | K146: ACC 3ph | L146: $dollars | M146: 2024-06-01 | O146: 104820.7993 | P146: 318582.0175 | Q146: 0 | R146: 0 | S146: 0 | T146: 0 | U146: 0 | V146: 423402.8168
L147: $dollars | M147: 2024-06-01 | O147: 0 | P147: 0 | Q147: 0 | R147: 0 | S147: 0 | T147: 0 | U147: 0 | V147: 0
L148: $dollars | M148: 2024-06-01 | O148: 0 | P148: 0 | Q148: 0 | R148: 0 | S148: 0 | T148: 0 | U148: 0 | V148: 0
L149: $dollars | M149: 2024-06-01 | O149: 0 | P149: 0 | Q149: 0 | R149: 0 | S149: 0 | T149: 0 | U149: 0 | V149: 0
L150: $dollars | M150: 2024-06-01 | O150: 0 | P150: 0 | Q150: 0 | R150: 0 | S150: 0 | T150: 0 | U150: 0 | V150: 0
F151: Total | L151: $dollars | M151: 2024-06-01 | O151: =SUM(O136:O149) -> 5654632.773 | P151: 8738982.734 | Q151: 6161185.619 | R151: 11290452.85 | S151: 15563599.93 | T151: 18220379.86 | U151: 21346467.67 | V151: =SUM(Q151:U151) -> 72582085.92 | X151: =IF((V151+V131=V110),0,1) -> 0
A156: Output - Meter Capex (ACS) to Metering RFM/PTRM
D159: Total (Including Overheads and Additional Costs)
F160: Total Metering ACS | L160: Units | M160: Basis | O160: =O$12 -> 2024-25 | P160: =P$12 -> 2025-26 | Q160: ='Input | Meters Vols & Costs'!Q$171 -> 2026-27 | R160: ='Input | Meters Vols & Costs'!R$171 -> 2027-28 | S160: ='Input | Meters Vols & Costs'!S$171 -> 2028-29 | T160: ='Input | Meters Vols & Costs'!T$171 -> 2029-30 | U160: ='Input | Meters Vols & Costs'!U$171 -> 2030-31 | V160: Total
F161: Overheads | L161: $dollars | M161: =Basis_Capex -> 2024-06-01 | O161: ='Input | Meters Vols & Costs'!O55* IF('Input | Meters Vols & Costs'!$L55="$millions",10^6,IF('Input | Meters Vols & Costs'!$L55="$000",10^3,1))/IF($L161="$millions",10^6,IF($L161="$000",10^3,1)) -> 0 | P161: ='Input | Meters Vols & Costs'!P55* IF('Input | Meters Vols & Costs'!$L55="$millions",10^6,IF('Input | Meters Vols & Costs'!$L55="$000",10^3,1))/IF($L161="$millions",10^6,IF($L161="$000",10^3,1)) -> 0 | Q161: ='Input | Meters Vols & Costs'!Q55* IF('Input | Meters Vols & Costs'!$L55="$millions",10^6,IF('Input | Meters Vols & Costs'!$L55="$000",10^3,1))/IF($L161="$millions",10^6,IF($L161="$000",10^3,1)) -> 0 | R161: ='Input | Meters Vols & Costs'!R55* IF('Input | Meters Vols & Costs'!$L55="$millions",10^6,IF('Input | Meters Vols & Costs'!$L55="$000",10^3,1))/IF($L161="$millions",10^6,IF($L161="$000",10^3,1)) -> 0 | S161: ='Input | Meters Vols & Costs'!S55* IF('Input | Meters Vols & Costs'!$L55="$millions",10^6,IF('Input | Meters Vols & Costs'!$L55="$000",10^3,1))/IF($L161="$millions",10^6,IF($L161="$000",10^3,1)) -> 0 | T161: ='Input | Meters Vols & Costs'!T55* IF('Input | Meters Vols & Costs'!$L55="$millions",10^6,IF('Input | Meters Vols & Costs'!$L55="$000",10^3,1))/IF($L161="$millions",10^6,IF($L161="$000",10^3,1)) -> 0 | U161: ='Input | Meters Vols & Costs'!U55* IF('Input | Meters Vols & Costs'!$L55="$millions",10^6,IF('Input | Meters Vols & Costs'!$L55="$000",10^3,1))/IF($L161="$millions",10^6,IF($L161="$000",10^3,1)) -> 0 | V161: =SUM(Q161:U161) -> 0
F162: Additional Projects | L162: $dollars | M162: =Basis_Capex -> 2024-06-01 | O162: 0 | P162: 0 | Q162: ='Input | Meters Vols & Costs'!Q50* IF('Input | Meters Vols & Costs'!$L50="$millions",10^6,IF('Input | Meters Vols & Costs'!$L50="$000",10^3,1))/IF($L162="$millions",10^6,IF($L162="$000",10^3,1)) -> 0 | R162: ='Input | Meters Vols & Costs'!R50* IF('Input | Meters Vols & Costs'!$L50="$millions",10^6,IF('Input | Meters Vols & Costs'!$L50="$000",10^3,1))/IF($L162="$millions",10^6,IF($L162="$000",10^3,1)) -> 0 | S162: ='Input | Meters Vols & Costs'!S50* IF('Input | Meters Vols & Costs'!$L50="$millions",10^6,IF('Input | Meters Vols & Costs'!$L50="$000",10^3,1))/IF($L162="$millions",10^6,IF($L162="$000",10^3,1)) -> 0 | T162: ='Input | Meters Vols & Costs'!T50* IF('Input | Meters Vols & Costs'!$L50="$millions",10^6,IF('Input | Meters Vols & Costs'!$L50="$000",10^3,1))/IF($L162="$millions",10^6,IF($L162="$000",10^3,1)) -> 0 | U162: ='Input | Meters Vols & Costs'!U50* IF('Input | Meters Vols & Costs'!$L50="$millions",10^6,IF('Input | Meters Vols & Costs'!$L50="$000",10^3,1))/IF($L162="$millions",10^6,IF($L162="$000",10^3,1)) -> 0 | V162: =SUM(Q162:U162) -> 0
F163: ACS Meter Costs | L163: $dollars | M163: =Basis_Capex -> 2024-06-01 | O163: ='Calc | Capex Meters'!O151 -> 5654632.773 | P163: ='Calc | Capex Meters'!P151 -> 8738982.734 | Q163: ='Calc | Capex Meters'!Q151 -> 6161185.619 | R163: ='Calc | Capex Meters'!R151 -> 11290452.85 | S163: ='Calc | Capex Meters'!S151 -> 15563599.93 | T163: ='Calc | Capex Meters'!T151 -> 18220379.86 | U163: ='Calc | Capex Meters'!U151 -> 21346467.67 | V163: =SUM(Q163:U163) -> 72582085.92 | X163: =IF((V163=V151),0,1) -> 0
F164: Total | L164: $dollars | M164: =Basis_Capex -> 2024-06-01 | O164: =SUM(O161:O163) -> 5654632.773 | P164: 8738982.734 | Q164: 6161185.619 | R164: 11290452.85 | S164: 15563599.93 | T164: 18220379.86 | U164: 21346467.67 | V164: =SUM(Q164:U164) -> 72582085.92

Sheet Calc | Meters Detail
B1: ='Input|General'!B1&" v"&'Input|General'!$D$2 -> AER Metering Opex & Capex Forecasting Model v1.08
B2: =MID(CELL("filename",A1),FIND("]",CELL("filename",A1))+1,255) -> Calc | Meters Detail
A6: Extra: Detailed Cost Tables - including real price escalation
O8: 1 | P8: 2 | Q8: 3 | R8: 4 | S8: 5 | T8: 6 | U8: 7
B9: a | C9: Labour Costs
D10: 1 | E10: ='Input | Meters Vols & Costs'!$G$29 -> New Connections (Permanent + Temporary) - Growth
F12: =I_MeterTypes[[#Headers],[Meter Type]] -> Meter Type | G12: =I_MeterTypes[[#Headers],[RIN Subcategory 1]] -> RIN Subcategory 1 | H12: =I_MeterTypes[[#Headers],[RIN Subcategory 2]] -> RIN Subcategory 2 | I12: =I_MeterTypes[[#Headers],[AER Type]] -> AER Type | J12: =I_MeterTypes[[#Headers],[RIN Subcategory 3]] -> RIN Subcategory 3 | K12: =I_MeterTypes[[#Headers],[Meter Code]] -> Meter Code | L12: Units | M12: Basis | O12: ='Input | Meters Vols & Costs'!O$171 -> 2024-25 | P12: ='Input | Meters Vols & Costs'!P$171 -> 2025-26 | Q12: ='Input | Meters Vols & Costs'!Q$171 -> 2026-27 | R12: ='Input | Meters Vols & Costs'!R$171 -> 2027-28 | S12: ='Input | Meters Vols & Costs'!S$171 -> 2028-29 | T12: ='Input | Meters Vols & Costs'!T$171 -> 2029-30 | U12: ='Input | Meters Vols & Costs'!U$171 -> 2030-31 | V12: Total
F13: =I_MeterTypes[Meter Type] -> AMI - Single Phase, single element | G13: =I_MeterTypes[RIN Subcategory 1] -> Single Phase Meter Population | H13: =I_MeterTypes[RIN Subcategory 2] -> Direct Connect Meter Population | I13: =I_MeterTypes[AER Type] -> Meter Type 4 | J13: =I_MeterTypes[RIN Subcategory 3] -> Single phase single element - AMI | K13: =I_MeterTypes[Meter Code] -> AMI 1ph 1e | L13: $dollars | M13: =Basis_Capex -> 2024-06-01 | O13: =IF('Input | Meters Vols & Costs'!$P$77="Yes",'Input| Prices'!K$55,1)*INDEX(ICM_LabourCost,,$D10)*INDEX(ICM_Vol1,,O$8) -> 0 | P13: ='Input| Prices'!L$55*INDEX(ICM_LabourCost,,$D10)*INDEX(ICM_Vol1,,P$8) -> 0 | Q13: ='Input| Prices'!M$55*INDEX(ICM_LabourCost,,$D10)*INDEX(ICM_Vol1,,Q$8) -> 0 | R13: ='Input| Prices'!N$55*INDEX(ICM_LabourCost,,$D10)*INDEX(ICM_Vol1,,R$8) -> 0 | S13: ='Input| Prices'!O$55*INDEX(ICM_LabourCost,,$D10)*INDEX(ICM_Vol1,,S$8) -> 0 | T13: ='Input| Prices'!P$55*INDEX(ICM_LabourCost,,$D10)*INDEX(ICM_Vol1,,T$8) -> 0 | U13: ='Input| Prices'!Q$55*INDEX(ICM_LabourCost,,$D10)*INDEX(ICM_Vol1,,U$8) -> 0 | V13: =SUM(N13:U13) -> 0
F14: AMI - Single Phase, two elements with 31.5A load control | G14: Single Phase Meter Population | H14: Direct Connect Meter Population | I14: Meter Type 4 | J14: Single phase two element with contactor - AMI | K14: AMI 1ph 2e | L14: $dollars | M14: 2024-06-01 | O14: 0 | P14: 0 | Q14: 0 | R14: 0 | S14: 0 | T14: 0 | U14: 0 | V14: 0
F15: AMI - 3 Phase with no load control | G15: Multi Phase Meter Population | H15: Direct Connect Meter Population | I15: Meter Type 4 | J15: Three phase - AMI | K15: AMI 3ph | L15: $dollars | M15: 2024-06-01 | O15: 0 | P15: 0 | Q15: 0 | R15: 0 | S15: 0 | T15: 0 | U15: 0 | V15: 0
F16: AMI - Single Phase, single element, with 31.5A load control | G16: Single Phase Meter Population | H16: Direct Connect Meter Population | I16: Meter Type 4 | J16: Single phase single element with contactor - AMI | K16: AMI 1ph DC | L16: $dollars | M16: 2024-06-01 | O16: 0 | P16: 0 | Q16: 0 | R16: 0 | S16: 0 | T16: 0 | U16: 0 | V16: 0
F17: AMI - 3 Phase with 31.5A and 2A load control | G17: Multi Phase Meter Population | H17: Direct Connect Meter Population | I17: Meter Type 4 | J17: Three phase direct connected meter with contactor - AMI | K17: AMI 3ph DC | L17: $dollars | M17: 2024-06-01 | O17: 0 | P17: 0 | Q17: 0 | R17: 0 | S17: 0 | T17: 0 | U17: 0 | V17: 0
F18: AMI - 3 Phase CT connect | G18: Multi Phase Meter Population | H18: Current Transformer Connected Meter Population | I18: Meter Type 4 | J18: Three phase Current transformer connected meter - AMI | K18: AMI 3ph CT | L18: $dollars | M18: 2024-06-01 | O18: 0 | P18: 0 | Q18: 0 | R18: 0 | S18: 0 | T18: 0 | U18: 0 | V18: 0
F19: AMI - 3 Phase CT & VT connect | G19: Multi Phase Meter Population | H19: Current Transformer Connected Meter Population | I19: Meter Type 4 | J19: Three phase Current transformer connected meter - AMI | K19: AMI 3ph CT VT | L19: $dollars | M19: 2024-06-01 | O19: 0 | P19: 0 | Q19: 0 | R19: 0 | S19: 0 | T19: 0 | U19: 0 | V19: 0
F20: Non AMI - Type 5 Locally read Interval - Single Phase | G20: Single Phase Meter Population | H20: Direct Connect Meter Population | I20: Meter Type 5 | J20: Single phase non off peak - MRIM | K20: INT 1ph | L20: $dollars | M20: 2024-06-01 | O20: 0 | P20: 0 | Q20: 0 | R20: 0 | S20: 0 | T20: 0 | U20: 0 | V20: 0
F21: Non AMI - Type 6 Locally read Accumulation - Single Phase | G21: Single Phase Meter Population | H21: Direct Connect Meter Population | I21: Meter Type 6 | J21: Single phase non off peak - Accumulation | K21: ACC 1ph | L21: $dollars | M21: 2024-06-01 | O21: 0 | P21: 0 | Q21: 0 | R21: 0 | S21: 0 | T21: 0 | U21: 0 | V21: 0
F22: Non AMI - Type 5 Locally read Interval - 3 Phase | G22: Multi Phase Meter Population | H22: Direct Connect Meter Population | I22: Meter Type 5 | J22: Multi phase direct connect - MRIM | K22: INT 3ph | L22: $dollars | M22: 2024-06-01 | O22: 0 | P22: 0 | Q22: 0 | R22: 0 | S22: 0 | T22: 0 | U22: 0 | V22: 0
F23: Non AMI - Type 6 Locally read Accumulation - 3 Phase | G23: Multi Phase Meter Population | H23: Direct Connect Meter Population | I23: Meter Type 6 | J23: Multi phase direct connect - Accumulation | K23: ACC 3ph | L23: $dollars | M23: 2024-06-01 | O23: 0 | P23: 0 | Q23: 0 | R23: 0 | S23: 0 | T23: 0 | U23: 0 | V23: 0
L24: $dollars | M24: 2024-06-01 | O24: 0 | P24: 0 | Q24: 0 | R24: 0 | S24: 0 | T24: 0 | U24: 0 | V24: 0
L25: $dollars | M25: 2024-06-01 | O25: 0 | P25: 0 | Q25: 0 | R25: 0 | S25: 0 | T25: 0 | U25: 0 | V25: 0
L26: $dollars | M26: 2024-06-01 | O26: 0 | P26: 0 | Q26: 0 | R26: 0 | S26: 0 | T26: 0 | U26: 0 | V26: 0
L27: $dollars | M27: 2024-06-01 | O27: 0 | P27: 0 | Q27: 0 | R27: 0 | S27: 0 | T27: 0 | U27: 0 | V27: 0
F28: Total | L28: $dollars | M28: 2024-06-01 | O28: =SUM(O13:O27) -> 0 | P28: =SUM(P13:P27) -> 0 | Q28: 0 | R28: 0 | S28: 0 | T28: 0 | U28: 0 | V28: =SUM(Q28:U28) -> 0
D30: 2 | E30: ='Input | Meters Vols & Costs'!$G$30 -> Alterations - Meters Installed
F32: =I_MeterTypes[[#Headers],[Meter Type]] -> Meter Type | G32: =I_MeterTypes[[#Headers],[RIN Subcategory 1]] -> RIN Subcategory 1 | H32: =I_MeterTypes[[#Headers],[RIN Subcategory 2]] -> RIN Subcategory 2 | I32: =I_MeterTypes[[#Headers],[AER Type]] -> AER Type | J32: =I_MeterTypes[[#Headers],[RIN Subcategory 3]] -> RIN Subcategory 3 | K32: =I_MeterTypes[[#Headers],[Meter Code]] -> Meter Code | L32: Units | M32: Basis | O32: =O$12 -> 2024-25 | P32: =P$12 -> 2025-26 | Q32: 2026-27 | R32: 2027-28 | S32: 2028-29 | T32: 2029-30 | U32: 2030-31 | V32: Total
F33: =I_MeterTypes[Meter Type] -> AMI - Single Phase, single element | G33: =I_MeterTypes[RIN Subcategory 1] -> Single Phase Meter Population | H33: =I_MeterTypes[RIN Subcategory 2] -> Direct Connect Meter Population | I33: =I_MeterTypes[AER Type] -> Meter Type 4 | J33: =I_MeterTypes[RIN Subcategory 3] -> Single phase single element - AMI | K33: =I_MeterTypes[Meter Code] -> AMI 1ph 1e | L33: $dollars | M33: =Basis_Capex -> 2024-06-01 | O33: =IF('Input | Meters Vols & Costs'!$P$77="Yes",'Input| Prices'!K$55,1)*INDEX(ICM_LabourCost,,$D30)*INDEX(ICM_Vol2,,O$8) -> 0 | P33: =IF('Input | Meters Vols & Costs'!$P$77="Yes",'Input| Prices'!L$55,1)*INDEX(ICM_LabourCost,,$D30)*INDEX(ICM_Vol2,,P$8) -> 0 | Q33: =IF('Input | Meters Vols & Costs'!$P$77="Yes",'Input| Prices'!M$55,1)*INDEX(ICM_LabourCost,,$D30)*INDEX(ICM_Vol2,,Q$8) -> 0 | R33: =IF('Input | Meters Vols & Costs'!$P$77="Yes",'Input| Prices'!N$55,1)*INDEX(ICM_LabourCost,,$D30)*INDEX(ICM_Vol2,,R$8) -> 0 | S33: =IF('Input | Meters Vols & Costs'!$P$77="Yes",'Input| Prices'!O$55,1)*INDEX(ICM_LabourCost,,$D30)*INDEX(ICM_Vol2,,S$8) -> 0 | T33: =IF('Input | Meters Vols & Costs'!$P$77="Yes",'Input| Prices'!P$55,1)*INDEX(ICM_LabourCost,,$D30)*INDEX(ICM_Vol2,,T$8) -> 0 | U33: =IF('Input | Meters Vols & Costs'!$P$77="Yes",'Input| Prices'!Q$55,1)*INDEX(ICM_LabourCost,,$D30)*INDEX(ICM_Vol2,,U$8) -> 0 | V33: =SUM(N33:U33) -> 0
F34: AMI - Single Phase, two elements with 31.5A load control | G34: Single Phase Meter Population | H34: Direct Connect Meter Population | I34: Meter Type 4 | J34: Single phase two element with contactor - AMI | K34: AMI 1ph 2e | L34: $dollars | M34: 2024-06-01 | O34: 0 | P34: 0 | Q34: 0 | R34: 0 | S34: 0 | T34: 0 | U34: 0 | V34: 0
F35: AMI - 3 Phase with no load control | G35: Multi Phase Meter Population | H35: Direct Connect Meter Population | I35: Meter Type 4 | J35: Three phase - AMI | K35: AMI 3ph | L35: $dollars | M35: 2024-06-01 | O35: 0 | P35: 0 | Q35: 0 | R35: 0 | S35: 0 | T35: 0 | U35: 0 | V35: 0
F36: AMI - Single Phase, single element, with 31.5A load control | G36: Single Phase Meter Population | H36: Direct Connect Meter Population | I36: Meter Type 4 | J36: Single phase single element with contactor - AMI | K36: AMI 1ph DC | L36: $dollars | M36: 2024-06-01 | O36: 0 | P36: 0 | Q36: 0 | R36: 0 | S36: 0 | T36: 0 | U36: 0 | V36: 0
F37: AMI - 3 Phase with 31.5A and 2A load control | G37: Multi Phase Meter Population | H37: Direct Connect Meter Population | I37: Meter Type 4 | J37: Three phase direct connected meter with contactor - AMI | K37: AMI 3ph DC | L37: $dollars | M37: 2024-06-01 | O37: 0 | P37: 0 | Q37: 0 | R37: 0 | S37: 0 | T37: 0 | U37: 0 | V37: 0
F38: AMI - 3 Phase CT connect | G38: Multi Phase Meter Population | H38: Current Transformer Connected Meter Population | I38: Meter Type 4 | J38: Three phase Current transformer connected meter - AMI | K38: AMI 3ph CT | L38: $dollars | M38: 2024-06-01 | O38: 0 | P38: 0 | Q38: 0 | R38: 0 | S38: 0 | T38: 0 | U38: 0 | V38: 0
F39: AMI - 3 Phase CT & VT connect | G39: Multi Phase Meter Population | H39: Current Transformer Connected Meter Population | I39: Meter Type 4 | J39: Three phase Current transformer connected meter - AMI | K39: AMI 3ph CT VT | L39: $dollars | M39: 2024-06-01 | O39: 0 | P39: 0 | Q39: 0 | R39: 0 | S39: 0 | T39: 0 | U39: 0 | V39: 0
F40: Non AMI - Type 5 Locally read Interval - Single Phase | G40: Single Phase Meter Population | H40: Direct Connect Meter Population | I40: Meter Type 5 | J40: Single phase non off peak - MRIM | K40: INT 1ph | L40: $dollars | M40: 2024-06-01 | O40: 0 | P40: 0 | Q40: 0 | R40: 0 | S40: 0 | T40: 0 | U40: 0 | V40: 0
F41: Non AMI - Type 6 Locally read Accumulation - Single Phase | G41: Single Phase Meter Population | H41: Direct Connect Meter Population | I41: Meter Type 6 | J41: Single phase non off peak - Accumulation | K41: ACC 1ph | L41: $dollars | M41: 2024-06-01 | O41: 0 | P41: 0 | Q41: 0 | R41: 0 | S41: 0 | T41: 0 | U41: 0 | V41: 0
F42: Non AMI - Type 5 Locally read Interval - 3 Phase | G42: Multi Phase Meter Population | H42: Direct Connect Meter Population | I42: Meter Type 5 | J42: Multi phase direct connect - MRIM | K42: INT 3ph | L42: $dollars | M42: 2024-06-01 | O42: 0 | P42: 0 | Q42: 0 | R42: 0 | S42: 0 | T42: 0 | U42: 0 | V42: 0
F43: Non AMI - Type 6 Locally read Accumulation - 3 Phase | G43: Multi Phase Meter Population | H43: Direct Connect Meter Population | I43: Meter Type 6 | J43: Multi phase direct connect - Accumulation | K43: ACC 3ph | L43: $dollars | M43: 2024-06-01 | O43: 0 | P43: 0 | Q43: 0 | R43: 0 | S43: 0 | T43: 0 | U43: 0 | V43: 0
L44: $dollars | M44: 2024-06-01 | O44: 0 | P44: 0 | Q44: 0 | R44: 0 | S44: 0 | T44: 0 | U44: 0 | V44: 0
L45: $dollars | M45: 2024-06-01 | O45: 0 | P45: 0 | Q45: 0 | R45: 0 | S45: 0 | T45: 0 | U45: 0 | V45: 0
L46: $dollars | M46: 2024-06-01 | O46: 0 | P46: 0 | Q46: 0 | R46: 0 | S46: 0 | T46: 0 | U46: 0 | V46: 0
L47: $dollars | M47: 2024-06-01 | O47: 0 | P47: 0 | Q47: 0 | R47: 0 | S47: 0 | T47: 0 | U47: 0 | V47: 0
F48: Total | L48: $dollars | M48: 2024-06-01 | O48: =SUM(O33:O47) -> 0 | P48: =SUM(P33:P47) -> 0 | Q48: 0 | R48: 0 | S48: 0 | T48: 0 | U48: 0 | V48: =SUM(Q48:U48) -> 0
D50: 3 | E50: ='Input | Meters Vols & Costs'!$G$31 -> Abolishment / Service Removed
F52: =I_MeterTypes[[#Headers],[Meter Type]] -> Meter Type | G52: =I_MeterTypes[[#Headers],[RIN Subcategory 1]] -> RIN Subcategory 1 | H52: =I_MeterTypes[[#Headers],[RIN Subcategory 2]] -> RIN Subcategory 2 | I52: =I_MeterTypes[[#Headers],[AER Type]] -> AER Type | J52: =I_MeterTypes[[#Headers],[RIN Subcategory 3]] -> RIN Subcategory 3 | K52: =I_MeterTypes[[#Headers],[Meter Code]] -> Meter Code | L52: Units | M52: Basis | O52: =O$12 -> 2024-25 | P52: =P$12 -> 2025-26 | Q52: 2026-27 | R52: 2027-28 | S52: 2028-29 | T52: 2029-30 | U52: 2030-31 | V52: Total
F53: =I_MeterTypes[Meter Type] -> AMI - Single Phase, single element | G53: =I_MeterTypes[RIN Subcategory 1] -> Single Phase Meter Population | H53: =I_MeterTypes[RIN Subcategory 2] -> Direct Connect Meter Population | I53: =I_MeterTypes[AER Type] -> Meter Type 4 | J53: =I_MeterTypes[RIN Subcategory 3] -> Single phase single element - AMI | K53: =I_MeterTypes[Meter Code] -> AMI 1ph 1e | L53: $dollars | M53: =Basis_Capex -> 2024-06-01 | O53: =IF('Input | Meters Vols & Costs'!$P$77="Yes",'Input| Prices'!K$55,1)*INDEX(ICM_LabourCost,,$D50)*INDEX(ICM_Vol3,,O$8) -> 500360.8571 | P53: =IF('Input | Meters Vols & Costs'!$P$77="Yes",'Input| Prices'!L$55,1)*INDEX(ICM_LabourCost,,$D50)*INDEX(ICM_Vol3,,P$8) -> 514518.8465 | Q53: =IF('Input | Meters Vols & Costs'!$P$77="Yes",'Input| Prices'!M$55,1)*INDEX(ICM_LabourCost,,$D50)*INDEX(ICM_Vol3,,Q$8) -> 528587.7453 | R53: =IF('Input | Meters Vols & Costs'!$P$77="Yes",'Input| Prices'!N$55,1)*INDEX(ICM_LabourCost,,$D50)*INDEX(ICM_Vol3,,R$8) -> 542740.5957 | S53: =IF('Input | Meters Vols & Costs'!$P$77="Yes",'Input| Prices'!O$55,1)*INDEX(ICM_LabourCost,,$D50)*INDEX(ICM_Vol3,,S$8) -> 558105.6767 | T53: =IF('Input | Meters Vols & Costs'!$P$77="Yes",'Input| Prices'!P$55,1)*INDEX(ICM_LabourCost,,$D50)*INDEX(ICM_Vol3,,T$8) -> 574847.1429 | U53: =IF('Input | Meters Vols & Costs'!$P$77="Yes",'Input| Prices'!Q$55,1)*INDEX(ICM_LabourCost,,$D50)*INDEX(ICM_Vol3,,U$8) -> 591485.5435 | V53: =SUM(N53:U53) -> 3810646.408
F54: AMI - Single Phase, two elements with 31.5A load control | G54: Single Phase Meter Population | H54: Direct Connect Meter Population | I54: Meter Type 4 | J54: Single phase two element with contactor - AMI | K54: AMI 1ph 2e | L54: $dollars | M54: 2024-06-01 | O54: 101297.8197 | P54: 104164.098 | Q54: 107012.3399 | R54: 109877.5778 | S54: 112988.2312 | T54: 116377.5331 | U54: 119745.9695 | V54: 771463.5692
F55: AMI - 3 Phase with no load control | G55: Multi Phase Meter Population | H55: Direct Connect Meter Population | I55: Meter Type 4 | J55: Three phase - AMI | K55: AMI 3ph | L55: $dollars | M55: 2024-06-01 | O55: 85733.97576 | P55: 88159.8664 | Q55: 90570.49188 | R55: 92995.50199 | S55: 95628.22089 | T55: 98496.77552 | U55: 101347.6705 | V55: 652932.5029
F56: AMI - Single Phase, single element, with 31.5A load control | G56: Single Phase Meter Population | H56: Direct Connect Meter Population | I56: Meter Type 4 | J56: Single phase single element with contactor - AMI | K56: AMI 1ph DC | L56: $dollars | M56: 2024-06-01 | O56: 33850.14424 | P56: 34807.95294 | Q56: 35759.73453 | R56: 36717.19558 | S56: 37756.66579 | T56: 38889.25048 | U56: 40014.86263 | V56: 257795.8062
F57: AMI - 3 Phase with 31.5A and 2A load control | G57: Multi Phase Meter Population | H57: Direct Connect Meter Population | I57: Meter Type 4 | J57: Three phase direct connected meter with contactor - AMI | K57: AMI 3ph DC | L57: $dollars | M57: 2024-06-01 | O57: 5759.57678 | P57: 5922.547216 | Q57: 6084.492144 | R57: 6247.403426 | S57: 6424.268508 | T57: 6616.976947 | U57: 6808.499015 | V57: 43863.76404
F58: AMI - 3 Phase CT connect | G58: Multi Phase Meter Population | H58: Current Transformer Connected Meter Population | I58: Meter Type 4 | J58: Three phase Current transformer connected meter - AMI | K58: AMI 3ph CT | L58: $dollars | M58: 2024-06-01 | O58: 7759.494117 | P58: 7979.053329 | Q58: 8197.230942 | R58: 8416.71046 | S58: 8654.989003 | T58: 8914.612245 | U58: 9172.637169 | V58: 59094.72727
F59: AMI - 3 Phase CT & VT connect | G59: Multi Phase Meter Population | H59: Current Transformer Connected Meter Population | I59: Meter Type 4 | J59: Three phase Current transformer connected meter - AMI | K59: AMI 3ph CT VT | L59: $dollars | M59: 2024-06-01 | O59: 0 | P59: 0 | Q59: 0 | R59: 0 | S59: 0 | T59: 0 | U59: 0 | V59: 0
F60: Non AMI - Type 5 Locally read Interval - Single Phase | G60: Single Phase Meter Population | H60: Direct Connect Meter Population | I60: Meter Type 5 | J60: Single phase non off peak - MRIM | K60: INT 1ph | L60: $dollars | M60: 2024-06-01 | O60: 1422.906778 | P60: 4324.642771 | Q60: 0 | R60: 0 | S60: 0 | T60: 0 | U60: 0 | V60: 5747.549549
F61: Non AMI - Type 6 Locally read Accumulation - Single Phase | G61: Single Phase Meter Population | H61: Direct Connect Meter Population | I61: Meter Type 6 | J61: Single phase non off peak - Accumulation | K61: ACC 1ph | L61: $dollars | M61: 2024-06-01 | O61: 211934.0595 | P61: 644131.515 | Q61: 0 | R61: 0 | S61: 0 | T61: 0 | U61: 0 | V61: 856065.5745
F62: Non AMI - Type 5 Locally read Interval - 3 Phase | G62: Multi Phase Meter Population | H62: Direct Connect Meter Population | I62: Meter Type 5 | J62: Multi phase direct connect - MRIM | K62: INT 3ph | L62: $dollars | M62: 2024-06-01 | O62: 474.3022593 | P62: 1441.54759 | Q62: 0 | R62: 0 | S62: 0 | T62: 0 | U62: 0 | V62: 1915.84985
F63: Non AMI - Type 6 Locally read Accumulation - 3 Phase | G63: Multi Phase Meter Population | H63: Direct Connect Meter Population | I63: Meter Type 6 | J63: Multi phase direct connect - Accumulation | K63: ACC 3ph | L63: $dollars | M63: 2024-06-01 | O63: 104820.7993 | P63: 318582.0175 | Q63: 0 | R63: 0 | S63: 0 | T63: 0 | U63: 0 | V63: 423402.8168
L64: $dollars | M64: 2024-06-01 | O64: 0 | P64: 0 | Q64: 0 | R64: 0 | S64: 0 | T64: 0 | U64: 0 | V64: 0
L65: $dollars | M65: 2024-06-01 | O65: 0 | P65: 0 | Q65: 0 | R65: 0 | S65: 0 | T65: 0 | U65: 0 | V65: 0
L66: $dollars | M66: 2024-06-01 | O66: 0 | P66: 0 | Q66: 0 | R66: 0 | S66: 0 | T66: 0 | U66: 0 | V66: 0
L67: $dollars | M67: 2024-06-01 | O67: 0 | P67: 0 | Q67: 0 | R67: 0 | S67: 0 | T67: 0 | U67: 0 | V67: 0
F68: Total | L68: $dollars | M68: 2024-06-01 | O68: =SUM(O53:O60) -> 736184.7744 | P68: =SUM(P53:P60) -> 759877.0071 | Q68: 776212.0347 | R68: 796994.985 | S68: 819558.0521 | T68: 844142.2912 | U68: 868575.1823 | V68: =SUM(Q68:U68) -> 4105482.545
D70: 4 | E70: ='Input | Meters Vols & Costs'!$G$32 -> Alterations - Meters Removed
F72: =I_MeterTypes[[#Headers],[Meter Type]] -> Meter Type | G72: =I_MeterTypes[[#Headers],[RIN Subcategory 1]] -> RIN Subcategory 1 | H72: =I_MeterTypes[[#Headers],[RIN Subcategory 2]] -> RIN Subcategory 2 | I72: =I_MeterTypes[[#Headers],[AER Type]] -> AER Type | J72: =I_MeterTypes[[#Headers],[RIN Subcategory 3]] -> RIN Subcategory 3 | K72: =I_MeterTypes[[#Headers],[Meter Code]] -> Meter Code | L72: Units | M72: Basis | O72: =O$12 -> 2024-25 | P72: =P$12 -> 2025-26 | Q72: 2026-27 | R72: 2027-28 | S72: 2028-29 | T72: 2029-30 | U72: 2030-31 | V72: Total
F73: =I_MeterTypes[Meter Type] -> AMI - Single Phase, single element | G73: =I_MeterTypes[RIN Subcategory 1] -> Single Phase Meter Population | H73: =I_MeterTypes[RIN Subcategory 2] -> Direct Connect Meter Population | I73: =I_MeterTypes[AER Type] -> Meter Type 4 | J73: =I_MeterTypes[RIN Subcategory 3] -> Single phase single element - AMI | K73: =I_MeterTypes[Meter Code] -> AMI 1ph 1e | L73: $dollars | M73: =Basis_Capex -> 2024-06-01 | O73: =IF('Input | Meters Vols & Costs'!$P$77="Yes",'Input| Prices'!K$55,1)*INDEX(ICM_LabourCost,,$D70)*INDEX(ICM_Vol4,,O$8) -> 0 | P73: =IF('Input | Meters Vols & Costs'!$P$77="Yes",'Input| Prices'!L$55,1)*INDEX(ICM_LabourCost,,$D70)*INDEX(ICM_Vol4,,P$8) -> 0 | Q73: =IF('Input | Meters Vols & Costs'!$P$77="Yes",'Input| Prices'!M$55,1)*INDEX(ICM_LabourCost,,$D70)*INDEX(ICM_Vol4,,Q$8) -> 0 | R73: =IF('Input | Meters Vols & Costs'!$P$77="Yes",'Input| Prices'!N$55,1)*INDEX(ICM_LabourCost,,$D70)*INDEX(ICM_Vol4,,R$8) -> 0 | S73: =IF('Input | Meters Vols & Costs'!$P$77="Yes",'Input| Prices'!O$55,1)*INDEX(ICM_LabourCost,,$D70)*INDEX(ICM_Vol4,,S$8) -> 0 | T73: =IF('Input | Meters Vols & Costs'!$P$77="Yes",'Input| Prices'!P$55,1)*INDEX(ICM_LabourCost,,$D70)*INDEX(ICM_Vol4,,T$8) -> 0 | U73: =IF('Input | Meters Vols & Costs'!$P$77="Yes",'Input| Prices'!Q$55,1)*INDEX(ICM_LabourCost,,$D70)*INDEX(ICM_Vol4,,U$8) -> 0 | V73: =SUM(N73:U73) -> 0
F74: AMI - Single Phase, two elements with 31.5A load control | G74: Single Phase Meter Population | H74: Direct Connect Meter Population | I74: Meter Type 4 | J74: Single phase two element with contactor - AMI | K74: AMI 1ph 2e | L74: $dollars | M74: 2024-06-01 | O74: 0 | P74: 0 | Q74: 0 | R74: 0 | S74: 0 | T74: 0 | U74: 0 | V74: 0
F75: AMI - 3 Phase with no load control | G75: Multi Phase Meter Population | H75: Direct Connect Meter Population | I75: Meter Type 4 | J75: Three phase - AMI | K75: AMI 3ph | L75: $dollars | M75: 2024-06-01 | O75: 0 | P75: 0 | Q75: 0 | R75: 0 | S75: 0 | T75: 0 | U75: 0 | V75: 0
F76: AMI - Single Phase, single element, with 31.5A load control | G76: Single Phase Meter Population | H76: Direct Connect Meter Population | I76: Meter Type 4 | J76: Single phase single element with contactor - AMI | K76: AMI 1ph DC | L76: $dollars | M76: 2024-06-01 | O76: 0 | P76: 0 | Q76: 0 | R76: 0 | S76: 0 | T76: 0 | U76: 0 | V76: 0
F77: AMI - 3 Phase with 31.5A and 2A load control | G77: Multi Phase Meter Population | H77: Direct Connect Meter Population | I77: Meter Type 4 | J77: Three phase direct connected meter with contactor - AMI | K77: AMI 3ph DC | L77: $dollars | M77: 2024-06-01 | O77: 0 | P77: 0 | Q77: 0 | R77: 0 | S77: 0 | T77: 0 | U77: 0 | V77: 0
F78: AMI - 3 Phase CT connect | G78: Multi Phase Meter Population | H78: Current Transformer Connected Meter Population | I78: Meter Type 4 | J78: Three phase Current transformer connected meter - AMI | K78: AMI 3ph CT | L78: $dollars | M78: 2024-06-01 | O78: 0 | P78: 0 | Q78: 0 | R78: 0 | S78: 0 | T78: 0 | U78: 0 | V78: 0
F79: AMI - 3 Phase CT & VT connect | G79: Multi Phase Meter Population | H79: Current Transformer Connected Meter Population | I79: Meter Type 4 | J79: Three phase Current transformer connected meter - AMI | K79: AMI 3ph CT VT | L79: $dollars | M79: 2024-06-01 | O79: 0 | P79: 0 | Q79: 0 | R79: 0 | S79: 0 | T79: 0 | U79: 0 | V79: 0
F80: Non AMI - Type 5 Locally read Interval - Single Phase | G80: Single Phase Meter Population | H80: Direct Connect Meter Population | I80: Meter Type 5 | J80: Single phase non off peak - MRIM | K80: INT 1ph | L80: $dollars | M80: 2024-06-01 | O80: 0 | P80: 0 | Q80: 0 | R80: 0 | S80: 0 | T80: 0 | U80: 0 | V80: 0
F81: Non AMI - Type 6 Locally read Accumulation - Single Phase | G81: Single Phase Meter Population | H81: Direct Connect Meter Population | I81: Meter Type 6 | J81: Single phase non off peak - Accumulation | K81: ACC 1ph | L81: $dollars | M81: 2024-06-01 | O81: 0 | P81: 0 | Q81: 0 | R81: 0 | S81: 0 | T81: 0 | U81: 0 | V81: 0
F82: Non AMI - Type 5 Locally read Interval - 3 Phase | G82: Multi Phase Meter Population | H82: Direct Connect Meter Population | I82: Meter Type 5 | J82: Multi phase direct connect - MRIM | K82: INT 3ph | L82: $dollars | M82: 2024-06-01 | O82: 0 | P82: 0 | Q82: 0 | R82: 0 | S82: 0 | T82: 0 | U82: 0 | V82: 0
F83: Non AMI - Type 6 Locally read Accumulation - 3 Phase | G83: Multi Phase Meter Population | H83: Direct Connect Meter Population | I83: Meter Type 6 | J83: Multi phase direct connect - Accumulation | K83: ACC 3ph | L83: $dollars | M83: 2024-06-01 | O83: 0 | P83: 0 | Q83: 0 | R83: 0 | S83: 0 | T83: 0 | U83: 0 | V83: 0
L84: $dollars | M84: 2024-06-01 | O84: 0 | P84: 0 | Q84: 0 | R84: 0 | S84: 0 | T84: 0 | U84: 0 | V84: 0
L85: $dollars | M85: 2024-06-01 | O85: 0 | P85: 0 | Q85: 0 | R85: 0 | S85: 0 | T85: 0 | U85: 0 | V85: 0
L86: $dollars | M86: 2024-06-01 | O86: 0 | P86: 0 | Q86: 0 | R86: 0 | S86: 0 | T86: 0 | U86: 0 | V86: 0
L87: $dollars | M87: 2024-06-01 | O87: 0 | P87: 0 | Q87: 0 | R87: 0 | S87: 0 | T87: 0 | U87: 0 | V87: 0
F88: Total | L88: $dollars | M88: 2024-06-01 | O88: =SUM(O73:O87) -> 0 | P88: =SUM(P73:P87) -> 0 | Q88: 0 | R88: 0 | S88: 0 | T88: 0 | U88: 0 | V88: =SUM(Q88:U88) -> 0
D90: 5 | E90: ='Input | Meters Vols & Costs'!$G$33 -> Meters Exchanged - Non AMI to AMI
F92: =I_MeterTypes[[#Headers],[Meter Type]] -> Meter Type | G92: =I_MeterTypes[[#Headers],[RIN Subcategory 1]] -> RIN Subcategory 1 | H92: =I_MeterTypes[[#Headers],[RIN Subcategory 2]] -> RIN Subcategory 2 | I92: =I_MeterTypes[[#Headers],[AER Type]] -> AER Type | J92: =I_MeterTypes[[#Headers],[RIN Subcategory 3]] -> RIN Subcategory 3 | K92: =I_MeterTypes[[#Headers],[Meter Code]] -> Meter Code | L92: Units | M92: Basis | O92: =O$12 -> 2024-25 | P92: =P$12 -> 2025-26 | Q92: 2026-27 | R92: 2027-28 | S92: 2028-29 | T92: 2029-30 | U92: 2030-31 | V92: Total
F93: =I_MeterTypes[Meter Type] -> AMI - Single Phase, single element | G93: =I_MeterTypes[RIN Subcategory 1] -> Single Phase Meter Population | H93: =I_MeterTypes[RIN Subcategory 2] -> Direct Connect Meter Population | I93: =I_MeterTypes[AER Type] -> Meter Type 4 | J93: =I_MeterTypes[RIN Subcategory 3] -> Single phase single element - AMI | K93: =I_MeterTypes[Meter Code] -> AMI 1ph 1e | L93: $dollars | M93: =Basis_Capex -> 2024-06-01 | O93: =IF('Input | Meters Vols & Costs'!$P$77="Yes",'Input| Prices'!K$55,1)*INDEX(ICM_LabourCost,,$D90)*INDEX(ICM_Vol5,,O$8) -> 455161.5282 | P93: =IF('Input | Meters Vols & Costs'!$P$77="Yes",'Input| Prices'!L$55,1)*INDEX(ICM_LabourCost,,$D90)*INDEX(ICM_Vol5,,P$8) -> 1383373.137 | Q93: =IF('Input | Meters Vols & Costs'!$P$77="Yes",'Input| Prices'!M$55,1)*INDEX(ICM_LabourCost,,$D90)*INDEX(ICM_Vol5,,Q$8) -> 0 | R93: =IF('Input | Meters Vols & Costs'!$P$77="Yes",'Input| Prices'!N$55,1)*INDEX(ICM_LabourCost,,$D90)*INDEX(ICM_Vol5,,R$8) -> 0 | S93: =IF('Input | Meters Vols & Costs'!$P$77="Yes",'Input| Prices'!O$55,1)*INDEX(ICM_LabourCost,,$D90)*INDEX(ICM_Vol5,,S$8) -> 0 | T93: =IF('Input | Meters Vols & Costs'!$P$77="Yes",'Input| Prices'!P$55,1)*INDEX(ICM_LabourCost,,$D90)*INDEX(ICM_Vol5,,T$8) -> 0 | U93: =IF('Input | Meters Vols & Costs'!$P$77="Yes",'Input| Prices'!Q$55,1)*INDEX(ICM_LabourCost,,$D90)*INDEX(ICM_Vol5,,U$8) -> 0 | V93: =SUM(N93:U93) -> 1838534.665
F94: AMI - Single Phase, two elements with 31.5A load control | G94: Single Phase Meter Population | H94: Direct Connect Meter Population | I94: Meter Type 4 | J94: Single phase two element with contactor - AMI | K94: AMI 1ph 2e | L94: $dollars | M94: 2024-06-01 | O94: 0 | P94: 0 | Q94: 0 | R94: 0 | S94: 0 | T94: 0 | U94: 0 | V94: 0
F95: AMI - 3 Phase with no load control | G95: Multi Phase Meter Population | H95: Direct Connect Meter Population | I95: Meter Type 4 | J95: Three phase - AMI | K95: AMI 3ph | L95: $dollars | M95: 2024-06-01 | O95: 231649.2235 | P95: 704051.8432 | Q95: 0 | R95: 0 | S95: 0 | T95: 0 | U95: 0 | V95: 935701.0666
F96: AMI - Single Phase, single element, with 31.5A load control | G96: Single Phase Meter Population | H96: Direct Connect Meter Population | I96: Meter Type 4 | J96: Single phase single element with contactor - AMI | K96: AMI 1ph DC | L96: $dollars | M96: 2024-06-01 | O96: 0 | P96: 0 | Q96: 0 | R96: 0 | S96: 0 | T96: 0 | U96: 0 | V96: 0
F97: AMI - 3 Phase with 31.5A and 2A load control | G97: Multi Phase Meter Population | H97: Direct Connect Meter Population | I97: Meter Type 4 | J97: Three phase direct connected meter with contactor - AMI | K97: AMI 3ph DC | L97: $dollars | M97: 2024-06-01 | O97: 0 | P97: 0 | Q97: 0 | R97: 0 | S97: 0 | T97: 0 | U97: 0 | V97: 0
F98: AMI - 3 Phase CT connect | G98: Multi Phase Meter Population | H98: Current Transformer Connected Meter Population | I98: Meter Type 4 | J98: Three phase Current transformer connected meter - AMI | K98: AMI 3ph CT | L98: $dollars | M98: 2024-06-01 | O98: 0 | P98: 0 | Q98: 0 | R98: 0 | S98: 0 | T98: 0 | U98: 0 | V98: 0
F99: AMI - 3 Phase CT & VT connect | G99: Multi Phase Meter Population | H99: Current Transformer Connected Meter Population | I99: Meter Type 4 | J99: Three phase Current transformer connected meter - AMI | K99: AMI 3ph CT VT | L99: $dollars | M99: 2024-06-01 | O99: 0 | P99: 0 | Q99: 0 | R99: 0 | S99: 0 | T99: 0 | U99: 0 | V99: 0
F100: Non AMI - Type 5 Locally read Interval - Single Phase | G100: Single Phase Meter Population | H100: Direct Connect Meter Population | I100: Meter Type 5 | J100: Single phase non off peak - MRIM | K100: INT 1ph | L100: $dollars | M100: 2024-06-01 | O100: 0 | P100: 0 | Q100: 0 | R100: 0 | S100: 0 | T100: 0 | U100: 0 | V100: 0
F101: Non AMI - Type 6 Locally read Accumulation - Single Phase | G101: Single Phase Meter Population | H101: Direct Connect Meter Population | I101: Meter Type 6 | J101: Single phase non off peak - Accumulation | K101: ACC 1ph | L101: $dollars | M101: 2024-06-01 | O101: 0 | P101: 0 | Q101: 0 | R101: 0 | S101: 0 | T101: 0 | U101: 0 | V101: 0
F102: Non AMI - Type 5 Locally read Interval - 3 Phase | G102: Multi Phase Meter Population | H102: Direct Connect Meter Population | I102: Meter Type 5 | J102: Multi phase direct connect - MRIM | K102: INT 3ph | L102: $dollars | M102: 2024-06-01 | O102: 0 | P102: 0 | Q102: 0 | R102: 0 | S102: 0 | T102: 0 | U102: 0 | V102: 0
F103: Non AMI - Type 6 Locally read Accumulation - 3 Phase | G103: Multi Phase Meter Population | H103: Direct Connect Meter Population | I103: Meter Type 6 | J103: Multi phase direct connect - Accumulation | K103: ACC 3ph | L103: $dollars | M103: 2024-06-01 | O103: 0 | P103: 0 | Q103: 0 | R103: 0 | S103: 0 | T103: 0 | U103: 0 | V103: 0
L104: $dollars | M104: 2024-06-01 | O104: 0 | P104: 0 | Q104: 0 | R104: 0 | S104: 0 | T104: 0 | U104: 0 | V104: 0
L105: $dollars | M105: 2024-06-01 | O105: 0 | P105: 0 | Q105: 0 | R105: 0 | S105: 0 | T105: 0 | U105: 0 | V105: 0
L106: $dollars | M106: 2024-06-01 | O106: 0 | P106: 0 | Q106: 0 | R106: 0 | S106: 0 | T106: 0 | U106: 0 | V106: 0
L107: $dollars | M107: 2024-06-01 | O107: 0 | P107: 0 | Q107: 0 | R107: 0 | S107: 0 | T107: 0 | U107: 0 | V107: 0
F108: Total | L108: $dollars | M108: 2024-06-01 | O108: =SUM(O93:O107) -> 686810.7516 | P108: =SUM(P93:P107) -> 2087424.98 | Q108: 0 | R108: 0 | S108: 0 | T108: 0 | U108: 0 | V108: =SUM(Q108:U108) -> 0
D110: 6 | E110: ='Input | Meters Vols & Costs'!$G$34 -> Failures / Faults
F112: =I_MeterTypes[[#Headers],[Meter Type]] -> Meter Type | G112: =I_MeterTypes[[#Headers],[RIN Subcategory 1]] -> RIN Subcategory 1 | H112: =I_MeterTypes[[#Headers],[RIN Subcategory 2]] -> RIN Subcategory 2 | I112: =I_MeterTypes[[#Headers],[AER Type]] -> AER Type | J112: =I_MeterTypes[[#Headers],[RIN Subcategory 3]] -> RIN Subcategory 3 | K112: =I_MeterTypes[[#Headers],[Meter Code]] -> Meter Code | L112: Units | M112: Basis | O112: =O$12 -> 2024-25 | P112: =P$12 -> 2025-26 | Q112: 2026-27 | R112: 2027-28 | S112: 2028-29 | T112: 2029-30 | U112: 2030-31 | V112: Total
F113: =I_MeterTypes[Meter Type] -> AMI - Single Phase, single element | G113: =I_MeterTypes[RIN Subcategory 1] -> Single Phase Meter Population | H113: =I_MeterTypes[RIN Subcategory 2] -> Direct Connect Meter Population | I113: =I_MeterTypes[AER Type] -> Meter Type 4 | J113: =I_MeterTypes[RIN Subcategory 3] -> Single phase single element - AMI | K113: =I_MeterTypes[Meter Code] -> AMI 1ph 1e | L113: $dollars | M113: =Basis_Capex -> 2024-06-01 | O113: =IF('Input | Meters Vols & Costs'!$P$77="Yes",'Input| Prices'!K$55,1)*INDEX(ICM_LabourCost,,$D110)*INDEX(ICM_Vol6,,O$8) -> 163787.0182 | P113: =IF('Input | Meters Vols & Costs'!$P$77="Yes",'Input| Prices'!L$55,1)*INDEX(ICM_LabourCost,,$D110)*INDEX(ICM_Vol6,,P$8) -> 168421.4632 | Q113: =IF('Input | Meters Vols & Costs'!$P$77="Yes",'Input| Prices'!M$55,1)*INDEX(ICM_LabourCost,,$D110)*INDEX(ICM_Vol6,,Q$8) -> 190329.42 | R113: =IF('Input | Meters Vols & Costs'!$P$77="Yes",'Input| Prices'!N$55,1)*INDEX(ICM_LabourCost,,$D110)*INDEX(ICM_Vol6,,R$8) -> 234510.5509 | S113: =IF('Input | Meters Vols & Costs'!$P$77="Yes",'Input| Prices'!O$55,1)*INDEX(ICM_LabourCost,,$D110)*INDEX(ICM_Vol6,,S$8) -> 313494.4612 | T113: =IF('Input | Meters Vols & Costs'!$P$77="Yes",'Input| Prices'!P$55,1)*INDEX(ICM_LabourCost,,$D110)*INDEX(ICM_Vol6,,T$8) -> 452057.6729 | U113: =IF('Input | Meters Vols & Costs'!$P$77="Yes",'Input| Prices'!Q$55,1)*INDEX(ICM_LabourCost,,$D110)*INDEX(ICM_Vol6,,U$8) -> 697713.0747 | V113: =SUM(N113:U113) -> 2220313.661
F114: AMI - Single Phase, two elements with 31.5A load control | G114: Single Phase Meter Population | H114: Direct Connect Meter Population | I114: Meter Type 4 | J114: Single phase two element with contactor - AMI | K114: AMI 1ph 2e | L114: $dollars | M114: 2024-06-01 | O114: 18022.89582 | P114: 18532.86371 | Q114: 20943.58482 | R114: 25805.21506 | S114: 34496.49476 | T114: 49743.79798 | U114: 76775.37694 | V114: 244320.2291
F115: AMI - 3 Phase with no load control | G115: Multi Phase Meter Population | H115: Direct Connect Meter Population | I115: Meter Type 4 | J115: Three phase - AMI | K115: AMI 3ph | L115: $dollars | M115: 2024-06-01 | O115: 99157.54614 | P115: 101963.2642 | Q115: 115226.4597 | R115: 141973.9551 | S115: 189791.2414 | T115: 273678.1587 | U115: 422399.2668 | V115: 1344189.892
F116: AMI - Single Phase, single element, with 31.5A load control | G116: Single Phase Meter Population | H116: Direct Connect Meter Population | I116: Meter Type 4 | J116: Single phase single element with contactor - AMI | K116: AMI 1ph DC | L116: $dollars | M116: 2024-06-01 | O116: 35729.60049 | P116: 36740.58945 | Q116: 41519.73833 | R116: 51157.70705 | S116: 68387.78787 | T116: 98614.89776 | U116: 152203.8175 | V116: 484354.1384
F117: AMI - 3 Phase with 31.5A and 2A load control | G117: Multi Phase Meter Population | H117: Direct Connect Meter Population | I117: Meter Type 4 | J117: Three phase direct connected meter with contactor - AMI | K117: AMI 3ph DC | L117: $dollars | M117: 2024-06-01 | O117: 28667.99803 | P117: 29479.17502 | Q117: 33313.77235 | R117: 41046.89179 | S117: 54871.6174 | T117: 79124.63773 | U117: 122122.237 | V117: 388626.3293
F118: AMI - 3 Phase CT connect | G118: Multi Phase Meter Population | H118: Current Transformer Connected Meter Population | I118: Meter Type 4 | J118: Three phase Current transformer connected meter - AMI | K118: AMI 3ph CT | L118: $dollars | M118: 2024-06-01 | O118: 28035.61572 | P118: 31711.78901 | Q118: 35836.8007 | R118: 44155.59021 | S118: 59027.33549 | T118: 85117.16544 | U118: 131371.2005 | V118: 415255.4971
F119: AMI - 3 Phase CT & VT connect | G119: Multi Phase Meter Population | H119: Current Transformer Connected Meter Population | I119: Meter Type 4 | J119: Three phase Current transformer connected meter - AMI | K119: AMI 3ph CT VT | L119: $dollars | M119: 2024-06-01 | O119: 0 | P119: 0 | Q119: 0 | R119: 0 | S119: 0 | T119: 0 | U119: 0 | V119: 0
F120: Non AMI - Type 5 Locally read Interval - Single Phase | G120: Single Phase Meter Population | H120: Direct Connect Meter Population | I120: Meter Type 5 | J120: Single phase non off peak - MRIM | K120: INT 1ph | L120: $dollars | M120: 2024-06-01 | O120: 0 | P120: 0 | Q120: 0 | R120: 0 | S120: 0 | T120: 0 | U120: 0 | V120: 0
F121: Non AMI - Type 6 Locally read Accumulation - Single Phase | G121: Single Phase Meter Population | H121: Direct Connect Meter Population | I121: Meter Type 6 | J121: Single phase non off peak - Accumulation | K121: ACC 1ph | L121: $dollars | M121: 2024-06-01 | O121: 0 | P121: 0 | Q121: 0 | R121: 0 | S121: 0 | T121: 0 | U121: 0 | V121: 0
F122: Non AMI - Type 5 Locally read Interval - 3 Phase | G122: Multi Phase Meter Population | H122: Direct Connect Meter Population | I122: Meter Type 5 | J122: Multi phase direct connect - MRIM | K122: INT 3ph | L122: $dollars | M122: 2024-06-01 | O122: 0 | P122: 0 | Q122: 0 | R122: 0 | S122: 0 | T122: 0 | U122: 0 | V122: 0
F123: Non AMI - Type 6 Locally read Accumulation - 3 Phase | G123: Multi Phase Meter Population | H123: Direct Connect Meter Population | I123: Meter Type 6 | J123: Multi phase direct connect - Accumulation | K123: ACC 3ph | L123: $dollars | M123: 2024-06-01 | O123: 0 | P123: 0 | Q123: 0 | R123: 0 | S123: 0 | T123: 0 | U123: 0 | V123: 0
L124: $dollars | M124: 2024-06-01 | O124: 0 | P124: 0 | Q124: 0 | R124: 0 | S124: 0 | T124: 0 | U124: 0 | V124: 0
L125: $dollars | M125: 2024-06-01 | O125: 0 | P125: 0 | Q125: 0 | R125: 0 | S125: 0 | T125: 0 | U125: 0 | V125: 0
L126: $dollars | M126: 2024-06-01 | O126: 0 | P126: 0 | Q126: 0 | R126: 0 | S126: 0 | T126: 0 | U126: 0 | V126: 0
L127: $dollars | M127: 2024-06-01 | O127: 0 | P127: 0 | Q127: 0 | R127: 0 | S127: 0 | T127: 0 | U127: 0 | V127: 0
F128: Total | L128: $dollars | M128: 2024-06-01 | O128: =SUM(O113:O127) -> 373400.6744 | P128: =SUM(P113:P127) -> 386849.1445 | Q128: 437169.7758 | R128: 538649.9101 | S128: 720068.9381 | T128: 1038336.331 | U128: 1602584.973 | V128: =SUM(Q128:U128) -> 4336809.928
D130: 7 | E130: ='Input | Meters Vols & Costs'!$G$35 -> Meters Refurbished
F132: =I_MeterTypes[[#Headers],[Meter Type]] -> Meter Type | G132: =I_MeterTypes[[#Headers],[RIN Subcategory 1]] -> RIN Subcategory 1 | H132: =I_MeterTypes[[#Headers],[RIN Subcategory 2]] -> RIN Subcategory 2 | I132: =I_MeterTypes[[#Headers],[AER Type]] -> AER Type | J132: =I_MeterTypes[[#Headers],[RIN Subcategory 3]] -> RIN Subcategory 3 | K132: =I_MeterTypes[[#Headers],[Meter Code]] -> Meter Code | L132: Units | M132: Basis | O132: =O$12 -> 2024-25 | P132: =P$12 -> 2025-26 | Q132: 2026-27 | R132: 2027-28 | S132: 2028-29 | T132: 2029-30 | U132: 2030-31 | V132: Total
F133: =I_MeterTypes[Meter Type] -> AMI - Single Phase, single element | G133: =I_MeterTypes[RIN Subcategory 1] -> Single Phase Meter Population | H133: =I_MeterTypes[RIN Subcategory 2] -> Direct Connect Meter Population | I133: =I_MeterTypes[AER Type] -> Meter Type 4 | J133: =I_MeterTypes[RIN Subcategory 3] -> Single phase single element - AMI | K133: =I_MeterTypes[Meter Code] -> AMI 1ph 1e | L133: $dollars | M133: =Basis_Capex -> 2024-06-01 | O133: =IF('Input | Meters Vols & Costs'!$P$77="Yes",'Input| Prices'!K$55,1)*INDEX(ICM_LabourCost,,$D130)*INDEX(ICM_Vol7,,O$8) -> 0 | P133: =IF('Input | Meters Vols & Costs'!$P$77="Yes",'Input| Prices'!L$55,1)*INDEX(ICM_LabourCost,,$D130)*INDEX(ICM_Vol7,,P$8) -> 0 | Q133: =IF('Input | Meters Vols & Costs'!$P$77="Yes",'Input| Prices'!M$55,1)*INDEX(ICM_LabourCost,,$D130)*INDEX(ICM_Vol7,,Q$8) -> 0 | R133: =IF('Input | Meters Vols & Costs'!$P$77="Yes",'Input| Prices'!N$55,1)*INDEX(ICM_LabourCost,,$D130)*INDEX(ICM_Vol7,,R$8) -> 0 | S133: =IF('Input | Meters Vols & Costs'!$P$77="Yes",'Input| Prices'!O$55,1)*INDEX(ICM_LabourCost,,$D130)*INDEX(ICM_Vol7,,S$8) -> 0 | T133: =IF('Input | Meters Vols & Costs'!$P$77="Yes",'Input| Prices'!P$55,1)*INDEX(ICM_LabourCost,,$D130)*INDEX(ICM_Vol7,,T$8) -> 0 | U133: =IF('Input | Meters Vols & Costs'!$P$77="Yes",'Input| Prices'!Q$55,1)*INDEX(ICM_LabourCost,,$D130)*INDEX(ICM_Vol7,,U$8) -> 0 | V133: =SUM(N133:U133) -> 0
F134: AMI - Single Phase, two elements with 31.5A load control | G134: Single Phase Meter Population | H134: Direct Connect Meter Population | I134: Meter Type 4 | J134: Single phase two element with contactor - AMI | K134: AMI 1ph 2e | L134: $dollars | M134: 2024-06-01 | O134: 0 | P134: 0 | Q134: 0 | R134: 0 | S134: 0 | T134: 0 | U134: 0 | V134: 0
F135: AMI - 3 Phase with no load control | G135: Multi Phase Meter Population | H135: Direct Connect Meter Population | I135: Meter Type 4 | J135: Three phase - AMI | K135: AMI 3ph | L135: $dollars | M135: 2024-06-01 | O135: 0 | P135: 0 | Q135: 0 | R135: 0 | S135: 0 | T135: 0 | U135: 0 | V135: 0
F136: AMI - Single Phase, single element, with 31.5A load control | G136: Single Phase Meter Population | H136: Direct Connect Meter Population | I136: Meter Type 4 | J136: Single phase single element with contactor - AMI | K136: AMI 1ph DC | L136: $dollars | M136: 2024-06-01 | O136: 0 | P136: 0 | Q136: 0 | R136: 0 | S136: 0 | T136: 0 | U136: 0 | V136: 0
F137: AMI - 3 Phase with 31.5A and 2A load control | G137: Multi Phase Meter Population | H137: Direct Connect Meter Population | I137: Meter Type 4 | J137: Three phase direct connected meter with contactor - AMI | K137: AMI 3ph DC | L137: $dollars | M137: 2024-06-01 | O137: 0 | P137: 0 | Q137: 0 | R137: 0 | S137: 0 | T137: 0 | U137: 0 | V137: 0
F138: AMI - 3 Phase CT connect | G138: Multi Phase Meter Population | H138: Current Transformer Connected Meter Population | I138: Meter Type 4 | J138: Three phase Current transformer connected meter - AMI | K138: AMI 3ph CT | L138: $dollars | M138: 2024-06-01 | O138: 0 | P138: 0 | Q138: 0 | R138: 0 | S138: 0 | T138: 0 | U138: 0 | V138: 0
F139: AMI - 3 Phase CT & VT connect | G139: Multi Phase Meter Population | H139: Current Transformer Connected Meter Population | I139: Meter Type 4 | J139: Three phase Current transformer connected meter - AMI | K139: AMI 3ph CT VT | L139: $dollars | M139: 2024-06-01 | O139: 0 | P139: 0 | Q139: 0 | R139: 0 | S139: 0 | T139: 0 | U139: 0 | V139: 0
F140: Non AMI - Type 5 Locally read Interval - Single Phase | G140: Single Phase Meter Population | H140: Direct Connect Meter Population | I140: Meter Type 5 | J140: Single phase non off peak - MRIM | K140: INT 1ph | L140: $dollars | M140: 2024-06-01 | O140: 0 | P140: 0 | Q140: 0 | R140: 0 | S140: 0 | T140: 0 | U140: 0 | V140: 0
F141: Non AMI - Type 6 Locally read Accumulation - Single Phase | G141: Single Phase Meter Population | H141: Direct Connect Meter Population | I141: Meter Type 6 | J141: Single phase non off peak - Accumulation | K141: ACC 1ph | L141: $dollars | M141: 2024-06-01 | O141: 0 | P141: 0 | Q141: 0 | R141: 0 | S141: 0 | T141: 0 | U141: 0 | V141: 0
F142: Non AMI - Type 5 Locally read Interval - 3 Phase | G142: Multi Phase Meter Population | H142: Direct Connect Meter Population | I142: Meter Type 5 | J142: Multi phase direct connect - MRIM | K142: INT 3ph | L142: $dollars | M142: 2024-06-01 | O142: 0 | P142: 0 | Q142: 0 | R142: 0 | S142: 0 | T142: 0 | U142: 0 | V142: 0
F143: Non AMI - Type 6 Locally read Accumulation - 3 Phase | G143: Multi Phase Meter Population | H143: Direct Connect Meter Population | I143: Meter Type 6 | J143: Multi phase direct connect - Accumulation | K143: ACC 3ph | L143: $dollars | M143: 2024-06-01 | O143: 0 | P143: 0 | Q143: 0 | R143: 0 | S143: 0 | T143: 0 | U143: 0 | V143: 0
L144: $dollars | M144: 2024-06-01 | O144: 0 | P144: 0 | Q144: 0 | R144: 0 | S144: 0 | T144: 0 | U144: 0 | V144: 0
L145: $dollars | M145: 2024-06-01 | O145: 0 | P145: 0 | Q145: 0 | R145: 0 | S145: 0 | T145: 0 | U145: 0 | V145: 0
L146: $dollars | M146: 2024-06-01 | O146: 0 | P146: 0 | Q146: 0 | R146: 0 | S146: 0 | T146: 0 | U146: 0 | V146: 0
L147: $dollars | M147: 2024-06-01 | O147: 0 | P147: 0 | Q147: 0 | R147: 0 | S147: 0 | T147: 0 | U147: 0 | V147: 0
F148: Total | L148: $dollars | M148: 2024-06-01 | O148: =SUM(O133:O147) -> 0 | P148: =SUM(P133:P147) -> 0 | Q148: 0 | R148: 0 | S148: 0 | T148: 0 | U148: 0 | V148: =SUM(Q148:U148) -> 0
D150: 8 | E150: ='Input | Meters Vols & Costs'!$G$36 -> AMI Meter Replacement
F152: =I_MeterTypes[[#Headers],[Meter Type]] -> Meter Type | G152: =I_MeterTypes[[#Headers],[RIN Subcategory 1]] -> RIN Subcategory 1 | H152: =I_MeterTypes[[#Headers],[RIN Subcategory 2]] -> RIN Subcategory 2 | I152: =I_MeterTypes[[#Headers],[AER Type]] -> AER Type | J152: =I_MeterTypes[[#Headers],[RIN Subcategory 3]] -> RIN Subcategory 3 | K152: =I_MeterTypes[[#Headers],[Meter Code]] -> Meter Code | L152: Units | M152: Basis | O152: =O$12 -> 2024-25 | P152: =P$12 -> 2025-26 | Q152: 2026-27 | R152: 2027-28 | S152: 2028-29 | T152: 2029-30 | U152: 2030-31 | V152: Total
F153: =I_MeterTypes[Meter Type] -> AMI - Single Phase, single element | G153: =I_MeterTypes[RIN Subcategory 1] -> Single Phase Meter Population | H153: =I_MeterTypes[RIN Subcategory 2] -> Direct Connect Meter Population | I153: =I_MeterTypes[AER Type] -> Meter Type 4 | J153: =I_MeterTypes[RIN Subcategory 3] -> Single phase single element - AMI | K153: =I_MeterTypes[Meter Code] -> AMI 1ph 1e | L153: $dollars | M153: =Basis_Capex -> 2024-06-01 | O153: =IF('Input | Meters Vols & Costs'!$P$77="Yes",'Input| Prices'!K$55,1)*INDEX(ICM_LabourCost,,$D150)*INDEX(ICM_Vol8,,O$8) -> 0 | P153: =IF('Input | Meters Vols & Costs'!$P$77="Yes",'Input| Prices'!L$55,1)*INDEX(ICM_LabourCost,,$D150)*INDEX(ICM_Vol8,,P$8) -> 0 | Q153: =IF('Input | Meters Vols & Costs'!$P$77="Yes",'Input| Prices'!M$55,1)*INDEX(ICM_LabourCost,,$D150)*INDEX(ICM_Vol8,,Q$8) -> 353352.548 | R153: =IF('Input | Meters Vols & Costs'!$P$77="Yes",'Input| Prices'!N$55,1)*INDEX(ICM_LabourCost,,$D150)*INDEX(ICM_Vol8,,R$8) -> 2137835.966 | S153: =IF('Input | Meters Vols & Costs'!$P$77="Yes",'Input| Prices'!O$55,1)*INDEX(ICM_LabourCost,,$D150)*INDEX(ICM_Vol8,,S$8) -> 3599599.089 | T153: =IF('Input | Meters Vols & Costs'!$P$77="Yes",'Input| Prices'!P$55,1)*INDEX(ICM_LabourCost,,$D150)*INDEX(ICM_Vol8,,T$8) -> 4372390.63 | U153: =IF('Input | Meters Vols & Costs'!$P$77="Yes",'Input| Prices'!Q$55,1)*INDEX(ICM_LabourCost,,$D150)*INDEX(ICM_Vol8,,U$8) -> 5159695.29 | V153: =SUM(N153:U153) -> 15622873.52
F154: AMI - Single Phase, two elements with 31.5A load control | G154: Single Phase Meter Population | H154: Direct Connect Meter Population | I154: Meter Type 4 | J154: Single phase two element with contactor - AMI | K154: AMI 1ph 2e | L154: $dollars | M154: 2024-06-01 | O154: 0 | P154: 0 | Q154: 25215.09287 | R154: 152555.0975 | S154: 256865.9143 | T154: 312012.0017 | U154: 368193.7392 | V154: 1114841.845
F155: AMI - 3 Phase with no load control | G155: Multi Phase Meter Population | H155: Direct Connect Meter Population | I155: Meter Type 4 | J155: Three phase - AMI | K155: AMI 3ph | L155: $dollars | M155: 2024-06-01 | O155: 0 | P155: 0 | Q155: 69166.9025 | R155: 418470.1444 | S155: 704602.5863 | T155: 855872.4654 | U155: 1009983.211 | V155: 3058095.31
F156: AMI - Single Phase, single element, with 31.5A load control | G156: Single Phase Meter Population | H156: Direct Connect Meter Population | I156: Meter Type 4 | J156: Single phase single element with contactor - AMI | K156: AMI 1ph DC | L156: $dollars | M156: 2024-06-01 | O156: 0 | P156: 0 | Q156: 8017.195873 | R156: 48505.23869 | S156: 81671.09908 | T156: 99204.92243 | U156: 117068.0331 | V156: 354466.4892
F157: AMI - 3 Phase with 31.5A and 2A load control | G157: Multi Phase Meter Population | H157: Direct Connect Meter Population | I157: Meter Type 4 | J157: Three phase direct connected meter with contactor - AMI | K157: AMI 3ph DC | L157: $dollars | M157: 2024-06-01 | O157: 0 | P157: 0 | Q157: 5934.57022 | R157: 35905.04081 | S157: 60455.41111 | T157: 73434.47606 | U157: 86657.28941 | V157: 262386.7876
F158: AMI - 3 Phase CT connect | G158: Multi Phase Meter Population | H158: Current Transformer Connected Meter Population | I158: Meter Type 4 | J158: Three phase Current transformer connected meter - AMI | K158: AMI 3ph CT | L158: $dollars | M158: 2024-06-01 | O158: 0 | P158: 0 | Q158: 5261.372453 | R158: 31832.09325 | S158: 53597.55178 | T158: 65104.31507 | U158: 76827.17677 | V158: 232622.5093
F159: AMI - 3 Phase CT & VT connect | G159: Multi Phase Meter Population | H159: Current Transformer Connected Meter Population | I159: Meter Type 4 | J159: Three phase Current transformer connected meter - AMI | K159: AMI 3ph CT VT | L159: $dollars | M159: 2024-06-01 | O159: 0 | P159: 0 | Q159: 0 | R159: 0 | S159: 0 | T159: 0 | U159: 0 | V159: 0
F160: Non AMI - Type 5 Locally read Interval - Single Phase | G160: Single Phase Meter Population | H160: Direct Connect Meter Population | I160: Meter Type 5 | J160: Single phase non off peak - MRIM | K160: INT 1ph | L160: $dollars | M160: 2024-06-01 | O160: 0 | P160: 0 | Q160: 0 | R160: 0 | S160: 0 | T160: 0 | U160: 0 | V160: 0
F161: Non AMI - Type 6 Locally read Accumulation - Single Phase | G161: Single Phase Meter Population | H161: Direct Connect Meter Population | I161: Meter Type 6 | J161: Single phase non off peak - Accumulation | K161: ACC 1ph | L161: $dollars | M161: 2024-06-01 | O161: 0 | P161: 0 | Q161: 0 | R161: 0 | S161: 0 | T161: 0 | U161: 0 | V161: 0
F162: Non AMI - Type 5 Locally read Interval - 3 Phase | G162: Multi Phase Meter Population | H162: Direct Connect Meter Population | I162: Meter Type 5 | J162: Multi phase direct connect - MRIM | K162: INT 3ph | L162: $dollars | M162: 2024-06-01 | O162: 0 | P162: 0 | Q162: 0 | R162: 0 | S162: 0 | T162: 0 | U162: 0 | V162: 0
F163: Non AMI - Type 6 Locally read Accumulation - 3 Phase | G163: Multi Phase Meter Population | H163: Direct Connect Meter Population | I163: Meter Type 6 | J163: Multi phase direct connect - Accumulation | K163: ACC 3ph | L163: $dollars | M163: 2024-06-01 | O163: 0 | P163: 0 | Q163: 0 | R163: 0 | S163: 0 | T163: 0 | U163: 0 | V163: 0
L164: $dollars | M164: 2024-06-01 | O164: 0 | P164: 0 | Q164: 0 | R164: 0 | S164: 0 | T164: 0 | U164: 0 | V164: 0
L165: $dollars | M165: 2024-06-01 | O165: 0 | P165: 0 | Q165: 0 | R165: 0 | S165: 0 | T165: 0 | U165: 0 | V165: 0
L166: $dollars | M166: 2024-06-01 | O166: 0 | P166: 0 | Q166: 0 | R166: 0 | S166: 0 | T166: 0 | U166: 0 | V166: 0
L167: $dollars | M167: 2024-06-01 | O167: 0 | P167: 0 | Q167: 0 | R167: 0 | S167: 0 | T167: 0 | U167: 0 | V167: 0
F168: Total | L168: $dollars | M168: 2024-06-01 | O168: =SUM(O153:O167) -> 0 | P168: =SUM(P153:P167) -> 0 | Q168: 466947.6819 | R168: 2825103.58 | S168: 4756791.651 | T168: 5778018.811 | U168: 6818424.74 | V168: =SUM(Q168:U168) -> 20645286.46
D170: 9 | E170: ='Input | Meters Vols & Costs'!$G$37 -> 0
F172: =I_MeterTypes[[#Headers],[Meter Type]] -> Meter Type | G172: =I_MeterTypes[[#Headers],[RIN Subcategory 1]] -> RIN Subcategory 1 | H172: =I_MeterTypes[[#Headers],[RIN Subcategory 2]] -> RIN Subcategory 2 | I172: =I_MeterTypes[[#Headers],[AER Type]] -> AER Type | J172: =I_MeterTypes[[#Headers],[RIN Subcategory 3]] -> RIN Subcategory 3 | K172: =I_MeterTypes[[#Headers],[Meter Code]] -> Meter Code | L172: Units | M172: Basis | O172: =O$12 -> 2024-25 | P172: =P$12 -> 2025-26 | Q172: 2026-27 | R172: 2027-28 | S172: 2028-29 | T172: 2029-30 | U172: 2030-31 | V172: Total
F173: =I_MeterTypes[Meter Type] -> AMI - Single Phase, single element | G173: =I_MeterTypes[RIN Subcategory 1] -> Single Phase Meter Population | H173: =I_MeterTypes[RIN Subcategory 2] -> Direct Connect Meter Population | I173: =I_MeterTypes[AER Type] -> Meter Type 4 | J173: =I_MeterTypes[RIN Subcategory 3] -> Single phase single element - AMI | K173: =I_MeterTypes[Meter Code] -> AMI 1ph 1e | L173: $dollars | M173: =Basis_Capex -> 2024-06-01 | O173: =IF('Input | Meters Vols & Costs'!$P$77="Yes",'Input| Prices'!K$55,1)*INDEX(ICM_LabourCost,,$D170)*INDEX(ICM_Vol9,,O$8) -> 0 | P173: =IF('Input | Meters Vols & Costs'!$P$77="Yes",'Input| Prices'!L$55,1)*INDEX(ICM_LabourCost,,$D170)*INDEX(ICM_Vol9,,P$8) -> 0 | Q173: =IF('Input | Meters Vols & Costs'!$P$77="Yes",'Input| Prices'!M$55,1)*INDEX(ICM_LabourCost,,$D170)*INDEX(ICM_Vol9,,Q$8) -> 0 | R173: =IF('Input | Meters Vols & Costs'!$P$77="Yes",'Input| Prices'!N$55,1)*INDEX(ICM_LabourCost,,$D170)*INDEX(ICM_Vol9,,R$8) -> 0 | S173: =IF('Input | Meters Vols & Costs'!$P$77="Yes",'Input| Prices'!O$55,1)*INDEX(ICM_LabourCost,,$D170)*INDEX(ICM_Vol9,,S$8) -> 0 | T173: =IF('Input | Meters Vols & Costs'!$P$77="Yes",'Input| Prices'!P$55,1)*INDEX(ICM_LabourCost,,$D170)*INDEX(ICM_Vol9,,T$8) -> 0 | U173: =IF('Input | Meters Vols & Costs'!$P$77="Yes",'Input| Prices'!Q$55,1)*INDEX(ICM_LabourCost,,$D170)*INDEX(ICM_Vol9,,U$8) -> 0 | V173: =SUM(N173:U173) -> 0
F174: AMI - Single Phase, two elements with 31.5A load control | G174: Single Phase Meter Population | H174: Direct Connect Meter Population | I174: Meter Type 4 | J174: Single phase two element with contactor - AMI | K174: AMI 1ph 2e | L174: $dollars | M174: 2024-06-01 | O174: 0 | P174: 0 | Q174: 0 | R174: 0 | S174: 0 | T174: 0 | U174: 0 | V174: 0
F175: AMI - 3 Phase with no load control | G175: Multi Phase Meter Population | H175: Direct Connect Meter Population | I175: Meter Type 4 | J175: Three phase - AMI | K175: AMI 3ph | L175: $dollars | M175: 2024-06-01 | O175: 0 | P175: 0 | Q175: 0 | R175: 0 | S175: 0 | T175: 0 | U175: 0 | V175: 0
F176: AMI - Single Phase, single element, with 31.5A load control | G176: Single Phase Meter Population | H176: Direct Connect Meter Population | I176: Meter Type 4 | J176: Single phase single element with contactor - AMI | K176: AMI 1ph DC | L176: $dollars | M176: 2024-06-01 | O176: 0 | P176: 0 | Q176: 0 | R176: 0 | S176: 0 | T176: 0 | U176: 0 | V176: 0
F177: AMI - 3 Phase with 31.5A and 2A load control | G177: Multi Phase Meter Population | H177: Direct Connect Meter Population | I177: Meter Type 4 | J177: Three phase direct connected meter with contactor - AMI | K177: AMI 3ph DC | L177: $dollars | M177: 2024-06-01 | O177: 0 | P177: 0 | Q177: 0 | R177: 0 | S177: 0 | T177: 0 | U177: 0 | V177: 0
F178: AMI - 3 Phase CT connect | G178: Multi Phase Meter Population | H178: Current Transformer Connected Meter Population | I178: Meter Type 4 | J178: Three phase Current transformer connected meter - AMI | K178: AMI 3ph CT | L178: $dollars | M178: 2024-06-01 | O178: 0 | P178: 0 | Q178: 0 | R178: 0 | S178: 0 | T178: 0 | U178: 0 | V178: 0
F179: AMI - 3 Phase CT & VT connect | G179: Multi Phase Meter Population | H179: Current Transformer Connected Meter Population | I179: Meter Type 4 | J179: Three phase Current transformer connected meter - AMI | K179: AMI 3ph CT VT | L179: $dollars | M179: 2024-06-01 | O179: 0 | P179: 0 | Q179: 0 | R179: 0 | S179: 0 | T179: 0 | U179: 0 | V179: 0
F180: Non AMI - Type 5 Locally read Interval - Single Phase | G180: Single Phase Meter Population | H180: Direct Connect Meter Population | I180: Meter Type 5 | J180: Single phase non off peak - MRIM | K180: INT 1ph | L180: $dollars | M180: 2024-06-01 | O180: 0 | P180: 0 | Q180: 0 | R180: 0 | S180: 0 | T180: 0 | U180: 0 | V180: 0
F181: Non AMI - Type 6 Locally read Accumulation - Single Phase | G181: Single Phase Meter Population | H181: Direct Connect Meter Population | I181: Meter Type 6 | J181: Single phase non off peak - Accumulation | K181: ACC 1ph | L181: $dollars | M181: 2024-06-01 | O181: 0 | P181: 0 | Q181: 0 | R181: 0 | S181: 0 | T181: 0 | U181: 0 | V181: 0
F182: Non AMI - Type 5 Locally read Interval - 3 Phase | G182: Multi Phase Meter Population | H182: Direct Connect Meter Population | I182: Meter Type 5 | J182: Multi phase direct connect - MRIM | K182: INT 3ph | L182: $dollars | M182: 2024-06-01 | O182: 0 | P182: 0 | Q182: 0 | R182: 0 | S182: 0 | T182: 0 | U182: 0 | V182: 0
F183: Non AMI - Type 6 Locally read Accumulation - 3 Phase | G183: Multi Phase Meter Population | H183: Direct Connect Meter Population | I183: Meter Type 6 | J183: Multi phase direct connect - Accumulation | K183: ACC 3ph | L183: $dollars | M183: 2024-06-01 | O183: 0 | P183: 0 | Q183: 0 | R183: 0 | S183: 0 | T183: 0 | U183: 0 | V183: 0
L184: $dollars | M184: 2024-06-01 | O184: 0 | P184: 0 | Q184: 0 | R184: 0 | S184: 0 | T184: 0 | U184: 0 | V184: 0
L185: $dollars | M185: 2024-06-01 | O185: 0 | P185: 0 | Q185: 0 | R185: 0 | S185: 0 | T185: 0 | U185: 0 | V185: 0
L186: $dollars | M186: 2024-06-01 | O186: 0 | P186: 0 | Q186: 0 | R186: 0 | S186: 0 | T186: 0 | U186: 0 | V186: 0
L187: $dollars | M187: 2024-06-01 | O187: 0 | P187: 0 | Q187: 0 | R187: 0 | S187: 0 | T187: 0 | U187: 0 | V187: 0
F188: Total | L188: $dollars | M188: 2024-06-01 | O188: =SUM(O173:O187) -> 0 | P188: =SUM(P173:P187) -> 0 | Q188: 0 | R188: 0 | S188: 0 | T188: 0 | U188: 0 | V188: =SUM(Q188:U188) -> 0
D190: 10 | E190: ='Input | Meters Vols & Costs'!$G$38 -> 0
F192: =I_MeterTypes[[#Headers],[Meter Type]] -> Meter Type | G192: =I_MeterTypes[[#Headers],[RIN Subcategory 1]] -> RIN Subcategory 1 | H192: =I_MeterTypes[[#Headers],[RIN Subcategory 2]] -> RIN Subcategory 2 | I192: =I_MeterTypes[[#Headers],[AER Type]] -> AER Type | J192: =I_MeterTypes[[#Headers],[RIN Subcategory 3]] -> RIN Subcategory 3 | K192: =I_MeterTypes[[#Headers],[Meter Code]] -> Meter Code | L192: Units | M192: Basis | O192: =O$12 -> 2024-25 | P192: =P$12 -> 2025-26 | Q192: 2026-27 | R192: 2027-28 | S192: 2028-29 | T192: 2029-30 | U192: 2030-31 | V192: Total
F193: =I_MeterTypes[Meter Type] -> AMI - Single Phase, single element | G193: =I_MeterTypes[RIN Subcategory 1] -> Single Phase Meter Population | H193: =I_MeterTypes[RIN Subcategory 2] -> Direct Connect Meter Population | I193: =I_MeterTypes[AER Type] -> Meter Type 4 | J193: =I_MeterTypes[RIN Subcategory 3] -> Single phase single element - AMI | K193: =I_MeterTypes[Meter Code] -> AMI 1ph 1e | L193: $dollars | M193: =Basis_Capex -> 2024-06-01 | O193: =IF('Input | Meters Vols & Costs'!$P$77="Yes",'Input| Prices'!K$55,1)*INDEX(ICM_LabourCost,,$D190)*INDEX(ICM_Vol10,,O$8) -> 0 | P193: =IF('Input | Meters Vols & Costs'!$P$77="Yes",'Input| Prices'!L$55,1)*INDEX(ICM_LabourCost,,$D190)*INDEX(ICM_Vol10,,P$8) -> 0 | Q193: =IF('Input | Meters Vols & Costs'!$P$77="Yes",'Input| Prices'!M$55,1)*INDEX(ICM_LabourCost,,$D190)*INDEX(ICM_Vol10,,Q$8) -> 0 | R193: =IF('Input | Meters Vols & Costs'!$P$77="Yes",'Input| Prices'!N$55,1)*INDEX(ICM_LabourCost,,$D190)*INDEX(ICM_Vol10,,R$8) -> 0 | S193: =IF('Input | Meters Vols & Costs'!$P$77="Yes",'Input| Prices'!O$55,1)*INDEX(ICM_LabourCost,,$D190)*INDEX(ICM_Vol10,,S$8) -> 0 | T193: =IF('Input | Meters Vols & Costs'!$P$77="Yes",'Input| Prices'!P$55,1)*INDEX(ICM_LabourCost,,$D190)*INDEX(ICM_Vol10,,T$8) -> 0 | U193: =IF('Input | Meters Vols & Costs'!$P$77="Yes",'Input| Prices'!Q$55,1)*INDEX(ICM_LabourCost,,$D190)*INDEX(ICM_Vol10,,U$8) -> 0 | V193: =SUM(N193:U193) -> 0
F194: AMI - Single Phase, two elements with 31.5A load control | G194: Single Phase Meter Population | H194: Direct Connect Meter Population | I194: Meter Type 4 | J194: Single phase two element with contactor - AMI | K194: AMI 1ph 2e | L194: $dollars | M194: 2024-06-01 | O194: 0 | P194: 0 | Q194: 0 | R194: 0 | S194: 0 | T194: 0 | U194: 0 | V194: 0
F195: AMI - 3 Phase with no load control | G195: Multi Phase Meter Population | H195: Direct Connect Meter Population | I195: Meter Type 4 | J195: Three phase - AMI | K195: AMI 3ph | L195: $dollars | M195: 2024-06-01 | O195: 0 | P195: 0 | Q195: 0 | R195: 0 | S195: 0 | T195: 0 | U195: 0 | V195: 0
F196: AMI - Single Phase, single element, with 31.5A load control | G196: Single Phase Meter Population | H196: Direct Connect Meter Population | I196: Meter Type 4 | J196: Single phase single element with contactor - AMI | K196: AMI 1ph DC | L196: $dollars | M196: 2024-06-01 | O196: 0 | P196: 0 | Q196: 0 | R196: 0 | S196: 0 | T196: 0 | U196: 0 | V196: 0
F197: AMI - 3 Phase with 31.5A and 2A load control | G197: Multi Phase Meter Population | H197: Direct Connect Meter Population | I197: Meter Type 4 | J197: Three phase direct connected meter with contactor - AMI | K197: AMI 3ph DC | L197: $dollars | M197: 2024-06-01 | O197: 0 | P197: 0 | Q197: 0 | R197: 0 | S197: 0 | T197: 0 | U197: 0 | V197: 0
F198: AMI - 3 Phase CT connect | G198: Multi Phase Meter Population | H198: Current Transformer Connected Meter Population | I198: Meter Type 4 | J198: Three phase Current transformer connected meter - AMI | K198: AMI 3ph CT | L198: $dollars | M198: 2024-06-01 | O198: 0 | P198: 0 | Q198: 0 | R198: 0 | S198: 0 | T198: 0 | U198: 0 | V198: 0
F199: AMI - 3 Phase CT & VT connect | G199: Multi Phase Meter Population | H199: Current Transformer Connected Meter Population | I199: Meter Type 4 | J199: Three phase Current transformer connected meter - AMI | K199: AMI 3ph CT VT | L199: $dollars | M199: 2024-06-01 | O199: 0 | P199: 0 | Q199: 0 | R199: 0 | S199: 0 | T199: 0 | U199: 0 | V199: 0
F200: Non AMI - Type 5 Locally read Interval - Single Phase | G200: Single Phase Meter Population | H200: Direct Connect Meter Population | I200: Meter Type 5 | J200: Single phase non off peak - MRIM | K200: INT 1ph | L200: $dollars | M200: 2024-06-01 | O200: 0 | P200: 0 | Q200: 0 | R200: 0 | S200: 0 | T200: 0 | U200: 0 | V200: 0
F201: Non AMI - Type 6 Locally read Accumulation - Single Phase | G201: Single Phase Meter Population | H201: Direct Connect Meter Population | I201: Meter Type 6 | J201: Single phase non off peak - Accumulation | K201: ACC 1ph | L201: $dollars | M201: 2024-06-01 | O201: 0 | P201: 0 | Q201: 0 | R201: 0 | S201: 0 | T201: 0 | U201: 0 | V201: 0
F202: Non AMI - Type 5 Locally read Interval - 3 Phase | G202: Multi Phase Meter Population | H202: Direct Connect Meter Population | I202: Meter Type 5 | J202: Multi phase direct connect - MRIM | K202: INT 3ph | L202: $dollars | M202: 2024-06-01 | O202: 0 | P202: 0 | Q202: 0 | R202: 0 | S202: 0 | T202: 0 | U202: 0 | V202: 0
F203: Non AMI - Type 6 Locally read Accumulation - 3 Phase | G203: Multi Phase Meter Population | H203: Direct Connect Meter Population | I203: Meter Type 6 | J203: Multi phase direct connect - Accumulation | K203: ACC 3ph | L203: $dollars | M203: 2024-06-01 | O203: 0 | P203: 0 | Q203: 0 | R203: 0 | S203: 0 | T203: 0 | U203: 0 | V203: 0
L204: $dollars | M204: 2024-06-01 | O204: 0 | P204: 0 | Q204: 0 | R204: 0 | S204: 0 | T204: 0 | U204: 0 | V204: 0
L205: $dollars | M205: 2024-06-01 | O205: 0 | P205: 0 | Q205: 0 | R205: 0 | S205: 0 | T205: 0 | U205: 0 | V205: 0
L206: $dollars | M206: 2024-06-01 | O206: 0 | P206: 0 | Q206: 0 | R206: 0 | S206: 0 | T206: 0 | U206: 0 | V206: 0
L207: $dollars | M207: 2024-06-01 | O207: 0 | P207: 0 | Q207: 0 | R207: 0 | S207: 0 | T207: 0 | U207: 0 | V207: 0
F208: Total | L208: $dollars | M208: 2024-06-01 | O208: =SUM(O193:O207) -> 0 | P208: =SUM(P193:P207) -> 0 | Q208: 0 | R208: 0 | S208: 0 | T208: 0 | U208: 0 | V208: =SUM(Q208:U208) -> 0
D210: TOTAL LABOUR COST
F212: =I_MeterTypes[[#Headers],[Meter Type]] -> Meter Type | G212: =I_MeterTypes[[#Headers],[RIN Subcategory 1]] -> RIN Subcategory 1 | H212: =I_MeterTypes[[#Headers],[RIN Subcategory 2]] -> RIN Subcategory 2 | I212: =I_MeterTypes[[#Headers],[AER Type]] -> AER Type | J212: =I_MeterTypes[[#Headers],[RIN Subcategory 3]] -> RIN Subcategory 3 | K212: =I_MeterTypes[[#Headers],[Meter Code]] -> Meter Code | L212: Units | M212: Basis | O212: =O$12 -> 2024-25 | P212: =P$12 -> 2025-26 | Q212: 2026-27 | R212: 2027-28 | S212: 2028-29 | T212: 2029-30 | U212: 2030-31 | V212: Total
F213: =I_MeterTypes[Meter Type] -> AMI - Single Phase, single element | G213: =I_MeterTypes[RIN Subcategory 1] -> Single Phase Meter Population | H213: =I_MeterTypes[RIN Subcategory 2] -> Direct Connect Meter Population | I213: =I_MeterTypes[AER Type] -> Meter Type 4 | J213: =I_MeterTypes[RIN Subcategory 3] -> Single phase single element - AMI | K213: =I_MeterTypes[Meter Code] -> AMI 1ph 1e | L213: $dollars | M213: =Basis_Capex -> 2024-06-01 | O213: =O13+O33+O53+O73+O93+O113+O133+O153+O173+O193 -> 1119309.403 | P213: =P13+P33+P53+P73+P93+P113+P133+P153+P173+P193 -> 2066313.446 | Q213: 1072269.713 | R213: 2915087.112 | S213: 4471199.227 | T213: 5399295.446 | U213: 6448893.909 | V213: =SUM(N213:U213) -> 23492368.26
F214: AMI - Single Phase, two elements with 31.5A load control | G214: Single Phase Meter Population | H214: Direct Connect Meter Population | I214: Meter Type 4 | J214: Single phase two element with contactor - AMI | K214: AMI 1ph 2e | L214: $dollars | M214: 2024-06-01 | O214: =O14+O34+O54+O74+O94+O114+O134+O154+O174+O194 -> 119320.7155 | P214: 122696.9617 | Q214: 153171.0176 | R214: 288237.8903 | S214: 404350.6403 | T214: 478133.3328 | U214: 564715.0857 | V214: 2130625.644
F215: AMI - 3 Phase with no load control | G215: Multi Phase Meter Population | H215: Direct Connect Meter Population | I215: Meter Type 4 | J215: Three phase - AMI | K215: AMI 3ph | L215: $dollars | M215: 2024-06-01 | O215: =O15+O35+O55+O75+O95+O115+O135+O155+O175+O195 -> 416540.7454 | P215: 894174.9738 | Q215: 274963.854 | R215: 653439.6015 | S215: 990022.0486 | T215: 1228047.4 | U215: 1533730.148 | V215: 5990918.771
F216: AMI - Single Phase, single element, with 31.5A load control | G216: Single Phase Meter Population | H216: Direct Connect Meter Population | I216: Meter Type 4 | J216: Single phase single element with contactor - AMI | K216: AMI 1ph DC | L216: $dollars | M216: 2024-06-01 | O216: =O16+O36+O56+O76+O96+O116+O136+O156+O176+O196 -> 69579.74473 | P216: 71548.54239 | Q216: 85296.66874 | R216: 136380.1413 | S216: 187815.5527 | T216: 236709.0707 | U216: 309286.7132 | V216: 1096616.434
F217: AMI - 3 Phase with 31.5A and 2A load control | G217: Multi Phase Meter Population | H217: Direct Connect Meter Population | I217: Meter Type 4 | J217: Three phase direct connected meter with contactor - AMI | K217: AMI 3ph DC | L217: $dollars | M217: 2024-06-01 | O217: =O17+O37+O57+O77+O97+O117+O137+O157+O177+O197 -> 34427.57481 | P217: 35401.72224 | Q217: 45332.83472 | R217: 83199.33603 | S217: 121751.297 | T217: 159176.0907 | U217: 215588.0254 | V217: 694876.881
F218: AMI - 3 Phase CT connect | G218: Multi Phase Meter Population | H218: Current Transformer Connected Meter Population | I218: Meter Type 4 | J218: Three phase Current transformer connected meter - AMI | K218: AMI 3ph CT | L218: $dollars | M218: 2024-06-01 | O218: =O18+O38+O58+O78+O98+O118+O138+O158+O178+O198 -> 35795.10984 | P218: 39690.84234 | Q218: 49295.40409 | R218: 84404.39393 | S218: 121279.8763 | T218: 159136.0928 | U218: 217371.0145 | V218: 706972.7337
F219: AMI - 3 Phase CT & VT connect | G219: Multi Phase Meter Population | H219: Current Transformer Connected Meter Population | I219: Meter Type 4 | J219: Three phase Current transformer connected meter - AMI | K219: AMI 3ph CT VT | L219: $dollars | M219: 2024-06-01 | O219: =O19+O39+O59+O79+O99+O119+O139+O159+O179+O199 -> 0 | P219: 0 | Q219: 0 | R219: 0 | S219: 0 | T219: 0 | U219: 0 | V219: 0
F220: Non AMI - Type 5 Locally read Interval - Single Phase | G220: Single Phase Meter Population | H220: Direct Connect Meter Population | I220: Meter Type 5 | J220: Single phase non off peak - MRIM | K220: INT 1ph | L220: $dollars | M220: 2024-06-01 | O220: =O20+O40+O60+O80+O100+O120+O140+O160+O180+O200 -> 1422.906778 | P220: 4324.642771 | Q220: 0 | R220: 0 | S220: 0 | T220: 0 | U220: 0 | V220: 5747.549549
F221: Non AMI - Type 6 Locally read Accumulation - Single Phase | G221: Single Phase Meter Population | H221: Direct Connect Meter Population | I221: Meter Type 6 | J221: Single phase non off peak - Accumulation | K221: ACC 1ph | L221: $dollars | M221: 2024-06-01 | O221: =O21+O41+O61+O81+O101+O121+O141+O161+O181+O201 -> 211934.0595 | P221: 644131.515 | Q221: 0 | R221: 0 | S221: 0 | T221: 0 | U221: 0 | V221: 856065.5745
F222: Non AMI - Type 5 Locally read Interval - 3 Phase | G222: Multi Phase Meter Population | H222: Direct Connect Meter Population | I222: Meter Type 5 | J222: Multi phase direct connect - MRIM | K222: INT 3ph | L222: $dollars | M222: 2024-06-01 | O222: =O22+O42+O62+O82+O102+O122+O142+O162+O182+O202 -> 474.3022593 | P222: 1441.54759 | Q222: 0 | R222: 0 | S222: 0 | T222: 0 | U222: 0 | V222: 1915.84985
F223: Non AMI - Type 6 Locally read Accumulation - 3 Phase | G223: Multi Phase Meter Population | H223: Direct Connect Meter Population | I223: Meter Type 6 | J223: Multi phase direct connect - Accumulation | K223: ACC 3ph | L223: $dollars | M223: 2024-06-01 | O223: =O23+O43+O63+O83+O103+O123+O143+O163+O183+O203 -> 104820.7993 | P223: 318582.0175 | Q223: 0 | R223: 0 | S223: 0 | T223: 0 | U223: 0 | V223: 423402.8168
L224: $dollars | M224: 2024-06-01 | O224: =O24+O44+O64+O84+O104+O124+O144+O164+O184+O204 -> 0 | P224: 0 | Q224: 0 | R224: 0 | S224: 0 | T224: 0 | U224: 0 | V224: 0
L225: $dollars | M225: 2024-06-01 | O225: =O25+O45+O65+O85+O105+O125+O145+O165+O185+O205 -> 0 | P225: 0 | Q225: 0 | R225: 0 | S225: 0 | T225: 0 | U225: 0 | V225: 0
... 383 more rows

Sheet Calc | Capex Comm, IT, Other
B1: ='Input|General'!B1&" v"&'Input|General'!$D$2 -> AER Metering Opex & Capex Forecasting Model v1.08
B2: =MID(CELL("filename",A1),FIND("]",CELL("filename",A1))+1,255) -> Calc | Capex Comm, IT, Other
A7: CALC | Comms
B10: a | C10: Equipment cost
E11: Equipment Type | F11: Action/Driver | G11: Units | H11: Basis | J11: ='Input | Comms, IT, Other'!J$82 -> 2023-24 | K11: ='Input | Comms, IT, Other'!K$82 -> 2024-25 | L11: ='Input | Comms, IT, Other'!L$82 -> 2025-26 | M11: ='Input | Comms, IT, Other'!M$82 -> 2026-27 | N11: ='Input | Comms, IT, Other'!N$82 -> 2027-28 | O11: ='Input | Comms, IT, Other'!O$82 -> 2028-29 | P11: ='Input | Comms, IT, Other'!P$82 -> 2029-30 | Q11: ='Input | Comms, IT, Other'!Q$82 -> 2030-31
E12: =ICC_AllocFields -> Access Points | F12: Growth | G12: $dollars | H12: =Basis_Capex -> 2024-06-01 | J12: ='Input | Comms, IT, Other'!J202*'Input | Comms, IT, Other'!$I45*IF('Input | Comms, IT, Other'!$H45="Yes",'Input| Prices'!J$59,1) -> 0 | K12: ='Input | Comms, IT, Other'!K202*'Input | Comms, IT, Other'!$I45*IF('Input | Comms, IT, Other'!$H45="Yes",'Input| Prices'!K$59,1) -> 162221.3753 | L12: ='Input | Comms, IT, Other'!L202*'Input | Comms, IT, Other'!$I45*IF('Input | Comms, IT, Other'!$H45="Yes",'Input| Prices'!L$59,1) -> 500182.5738 | M12: ='Input | Comms, IT, Other'!M202*'Input | Comms, IT, Other'!$I45*IF('Input | Comms, IT, Other'!$H45="Yes",'Input| Prices'!M$59,1) -> 1013883.596 | N12: ='Input | Comms, IT, Other'!N202*'Input | Comms, IT, Other'!$I45*IF('Input | Comms, IT, Other'!$H45="Yes",'Input| Prices'!N$59,1) -> 1054438.939 | O12: ='Input | Comms, IT, Other'!O202*'Input | Comms, IT, Other'!$I45*IF('Input | Comms, IT, Other'!$H45="Yes",'Input| Prices'!O$59,1) -> 689440.845 | P12: ='Input | Comms, IT, Other'!P202*'Input | Comms, IT, Other'!$I45*IF('Input | Comms, IT, Other'!$H45="Yes",'Input| Prices'!P$59,1) -> 729996.1889 | Q12: ='Input | Comms, IT, Other'!Q202*'Input | Comms, IT, Other'!$I45*IF('Input | Comms, IT, Other'!$H45="Yes",'Input| Prices'!Q$59,1) -> 770551.5327
E13: Access Points | F13: Maintenance (Failure/Faults) | G13: $dollars | H13: 2024-06-01 | J13: ='Input | Comms, IT, Other'!J203*'Input | Comms, IT, Other'!$I46*IF('Input | Comms, IT, Other'!$H46="Yes",'Input| Prices'!J$59,1) -> 0 | K13: ='Input | Comms, IT, Other'!K203*'Input | Comms, IT, Other'!$I46*IF('Input | Comms, IT, Other'!$H46="Yes",'Input| Prices'!K$59,1) -> 41847.95703 | L13: ='Input | Comms, IT, Other'!L203*'Input | Comms, IT, Other'!$I46*IF('Input | Comms, IT, Other'!$H46="Yes",'Input| Prices'!L$59,1) -> 41847.95703 | M13: ='Input | Comms, IT, Other'!M203*'Input | Comms, IT, Other'!$I46*IF('Input | Comms, IT, Other'!$H46="Yes",'Input| Prices'!M$59,1) -> 41847.95703 | N13: ='Input | Comms, IT, Other'!N203*'Input | Comms, IT, Other'!$I46*IF('Input | Comms, IT, Other'!$H46="Yes",'Input| Prices'!N$59,1) -> 52309.94628 | O13: ='Input | Comms, IT, Other'!O203*'Input | Comms, IT, Other'!$I46*IF('Input | Comms, IT, Other'!$H46="Yes",'Input| Prices'!O$59,1) -> 52309.94628 | P13: ='Input | Comms, IT, Other'!P203*'Input | Comms, IT, Other'!$I46*IF('Input | Comms, IT, Other'!$H46="Yes",'Input| Prices'!P$59,1) -> 52309.94628 | Q13: ='Input | Comms, IT, Other'!Q203*'Input | Comms, IT, Other'!$I46*IF('Input | Comms, IT, Other'!$H46="Yes",'Input| Prices'!Q$59,1) -> 62771.93554
E14: Access Points | F14: End of life | G14: $dollars | H14: 2024-06-01 | J14: ='Input | Comms, IT, Other'!J204*'Input | Comms, IT, Other'!$I47*IF('Input | Comms, IT, Other'!$H47="Yes",'Input| Prices'!J$59,1) -> 0 | K14: ='Input | Comms, IT, Other'!K204*'Input | Comms, IT, Other'!$I47*IF('Input | Comms, IT, Other'!$H47="Yes",'Input| Prices'!K$59,1) -> 10461.98926 | L14: ='Input | Comms, IT, Other'!L204*'Input | Comms, IT, Other'!$I47*IF('Input | Comms, IT, Other'!$H47="Yes",'Input| Prices'!L$59,1) -> 10461.98926 | M14: ='Input | Comms, IT, Other'!M204*'Input | Comms, IT, Other'!$I47*IF('Input | Comms, IT, Other'!$H47="Yes",'Input| Prices'!M$59,1) -> 10461.98926 | N14: ='Input | Comms, IT, Other'!N204*'Input | Comms, IT, Other'!$I47*IF('Input | Comms, IT, Other'!$H47="Yes",'Input| Prices'!N$59,1) -> 523099.4628 | O14: ='Input | Comms, IT, Other'!O204*'Input | Comms, IT, Other'!$I47*IF('Input | Comms, IT, Other'!$H47="Yes",'Input| Prices'!O$59,1) -> 732339.2479 | P14: ='Input | Comms, IT, Other'!P204*'Input | Comms, IT, Other'!$I47*IF('Input | Comms, IT, Other'!$H47="Yes",'Input| Prices'!P$59,1) -> 836959.1405 | Q14: ='Input | Comms, IT, Other'!Q204*'Input | Comms, IT, Other'!$I47*IF('Input | Comms, IT, Other'!$H47="Yes",'Input| Prices'!Q$59,1) -> 836959.1405
E15: Relays | F15: Growth | G15: $dollars | H15: 2024-06-01 | J15: ='Input | Comms, IT, Other'!J205*'Input | Comms, IT, Other'!$I48*IF('Input | Comms, IT, Other'!$H48="Yes",'Input| Prices'!J$59,1) -> 0 | K15: ='Input | Comms, IT, Other'!K205*'Input | Comms, IT, Other'!$I48*IF('Input | Comms, IT, Other'!$H48="Yes",'Input| Prices'!K$59,1) -> 0 | L15: ='Input | Comms, IT, Other'!L205*'Input | Comms, IT, Other'!$I48*IF('Input | Comms, IT, Other'!$H48="Yes",'Input| Prices'!L$59,1) -> 0 | M15: ='Input | Comms, IT, Other'!M205*'Input | Comms, IT, Other'!$I48*IF('Input | Comms, IT, Other'!$H48="Yes",'Input| Prices'!M$59,1) -> 0 | N15: ='Input | Comms, IT, Other'!N205*'Input | Comms, IT, Other'!$I48*IF('Input | Comms, IT, Other'!$H48="Yes",'Input| Prices'!N$59,1) -> 0 | O15: ='Input | Comms, IT, Other'!O205*'Input | Comms, IT, Other'!$I48*IF('Input | Comms, IT, Other'!$H48="Yes",'Input| Prices'!O$59,1) -> 0 | P15: ='Input | Comms, IT, Other'!P205*'Input | Comms, IT, Other'!$I48*IF('Input | Comms, IT, Other'!$H48="Yes",'Input| Prices'!P$59,1) -> 0 | Q15: ='Input | Comms, IT, Other'!Q205*'Input | Comms, IT, Other'!$I48*IF('Input | Comms, IT, Other'!$H48="Yes",'Input| Prices'!Q$59,1) -> 0
E16: Relays | F16: Maintenance (Failure/Faults) | G16: $dollars | H16: 2024-06-01 | J16: ='Input | Comms, IT, Other'!J206*'Input | Comms, IT, Other'!$I49*IF('Input | Comms, IT, Other'!$H49="Yes",'Input| Prices'!J$59,1) -> 0 | K16: ='Input | Comms, IT, Other'!K206*'Input | Comms, IT, Other'!$I49*IF('Input | Comms, IT, Other'!$H49="Yes",'Input| Prices'!K$59,1) -> 16679.72531 | L16: ='Input | Comms, IT, Other'!L206*'Input | Comms, IT, Other'!$I49*IF('Input | Comms, IT, Other'!$H49="Yes",'Input| Prices'!L$59,1) -> 16679.72531 | M16: ='Input | Comms, IT, Other'!M206*'Input | Comms, IT, Other'!$I49*IF('Input | Comms, IT, Other'!$H49="Yes",'Input| Prices'!M$59,1) -> 16679.72531 | N16: ='Input | Comms, IT, Other'!N206*'Input | Comms, IT, Other'!$I49*IF('Input | Comms, IT, Other'!$H49="Yes",'Input| Prices'!N$59,1) -> 22239.63375 | O16: ='Input | Comms, IT, Other'!O206*'Input | Comms, IT, Other'!$I49*IF('Input | Comms, IT, Other'!$H49="Yes",'Input| Prices'!O$59,1) -> 22239.63375 | P16: ='Input | Comms, IT, Other'!P206*'Input | Comms, IT, Other'!$I49*IF('Input | Comms, IT, Other'!$H49="Yes",'Input| Prices'!P$59,1) -> 22239.63375 | Q16: ='Input | Comms, IT, Other'!Q206*'Input | Comms, IT, Other'!$I49*IF('Input | Comms, IT, Other'!$H49="Yes",'Input| Prices'!Q$59,1) -> 25019.58797
E17: Relays | F17: End of life | G17: $dollars | H17: 2024-06-01 | J17: ='Input | Comms, IT, Other'!J207*'Input | Comms, IT, Other'!$I50*IF('Input | Comms, IT, Other'!$H50="Yes",'Input| Prices'!J$59,1) -> 0 | K17: ='Input | Comms, IT, Other'!K207*'Input | Comms, IT, Other'!$I50*IF('Input | Comms, IT, Other'!$H50="Yes",'Input| Prices'!K$59,1) -> 0 | L17: ='Input | Comms, IT, Other'!L207*'Input | Comms, IT, Other'!$I50*IF('Input | Comms, IT, Other'!$H50="Yes",'Input| Prices'!L$59,1) -> 55599.08438 | M17: ='Input | Comms, IT, Other'!M207*'Input | Comms, IT, Other'!$I50*IF('Input | Comms, IT, Other'!$H50="Yes",'Input| Prices'!M$59,1) -> 138997.7109 | N17: ='Input | Comms, IT, Other'!N207*'Input | Comms, IT, Other'!$I50*IF('Input | Comms, IT, Other'!$H50="Yes",'Input| Prices'!N$59,1) -> 166797.2531 | O17: ='Input | Comms, IT, Other'!O207*'Input | Comms, IT, Other'!$I50*IF('Input | Comms, IT, Other'!$H50="Yes",'Input| Prices'!O$59,1) -> 180697.0242 | P17: ='Input | Comms, IT, Other'!P207*'Input | Comms, IT, Other'!$I50*IF('Input | Comms, IT, Other'!$H50="Yes",'Input| Prices'!P$59,1) -> 41699.31328 | Q17: ='Input | Comms, IT, Other'!Q207*'Input | Comms, IT, Other'!$I50*IF('Input | Comms, IT, Other'!$H50="Yes",'Input| Prices'!Q$59,1) -> 41699.31328
E18: Micro AP | F18: Growth | G18: $dollars | H18: 2024-06-01 | J18: ='Input | Comms, IT, Other'!J208*'Input | Comms, IT, Other'!$I51*IF('Input | Comms, IT, Other'!$H51="Yes",'Input| Prices'!J$59,1) -> 0 | K18: ='Input | Comms, IT, Other'!K208*'Input | Comms, IT, Other'!$I51*IF('Input | Comms, IT, Other'!$H51="Yes",'Input| Prices'!K$59,1) -> 14457.74988 | L18: ='Input | Comms, IT, Other'!L208*'Input | Comms, IT, Other'!$I51*IF('Input | Comms, IT, Other'!$H51="Yes",'Input| Prices'!L$59,1) -> 19879.40608 | M18: ='Input | Comms, IT, Other'!M208*'Input | Comms, IT, Other'!$I51*IF('Input | Comms, IT, Other'!$H51="Yes",'Input| Prices'!M$59,1) -> 21686.62482 | N18: ='Input | Comms, IT, Other'!N208*'Input | Comms, IT, Other'!$I51*IF('Input | Comms, IT, Other'!$H51="Yes",'Input| Prices'!N$59,1) -> 21686.62482 | O18: ='Input | Comms, IT, Other'!O208*'Input | Comms, IT, Other'!$I51*IF('Input | Comms, IT, Other'!$H51="Yes",'Input| Prices'!O$59,1) -> 18795.07484 | P18: ='Input | Comms, IT, Other'!P208*'Input | Comms, IT, Other'!$I51*IF('Input | Comms, IT, Other'!$H51="Yes",'Input| Prices'!P$59,1) -> 18795.07484 | Q18: ='Input | Comms, IT, Other'!Q208*'Input | Comms, IT, Other'!$I51*IF('Input | Comms, IT, Other'!$H51="Yes",'Input| Prices'!Q$59,1) -> 18795.07484
E19: Micro AP | F19: Maintenance (Failure/Faults) | G19: $dollars | H19: 2024-06-01 | J19: ='Input | Comms, IT, Other'!J209*'Input | Comms, IT, Other'!$I52*IF('Input | Comms, IT, Other'!$H52="Yes",'Input| Prices'!J$59,1) -> 0 | K19: ='Input | Comms, IT, Other'!K209*'Input | Comms, IT, Other'!$I52*IF('Input | Comms, IT, Other'!$H52="Yes",'Input| Prices'!K$59,1) -> 361.443747 | L19: ='Input | Comms, IT, Other'!L209*'Input | Comms, IT, Other'!$I52*IF('Input | Comms, IT, Other'!$H52="Yes",'Input| Prices'!L$59,1) -> 361.443747 | M19: ='Input | Comms, IT, Other'!M209*'Input | Comms, IT, Other'!$I52*IF('Input | Comms, IT, Other'!$H52="Yes",'Input| Prices'!M$59,1) -> 722.887494 | N19: ='Input | Comms, IT, Other'!N209*'Input | Comms, IT, Other'!$I52*IF('Input | Comms, IT, Other'!$H52="Yes",'Input| Prices'!N$59,1) -> 722.887494 | O19: ='Input | Comms, IT, Other'!O209*'Input | Comms, IT, Other'!$I52*IF('Input | Comms, IT, Other'!$H52="Yes",'Input| Prices'!O$59,1) -> 1084.331241 | P19: ='Input | Comms, IT, Other'!P209*'Input | Comms, IT, Other'!$I52*IF('Input | Comms, IT, Other'!$H52="Yes",'Input| Prices'!P$59,1) -> 1084.331241 | Q19: ='Input | Comms, IT, Other'!Q209*'Input | Comms, IT, Other'!$I52*IF('Input | Comms, IT, Other'!$H52="Yes",'Input| Prices'!Q$59,1) -> 1084.331241
E20: Micro AP | F20: End of life | G20: $dollars | H20: 2024-06-01 | J20: ='Input | Comms, IT, Other'!J210*'Input | Comms, IT, Other'!$I53*IF('Input | Comms, IT, Other'!$H53="Yes",'Input| Prices'!J$59,1) -> 0 | K20: ='Input | Comms, IT, Other'!K210*'Input | Comms, IT, Other'!$I53*IF('Input | Comms, IT, Other'!$H53="Yes",'Input| Prices'!K$59,1) -> 0 | L20: ='Input | Comms, IT, Other'!L210*'Input | Comms, IT, Other'!$I53*IF('Input | Comms, IT, Other'!$H53="Yes",'Input| Prices'!L$59,1) -> 0 | M20: ='Input | Comms, IT, Other'!M210*'Input | Comms, IT, Other'!$I53*IF('Input | Comms, IT, Other'!$H53="Yes",'Input| Prices'!M$59,1) -> 0 | N20: ='Input | Comms, IT, Other'!N210*'Input | Comms, IT, Other'!$I53*IF('Input | Comms, IT, Other'!$H53="Yes",'Input| Prices'!N$59,1) -> 18072.18735 | O20: ='Input | Comms, IT, Other'!O210*'Input | Comms, IT, Other'!$I53*IF('Input | Comms, IT, Other'!$H53="Yes",'Input| Prices'!O$59,1) -> 19879.40608 | P20: ='Input | Comms, IT, Other'!P210*'Input | Comms, IT, Other'!$I53*IF('Input | Comms, IT, Other'!$H53="Yes",'Input| Prices'!P$59,1) -> 36144.3747 | Q20: ='Input | Comms, IT, Other'!Q210*'Input | Comms, IT, Other'!$I53*IF('Input | Comms, IT, Other'!$H53="Yes",'Input| Prices'!Q$59,1) -> 39758.81217
E21: Poles | F21: Growth | G21: $dollars | H21: 2024-06-01 | J21: ='Input | Comms, IT, Other'!J211*'Input | Comms, IT, Other'!$I54*IF(('Input | Comms, IT, Other'!$H54)="Yes",'Input| Prices'!J$59,1) -> 0 | K21: ='Input | Comms, IT, Other'!K211*'Input | Comms, IT, Other'!$I54*IF('Input | Comms, IT, Other'!$H54="Yes",'Input| Prices'!K$59,1) -> 14805.1114 | L21: ='Input | Comms, IT, Other'!L211*'Input | Comms, IT, Other'!$I54*IF('Input | Comms, IT, Other'!$H54="Yes",'Input| Prices'!L$59,1) -> 33311.50066 | M21: ='Input | Comms, IT, Other'!M211*'Input | Comms, IT, Other'!$I54*IF('Input | Comms, IT, Other'!$H54="Yes",'Input| Prices'!M$59,1) -> 37012.77851 | N21: ='Input | Comms, IT, Other'!N211*'Input | Comms, IT, Other'!$I54*IF('Input | Comms, IT, Other'!$H54="Yes",'Input| Prices'!N$59,1) -> 40714.05636 | O21: ='Input | Comms, IT, Other'!O211*'Input | Comms, IT, Other'!$I54*IF('Input | Comms, IT, Other'!$H54="Yes",'Input| Prices'!O$59,1) -> 44415.33421 | P21: ='Input | Comms, IT, Other'!P211*'Input | Comms, IT, Other'!$I54*IF('Input | Comms, IT, Other'!$H54="Yes",'Input| Prices'!P$59,1) -> 48116.61206 | Q21: ='Input | Comms, IT, Other'!Q211*'Input | Comms, IT, Other'!$I54*IF('Input | Comms, IT, Other'!$H54="Yes",'Input| Prices'!Q$59,1) -> 51817.88991
E22: Poles | F22: Replacements | G22: $dollars | H22: 2024-06-01 | J22: ='Input | Comms, IT, Other'!J212*'Input | Comms, IT, Other'!$I55*IF('Input | Comms, IT, Other'!$H55="Yes",'Input| Prices'!J$59,1) -> 0 | K22: ='Input | Comms, IT, Other'!K212*'Input | Comms, IT, Other'!$I55*IF('Input | Comms, IT, Other'!$H55="Yes",'Input| Prices'!K$59,1) -> 0 | L22: ='Input | Comms, IT, Other'!L212*'Input | Comms, IT, Other'!$I55*IF('Input | Comms, IT, Other'!$H55="Yes",'Input| Prices'!L$59,1) -> 0 | M22: ='Input | Comms, IT, Other'!M212*'Input | Comms, IT, Other'!$I55*IF('Input | Comms, IT, Other'!$H55="Yes",'Input| Prices'!M$59,1) -> 0 | N22: ='Input | Comms, IT, Other'!N212*'Input | Comms, IT, Other'!$I55*IF('Input | Comms, IT, Other'!$H55="Yes",'Input| Prices'!N$59,1) -> 0 | O22: ='Input | Comms, IT, Other'!O212*'Input | Comms, IT, Other'!$I55*IF('Input | Comms, IT, Other'!$H55="Yes",'Input| Prices'!O$59,1) -> 0 | P22: ='Input | Comms, IT, Other'!P212*'Input | Comms, IT, Other'!$I55*IF('Input | Comms, IT, Other'!$H55="Yes",'Input| Prices'!P$59,1) -> 0 | Q22: ='Input | Comms, IT, Other'!Q212*'Input | Comms, IT, Other'!$I55*IF('Input | Comms, IT, Other'!$H55="Yes",'Input| Prices'!Q$59,1) -> 0
E23: Batteries | F23: Growth | G23: $dollars | H23: 2024-06-01 | J23: ='Input | Comms, IT, Other'!J213*'Input | Comms, IT, Other'!$I56*IF('Input | Comms, IT, Other'!$H56="Yes",'Input| Prices'!J$59,1) -> 0 | K23: ='Input | Comms, IT, Other'!K213*'Input | Comms, IT, Other'!$I56*IF('Input | Comms, IT, Other'!$H56="Yes",'Input| Prices'!K$59,1) -> 29276.94351 | L23: ='Input | Comms, IT, Other'!L213*'Input | Comms, IT, Other'!$I56*IF('Input | Comms, IT, Other'!$H56="Yes",'Input| Prices'!L$59,1) -> 90270.57581 | M23: ='Input | Comms, IT, Other'!M213*'Input | Comms, IT, Other'!$I56*IF('Input | Comms, IT, Other'!$H56="Yes",'Input| Prices'!M$59,1) -> 182980.8969 | N23: ='Input | Comms, IT, Other'!N213*'Input | Comms, IT, Other'!$I56*IF('Input | Comms, IT, Other'!$H56="Yes",'Input| Prices'!N$59,1) -> 190300.1328 | O23: ='Input | Comms, IT, Other'!O213*'Input | Comms, IT, Other'!$I56*IF('Input | Comms, IT, Other'!$H56="Yes",'Input| Prices'!O$59,1) -> 124427.0099 | P23: ='Input | Comms, IT, Other'!P213*'Input | Comms, IT, Other'!$I56*IF('Input | Comms, IT, Other'!$H56="Yes",'Input| Prices'!P$59,1) -> 131746.2458 | Q23: ='Input | Comms, IT, Other'!Q213*'Input | Comms, IT, Other'!$I56*IF('Input | Comms, IT, Other'!$H56="Yes",'Input| Prices'!Q$59,1) -> 139065.4817
E24: Batteries | F24: Maintenance (Failure/Faults) | G24: $dollars | H24: 2024-06-01 | J24: ='Input | Comms, IT, Other'!J214*'Input | Comms, IT, Other'!$I57*IF('Input | Comms, IT, Other'!$H57="Yes",'Input| Prices'!J$59,1) -> 0 | K24: ='Input | Comms, IT, Other'!K214*'Input | Comms, IT, Other'!$I57*IF('Input | Comms, IT, Other'!$H57="Yes",'Input| Prices'!K$59,1) -> 17078.21704 | L24: ='Input | Comms, IT, Other'!L214*'Input | Comms, IT, Other'!$I57*IF('Input | Comms, IT, Other'!$H57="Yes",'Input| Prices'!L$59,1) -> 17078.21704 | M24: ='Input | Comms, IT, Other'!M214*'Input | Comms, IT, Other'!$I57*IF('Input | Comms, IT, Other'!$H57="Yes",'Input| Prices'!M$59,1) -> 17078.21704 | N24: ='Input | Comms, IT, Other'!N214*'Input | Comms, IT, Other'!$I57*IF('Input | Comms, IT, Other'!$H57="Yes",'Input| Prices'!N$59,1) -> 17078.21704 | O24: ='Input | Comms, IT, Other'!O214*'Input | Comms, IT, Other'!$I57*IF('Input | Comms, IT, Other'!$H57="Yes",'Input| Prices'!O$59,1) -> 17078.21704 | P24: ='Input | Comms, IT, Other'!P214*'Input | Comms, IT, Other'!$I57*IF('Input | Comms, IT, Other'!$H57="Yes",'Input| Prices'!P$59,1) -> 17078.21704 | Q24: ='Input | Comms, IT, Other'!Q214*'Input | Comms, IT, Other'!$I57*IF('Input | Comms, IT, Other'!$H57="Yes",'Input| Prices'!Q$59,1) -> 17078.21704
E25: Batteries | F25: End of life | G25: $dollars | H25: 2024-06-01 | J25: ='Input | Comms, IT, Other'!J215*'Input | Comms, IT, Other'!$I58*IF('Input | Comms, IT, Other'!$H58="Yes",'Input| Prices'!J$59,1) -> 0 | K25: ='Input | Comms, IT, Other'!K215*'Input | Comms, IT, Other'!$I58*IF('Input | Comms, IT, Other'!$H58="Yes",'Input| Prices'!K$59,1) -> 0 | L25: ='Input | Comms, IT, Other'!L215*'Input | Comms, IT, Other'!$I58*IF('Input | Comms, IT, Other'!$H58="Yes",'Input| Prices'!L$59,1) -> 48794.90584 | M25: ='Input | Comms, IT, Other'!M215*'Input | Comms, IT, Other'!$I58*IF('Input | Comms, IT, Other'!$H58="Yes",'Input| Prices'!M$59,1) -> 121987.2646 | N25: ='Input | Comms, IT, Other'!N215*'Input | Comms, IT, Other'!$I58*IF('Input | Comms, IT, Other'!$H58="Yes",'Input| Prices'!N$59,1) -> 146384.7175 | O25: ='Input | Comms, IT, Other'!O215*'Input | Comms, IT, Other'!$I58*IF('Input | Comms, IT, Other'!$H58="Yes",'Input| Prices'!O$59,1) -> 158583.444 | P25: ='Input | Comms, IT, Other'!P215*'Input | Comms, IT, Other'!$I58*IF('Input | Comms, IT, Other'!$H58="Yes",'Input| Prices'!P$59,1) -> 36596.17938 | Q25: ='Input | Comms, IT, Other'!Q215*'Input | Comms, IT, Other'!$I58*IF('Input | Comms, IT, Other'!$H58="Yes",'Input| Prices'!Q$59,1) -> 36596.17938
E26: External Antenna in Buildings | F26: Growth | G26: $dollars | H26: 2024-06-01 | J26: ='Input | Comms, IT, Other'!J216*'Input | Comms, IT, Other'!$I59*IF('Input | Comms, IT, Other'!$H59="Yes",'Input| Prices'!J$59,1) -> 0 | K26: ='Input | Comms, IT, Other'!K216*'Input | Comms, IT, Other'!$I59*IF('Input | Comms, IT, Other'!$H59="Yes",'Input| Prices'!K$59,1) -> 3069.533639 | L26: ='Input | Comms, IT, Other'!L216*'Input | Comms, IT, Other'!$I59*IF('Input | Comms, IT, Other'!$H59="Yes",'Input| Prices'!L$59,1) -> 3683.440367 | M26: ='Input | Comms, IT, Other'!M216*'Input | Comms, IT, Other'!$I59*IF('Input | Comms, IT, Other'!$H59="Yes",'Input| Prices'!M$59,1) -> 4604.300459 | N26: ='Input | Comms, IT, Other'!N216*'Input | Comms, IT, Other'!$I59*IF('Input | Comms, IT, Other'!$H59="Yes",'Input| Prices'!N$59,1) -> 5218.207187 | O26: ='Input | Comms, IT, Other'!O216*'Input | Comms, IT, Other'!$I59*IF('Input | Comms, IT, Other'!$H59="Yes",'Input| Prices'!O$59,1) -> 5832.113914 | P26: ='Input | Comms, IT, Other'!P216*'Input | Comms, IT, Other'!$I59*IF('Input | Comms, IT, Other'!$H59="Yes",'Input| Prices'!P$59,1) -> 6446.020642 | Q26: ='Input | Comms, IT, Other'!Q216*'Input | Comms, IT, Other'!$I59*IF('Input | Comms, IT, Other'!$H59="Yes",'Input| Prices'!Q$59,1) -> 7059.92737
E27: External Antenna in Buildings | F27: Maintenance (Failure/Faults) | G27: $dollars | H27: 2024-06-01 | J27: ='Input | Comms, IT, Other'!J217*'Input | Comms, IT, Other'!$I60*IF('Input | Comms, IT, Other'!$H60="Yes",'Input| Prices'!J$59,1) -> 0 | K27: ='Input | Comms, IT, Other'!K217*'Input | Comms, IT, Other'!$I60*IF('Input | Comms, IT, Other'!$H60="Yes",'Input| Prices'!K$59,1) -> 613.9067278 | L27: ='Input | Comms, IT, Other'!L217*'Input | Comms, IT, Other'!$I60*IF('Input | Comms, IT, Other'!$H60="Yes",'Input| Prices'!L$59,1) -> 613.9067278 | M27: ='Input | Comms, IT, Other'!M217*'Input | Comms, IT, Other'!$I60*IF('Input | Comms, IT, Other'!$H60="Yes",'Input| Prices'!M$59,1) -> 1534.76682 | N27: ='Input | Comms, IT, Other'!N217*'Input | Comms, IT, Other'!$I60*IF('Input | Comms, IT, Other'!$H60="Yes",'Input| Prices'!N$59,1) -> 1534.76682 | O27: ='Input | Comms, IT, Other'!O217*'Input | Comms, IT, Other'!$I60*IF('Input | Comms, IT, Other'!$H60="Yes",'Input| Prices'!O$59,1) -> 2148.673547 | P27: ='Input | Comms, IT, Other'!P217*'Input | Comms, IT, Other'!$I60*IF('Input | Comms, IT, Other'!$H60="Yes",'Input| Prices'!P$59,1) -> 2148.673547 | Q27: ='Input | Comms, IT, Other'!Q217*'Input | Comms, IT, Other'!$I60*IF('Input | Comms, IT, Other'!$H60="Yes",'Input| Prices'!Q$59,1) -> 3069.533639
E28: External Antenna in Buildings | F28: End of life | G28: $dollars | H28: 2024-06-01 | J28: ='Input | Comms, IT, Other'!J218*'Input | Comms, IT, Other'!$I61*IF('Input | Comms, IT, Other'!$H61="Yes",'Input| Prices'!J$59,1) -> 0 | K28: ='Input | Comms, IT, Other'!K218*'Input | Comms, IT, Other'!$I61*IF('Input | Comms, IT, Other'!$H61="Yes",'Input| Prices'!K$59,1) -> 0 | L28: ='Input | Comms, IT, Other'!L218*'Input | Comms, IT, Other'!$I61*IF('Input | Comms, IT, Other'!$H61="Yes",'Input| Prices'!L$59,1) -> 0 | M28: ='Input | Comms, IT, Other'!M218*'Input | Comms, IT, Other'!$I61*IF('Input | Comms, IT, Other'!$H61="Yes",'Input| Prices'!M$59,1) -> 0 | N28: ='Input | Comms, IT, Other'!N218*'Input | Comms, IT, Other'!$I61*IF('Input | Comms, IT, Other'!$H61="Yes",'Input| Prices'!N$59,1) -> 0 | O28: ='Input | Comms, IT, Other'!O218*'Input | Comms, IT, Other'!$I61*IF('Input | Comms, IT, Other'!$H61="Yes",'Input| Prices'!O$59,1) -> 0 | P28: ='Input | Comms, IT, Other'!P218*'Input | Comms, IT, Other'!$I61*IF('Input | Comms, IT, Other'!$H61="Yes",'Input| Prices'!P$59,1) -> 6139.067278 | Q28: ='Input | Comms, IT, Other'!Q218*'Input | Comms, IT, Other'!$I61*IF('Input | Comms, IT, Other'!$H61="Yes",'Input| Prices'!Q$59,1) -> 9208.600917
E29: Antennas | F29: Growth | G29: $dollars | H29: 2024-06-01 | J29: ='Input | Comms, IT, Other'!J219*'Input | Comms, IT, Other'!$I62*IF('Input | Comms, IT, Other'!$H62="Yes",'Input| Prices'!J$59,1) -> 0 | K29: ='Input | Comms, IT, Other'!K219*'Input | Comms, IT, Other'!$I62*IF('Input | Comms, IT, Other'!$H62="Yes",'Input| Prices'!K$59,1) -> 5876.336009 | L29: ='Input | Comms, IT, Other'!L219*'Input | Comms, IT, Other'!$I62*IF('Input | Comms, IT, Other'!$H62="Yes",'Input| Prices'!L$59,1) -> 6346.44289 | M29: ='Input | Comms, IT, Other'!M219*'Input | Comms, IT, Other'!$I62*IF('Input | Comms, IT, Other'!$H62="Yes",'Input| Prices'!M$59,1) -> 6816.549771 | N29: ='Input | Comms, IT, Other'!N219*'Input | Comms, IT, Other'!$I62*IF('Input | Comms, IT, Other'!$H62="Yes",'Input| Prices'!N$59,1) -> 7286.656651 | O29: ='Input | Comms, IT, Other'!O219*'Input | Comms, IT, Other'!$I62*IF('Input | Comms, IT, Other'!$H62="Yes",'Input| Prices'!O$59,1) -> 7756.763532 | P29: ='Input | Comms, IT, Other'!P219*'Input | Comms, IT, Other'!$I62*IF('Input | Comms, IT, Other'!$H62="Yes",'Input| Prices'!P$59,1) -> 8226.870413 | Q29: ='Input | Comms, IT, Other'!Q219*'Input | Comms, IT, Other'!$I62*IF('Input | Comms, IT, Other'!$H62="Yes",'Input| Prices'!Q$59,1) -> 8696.977294
E30: Antennas | F30: Maintenance (Failure/Faults) | G30: $dollars | H30: 2024-06-01 | J30: ='Input | Comms, IT, Other'!J220*'Input | Comms, IT, Other'!$I63*IF('Input | Comms, IT, Other'!$H63="Yes",'Input| Prices'!J$59,1) -> 0 | K30: ='Input | Comms, IT, Other'!K220*'Input | Comms, IT, Other'!$I63*IF('Input | Comms, IT, Other'!$H63="Yes",'Input| Prices'!K$59,1) -> 235.0534404 | L30: ='Input | Comms, IT, Other'!L220*'Input | Comms, IT, Other'!$I63*IF('Input | Comms, IT, Other'!$H63="Yes",'Input| Prices'!L$59,1) -> 235.0534404 | M30: ='Input | Comms, IT, Other'!M220*'Input | Comms, IT, Other'!$I63*IF('Input | Comms, IT, Other'!$H63="Yes",'Input| Prices'!M$59,1) -> 352.5801606 | N30: ='Input | Comms, IT, Other'!N220*'Input | Comms, IT, Other'!$I63*IF('Input | Comms, IT, Other'!$H63="Yes",'Input| Prices'!N$59,1) -> 352.5801606 | O30: ='Input | Comms, IT, Other'!O220*'Input | Comms, IT, Other'!$I63*IF('Input | Comms, IT, Other'!$H63="Yes",'Input| Prices'!O$59,1) -> 470.1068807 | P30: ='Input | Comms, IT, Other'!P220*'Input | Comms, IT, Other'!$I63*IF('Input | Comms, IT, Other'!$H63="Yes",'Input| Prices'!P$59,1) -> 470.1068807 | Q30: ='Input | Comms, IT, Other'!Q220*'Input | Comms, IT, Other'!$I63*IF('Input | Comms, IT, Other'!$H63="Yes",'Input| Prices'!Q$59,1) -> 587.6336009
E31: Antennas | F31: End of life | G31: $dollars | H31: 2024-06-01 | J31: ='Input | Comms, IT, Other'!J221*'Input | Comms, IT, Other'!$I64*IF('Input | Comms, IT, Other'!$H64="Yes",'Input| Prices'!J$59,1) -> 0 | K31: ='Input | Comms, IT, Other'!K221*'Input | Comms, IT, Other'!$I64*IF('Input | Comms, IT, Other'!$H64="Yes",'Input| Prices'!K$59,1) -> 11752.67202 | L31: ='Input | Comms, IT, Other'!L221*'Input | Comms, IT, Other'!$I64*IF('Input | Comms, IT, Other'!$H64="Yes",'Input| Prices'!L$59,1) -> 23505.34404 | M31: ='Input | Comms, IT, Other'!M221*'Input | Comms, IT, Other'!$I64*IF('Input | Comms, IT, Other'!$H64="Yes",'Input| Prices'!M$59,1) -> 23505.34404 | N31: ='Input | Comms, IT, Other'!N221*'Input | Comms, IT, Other'!$I64*IF('Input | Comms, IT, Other'!$H64="Yes",'Input| Prices'!N$59,1) -> 23505.34404 | O31: ='Input | Comms, IT, Other'!O221*'Input | Comms, IT, Other'!$I64*IF('Input | Comms, IT, Other'!$H64="Yes",'Input| Prices'!O$59,1) -> 23505.34404 | P31: ='Input | Comms, IT, Other'!P221*'Input | Comms, IT, Other'!$I64*IF('Input | Comms, IT, Other'!$H64="Yes",'Input| Prices'!P$59,1) -> 23505.34404 | Q31: ='Input | Comms, IT, Other'!Q221*'Input | Comms, IT, Other'!$I64*IF('Input | Comms, IT, Other'!$H64="Yes",'Input| Prices'!Q$59,1) -> 5876.336009
E32: Total | H32: 2024-06-01 | J32: =SUM(J12:J31) -> 0 | K32: 328738.0143 | L32: 868851.5665 | M32: 1640153.189 | N32: 2291741.614 | O32: 2101002.516 | P32: 2019701.341 | Q32: 2075696.505
B34: b | C34: Installation cost
E35: Equipment Type | F35: Action/Driver | G35: Units | H35: Basis | J35: ='Input | Comms, IT, Other'!J$82 -> 2023-24 | K35: ='Input | Comms, IT, Other'!K$82 -> 2024-25 | L35: ='Input | Comms, IT, Other'!L$82 -> 2025-26 | M35: ='Input | Comms, IT, Other'!M$82 -> 2026-27 | N35: ='Input | Comms, IT, Other'!N$82 -> 2027-28 | O35: ='Input | Comms, IT, Other'!O$82 -> 2028-29 | P35: ='Input | Comms, IT, Other'!P$82 -> 2029-30 | Q35: ='Input | Comms, IT, Other'!Q$82 -> 2030-31
